Workbook

Sheet START

Sheet Instructions
D2: 2020
X4: Yes
X5: No
W7: Type of Entities Range:
X8: Parent Municipality
X9: Consolidated Information
W17: MTREF Range: | X17: 2008
X18: 2009
X19: 2010
X20: 2011
X21: 2012
X22: 2013
X23: 2014
X24: 2015
X25: 2016
X26: 2017
X27: 2018
X28: 2019
X29: 2020
X30: 2021
X31: 2022
W33: MTREF Linked: | X33: 13
W34: MTREF: | X34: =INDEX(X17:X31,X33,1) -> 2020
W36: Fin Year: | X36: =MTREF&"/"&RIGHT(MTREF,2)+1 -> 2020/21

Sheet Template names (hidden)
A1: Common sheet headings
A2: Head1 | B2: =HLOOKUP(MTREF,Headings,2) -> 2018/19 | C2: Prior year -1
A3: Head1A | B3: =HLOOKUP(MTREF,Headings,3) -> 2017/18 | C3: Prior year -2
A4: Head1B | B4: =HLOOKUP(MTREF,Headings,4) -> 2016/17 | C4: Prior year -3
A5: Head2 | B5: =HLOOKUP(MTREF,Headings,5) -> Current Year 2019/20 | C5: Year in which budget is being prepared
A6: Head2A | B6: =HLOOKUP(MTREF,Headings,6) -> 2019/20 | C6: Year in which budget is being prepared
A7: Head3 | B7: =HLOOKUP(MTREF,Headings,7) -> 2020/21 Medium Term Revenue & Expenditure Framework | C7: MTREF name
A8: Head4 | B8: LTFS | C8: Long term financial strategy
A9: Head5 | B9: Audited Outcome
A10: Head5A | B10: Outcome
A11: Head5B | B11: Pre-audit outcome
A12: Head6 | B12: Original Budget
A13: Head7 | B13: Adjusted Budget
A14: Head8 | B14: Full Year Forecast
A15: Head9 | B15: =HLOOKUP(MTREF,Headings,8) -> Budget Year 2020/21 | C15: 1st year of MTREF | D15: Year1
A16: Head10 | B16: =HLOOKUP(MTREF,Headings,9) -> Budget Year +1 2021/22 | C16: 2nd year of MTREF | D16: Year2
A17: Head11 | B17: =HLOOKUP(MTREF,Headings,10) -> Budget Year +2 2022/23 | C17: 3rd year of MTREF | D17: Year3
A18: Head12 | B18: =HLOOKUP(MTREF,Headings,11) -> Forecast 2023/24 | C18: 1st yr of long term forecast | D18: Year4
A19: Head13 | B19: =HLOOKUP(MTREF,Headings,12) -> Forecast 2024/25 | C19: Next yr of long term forecast | D19: Year5
A20: Head14 | B20: =HLOOKUP(MTREF,Headings,13) -> Forecast 2025/26 | C20: Next yr of long term forecast | D20: Year6
A21: Head15 | B21: =HLOOKUP(MTREF,Headings,14) -> Forecast 2026/27 | C21: Next yr of long term forecast | D21: Year7
A22: Head16 | B22: =HLOOKUP(MTREF,Headings,15) -> Forecast 2027/28 | C22: Next yr of long term forecast | D22: Year8
A23: Head17 | B23: =HLOOKUP(MTREF,Headings,16) -> Forecast 2028/29 | C23: Next yr of long term forecast | D23: Year9
A24: Head18 | B24: =HLOOKUP(MTREF,Headings,17) -> Forecast 2029/30 | C24: Next yr of long term forecast | D24: Year10
A25: Head19 | B25: =HLOOKUP(MTREF,Headings,18) -> Forecast 2030/31 | C25: Next yr of long term forecast | D25: Year11
A26: Head20 | B26: =HLOOKUP(MTREF,Headings,19) -> Forecast 2031/32 | C26: Next yr of long term forecast | D26: Year12
A27: Head21 | B27: =HLOOKUP(MTREF,Headings,20) -> Forecast 2032/33 | C27: Next yr of long term forecast | D27: Year13
A28: Head22 | B28: =HLOOKUP(MTREF,Headings,21) -> Forecast 2033/34 | C28: Next yr of long term forecast | D28: Year14
A29: Head23 | B29: =HLOOKUP(MTREF,Headings,22) -> Forecast 2034/35 | C29: Next yr of long term forecast | D29: Year15
A30: Head24 | B30: Description
A31: Head25
A32: Head26 | B32: Vote Description
A33: Head27 | B33: Ref
A34: Head27a | B34: References
A35: Head28 | B35: Surplus/(Deficit) for the year | D35: Result
A36: Head29 | B36: =HLOOKUP(MTREF,Headings,23) -> Annual target 2020/21
A37: Head30 | B37: =HLOOKUP(MTREF,Headings,24) -> Revised target 2020/21
A38: Head31 | B38: Quarter ended 30 September
A39: Head32 | B39: Quarter ended 31 December
A40: Head33 | B40: Quarter ended 31 March
A41: Head34 | B41: Quarter ended 30 June
A42: Head35 | B42: Variance explanation
A43: Head36 | B43: YTD Actual 31 Dec
A44: Head37 | B44: YTD Budget 31 Dec
A45: Head38 | B45: Monthly actual
A46: Head39 | B46: YTD actual
A47: Head40 | B47: YTD budget
A48: Head41 | B48: YTD variance
A49: Head42 | B49: Surplus/ (Deficit) for the yr/period
A50: Head43 | B50: =Head3&" Summary" -> 2020/21 Medium Term Revenue & Expenditure Framework Summary
A51: Head44 | B51: 2001 Census
A52: Head45 | B52: 2011 Census
A53: Head46 | B53: - Adjustments Budget - January 2007
A54: Head47 | B54: Previous target year to complete
A55: Head48 | B55: Present value
A56: Head49
A57: Head50 | B57: Other Adjusts.
A58: Head51 | B58: Accum. Funds
A59: Head52 | B59: Multi-year capital
A60: Head53 | B60: Unfore. Unavoid.
A61: Head54 | B61: Prior Adjusted
A62: Head55 | B62: Nat. or Prov. Govt
A63: Head56 | B63: Total Adjusts.
A64: SFPerf1 | B64: Budgeted Financial Performance
A65: SFPerf2 | B65: Forecast Financial Performance
A66: SFPos1 | B66: Budgeted Financial Position
A67: SFPos2 | B67: Forecast Financial Position
A68: Cash1 | B68: Budget Cash Flow
A69: Cash2 | B69: Forecast Cash Flow
A70: RandM | B70: Expenditure includes repairs & maintenance of R'000
A71: Depart1 | B71: Department 1 - | D71: DEP1
A72: Depart2 | B72: Department 2 - | D72: DEP2
A73: Depart3 | B73: Department 3 - | D73: DEP3
A74: Depart4 | B74: Department 4 - | D74: DEP4
A75: Depart5 | B75: Department 5 - | D75: DEP5
A76: Depart6 | B76: Department 6 - | D76: DEP6
A77: Depart7 | B77: Department 7 - | D77: DEP7
A78: Depart8 | B78: Department 8 - | D78: DEP8
A79: Depart9 | B79: Department 9 - | D79: DEP9
A80: Depart10 | B80: Department 10 - | D80: DEP10
A81: Depart11 | B81: Department 11 - | D81: DEP11
A82: Depart12 | B82: Department 12 - | D82: DEP12
A83: Depart13 | B83: Department 13 - | D83: DEP13
A84: Depart14 | B84: Department 14 - | D84: DEP14
A87: Base year of forecast column selection names
A88: Choose | B88: ACT
B89: APP
B90: ADJ
A92: Standard nomenclature
A93: Muni | B93: ='Lookup and lists'!B28 -> DC12 Amathole
A94: Municipal Entities | B94: 1 | C94: Type of report: | D94: 1
A95: =IF((MuniEntities=1)*(MuniType=2),"YES","NO") -> NO | B95: Does this municipality have entities (consolidated budget and entity budgets required)? YES/NO
A96: Entity 1 | B96: (Pty) Ltd Example 1 - Municipal entity - | D96: Ent1
A97: Entity 2 | B97: (Pty) Ltd Example 2 - Municipal entity - | D97: Ent2
A98: Entity 3 | B98: Municipal Entity Example 3 | D98: Ent3
A99: Budget approval tables | C99: Chart x-ref | D99: Sch/Tab/Ch | E99: Alternative for municipalities without entities | F99: Alternative for municipalities without entities
B100: =IF(Consolques="YES",E100,F100) -> Table A1 Budget Summary | D100: Table A1 | E100: =D100&"Consolidated Budget Summary" -> Table A1 Consolidated Budget Summary | F100: =D100&"Budget Summary" -> Table A1 Budget Summary
B101: Table A2 Budgeted Financial Performance (revenue and expenditure by functional classification) | C101: Charts 5, 6 | D101: Table A2 | E101: =D101&"Consolidated Budgeted Financial Performance (revenue and expenditure by functional classification)" -> Table A2 Consolidated Budgeted Financial Performance (revenue and expenditure by functional classification) | F101: =D101&"Budgeted Financial Performance (revenue and expenditure by functional classification)" -> Table A2 Budgeted Financial Performance (revenue and expenditure by functional classification)
B102: Table A3 Budgeted Financial Performance (revenue and expenditure by municipal vote) | D102: Table A3 | E102: =D102&"Consolidated Budgeted Financial Performance (revenue and expenditure by municipal vote)" -> Table A3 Consolidated Budgeted Financial Performance (revenue and expenditure by municipal vote) | F102: =D102&"Budgeted Financial Performance (revenue and expenditure by municipal vote)" -> Table A3 Budgeted Financial Performance (revenue and expenditure by municipal vote)
B103: Table A4 Budgeted Financial Performance (revenue and expenditure) | C103: Charts 1, 2, 3, 4 | D103: Table A4 | E103: =D103&"Consolidated Budgeted Financial Performance (revenue and expenditure)" -> Table A4 Consolidated Budgeted Financial Performance (revenue and expenditure) | F103: =D103&"Budgeted Financial Performance (revenue and expenditure)" -> Table A4 Budgeted Financial Performance (revenue and expenditure)
B104: Table A5 Budgeted Capital Expenditure by vote, functional classification and funding | C104: Charts 7, 8, 9, 10, 20 | D104: Table A5 | E104: =D104&"Consolidated Budgeted Capital Expenditure by vote, functional classification and funding" -> Table A5 Consolidated Budgeted Capital Expenditure by vote, functional classification and funding | F104: =D104&"Budgeted Capital Expenditure by vote, functional classification and funding" -> Table A5 Budgeted Capital Expenditure by vote, functional classification and funding
B105: Table A6 Budgeted Financial Position | D105: Table A6 | E105: =D105&"Consolidated Budgeted Financial Position" -> Table A6 Consolidated Budgeted Financial Position | F105: =D105&"Budgeted Financial Position" -> Table A6 Budgeted Financial Position
B106: Table A7 Budgeted Cash Flows | D106: Table A7 | E106: =D106&"Consolidated Budgeted Cash Flows" -> Table A7 Consolidated Budgeted Cash Flows | F106: =D106&"Budgeted Cash Flows" -> Table A7 Budgeted Cash Flows
B107: Table A8 Cash backed reserves/accumulated surplus reconciliation | D107: Table A8 | E107: =D107&"Consolidated Cash backed reserves/accumulated surplus reconciliation" -> Table A8 Consolidated Cash backed reserves/accumulated surplus reconciliation | F107: =D107&"Cash backed reserves/accumulated surplus reconciliation" -> Table A8 Cash backed reserves/accumulated surplus reconciliation
B108: Table A9 Asset Management | D108: Table A9 | E108: =D108&"Consolidated Asset Management" -> Table A9 Consolidated Asset Management | F108: =D108&"Asset Management" -> Table A9 Asset Management
B109: Table A10 Basic service delivery measurement | D109: Table A10 | E109: =D109&"Consolidated basic service delivery measurement" -> Table A10 Consolidated basic service delivery measurement | F109: =D109&"Basic service delivery measurement" -> Table A10 Basic service delivery measurement
A110: Supportinging Tables to the Budget Approval Tables | C110: =$C$99 -> Chart x-ref | D110: =$D$99 -> Sch/Tab/Ch
A111: Supporting Table SA1 | B111: =A111&" Supportinging detail to 'Budgeted Financial Performance'" -> Supporting Table SA1 Supportinging detail to 'Budgeted Financial Performance'
A112: Supporting Table SA2 | B112: =IF(Consolques="YES",E112,F112) -> Supporting Table SA2 Matrix Financial Performance Budget (revenue source/expenditure type and dept.) | E112: =A112&"Consolidated Matrix Financial Performance Budget (revenue source/expenditure type & dept.)" -> Supporting Table SA2 Consolidated Matrix Financial Performance Budget (revenue source/expenditure type & dept.) | F112: =A112&"Matrix Financial Performance Budget (revenue source/expenditure type and dept.)" -> Supporting Table SA2 Matrix Financial Performance Budget (revenue source/expenditure type and dept.)
A113: Supporting Table SA3 | B113: =A113&"Supportinging detail to 'Budgeted Financial Position'" -> Supporting Table SA3 Supportinging detail to 'Budgeted Financial Position'
A114: Supporting Table SA4 | B114: =A114&"Reconciliation of IDP strategic objectives and budget (revenue)" -> Supporting Table SA4 Reconciliation of IDP strategic objectives and budget (revenue) | C114: Chart 11
A115: Supporting Table SA5 | B115: =A115&"Reconciliation of IDP strategic objectives and budget (operating expenditure)" -> Supporting Table SA5 Reconciliation of IDP strategic objectives and budget (operating expenditure) | C115: Chart 12
A116: Supporting Table SA6 | B116: =A116&"Reconciliation of IDP strategic objectives and budget (capital expenditure)" -> Supporting Table SA6 Reconciliation of IDP strategic objectives and budget (capital expenditure) | C116: Chart 13
A117: Supporting Table SA7 | B117: =A117&" Measureable performance objectives" -> Supporting Table SA7 Measureable performance objectives
A118: Supporting Table SA8 | B118: =A118&" Performance indicators and benchmarks" -> Supporting Table SA8 Performance indicators and benchmarks | C118: Chts 15-19
A119: Supporting Table SA9 | B119: =A119&" Social, economic and demographic statistics and assumptions" -> Supporting Table SA9 Social, economic and demographic statistics and assumptions
A120: Supporting Table SA10 | B120: =A120&" Funding measurement" -> Supporting Table SA10 Funding measurement | C120: Chart 14
A121: Supporting Table SA11 | B121: =A121&" Property rates summary" -> Supporting Table SA11 Property rates summary
A122: Supporting Table SA12a | B122: =A122&" Property rates by category (current year)" -> Supporting Table SA12a Property rates by category (current year)
A123: Supporting Table SA12b | B123: =A123&" Property rates by category (budget year)" -> Supporting Table SA12b Property rates by category (budget year)
A124: Supporting Table SA13a | B124: =A124&" Service Tariffs by category" -> Supporting Table SA13a Service Tariffs by category
A125: Supporting Table SA13b | B125: =A125&" Service Tariffs by category - explanatory" -> Supporting Table SA13b Service Tariffs by category - explanatory
A126: Supporting Table SA14 | B126: =A126&" Household bills" -> Supporting Table SA14 Household bills
A127: Supporting Table SA15 | B127: =A127&" Investment particulars by type" -> Supporting Table SA15 Investment particulars by type
A128: Supporting Table SA16 | B128: =A128&" Investment particulars by maturity" -> Supporting Table SA16 Investment particulars by maturity
A129: Supporting Table SA17 | B129: =A129&" Borrowing" -> Supporting Table SA17 Borrowing
A130: Supporting Table SA18 | B130: =A130&" Transfers and grant receipts" -> Supporting Table SA18 Transfers and grant receipts
A131: Supporting Table SA19 | B131: =A131&" Expenditure on transfers and grant programme" -> Supporting Table SA19 Expenditure on transfers and grant programme
A132: Supporting Table SA20 | B132: =A132&" Reconciliation of transfers, grant receipts and unspent funds" -> Supporting Table SA20 Reconciliation of transfers, grant receipts and unspent funds
A133: Supporting Table SA21 | B133: =A133&" Transfers and grants made by the municipality" -> Supporting Table SA21 Transfers and grants made by the municipality
A134: Supporting Table SA22 | B134: =A134&" Summary councillor and staff benefits" -> Supporting Table SA22 Summary councillor and staff benefits
A135: Supporting Table SA23 | B135: =A135&" Salaries, allowances & benefits (political office bearers/councillors/senior managers)" -> Supporting Table SA23 Salaries, allowances & benefits (political office bearers/councillors/senior managers)
A136: Supporting Table SA24 | B136: =A136&" Summary of personnel numbers" -> Supporting Table SA24 Summary of personnel numbers
A137: Supporting Table SA25 | B137: =IF(Consolques="YES",E137,F137) -> Supporting Table SA25 Budgeted monthly revenue and expenditure | E137: =A137&" Consolidated budgeted monthly revenue and expenditure" -> Supporting Table SA25 Consolidated budgeted monthly revenue and expenditure | F137: =A137&" Budgeted monthly revenue and expenditure" -> Supporting Table SA25 Budgeted monthly revenue and expenditure
A138: Supporting Table SA26 | B138: Supporting Table SA26 Budgeted monthly revenue and expenditure (municipal vote) | E138: =A138&" Consolidated budgeted monthly revenue and expenditure (municipal vote)" -> Supporting Table SA26 Consolidated budgeted monthly revenue and expenditure (municipal vote) | F138: =A138&" Budgeted monthly revenue and expenditure (municipal vote)" -> Supporting Table SA26 Budgeted monthly revenue and expenditure (municipal vote)
A139: Supporting Table SA27 | B139: Supporting Table SA27 Budgeted monthly revenue and expenditure (functional classification) | E139: =A139&" Consolidated budgeted monthly revenue and expenditure (functional classification)" -> Supporting Table SA27 Consolidated budgeted monthly revenue and expenditure (functional classification) | F139: =A139&" Budgeted monthly revenue and expenditure (functional classification)" -> Supporting Table SA27 Budgeted monthly revenue and expenditure (functional classification)
A140: Supporting Table SA28 | B140: Supporting Table SA28 Budgeted monthly capital expenditure (municipal vote) | E140: =A140&" Consolidated budgeted monthly capital expenditure (municipal vote)" -> Supporting Table SA28 Consolidated budgeted monthly capital expenditure (municipal vote) | F140: =A140&" Budgeted monthly capital expenditure (municipal vote)" -> Supporting Table SA28 Budgeted monthly capital expenditure (municipal vote)
A141: Supporting Table SA29 | B141: Supporting Table SA29 Budgeted monthly capital expenditure (functional classification) | E141: =A141&" Consolidated budgeted monthly capital expenditure (functional classification)" -> Supporting Table SA29 Consolidated budgeted monthly capital expenditure (functional classification) | F141: =A141&" Budgeted monthly capital expenditure (functional classification)" -> Supporting Table SA29 Budgeted monthly capital expenditure (functional classification)
A142: Supporting Table SA30 | B142: Supporting Table SA30 Budgeted monthly cash flow | E142: =A142&" Consolidated budgeted monthly cash flow" -> Supporting Table SA30 Consolidated budgeted monthly cash flow | F142: =A142&" Budgeted monthly cash flow" -> Supporting Table SA30 Budgeted monthly cash flow
A143: Supporting Table SA31 | B143: NOT REQUIRED - municipality does not have entities | E143: =A143&" Aggregated entity budget" -> Supporting Table SA31 Aggregated entity budget | F143: NOT REQUIRED - municipality does not have entities
A144: Supporting Table SA32 | B144: =A144&" List of external mechanisms" -> Supporting Table SA32 List of external mechanisms
A145: Supporting Table SA33 | B145: =A145&" Contracts having future budgetary implications" -> Supporting Table SA33 Contracts having future budgetary implications
A146: Supporting Table SA34a | B146: =IF(Consolques="YES",E146,F146) -> Supporting Table SA34a Capital expenditure on new assets by asset class | E146: =A146&" Consolidated capital expenditure on new assets by asset class" -> Supporting Table SA34a Consolidated capital expenditure on new assets by asset class | F146: =A146&" Capital expenditure on new assets by asset class" -> Supporting Table SA34a Capital expenditure on new assets by asset class
A147: Supporting Table SA34b | B147: Supporting Table SA34b Capital expenditure on the renewal of existing assets by asset class | E147: =A147&" Consolidated capital expenditure on the renewal of existing assets by asset class" -> Supporting Table SA34b Consolidated capital expenditure on the renewal of existing assets by asset class | F147: =A147&" Capital expenditure on the renewal of existing assets by asset class" -> Supporting Table SA34b Capital expenditure on the renewal of existing assets by asset class
A148: Supporting Table SA34c | B148: Supporting Table SA34c Repairs and maintenance expenditure by asset class | E148: =A148&" Consolidated repairs and maintenance by asset class" -> Supporting Table SA34c Consolidated repairs and maintenance by asset class | F148: =A148&" Repairs and maintenance expenditure by asset class" -> Supporting Table SA34c Repairs and maintenance expenditure by asset class
A149: Supporting Table SA34d | B149: =IF(Consolques="YES",E149,F149) -> Supporting Table SA34d Depreciation by asset class | E149: =A149&" Consolidated Depreciation by asset class" -> Supporting Table SA34d Consolidated Depreciation by asset class | F149: =A149&" Depreciation by asset class" -> Supporting Table SA34d Depreciation by asset class
A150: Supporting Table SA34e | B150: =IF(Consolques="YES",E150,F150) -> Supporting Table SA34e Capital expenditure on the upgrading of existing assets by asset class | E150: =A150&" Consolidated capital expenditure on the upgrading of existing assets by asset class" -> Supporting Table SA34e Consolidated capital expenditure on the upgrading of existing assets by asset class | F150: =A150&" Capital expenditure on the upgrading of existing assets by asset class" -> Supporting Table SA34e Capital expenditure on the upgrading of existing assets by asset class
A151: Supporting Table SA35 | B151: Supporting Table SA35 Future financial implications of the capital budget | E151: =A151&" Consolidated future financial implications of the capital budget" -> Supporting Table SA35 Consolidated future financial implications of the capital budget | F151: =A151& " Future financial implications of the capital budget" -> Supporting Table SA35 Future financial implications of the capital budget
A152: Supporting Table SA36 | B152: Supporting Table SA36 Detailed capital budget | E152: =A152&" Consolidated detailed capital budget" -> Supporting Table SA36 Consolidated detailed capital budget | F152: =A152& " Detailed capital budget" -> Supporting Table SA36 Detailed capital budget
A153: Supporting Table SA37 | B153: Supporting Table SA37 Projects delayed from previous financial year/s | E153: =A153&" Consolidated projects delayed from previous financial year/s" -> Supporting Table SA37 Consolidated projects delayed from previous financial year/s | F153: =A153& " Projects delayed from previous financial year/s" -> Supporting Table SA37 Projects delayed from previous financial year/s
A154: Supporting Table SA38 | B154: =IF(Consolques="YES",E154,F154) -> Supporting Table SA38 Detailed operational projects | E154: =A154&" Consolidated detailed operational projects" -> Supporting Table SA38 Consolidated detailed operational projects | F154: =A154& " Detailed operational projects" -> Supporting Table SA38 Detailed operational projects
A156: Budget Charts | B156: Charts | C156: Cross reference
A157: Chart A1 | B157: =A157&"Revenue by Municipal Vote" -> Chart A1 Revenue by Municipal Vote
A158: Chart A2 | B158: =A158&"Expenditure by Municipal Vote" -> Chart A2 Expenditure by Municipal Vote
A159: Chart A3 | B159: =A159&"Revenue by Standard Classification" -> Chart A3 Revenue by Standard Classification | C159: A2
A160: Chart A4 | B160: =A160&"Expenditure by Standard Classification" -> Chart A4 Expenditure by Standard Classification | C160: A2
A161: Chart A5 | B161: =A161&"Revenue by Major Source (refer 'Minor' source for 'Other Revenue' allocation" -> Chart A5 Revenue by Major Source (refer 'Minor' source for 'Other Revenue' allocation | C161: A3
A162: Chart A6 | B162: =A162&"Revenue by Minor Source (Other)" -> Chart A6 Revenue by Minor Source (Other) | C162: A3
A163: Chart A7 | B163: =A163&"Expenditure by Major Type" -> Chart A7 Expenditure by Major Type | C163: A3
A164: Chart A8 | B164: =A164&"Expenditure by Minor Type (Other)" -> Chart A8 Expenditure by Minor Type (Other) | C164: A3
A165: Chart A9 | B165: =A165&"Capital Expenditure by Municipal Vote/Appropriation (Major)" -> Chart A9 Capital Expenditure by Municipal Vote/Appropriation (Major) | C165: A5
A166: Chart A10 | B166: =A166&"Capital Expenditure by Municipal Vote/Appropriation (Minor)" -> Chart A10 Capital Expenditure by Municipal Vote/Appropriation (Minor) | C166: A5
A167: Chart A11 | B167: =A166&"Capital Expenditure by Standard Classification" -> Chart A10 Capital Expenditure by Standard Classification | C167: A5
A168: Chart A12 | B168: =A168&"Capital expenditure performance trend" -> Chart A12 Capital expenditure performance trend | C168: A5
A169: Chart A13 | B169: =A169&"Capital funding by Source" -> Chart A13 Capital funding by Source | C169: A5
A170: Chart A14 | B170: =A170&"Cash flow trend" -> Chart A14 Cash flow trend | C170: A7
A171: Chart A15 | B171: =A171&"IDP Strategic Objective - Revenue" -> Chart A15 IDP Strategic Objective - Revenue | C171: Table A4
A172: Chart A16 | B172: =A172&"IDP Strategic Objective - Expenditure" -> Chart A16 IDP Strategic Objective - Expenditure | C172: Table A5
A173: Chart A17 | B173: =A173&"IDP Strategic Objective - Capital Expenditure" -> Chart A17 IDP Strategic Objective - Capital Expenditure | C173: Table A6
A174: Chart A18 | B174: =A174&"Debt (borrowing to Total Revenue)" -> Chart A18 Debt (borrowing to Total Revenue) | C174: Table A8
A175: Chart A19 | B175: =A175&"Debtors' trend analysis" -> Chart A19 Debtors' trend analysis | C175: Table A8
A176: Chart A20 | B176: =A176&"Distribution losses" -> Chart A20 Distribution losses | C176: Table A8
A177: Chart A21 | B177: =A177&"Borrowed funding of capital expenditure" -> Chart A21 Borrowed funding of capital expenditure | C177: Table A8
A178: Chart A22 | B178: =A178&"Expenditure analysis (% of Revenue)" -> Chart A22 Expenditure analysis (% of Revenue) | C178: Table A8
A179: Chart A23 | B179: =A179&"Increases in service charges" -> Chart A23 Increases in service charges | C179: Table A10

Sheet Lookup and lists (hidden)
A1: Description | B1: 2007 | C1: 2008 | D1: 2009 | E1: 2010 | F1: 2011 | G1: 2012 | H1: 2013 | I1: 2014 | J1: 2015 | K1: 2016 | L1: 2017 | M1: 2018 | N1: 2019 | O1: 2020 | Q1: Lists | Y1: Grants: | Z1: National - opex | AA1: Provincial - opex | AB1: National - capex | AC1: Provincial - capex
A2: ='Template names'!C2 -> Prior year -1 | B2: 2005/06 | C2: 2006/07 | D2: 2007/08 | E2: =E1-2&"/"&RIGHT(E1,2)-1 -> 2008/9 | F2: 2009/10 | G2: 2010/11 | H2: 2011/12 | I2: 2012/13 | J2: 2013/14 | K2: 2014/15 | L2: 2015/16 | M2: 2016/17 | N2: 2017/18 | O2: 2018/19 | Q2: Yes | R2: <1 | S2: <4 | T2: Market | U2: Land & impr. | V2: Yes | W2: Uniform | X2: Yrs | Z2: Local Government Equitable Share | AA2: Health subsidy | AB2: Municipal Infrastructure Grant (MIG) | AC2: Agriculture
A3: ='Template names'!C3 -> Prior year -2 | B3: 2004/05 | C3: 2005/06 | D3: 2006/07 | E3: =E1-3&"/"&RIGHT(E1,2)-2 -> 2007/8 | F3: 2008/9 | G3: 2009/10 | H3: 2010/11 | I3: 2011/12 | J3: 2012/13 | K3: 2013/14 | L3: 2014/15 | M3: 2015/16 | N3: 2016/17 | O3: 2017/18 | Q3: No | R3: 1 | S3: 4 | T3: Dep.Replace | U3: Land only | V3: No | W3: Variable | X3: Mths | Z3: RSC Levy Replacement | AA3: Ambulance subsidy | AB3: Public Transport and Systems | AC3: Education
A4: ='Template names'!C4 -> Prior year -3 | B4: 2003/04 | C4: 2004/05 | D4: 2005/06 | E4: =E1-4&"/"&RIGHT(E1,2)-3 -> 2006/7 | F4: 2007/8 | G4: 2008/9 | H4: 2009/10 | I4: 2010/11 | J4: 2011/12 | K4: 2012/13 | L4: 2013/14 | M4: 2014/15 | N4: 2015/16 | O4: 2016/17 | R4: 2 | S4: 5 | T4: Other | U4: Other | Z4: Finance Management | AA4: Housing | AB4: Rural Transport Services and Infrastructure | AC4: Health
A5: ='Template names'!C5 -> Year in which budget is being prepared | B5: Current Year 2006/07 | C5: Current Year 2007/08 | D5: Current Year 2008/09 | E5: ="Current Year "& E1-1&"/"&RIGHT(E1,2) -> Current Year 2009/10 | F5: Current Year 2010/11 | G5: Current Year 2011/12 | H5: Current Year 2012/13 | I5: Current Year 2013/14 | J5: Current Year 2014/15 | K5: Current Year 2015/16 | L5: Current Year 2016/17 | M5: Current Year 2017/18 | N5: Current Year 2018/19 | O5: Current Year 2019/20 | R5: 3 | S5: 6 | Z5: Municipal Systems Improvement | AA5: Sport and Recreation | AB5: Regional Bulk Infrastructure | AC5: Housing and Local Government
A6: ='Template names'!C6 -> Year in which budget is being prepared | B6: 2006/07 | C6: 2007/08 | D6: 2008/09 | E6: =E1-1&"/"&RIGHT(E1,2) -> 2009/10 | F6: 2010/11 | G6: 2011/12 | H6: 2012/13 | I6: 2013/14 | J6: 2014/15 | K6: 2015/16 | L6: 2016/17 | M6: 2017/18 | N6: 2018/19 | O6: 2019/20 | R6: 4 | S6: 6-10 | Z6: Water Services Operating Subsidy | AB6: Rural Households Infrastructure | AC6: Other Departments
A7: ='Template names'!C7 -> MTREF name | B7: 2007/08 Medium Term Revenue & Expenditure Framework | C7: 2008/09 Medium Term Revenue & Expenditure Framework | D7: 2009/10 Medium Term Revenue & Expenditure Framework | E7: =E1&"/"&RIGHT(E1,2)+1&" Medium Term Revenue & Expenditure Framework" -> 2010/11 Medium Term Revenue & Expenditure Framework | F7: 2011/12 Medium Term Revenue & Expenditure Framework | G7: 2012/13 Medium Term Revenue & Expenditure Framework | H7: 2013/14 Medium Term Revenue & Expenditure Framework | I7: 2014/15 Medium Term Revenue & Expenditure Framework | J7: 2015/16 Medium Term Revenue & Expenditure Framework | K7: 2016/17 Medium Term Revenue & Expenditure Framework | L7: 2017/18 Medium Term Revenue & Expenditure Framework | M7: 2018/19 Medium Term Revenue & Expenditure Framework | N7: 2019/20 Medium Term Revenue & Expenditure Framework | O7: 2020/21 Medium Term Revenue & Expenditure Framework | R7: 5 | S7: >10 | Z7: Energy Efficiency and Demand Management | AB7: Neighbourhood Development Partnership | AC7: Public Works, Roads, Transport
A8: ='Template names'!C15 -> 1st year of MTREF | B8: Budget Year 2007/08 | C8: Budget Year 2008/09 | D8: Budget Year 2009/10 | E8: ="Budget Year "&E1&"/"&RIGHT(E1,2)+1 -> Budget Year 2010/11 | F8: Budget Year 2011/12 | G8: Budget Year 2012/13 | H8: Budget Year 2013/14 | I8: Budget Year 2014/15 | J8: Budget Year 2015/16 | K8: Budget Year 2016/17 | L8: Budget Year 2017/18 | M8: Budget Year 2018/19 | N8: Budget Year 2019/20 | O8: Budget Year 2020/21 | R8: >5 | Z8: Integrated National Electrification Programme | AB8: 2010 FIFA World Cup Stadiums Development | AC8: Sport and Recreation
A9: ='Template names'!C16 -> 2nd year of MTREF | B9: Budget Year +1 2008/09 | C9: Budget Year +1 2009/10 | D9: Budget Year +1 2010/11 | E9: ="Budget Year +1 "&E1+1&"/"&RIGHT(E1,2)+2 -> Budget Year +1 2011/12 | F9: Budget Year +1 2012/13 | G9: Budget Year +1 2013/14 | H9: Budget Year +1 2014/15 | I9: Budget Year +1 2015/16 | J9: Budget Year +1 2016/17 | K9: Budget Year +1 2017/18 | L9: Budget Year +1 2018/19 | M9: Budget Year +1 2019/20 | N9: Budget Year +1 2020/21 | O9: Budget Year +1 2021/22 | Z9: Municipal Drought Relief
A10: ='Template names'!C17 -> 3rd year of MTREF | B10: Budget Year +2 2009/10 | C10: Budget Year +2 2010/11 | D10: Budget Year +2 2011/12 | E10: ="Budget Year +2 "&E1+2&"/"&RIGHT(E1,2)+3 -> Budget Year +2 2012/13 | F10: Budget Year +2 2013/14 | G10: Budget Year +2 2014/15 | H10: Budget Year +2 2015/16 | I10: Budget Year +2 2016/17 | J10: Budget Year +2 2017/18 | K10: Budget Year +2 2018/19 | L10: Budget Year +2 2019/20 | M10: Budget Year +2 2020/21 | N10: Budget Year +2 2021/22 | O10: Budget Year +2 2022/23 | Z10: 2010 FIFA World Cup Operating
A11: ='Template names'!C18 -> 1st yr of long term forecast | B11: Forecast 2010/11 | C11: Forecast 2011/12 | D11: Forecast 2012/13 | E11: ="Forecast "&E1+3&"/"&RIGHT(E1,2)+4 -> Forecast 2013/14 | F11: Forecast 2014/15 | G11: Forecast 2015/16 | H11: Forecast 2016/17 | I11: Forecast 2017/18 | J11: Forecast 2018/19 | K11: Forecast 2019/20 | L11: Forecast 2020/21 | M11: Forecast 2021/22 | N11: Forecast 2022/23 | O11: Forecast 2023/24 | Z11: Electricity Demand Side Management
A12: ='Template names'!C19 -> Next yr of long term forecast | B12: Forecast 2011/12 | C12: Forecast 2012/13 | D12: Forecast 2013/14 | E12: ="Forecast "&E1+4&"/"&RIGHT(E1,2)+5 -> Forecast 2014/15 | F12: Forecast 2015/16 | G12: Forecast 2016/17 | H12: Forecast 2017/18 | I12: Forecast 2018/19 | J12: Forecast 2019/20 | K12: Forecast 2020/21 | L12: Forecast 2021/22 | M12: Forecast 2022/23 | N12: Forecast 2023/24 | O12: Forecast 2024/25 | Z12: EPWP Incentive
A13: ='Template names'!C20 -> Next yr of long term forecast | B13: Forecast 2012/13 | C13: Forecast 2013/14 | D13: Forecast 2014/15 | E13: ="Forecast "&E1+5&"/"&RIGHT(E1,2)+6 -> Forecast 2015/16 | F13: Forecast 2016/17 | G13: Forecast 2017/18 | H13: Forecast 2018/19 | I13: Forecast 2019/20 | J13: Forecast 2020/21 | K13: Forecast 2021/22 | L13: Forecast 2022/23 | M13: Forecast 2023/24 | N13: Forecast 2024/25 | O13: Forecast 2025/26
A14: ='Template names'!C21 -> Next yr of long term forecast | B14: Forecast 2013/14 | C14: Forecast 2014/15 | D14: Forecast 2015/16 | E14: ="Forecast "&E1+6&"/"&RIGHT(E1,2)+7 -> Forecast 2016/17 | F14: Forecast 2017/18 | G14: Forecast 2018/19 | H14: Forecast 2019/20 | I14: Forecast 2020/21 | J14: Forecast 2021/22 | K14: Forecast 2022/23 | L14: Forecast 2023/24 | M14: Forecast 2024/25 | N14: Forecast 2025/26 | O14: Forecast 2026/27 | Z14: Asset Class | AA14: Asset sub-class old | AB14: Asset sub-class | AC14: IUDF | AD14: MTSF
A15: ='Template names'!C22 -> Next yr of long term forecast | B15: Forecast 2014/15 | C15: Forecast 2015/16 | D15: Forecast 2016/17 | E15: ="Forecast "&E1+7&"/"&RIGHT(E1,2)+8 -> Forecast 2017/18 | F15: Forecast 2018/19 | G15: Forecast 2019/20 | H15: Forecast 2020/21 | I15: Forecast 2021/22 | J15: Forecast 2022/23 | K15: Forecast 2023/24 | L15: Forecast 2024/25 | M15: Forecast 2025/26 | N15: Forecast 2026/27 | O15: Forecast 2027/28
A16: ='Template names'!C23 -> Next yr of long term forecast | B16: Forecast 2015/16 | C16: Forecast 2016/17 | D16: Forecast 2017/18 | E16: ="Forecast "&E1+8&"/"&RIGHT(E1,2)+9 -> Forecast 2018/19 | F16: Forecast 2019/20 | G16: Forecast 2020/21 | H16: Forecast 2021/22 | I16: Forecast 2022/23 | J16: Forecast 2023/24 | K16: Forecast 2024/25 | L16: Forecast 2025/26 | M16: Forecast 2026/27 | N16: Forecast 2027/28 | O16: Forecast 2028/29 | Z16: Roads Infrastructure | AA16: Roads, Pavements & Bridges | AB16: Roads | AC16: Spatial integration | AD16: Quality basic education
A17: ='Template names'!C24 -> Next yr of long term forecast | B17: Forecast 2016/17 | C17: Forecast 2017/18 | D17: Forecast 2018/19 | E17: ="Forecast "&E1+9&"/"&RIGHT(E1,2)+10 -> Forecast 2019/20 | F17: Forecast 2020/21 | G17: Forecast 2021/22 | H17: Forecast 2022/23 | I17: Forecast 2023/24 | J17: Forecast 2024/25 | K17: Forecast 2025/26 | L17: Forecast 2026/27 | M17: Forecast 2027/28 | N17: Forecast 2028/29 | O17: Forecast 2029/30 | Z17: Storm water Infrastructure | AA17: Storm water | AB17: Road Structures | AC17: Inclusion and access | AD17: A long and healthy life for all South Africans
A18: ='Template names'!C25 -> Next yr of long term forecast | B18: Forecast 2017/18 | C18: Forecast 2018/19 | D18: Forecast 2019/20 | E18: ="Forecast "&E1+10&"/"&RIGHT(E1,2)+11 -> Forecast 2020/21 | F18: Forecast 2021/22 | G18: Forecast 2022/23 | H18: Forecast 2023/24 | I18: Forecast 2024/25 | J18: Forecast 2025/26 | K18: Forecast 2026/27 | L18: Forecast 2027/28 | M18: Forecast 2028/29 | N18: Forecast 2029/30 | O18: Forecast 2030/31 | Z18: Electrical Infrastructure | AA18: Generation | AB18: Road Furniture | AC18: Growth | AD18: All people in South Africa are and feel safe
A19: ='Template names'!C26 -> Next yr of long term forecast | B19: Forecast 2018/19 | C19: Forecast 2019/20 | D19: Forecast 2020/21 | E19: ="Forecast "&E1+11&"/"&RIGHT(E1,2)+12 -> Forecast 2021/22 | F19: Forecast 2022/23 | G19: Forecast 2023/24 | H19: Forecast 2024/25 | I19: Forecast 2025/26 | J19: Forecast 2026/27 | K19: Forecast 2027/28 | L19: Forecast 2028/29 | M19: Forecast 2029/30 | N19: Forecast 2030/31 | O19: Forecast 2031/32 | Z19: Water Supply Infrastructure | AA19: Transmission & Reticulation | AB19: Capital Spares | AC19: Governance | AD19: Decent employment through inclusive growth
A20: ='Template names'!C27 -> Next yr of long term forecast | B20: Forecast 2019/20 | C20: Forecast 2020/21 | D20: Forecast 2021/22 | E20: ="Forecast "&E1+12&"/"&RIGHT(E1,2)+13 -> Forecast 2022/23 | F20: Forecast 2023/24 | G20: Forecast 2024/25 | H20: Forecast 2025/26 | I20: Forecast 2026/27 | J20: Forecast 2027/28 | K20: Forecast 2028/29 | L20: Forecast 2029/30 | M20: Forecast 2030/31 | N20: Forecast 2031/32 | O20: Forecast 2032/33 | Z20: Sanitation Infrastructure | AA20: Street Lighting | AB20: Drainage Collection | AD20: A skilled and capable workforce to support an inclusive growth path
A21: ='Template names'!C28 -> Next yr of long term forecast | B21: Forecast 2020/21 | C21: Forecast 2021/22 | D21: Forecast 2022/23 | E21: ="Forecast "&E1+13&"/"&RIGHT(E1,2)+14 -> Forecast 2023/24 | F21: Forecast 2024/25 | G21: Forecast 2025/26 | H21: Forecast 2026/27 | I21: Forecast 2027/28 | J21: Forecast 2028/29 | K21: Forecast 2029/30 | L21: Forecast 2030/31 | M21: Forecast 2031/32 | N21: Forecast 2032/33 | O21: Forecast 2033/34 | Z21: Solid Waste Infrastructure | AA21: Dams & Reservoirs | AB21: Storm water Conveyance | AD21: An efficient, competitive and responsive economic infrastructure network
A22: ='Template names'!C29 -> Next yr of long term forecast | B22: Forecast 2021/22 | C22: Forecast 2022/23 | D22: Forecast 2023/24 | E22: ="Forecast "&E1+14&"/"&RIGHT(E1,2)+15 -> Forecast 2024/25 | F22: Forecast 2025/26 | G22: Forecast 2026/27 | H22: Forecast 2027/28 | I22: Forecast 2028/29 | J22: Forecast 2029/30 | K22: Forecast 2030/31 | L22: Forecast 2031/32 | M22: Forecast 2032/33 | N22: Forecast 2033/34 | O22: Forecast 2034/35 | Z22: Rail Infrastructure | AA22: Water purification | AB22: Attenuation | AD22: Vibrant, equitable, sustainable rural communities contributing towards food security for all
A23: Adjustments Budget | B23: Annual target 2007/08 | C23: Annual target 2008/09 | D23: Annual target 2009/10 | E23: ="Annual target " & E1&"/"&RIGHT(E1,2)+1 -> Annual target 2010/11 | F23: Annual target 2011/12 | G23: Annual target 2012/13 | H23: Annual target 2013/14 | I23: Annual target 2014/15 | J23: Annual target 2015/16 | K23: Annual target 2016/17 | L23: Annual target 2017/18 | M23: Annual target 2018/19 | N23: Annual target 2019/20 | O23: Annual target 2020/21 | Z23: Coastal Infrastructure | AA23: Reticulation | AB23: Power Plants | AD23: Sustainable human settlements and improved quality of household life
A24: =A23 -> Adjustments Budget | B24: Revised target 2007/08 | C24: Revised target 2008/09 | D24: Revised target 2009/10 | E24: ="Revised target "& E1&"/"&RIGHT(E1,2)+1 -> Revised target 2010/11 | F24: Revised target 2011/12 | G24: Revised target 2012/13 | H24: Revised target 2013/14 | I24: Revised target 2014/15 | J24: Revised target 2015/16 | K24: Revised target 2016/17 | L24: Revised target 2017/18 | M24: Revised target 2018/19 | N24: Revised target 2019/20 | O24: Revised target 2020/21 | Z24: Information and Communication Infrastructure | AA24: Sewerage purification | AB24: HV Substations | AD24: Responsive, accountable, effective and efficient local government
A25: NOTE: This sheet should not be directly amended - select headings from sheet 'S' | Z25: Community Facilities | AA25: Waste Management | AB25: HV Switching Station | AD25: Protect and enhance our environmental assets and natural resources
Z26: Sport and Recreation Facilities | AA26: Transportation | AB26: HV Transmission Conductors | AD26: Create a better South Africa and contribute to a better Africa and a better world
A27: Name link | B27: 18 | Z27: Heritage assets | AA27: Gas | AB27: MV Substations | AD27: An efficient, effective and development-oriented public service
A28: Name of Muni | B28: =INDEX(B29:B307,B27,1) -> DC12 Amathole | Z28: Revenue Generating | AA28: Parks & gardens | AB28: MV Switching Stations | AD28: A comprehensive, responsive and sustainable social protection system
B29: Choose name from list | C29: Set name on 'Instructions' sheet | Z29: Non-revenue Generating | AA29: Sportsfields & stadia | AB29: MV Networks | AD29: A diverse, socially cohesive society with a common national identity
B30: BUF Buffalo City | C30: EC EASTERN CAPE | Z30: Operational Buildings | AA30: Swimming pools | AB30: LV Networks
B31: NMA Nelson Mandela Bay | C31: EC EASTERN CAPE | Z31: Housing | AA31: Community halls | AB31: Capital Spares
B32: EC101 Dr Beyers Naude | C32: EC EASTERN CAPE | Z32: Biological or Cultivated Assets | AA32: Libraries | AB32: Dams and Weirs
B33: EC102 Blue Crane Route | C33: EC EASTERN CAPE | Z33: Servitudes | AA33: Recreational facilities | AB33: Boreholes
B34: EC104 Makana | C34: EC EASTERN CAPE | Z34: Licences and Rights | AA34: Fire, safety & emergency | AB34: Reservoirs
B35: EC105 Ndlambe | C35: EC EASTERN CAPE | Z35: Computer Equipment | AA35: Security and policing | AB35: Pump Stations
B36: EC106 Sundays River Valley | C36: EC EASTERN CAPE | Z36: Furniture and Office Equipment | AA36: Buses | AB36: Water Treatment Works
B37: EC108 Kouga | C37: EC EASTERN CAPE | Z37: Machinery and Equipment | AA37: Clinics | AB37: Bulk Mains
B38: EC109 Kou-Kamma | C38: EC EASTERN CAPE | Z38: Transport Assets | AA38: Museums & Art Galleries | AB38: Distribution
B39: DC10 Sarah Baartman | C39: EC EASTERN CAPE | Z39: Land | AA39: Cemeteries | AB39: Distribution Points
B40: EC121 Mbhashe | C40: EC EASTERN CAPE | Z40: Zoo's, Marine and Non-biological Animals | AA40: Social rental housing | AB40: PRV Stations
B41: EC122 Mnquma | C41: EC EASTERN CAPE | AA41: Buildings | AB41: Capital Spares
B42: EC123 Great Kei | C42: EC EASTERN CAPE | AA42: Housing development | AB42: Pump Station
B43: EC124 Amahlathi | C43: EC EASTERN CAPE | AA43: General vehicles | AB43: Reticulation
B44: EC126 Ngqushwa | C44: EC EASTERN CAPE | AA44: Specialised vehicles - Refuse | AB44: Waste Water Treatment Works
B45: EC129 Raymond Mhlaba | C45: EC EASTERN CAPE | AA45: Specialised vehicles - Fire | AB45: Outfall Sewers
B46: DC12 Amathole | C46: EC EASTERN CAPE | AA46: Specialised vehicles - Conservancy | AB46: Toilet Facilities
B47: EC131 Inxuba Yethemba | C47: EC EASTERN CAPE | AA47: Specialised vehicles - Ambulances | AB47: Capital Spares
B48: EC135 Intsika Yethu | C48: EC EASTERN CAPE | AA48: Plant & equipment | AB48: Landfill Sites
B49: EC136 Emalahleni (Ec) | C49: EC EASTERN CAPE | AA49: Computers - hardware/equipment | AB49: Waste Transfer Stations
B50: EC137 Engcobo | C50: EC EASTERN CAPE | AA50: Furniture and other office equipment | AB50: Waste Processing Facilities
B51: EC138 Sakhisizwe | C51: EC EASTERN CAPE | AA51: Abattoirs | AB51: Waste Drop-off Points
B52: EC139 Enoch Mgijima | C52: EC EASTERN CAPE | AA52: Markets | AB52: Waste Separation Facilities
B53: DC13 Chris Hani | C53: EC EASTERN CAPE | AA53: Civic Land and Buildings | AB53: Electricity Generation Facilities
B54: EC141 Elundini | C54: EC EASTERN CAPE | AA54: Other Buildings | AB54: Capital Spares
B55: EC142 Senqu | C55: EC EASTERN CAPE | AA55: Other Land | AB55: Rail Lines
B56: EC145 Walter Sisulu | C56: EC EASTERN CAPE | AA56: Surplus Assets - (Investment or Inventory) | AB56: Rail Structures
B57: DC14 Joe Gqabi | C57: EC EASTERN CAPE | AA57: Computers - software & programming | AB57: Rail Furniture
B58: EC153 Ngquza Hills | C58: EC EASTERN CAPE | AA58: Other | AB58: Drainage Collection
B59: EC154 Port St Johns | C59: EC EASTERN CAPE | AB59: Storm water Conveyance
B60: EC155 Nyandeni | C60: EC EASTERN CAPE | Z60: SA16 - Investments | AB60: Attenuation
B61: EC156 Mhlontlo | C61: EC EASTERN CAPE | Z61: Security | AA61: Interest rate | AB61: MV Substations
B62: EC157 King Sabata Dalindyebo | C62: EC EASTERN CAPE | Z62: Yes | AA62: Fixed | AB62: LV Networks
B63: DC15 O .R. Tambo | C63: EC EASTERN CAPE | Z63: No | AA63: Variable | AB63: Capital Spares
B64: EC441 Matatiele | C64: EC EASTERN CAPE | AB64: Sand Pumps
B65: EC442 Umzimvubu | C65: EC EASTERN CAPE | AB65: Piers
B66: EC443 Mbizana | C66: EC EASTERN CAPE | Z66: SA36, SA37 - Capital projects | AB66: Revetments
B67: EC444 Ntabankulu | C67: EC EASTERN CAPE | Z67: Yes | AB67: Promenades
B68: DC44 Alfred Nzo | C68: EC EASTERN CAPE | Z68: No | AB68: Capital Spares
B69: MAN Mangaung | C69: FS FREE STATE | AB69: Data Centres
B70: FS161 Letsemeng | C70: FS FREE STATE | AB70: Core Layers
B71: FS162 Kopanong | C71: FS FREE STATE | AB71: Distribution Layers
B72: FS163 Mohokare | C72: FS FREE STATE | AB72: Capital Spares
B73: DC16 Xhariep | C73: FS FREE STATE | AB73: Halls
B74: FS181 Masilonyana | C74: FS FREE STATE | AB74: Centres
B75: FS182 Tokologo | C75: FS FREE STATE | AB75: Crèches
B76: FS183 Tswelopele | C76: FS FREE STATE | AB76: Clinics/Care Centres
B77: FS184 Matjhabeng | C77: FS FREE STATE | AB77: Fire/Ambulance Stations
B78: FS185 Nala | C78: FS FREE STATE | AB78: Testing Stations
B79: DC18 Lejweleputswa | C79: FS FREE STATE | AB79: Museums
B80: FS191 Setsoto | C80: FS FREE STATE | AB80: Galleries
B81: FS192 Dihlabeng | C81: FS FREE STATE | AB81: Theatres
B82: FS193 Nketoana | C82: FS FREE STATE | AB82: Libraries
B83: FS194 Maluti-a-Phofung | C83: FS FREE STATE | AB83: Cemeteries/Crematoria
B84: FS195 Phumelela | C84: FS FREE STATE | AB84: Police
B85: FS196 Mantsopa | C85: FS FREE STATE | AB85: Purls
B86: DC19 Thabo Mofutsanyana | C86: FS FREE STATE | AB86: Public Open Space
B87: FS201 Moqhaka | C87: FS FREE STATE | AB87: Nature Reserves
B88: FS203 Ngwathe | C88: FS FREE STATE | AB88: Public Ablution Facilities
B89: FS204 Metsimaholo | C89: FS FREE STATE | AB89: Markets
B90: FS205 Mafube | C90: FS FREE STATE | AB90: Stalls
B91: DC20 Fezile Dabi | C91: FS FREE STATE | AB91: Abattoirs
B92: EKU City of Ekurhuleni | C92: GT GAUTENG | AB92: Airports
B93: JHB City Of Johannesburg | C93: GT GAUTENG | AB93: Taxi Ranks/Bus Terminals
B94: TSH City Of Tshwane | C94: GT GAUTENG | AB94: Capital Spares
B95: GT421 Emfuleni | C95: GT GAUTENG | AB95: Indoor Facilities
B96: GT422 Midvaal | C96: GT GAUTENG | AB96: Outdoor Facilities
B97: GT423 Lesedi | C97: GT GAUTENG | AB97: Capital Spares
B98: DC42 Sedibeng | C98: GT GAUTENG | AB98: Monuments
B99: GT481 Mogale City | C99: GT GAUTENG | AB99: Historic Buildings
B100: GT484 Merafong City | C100: GT GAUTENG | AB100: Works of Art
B101: GT485 Rand West City | C101: GT GAUTENG | AB101: Conservation Areas
B102: DC48 West Rand | C102: GT GAUTENG | AB102: Other Heritage
B103: ETH eThekwini | C103: KZN KWAZULU-NATAL | AB103: Improved Property
B104: KZN212 Umdoni | C104: KZN KWAZULU-NATAL | AB104: Unimproved Property
B105: KZN213 Umzumbe | C105: KZN KWAZULU-NATAL | AB105: Municipal Offices
B106: KZN214 uMuziwabantu | C106: KZN KWAZULU-NATAL | AB106: Pay/Enquiry Points
B107: KZN216 Ray Nkonyeni | C107: KZN KWAZULU-NATAL | AB107: Building Plan Offices
B108: DC21 Ugu | C108: KZN KWAZULU-NATAL | AB108: Workshops
B109: KZN221 uMshwathi | C109: KZN KWAZULU-NATAL | AB109: Yards
B110: KZN222 uMngeni | C110: KZN KWAZULU-NATAL | AB110: Stores
B111: KZN223 Mpofana | C111: KZN KWAZULU-NATAL | AB111: Laboratories
B112: KZN224 Impendle | C112: KZN KWAZULU-NATAL | AB112: Training Centres
B113: KZN225 Msunduzi | C113: KZN KWAZULU-NATAL | AB113: Manufacturing Plant
B114: KZN226 Mkhambathini | C114: KZN KWAZULU-NATAL | AB114: Depots
B115: KZN227 Richmond | C115: KZN KWAZULU-NATAL | AB115: Capital Spares
B116: DC22 uMgungundlovu | C116: KZN KWAZULU-NATAL | AB116: Staff Housing
B117: KZN235 Okhahlamba | C117: KZN KWAZULU-NATAL | AB117: Social Housing
B118: KZN237 Inkosi Langalibalele | C118: KZN KWAZULU-NATAL | AB118: Capital Spares
B119: KZN238 Alfred Duma | C119: KZN KWAZULU-NATAL | AB119: Water Rights
B120: DC23 Uthukela | C120: KZN KWAZULU-NATAL | AB120: Effluent Licenses
B121: KZN241 Endumeni | C121: KZN KWAZULU-NATAL | AB121: Solid Waste Licenses
B122: KZN242 Nquthu | C122: KZN KWAZULU-NATAL | AB122: Computer Software and Applications
B123: KZN244 Msinga | C123: KZN KWAZULU-NATAL | AB123: Load Settlement Software Applications
B124: KZN245 Umvoti | C124: KZN KWAZULU-NATAL | AB124: Unspecified
B125: DC24 Umzinyathi | C125: KZN KWAZULU-NATAL
B126: KZN252 Newcastle | C126: KZN KWAZULU-NATAL
B127: KZN253 Emadlangeni | C127: KZN KWAZULU-NATAL
B128: KZN254 Dannhauser | C128: KZN KWAZULU-NATAL
B129: DC25 Amajuba | C129: KZN KWAZULU-NATAL
B130: KZN261 eDumbe | C130: KZN KWAZULU-NATAL
B131: KZN262 uPhongolo | C131: KZN KWAZULU-NATAL
B132: KZN263 Abaqulusi | C132: KZN KWAZULU-NATAL
B133: KZN265 Nongoma | C133: KZN KWAZULU-NATAL
B134: KZN266 Ulundi | C134: KZN KWAZULU-NATAL
B135: DC26 Zululand | C135: KZN KWAZULU-NATAL
B136: KZN271 Umhlabuyalingana | C136: KZN KWAZULU-NATAL
B137: KZN272 Jozini | C137: KZN KWAZULU-NATAL
B138: KZN275 Mtubatuba | C138: KZN KWAZULU-NATAL
B139: KZN276 Hlabisa Big Five | C139: KZN KWAZULU-NATAL
B140: DC27 Umkhanyakude | C140: KZN KWAZULU-NATAL
B141: KZN281 Mfolozi | C141: KZN KWAZULU-NATAL
B142: KZN282 uMhlathuze | C142: KZN KWAZULU-NATAL
B143: KZN284 uMlalazi | C143: KZN KWAZULU-NATAL
B144: KZN285 Mthonjaneni | C144: KZN KWAZULU-NATAL
B145: KZN286 Nkandla | C145: KZN KWAZULU-NATAL
B146: DC28 King Cetshwayo | C146: KZN KWAZULU-NATAL
B147: KZN291 Mandeni | C147: KZN KWAZULU-NATAL
B148: KZN292 KwaDukuza | C148: KZN KWAZULU-NATAL
B149: KZN293 Ndwedwe | C149: KZN KWAZULU-NATAL
B150: KZN294 Maphumulo | C150: KZN KWAZULU-NATAL
B151: DC29 iLembe | C151: KZN KWAZULU-NATAL
B152: KZN433 Greater Kokstad | C152: KZN KWAZULU-NATAL
B153: KZN434 Ubuhlebezwe | C153: KZN KWAZULU-NATAL
B154: KZN435 Umzimkhulu | C154: KZN KWAZULU-NATAL
B155: KZN436 Dr Nkosazana Dlamini Zuma | C155: KZN KWAZULU-NATAL
B156: DC43 Harry Gwala | C156: KZN KWAZULU-NATAL
B157: LIM331 Greater Giyani | C157: LIM LIMPOPO
B158: LIM332 Greater Letaba | C158: LIM LIMPOPO
B159: LIM333 Greater Tzaneen | C159: LIM LIMPOPO
B160: LIM334 Ba-Phalaborwa | C160: LIM LIMPOPO
B161: LIM335 Maruleng | C161: LIM LIMPOPO
B162: DC33 Mopani | C162: LIM LIMPOPO
B163: LIM341 Musina | C163: LIM LIMPOPO
B164: LIM343 Thulamela | C164: LIM LIMPOPO
B165: LIM344 Makhado | C165: LIM LIMPOPO
B166: LIM345 Collins Chabane | C166: LIM LIMPOPO
B167: DC34 Vhembe | C167: LIM LIMPOPO
B168: LIM351 Blouberg | C168: LIM LIMPOPO
B169: LIM353 Molemole | C169: LIM LIMPOPO
B170: LIM354 Polokwane | C170: LIM LIMPOPO
B171: LIM355 Lepelle-Nkumpi | C171: LIM LIMPOPO
B172: DC35 Capricorn | C172: LIM LIMPOPO
B173: LIM361 Thabazimbi | C173: LIM LIMPOPO
B174: LIM362 Lephalale | C174: LIM LIMPOPO
B175: LIM366 Bela Bela | C175: LIM LIMPOPO
B176: LIM367 Mogalakwena | C176: LIM LIMPOPO
B177: LIM368 Modimolle-Mookgopong | C177: LIM LIMPOPO
B178: DC36 Waterberg | C178: LIM LIMPOPO
B179: LIM471 Ephraim Mogale | C179: LIM LIMPOPO
B180: LIM472 Elias Motsoaledi | C180: LIM LIMPOPO
B181: LIM473 Makhuduthamaga | C181: LIM LIMPOPO
B182: LIM476 Tubatse Fetakgomo | C182: LIM LIMPOPO
B183: DC47 Sekhukhune | C183: LIM LIMPOPO
B184: MP301 Albert Luthuli | C184: MP MPUMALANGA
B185: MP302 Msukaligwa | C185: MP MPUMALANGA
B186: MP303 Mkhondo | C186: MP MPUMALANGA
B187: MP304 Pixley Ka Seme (MP) | C187: MP MPUMALANGA
B188: MP305 Lekwa | C188: MP MPUMALANGA
B189: MP306 Dipaleseng | C189: MP MPUMALANGA
B190: MP307 Govan Mbeki | C190: MP MPUMALANGA
B191: DC30 Gert Sibande | C191: MP MPUMALANGA
B192: MP311 Victor Khanye | C192: MP MPUMALANGA
B193: MP312 Emalahleni (Mp) | C193: MP MPUMALANGA
B194: MP313 Steve Tshwete | C194: MP MPUMALANGA
B195: MP314 Emakhazeni | C195: MP MPUMALANGA
B196: MP315 Thembisile Hani | C196: MP MPUMALANGA
B197: MP316 Dr J.S. Moroka | C197: MP MPUMALANGA
B198: DC31 Nkangala | C198: MP MPUMALANGA
B199: MP321 Thaba Chweu | C199: MP MPUMALANGA
B200: MP324 Nkomazi | C200: MP MPUMALANGA
... 87 more rows

Sheet Org structure
A1: Organisational Structure Votes | C1: Organisational Structure Sub-Votes | E1: Display Sub-Votes
A2: =B2&" - "&C2 -> Vote 1 - Legislative & Executive Support Services | B2: Vote 1 | C2: Legislative & Executive Support Services
A3: =B9&" - "& C9 -> Vote 2 - Strategic Management | B3: 1.1 | C3: Council General | D3: =CONCATENATE(B3, " - ", C3) -> 1,1 - Council General | E3: 1,1 - Council General
A4: =B18&" - "&C18 -> Vote 3 - Corporate Services | B4: 1.2 | C4: Mayoral Committee | D4: 1,2 - Mayoral Committee | E4: 1,2 - Mayoral Committee
A5: =B27&" - "&C27 -> Vote 4 - Budget & Treasury | B5: 1.3 | C5: Executive Support Services | D5: 1,3 - Executive Support Services | E5: 1,3 - Executive Support Services
A6: =B38&" - "&C38 -> Vote 5 - Engineering Department | B6: 1.4 | C6: Legislative Support Services | D6: 1,4 - Legislative Support Services | E6: 1,4 - Legislative Support Services
A7: =B46&" - "&C46 -> Vote 6 - Health & Protection Department | B7: 1.5 | C7: Director: Leg&executive Support Services | D7: 1,5 - Director: Leg&executive Support Services | E7: 1,5 - Director: Leg&executive Support Services
A8: =B60&" - "&C60 -> Vote 7 - Water & Sanitation Management | B8: 1.6 | C8: Council Support | D8: 1,6 - Council Support | E8: 1,6 - Council Support
A9: =B65&" - "&C65 -> Vote 8 - Water Services | B9: Vote 2 | C9: Strategic Management
A10: =B114&" - "&C114 -> Vote 9 - Sanitation Services | B10: 2.1 | C10: Risk Services | D10: =CONCATENATE(B10, " - ", C10) -> 2,1 - Risk Services | E10: 2,1 - Risk Services
A11: =B137&" - "&C137 -> Vote 10 - Land Human Settlement & Economic Development | B11: 2.2 | C11: Municipal Support Unit | D11: 2,2 - Municipal Support Unit | E11: 2,2 - Municipal Support Unit
A12: =B142&" - "&C142 -> Vote 11 - Municipal Management | B12: 2.3 | C12: Strategic Planning | D12: 2,3 - Strategic Planning | E12: 2,3 - Strategic Planning
A13: =B155&" - "&C155 -> Vote 12 - [NAME OF VOTE 12] | B13: 2.4 | C13: Information Management Unit | D13: 2,4 - Information Management Unit | E13: 2,4 - Information Management Unit
A14: =B168&" - "&C168 -> Vote 13 - [NAME OF VOTE 13] | B14: 2.5 | C14: Communications & Customer Care | D14: 2,5 - Communications & Customer Care | E14: 2,5 - Communications & Customer Care
A15: =B179&" - "&C179 -> Vote 14 - [NAME OF VOTE 14] | B15: 2.6 | C15: Planning Monitoring & Evaluation | D15: 2,6 - Planning Monitoring & Evaluation | E15: 2,6 - Planning Monitoring & Evaluation
A16: =B190&" - "&C190 -> Vote 15 - [NAME OF VOTE 15] | B16: 2.7 | C16: Speaker Support Services_(old) | D16: 2,7 - Speaker Support Services_(old) | E16: 2,7 - Speaker Support Services_(old)
B17: 2.8 | C17: Travel Desk & Igr | D17: 2,8 - Travel Desk & Igr | E17: 2,8 - Travel Desk & Igr
B18: Vote 3 | C18: Corporate Services
B19: 3.1 | C19: Administration | D19: =CONCATENATE(B19, " - ", C19) -> 3,1 - Administration | E19: 3,1 - Administration
B20: 3.2 | C20: Human Resources | D20: 3,2 - Human Resources | E20: 3,2 - Human Resources
B21: 3.3 | C21: Council General | D21: 3,3 - Council General | E21: 3,3 - Council General
B22: 3.4 | C22: Mayoral Committee | D22: 3,4 - Mayoral Committee | E22: 3,4 - Mayoral Committee
B23: 3.5 | C23: Executive Support Services | D23: 3,5 - Executive Support Services | E23: 3,5 - Executive Support Services
B24: 3.6 | C24: Legislative Support Services | D24: 3,6 - Legislative Support Services | E24: 3,6 - Legislative Support Services
B25: 3.7 | C25: Director: Leg&executive Support Services | D25: 3,7 - Director: Leg&executive Support Services | E25: 3,7 - Director: Leg&executive Support Services
B26: 3.8 | C26: Council Support | D26: 3,8 - Council Support | E26: 3,8 - Council Support
B27: Vote 4 | C27: Budget & Treasury
B28: 4.1 | C28: Chief Financial Officer | D28: =CONCATENATE(B28, " - ", C28) -> 4,1 - Chief Financial Officer | E28: 4,1 - Chief Financial Officer
B29: 4.2 | C29: Accounting And Reporting | D29: 4,2 - Accounting And Reporting | E29: 4,2 - Accounting And Reporting
B30: 4.3 | C30: Asset Management | D30: 4,3 - Asset Management | E30: 4,3 - Asset Management
B31: 4.4 | C31: Supply Chain Management | D31: 4,4 - Supply Chain Management | E31: 4,4 - Supply Chain Management
B32: 4.5 | C32: Budgeting | D32: 4,5 - Budgeting | E32: 4,5 - Budgeting
B33: 4.6 | C33: Credit Control | D33: 4,6 - Credit Control | E33: 4,6 - Credit Control
B34: 4.7 | C34: Billing | D34: 4,7 - Billing | E34: 4,7 - Billing
B35: 4.8 | C35: Revenue Data Management | D35: 4,8 - Revenue Data Management | E35: 4,8 - Revenue Data Management
B36: 4.9 | C36: Receipting & Reconciliaton | D36: 4,9 - Receipting & Reconciliaton | E36: 4,9 - Receipting & Reconciliaton
B37: 4.10 | C37: Expenditure | D37: 4.10 - Expenditure | E37: 4.10 - Expenditure
B38: Vote 5 | C38: Engineering Department
B39: 5.1 | C39: Engineering Services | D39: =CONCATENATE(B39, " - ", C39) -> 5,1 - Engineering Services | E39: 5,1 - Engineering Services
B40: 5.2 | C40: Building And Services Planning | D40: 5,2 - Building And Services Planning | E40: 5,2 - Building And Services Planning
B41: 5.3 | C41: Solid Waste Site | D41: 5,3 - Solid Waste Site | E41: 5,3 - Solid Waste Site
B42: 5.4 | C42: Managment Of Building & Services Plannin | D42: 5,4 - Managment Of Building & Services Plannin | E42: 5,4 - Managment Of Building & Services Plannin
B43: 5.5 | C43: Transport Unit | D43: 5,5 - Transport Unit | E43: 5,5 - Transport Unit
B44: 5.6 | C44: Water Service Authority | D44: 5,6 - Water Service Authority | E44: 5,6 - Water Service Authority
B45: 5.7 | C45: Project Management Unit | D45: 5,7 - Project Management Unit | E45: 5,7 - Project Management Unit
B46: Vote 6 | C46: Health & Protection Department
B47: 6.1 | C47: Community Services | D47: =CONCATENATE(B47, " - ", C47) -> 6,1 - Community Services | E47: 6,1 - Community Services
B48: 6.2 | C48: Disaster Management | D48: 6,2 - Disaster Management | E48: 6,2 - Disaster Management
B49: 6.3 | C49: Community Safety Services | D49: 6,3 - Community Safety Services | E49: 6,3 - Community Safety Services
B50: 6.4 | C50: Municipal Health (adm) | D50: 6,4 - Municipal Health (adm) | E50: 6,4 - Municipal Health (adm)
B51: 6.5 | C51: Fire Services | D51: 6,5 - Fire Services | E51: 6,5 - Fire Services
B52: 6.6 | C52: Mhs In Mbhashe 1516 | D52: 6,6 - Mhs In Mbhashe 1516 | E52: 6,6 - Mhs In Mbhashe 1516
B53: 6.7 | C53: Mhs In Mnquma 1516 | D53: 6,7 - Mhs In Mnquma 1516 | E53: 6,7 - Mhs In Mnquma 1516
B54: 6.8 | C54: Mhs In Great Kei 1516 | D54: 6,8 - Mhs In Great Kei 1516 | E54: 6,8 - Mhs In Great Kei 1516
B55: 6.9 | C55: Mhs In Amahlathi | D55: 6,9 - Mhs In Amahlathi | E55: 6,9 - Mhs In Amahlathi
B56: 6,10 | C56: Mhs Devolution | D56: =CONCATENATE(B56, " - ", C56) -> 6,10 - Mhs Devolution | E56: 6,10 - Mhs Devolution
B57: 6,11 | C57: Mhs In Nkonkobe | D57: 6,11 - Mhs In Nkonkobe | E57: 6,11 - Mhs In Nkonkobe
B58: 6,12 | C58: Mhs In Nxuba | D58: 6,12 - Mhs In Nxuba | E58: 6,12 - Mhs In Nxuba
B59: 6,13 | C59: Mhs In Ngqushwa 1516 | D59: 6,13 - Mhs In Ngqushwa 1516 | E59: 6,13 - Mhs In Ngqushwa 1516
B60: Vote 7 | C60: Water & Sanitation Management
B61: 7.1 | C61: Management Of O&m Water & Sanitation | D61: =CONCATENATE(B61, " - ", C61) -> 7,1 - Management Of O&m Water & Sanitation | E61: 7,1 - Management Of O&m Water & Sanitation
B62: 7.2 | C62: Mechanical & Electrical | D62: 7,2 - Mechanical & Electrical | E62: 7,2 - Mechanical & Electrical
B63: 7.3 | C63: Water Conservation & Demand Mngt | D63: 7,3 - Water Conservation & Demand Mngt | E63: 7,3 - Water Conservation & Demand Mngt
B64: 7.4 | C64: Water Care Unit | D64: 7,4 - Water Care Unit | E64: 7,4 - Water Care Unit
B65: Vote 8 | C65: Water Services
B66: 8.1 | C66: Dutywa Water Scheme | D66: =CONCATENATE(B66, " - ", C66) -> 8,1 - Dutywa Water Scheme | E66: 8,1 - Dutywa Water Scheme
B67: 8.2 | C67: Willowvale Water Scheme | D67: 8,2 - Willowvale Water Scheme | E67: 8,2 - Willowvale Water Scheme
B68: 8.3 | C68: Elliotdale Water Scheme | D68: 8,3 - Elliotdale Water Scheme | E68: 8,3 - Elliotdale Water Scheme
B69: 8.4 | C69: Qwaninga Water Scheme | D69: 8,4 - Qwaninga Water Scheme | E69: 8,4 - Qwaninga Water Scheme
B70: 8.5 | C70: Mendu Water Scheme | D70: 8,5 - Mendu Water Scheme | E70: 8,5 - Mendu Water Scheme
B71: 8.6 | C71: Dwesa Water Scheme | D71: 8,6 - Dwesa Water Scheme | E71: 8,6 - Dwesa Water Scheme
B72: 8.7 | C72: Cwebe Water Scheme | D72: 8,7 - Cwebe Water Scheme | E72: 8,7 - Cwebe Water Scheme
B73: 8.8 | C73: Qolora Water Scheme | D73: 8,8 - Qolora Water Scheme | E73: 8,8 - Qolora Water Scheme
B74: 8.9 | C74: Butterworth Water Scheme | D74: 8,9 - Butterworth Water Scheme | E74: 8,9 - Butterworth Water Scheme
B75: 8,10 | C75: Tynira Water Scheme Old | D75: =CONCATENATE(B75, " - ", C75) -> 8,10 - Tynira Water Scheme Old | E75: 8,10 - Tynira Water Scheme Old
B76: 8,11 | C76: Kotana & Ehlobo Water Scheme | D76: 8,11 - Kotana & Ehlobo Water Scheme | E76: 8,11 - Kotana & Ehlobo Water Scheme
B77: 8,12 | C77: Ngqamakwe Water Scheme | D77: 8,12 - Ngqamakwe Water Scheme | E77: 8,12 - Ngqamakwe Water Scheme
B78: 8,13 | C78: Haga Haga Water Scheme | D78: 8,13 - Haga Haga Water Scheme | E78: 8,13 - Haga Haga Water Scheme
B79: 8,14 | C79: Kei Mouth Water Scheme | D79: 8,14 - Kei Mouth Water Scheme | E79: 8,14 - Kei Mouth Water Scheme
B80: 8,15 | C80: Morgan Bay Water Scheme | D80: 8,15 - Morgan Bay Water Scheme | E80: 8,15 - Morgan Bay Water Scheme
B81: 8,16 | C81: Chintsa Water Scheme | D81: 8,16 - Chintsa Water Scheme | E81: 8,16 - Chintsa Water Scheme
B82: 8,17 | C82: Kei Bridge/komga Water Scheme | D82: 8,17 - Kei Bridge/komga Water Scheme | E82: 8,17 - Kei Bridge/komga Water Scheme
B83: 8,18 | C83: Kei Road & Amabele Water Scheme | D83: 8,18 - Kei Road & Amabele Water Scheme | E83: 8,18 - Kei Road & Amabele Water Scheme
B84: 8,19 | C84: Stutterheim Water Scheme | D84: 8,19 - Stutterheim Water Scheme | E84: 8,19 - Stutterheim Water Scheme
B85: 8,20 | C85: Cathcart Water Scheme | D85: 8,20 - Cathcart Water Scheme | E85: 8,20 - Cathcart Water Scheme
B86: 8,21 | C86: Seymour Water Scheme | D86: 8,21 - Seymour Water Scheme | E86: 8,21 - Seymour Water Scheme
B87: 8,22 | C87: Fort Beaufort Water Scheme | D87: 8,22 - Fort Beaufort Water Scheme | E87: 8,22 - Fort Beaufort Water Scheme
B88: 8,23 | C88: Alice Water Scheme | D88: 8,23 - Alice Water Scheme | E88: 8,23 - Alice Water Scheme
B89: 8,24 | C89: Hogsback Water Scheme | D89: 8,24 - Hogsback Water Scheme | E89: 8,24 - Hogsback Water Scheme
B90: 8,25 | C90: Adelaide Water Scheme | D90: 8,25 - Adelaide Water Scheme | E90: 8,25 - Adelaide Water Scheme
B91: 8,26 | C91: Bedford Water Scheme | D91: 8,26 - Bedford Water Scheme | E91: 8,26 - Bedford Water Scheme
B92: 8,27 | C92: Laing Water Scheme | D92: 8,27 - Laing Water Scheme | E92: 8,27 - Laing Water Scheme
B93: 8,28 | C93: Dabi Water Scheme Old | D93: 8,28 - Dabi Water Scheme Old | E93: 8,28 - Dabi Water Scheme Old
B94: 8,29 | C94: Glenmore Water Scheme | D94: 8,29 - Glenmore Water Scheme | E94: 8,29 - Glenmore Water Scheme
B95: 8,30 | C95: Peddie Regional Water Scheme | D95: 8,30 - Peddie Regional Water Scheme | E95: 8,30 - Peddie Regional Water Scheme
B96: 8,31 | C96: Mncwasa Water Treatment Works | D96: 8,31 - Mncwasa Water Treatment Works | E96: 8,31 - Mncwasa Water Treatment Works
B97: 8,32 | C97: Sandile Water Scheme | D97: 8,32 - Sandile Water Scheme | E97: 8,32 - Sandile Water Scheme
B98: 8,33 | C98: Debe Neck Water Scheme | D98: 8,33 - Debe Neck Water Scheme | E98: 8,33 - Debe Neck Water Scheme
B99: 8,34 | C99: Gagatyume (incl Middeldrift) Water Schem | D99: 8,34 - Gagatyume (incl Middeldrift) Water Schem | E99: 8,34 - Gagatyume (incl Middeldrift) Water Schem
B100: 8,35 | C100: Masincedane Water Scheme | D100: 8,35 - Masincedane Water Scheme | E100: 8,35 - Masincedane Water Scheme
B101: 8,36 | C101: Upper Myameni Water Scheme | D101: 8,36 - Upper Myameni Water Scheme | E101: 8,36 - Upper Myameni Water Scheme
B102: 8,37 | C102: Rooikrantz Water Scheme | D102: 8,37 - Rooikrantz Water Scheme | E102: 8,37 - Rooikrantz Water Scheme
B103: 8,38 | C103: Ekuphumleni Phase 2 Water Scheme | D103: 8,38 - Ekuphumleni Phase 2 Water Scheme | E103: 8,38 - Ekuphumleni Phase 2 Water Scheme
B104: 8,39 | C104: Ehlobo Water Supply Scheme Old | D104: 8,39 - Ehlobo Water Supply Scheme Old | E104: 8,39 - Ehlobo Water Supply Scheme Old
B105: 8,40 | C105: Nqadu Water Supply Scheme | D105: 8,40 - Nqadu Water Supply Scheme | E105: 8,40 - Nqadu Water Supply Scheme
B106: 8,41 | C106: Mbhashe North Regional Water Supply Sche | D106: 8,41 - Mbhashe North Regional Water Supply Sche | E106: 8,41 - Mbhashe North Regional Water Supply Sche
B107: 8,42 | C107: Communal Package Plants | D107: 8,42 - Communal Package Plants | E107: 8,42 - Communal Package Plants
B108: 8,43 | C108: Centane Water | D108: 8,43 - Centane Water | E108: 8,43 - Centane Water
B109: 8,44 | C109: Borehole Schemes | D109: 8,44 - Borehole Schemes | E109: 8,44 - Borehole Schemes
B110: 8,45 | C110: Toleni Water Scheme Ex Dws | D110: 8,45 - Toleni Water Scheme Ex Dws | E110: 8,45 - Toleni Water Scheme Ex Dws
B111: 8,46 | C111: Borehole Schemes Ex Dws | D111: 8,46 - Borehole Schemes Ex Dws | E111: 8,46 - Borehole Schemes Ex Dws
B112: 8,47 | C112: Ibeka Water Supply | D112: 8,47 - Ibeka Water Supply | E112: 8,47 - Ibeka Water Supply
B113: 8,48 | C113: Xhora Water Supply | D113: 8,48 - Xhora Water Supply | E113: 8,48 - Xhora Water Supply
B114: Vote 9 | C114: Sanitation Services
B115: 9.1 | C115: Dutywa Sewerage | D115: =CONCATENATE(B115, " - ", C115) -> 9,1 - Dutywa Sewerage | E115: 9,1 - Dutywa Sewerage
B116: 9.2 | C116: Butterworth Sewerage | D116: =CONCATENATE(B116, " - ", C116) -> 9,2 - Butterworth Sewerage | E116: 9,2 - Butterworth Sewerage
B117: 9.3 | C117: Kei Mouth Sewerage | D117: 9,3 - Kei Mouth Sewerage | E117: 9,3 - Kei Mouth Sewerage
B118: 9.4 | C118: Chintsa East Sewerage | D118: 9,4 - Chintsa East Sewerage | E118: 9,4 - Chintsa East Sewerage
B119: 9.5 | C119: Komga Sewerage | D119: 9,5 - Komga Sewerage | E119: 9,5 - Komga Sewerage
B120: 9.6 | C120: Keiskammahoek Sewerage | D120: 9,6 - Keiskammahoek Sewerage | E120: 9,6 - Keiskammahoek Sewerage
B121: 9.7 | C121: Kei Road Sewerage | D121: 9,7 - Kei Road Sewerage | E121: 9,7 - Kei Road Sewerage
B122: 9.8 | C122: Cathcart Sewerage | D122: 9,8 - Cathcart Sewerage | E122: 9,8 - Cathcart Sewerage
B123: 9.9 | C123: Stutterheim Sewerage | D123: 9,9 - Stutterheim Sewerage | E123: 9,9 - Stutterheim Sewerage
B124: 9,10 | C124: Seymour Sewerage | D124: 9,10 - Seymour Sewerage | E124: 9,10 - Seymour Sewerage
B125: 9,11 | C125: Alice Sewerage | D125: 9,11 - Alice Sewerage | E125: 9,11 - Alice Sewerage
B126: 9,12 | C126: Middledrift Sewerage | D126: 9,12 - Middledrift Sewerage | E126: 9,12 - Middledrift Sewerage
B127: 9,13 | C127: Fort Beaufort Sewerage | D127: 9,13 - Fort Beaufort Sewerage | E127: 9,13 - Fort Beaufort Sewerage
B128: 9,14 | C128: Adelaide Sewerage | D128: 9,14 - Adelaide Sewerage | E128: 9,14 - Adelaide Sewerage
B129: 9,15 | C129: Bedford Sewerage | D129: 9,15 - Bedford Sewerage | E129: 9,15 - Bedford Sewerage
B130: 9,16 | C130: Peddie Sewerage | D130: 9,16 - Peddie Sewerage | E130: 9,16 - Peddie Sewerage
B131: 9,17 | C131: Tanker Services | D131: 9,17 - Tanker Services | E131: 9,17 - Tanker Services
B132: 9,18 | C132: Ngqamakwe Sanitation | D132: 9,18 - Ngqamakwe Sanitation | E132: 9,18 - Ngqamakwe Sanitation
B133: 9,19 | C133: Rural Sanitation Schemes | D133: 9,19 - Rural Sanitation Schemes | E133: 9,19 - Rural Sanitation Schemes
B134: 9,20 | C134: Centane Sanitation | D134: 9,20 - Centane Sanitation | E134: 9,20 - Centane Sanitation
B135: 9,21 | C135: Amabele Sanitation | D135: 9,21 - Amabele Sanitation | E135: 9,21 - Amabele Sanitation
B136: 9,22 | C136: Morgan Bay Sewerage | D136: 9,22 - Morgan Bay Sewerage | E136: 9,22 - Morgan Bay Sewerage
B137: Vote 10 | C137: Land Human Settlement & Economic Development
B138: 10.1 | C138: Land Administration & Housing | D138: =CONCATENATE(B138, " - ", C138) -> 10,1 - Land Administration & Housing | E138: 10,1 - Land Administration & Housing
B139: 10.2 | C139: Economic Development | D139: 10,2 - Economic Development | E139: 10,2 - Economic Development
B140: 10.3 | C140: Director Land Admin Housing & Eco Dev | D140: 10,3 - Director Land Admin Housing & Eco Dev | E140: 10,3 - Director Land Admin Housing & Eco Dev
B141: 10.4 | C141: EPWP | D141: 10,4 - EPWP | E141: 10,4 - EPWP
B142: Vote 11 | C142: Municipal Management
B143: 11.1 | C143: Municipal Manager | D143: =CONCATENATE(B143, " - ", C143) -> 11,1 - Municipal Manager | E143: 11,1 - Municipal Manager
B144: 11.2 | C144: Legal Services | D144: 11,2 - Legal Services | E144: 11,2 - Legal Services
B145: 11.3 | C145: Projects Investment & Stakeholder Mngt | D145: 11,3 - Projects Investment & Stakeholder Mngt | E145: 11,3 - Projects Investment & Stakeholder Mngt
B146: 11.4 | C146: Internal Audit | D146: 11,4 - Internal Audit | E146: 11,4 - Internal Audit
B147: 11.5 | C147: Policy Development And Research Unit | D147: 11,5 - Policy Development And Research Unit | E147: 11,5 - Policy Development And Research Unit
B148: 11.6 | C148: Amahlathi Satellite Office | D148: 11,6 - Amahlathi Satellite Office | E148: 11,6 - Amahlathi Satellite Office
B149: 11.7 | C149: Great Kei Satellite Office | D149: 11,7 - Great Kei Satellite Office | E149: 11,7 - Great Kei Satellite Office
B150: 11.8 | C150: Mbhashe Satellite Office | D150: 11,8 - Mbhashe Satellite Office | E150: 11,8 - Mbhashe Satellite Office
B151: 11.9 | C151: Mnquma Satellite Office | D151: 11,9 - Mnquma Satellite Office | E151: 11,9 - Mnquma Satellite Office
B152: 11,10 | C152: Ngqushwa Satelite Office | D152: =CONCATENATE(B152, " - ", C152) -> 11,10 - Ngqushwa Satelite Office | E152: 11,10 - Ngqushwa Satelite Office
B153: 11,11 | C153: Nkonkobe Satellite Office | D153: 11,11 - Nkonkobe Satellite Office | E153: 11,11 - Nkonkobe Satellite Office
B154: 11,12 | C154: Nxuba Satellite Office | D154: 11,12 - Nxuba Satellite Office | E154: 11,12 - Nxuba Satellite Office
B155: Vote 12 | C155: [NAME OF VOTE 12]
B156: 12.1 | D156: =CONCATENATE(B156, " - ", C156) -> 12,1 - | E156: 12,1 - Municipal Manager
B157: 12.2 | D157: =CONCATENATE(B157, " - ", C157) -> 12,2 - | E157: 12,2 - Legal Services
B158: 12.3 | D158: 12,3 - | E158: 12,3 - Projects Investment & Stakeholder Mngt
B159: 12.4 | D159: 12,4 - | E159: 12,4 - Internal Audit
B160: 12.5 | D160: 12,5 - | E160: 12,5 - Policy Development And Research Unit
B161: 12.6 | D161: 12,6 - | E161: 12,6 - Amahlathi Satellite Office
B162: 12.7 | D162: 12,7 - | E162: 12,7 - Great Kei Satellite Office
B163: 12.8 | D163: 12,8 - | E163: 12,8 - Mbhashe Satellite Office
B164: 12,9 | D164: 12,9 - | E164: 12,9 - Mnquma Satellite Office
B165: 12,10 | D165: 12,10 - | E165: 12,10 - Ngqushwa Satelite Office
B166: 12,11 | D166: 12,11 - | E166: 12,11 - Nkonkobe Satellite Office
B167: 12,12 | D167: 12,12 - | E167: 12,12 - Nxuba Satellite Office
B168: Vote 13 | C168: [NAME OF VOTE 13]
B169: 13.1 | C169: [Name of sub-vote] | D169: =CONCATENATE(B169, " - ", C169) -> 13,1 - [Name of sub-vote] | E169: 13.1 - [Name of sub-vote]
B170: 13.2 | C170: [Name of sub-vote] | D170: 13,2 - [Name of sub-vote]
B171: 13.3 | C171: [Name of sub-vote] | D171: 13,3 - [Name of sub-vote]
B172: 13.4 | C172: [Name of sub-vote] | D172: 13,4 - [Name of sub-vote]
B173: 13.5 | C173: [Name of sub-vote] | D173: 13,5 - [Name of sub-vote]
B174: 13.6 | C174: [Name of sub-vote] | D174: 13,6 - [Name of sub-vote]
B175: 13.7 | C175: [Name of sub-vote] | D175: 13,7 - [Name of sub-vote]
B176: 13.8 | C176: [Name of sub-vote] | D176: 13,8 - [Name of sub-vote]
B177: 13.9 | C177: [Name of sub-vote] | D177: 13,9 - [Name of sub-vote]
B178: 13.10 | C178: [Name of sub-vote] | D178: 13.10 - [Name of sub-vote]
B179: Vote 14 | C179: [NAME OF VOTE 14]
B180: 14.1 | C180: [Name of sub-vote] | D180: =CONCATENATE(B180, " - ", C180) -> 14,1 - [Name of sub-vote] | E180: 14.1 - [Name of sub-vote]
B181: 14.2 | C181: [Name of sub-vote] | D181: 14,2 - [Name of sub-vote]
B182: 14.3 | C182: [Name of sub-vote] | D182: 14,3 - [Name of sub-vote]
B183: 14.4 | C183: [Name of sub-vote] | D183: 14,4 - [Name of sub-vote]
B184: 14.5 | C184: [Name of sub-vote] | D184: 14,5 - [Name of sub-vote]
B185: 14.6 | C185: [Name of sub-vote] | D185: 14,6 - [Name of sub-vote]
B186: 14.7 | C186: [Name of sub-vote] | D186: 14,7 - [Name of sub-vote]
B187: 14.8 | C187: [Name of sub-vote] | D187: 14,8 - [Name of sub-vote]
B188: 14.9 | C188: [Name of sub-vote] | D188: 14,9 - [Name of sub-vote]
B189: 14.10 | C189: [Name of sub-vote] | D189: 14.10 - [Name of sub-vote]
B190: Vote 15 | C190: [NAME OF VOTE 15]
B191: 15.1 | C191: [Name of sub-vote] | D191: =CONCATENATE(B191, " - ", C191) -> 15,1 - [Name of sub-vote] | E191: 15.1 - [Name of sub-vote]
B192: 15.2 | C192: [Name of sub-vote] | D192: 15,2 - [Name of sub-vote]
B193: 15.3 | C193: [Name of sub-vote] | D193: 15,3 - [Name of sub-vote]
B194: 15.4 | C194: [Name of sub-vote] | D194: 15,4 - [Name of sub-vote]
B195: 15.5 | C195: [Name of sub-vote] | D195: 15,5 - [Name of sub-vote]
B196: 15.6 | C196: [Name of sub-vote] | D196: 15,6 - [Name of sub-vote]
B197: 15.7 | C197: [Name of sub-vote] | D197: 15,7 - [Name of sub-vote]
B198: 15.8 | C198: [Name of sub-vote] | D198: 15,8 - [Name of sub-vote]
B199: 15.9 | C199: [Name of sub-vote] | D199: 15,9 - [Name of sub-vote]
B200: 15.10 | C200: [Name of sub-vote] | D200: 15.10 - [Name of sub-vote]

Sheet Contacts
A1: =muni&" - "&" Contact Information" -> DC12 Amathole - Contact Information
A3: A. GENERAL INFORMATION
A4: Municipality | B4: =muni -> DC12 Amathole | C4: =IF(B4="Choose name from List","Set name on 'Instructions' sheet", "") -> 
A6: Grade | B6: 7 | C6: 1 Grade in terms of the Remuneration of Public Office Bearers Act.
A8: Province | B8: =IF(B4>" ",VLOOKUP(B4,'Lookup and lists'!B29:C307,2, FALSE)," ") -> EC EASTERN CAPE
A10: Web Address | B10: www.amathole.gov.za
A12: e-mail Address | B12: info@amathole.gov.za
A14: B. CONTACT INFORMATION
A15: Postal address:
A16: P.O. Box | B16: 320
A17: City / Town | B17: EAST LONDON
A18: Postal Code | B18: 5200
A20: Street address
A21: Building | B21: Waverly Park
A22: Street No. & Name | B22: 33-3 Phillip Frame
A23: City / Town | B23: Chilsehurst
A24: Postal Code | B24: 5200
A26: General Contacts
A27: Telephone number | B27: 043-7014000
A28: Fax number | B28: 043-7420377
A30: C. POLITICAL LEADERSHIP
A31: Speaker: | C31: Secretary/PA to the Speaker:
A32: ID Number | B32: 6803037596088 | C32: ID Number | D32: 8002060427083
A33: Title | B33: Mr | C33: Title | D33: Ms
A34: Name | B34: Nceba Ndikinda | C34: Name | D34: Nomvuyo Mavuso
A35: Telephone number | B35: 043 783 2202 | C35: Telephone number | D35: 043 783 2202
A36: Cell number | B36: 060 975 1290 | C36: Cell number | D36: 079 889 5490
A37: Fax number | B37: 086 773 1356 | C37: Fax number | D37: 086 773 1356
A38: E-mail address | B38: nceband@amathole.gov.za | C38: E-mail address | D38: nomvuyom@amthole.gov.za
A40: Mayor/Executive Mayor: | C40: Secretary/PA to the Mayor/Executive Mayor:
A41: ID Number | C41: ID Number | D41: 9105240390086
A42: Title | C42: Title | D42: Ms
A43: Name | C43: Name | D43: Zandile Biyo
A44: Telephone number | C44: Telephone number | D44: 043 701 4161
A45: Cell number | C45: Cell number | D45: 060 632 6352
A46: Fax number | C46: Fax number | D46: 086 408 4970
A47: E-mail address | C47: E-mail address | D47: admmayor@amthole.gov.za
A49: Deputy Mayor/Executive Mayor: | C49: Secretary/PA to the Deputy Mayor/Executive Mayor:
A50: ID Number | B50: 5011220336087 | C50: ID Number
A51: Title | B51: Ms | C51: Title
A52: Name | B52: Nomfusi Winnie Nxawe | C52: Name
A53: Telephone number | B53: 043 701 4161 | C53: Telephone number
A54: Cell number | B54: 0609975756 | C54: Cell number
A55: Fax number | B55: 086 642 1506 | C55: Fax number
A56: E-mail address | B56: winnien@amathole.gov.za | C56: E-mail address
A58: D. MANAGEMENT LEADERSHIP
A59: Municipal Manager: | C59: Secretary/PA to the Municipal Manager:
A60: ID Number | B60: 7404255367085 | C60: ID Number | D60: 8203161108081
A61: Title | B61: Mr | C61: Title | D61: Mrs
A62: Name | B62: Thandekile Mnyimba | C62: Name | D62: Nontyatyambo Blossom Dyushu
A63: Telephone number | B63: 043 701 4137 | C63: Telephone number | D63: 043 783 2230
A64: Cell number | B64: 076 772 1094 | C64: Cell number | D64: 079 889 5522
A65: Fax number | B65: 043 721 2874 | C65: Fax number | D65: 086 642 1506
A66: E-mail address | B66: thandekilem@amathole.gov.za | C66: E-mail address | D66: nontyatyambod@amathole.gov.za
A68: Chief Financial Officer | C68: Secretary/PA to the Chief Financial Officer
A69: ID Number | B69: 731126 5400 08 2 | C69: ID Number | D69: 800210 0421 08 8
A70: Title | B70: Mr | C70: Title | D70: Mrs
A71: Name | B71: LUCKY MOATLHODI MOSALA | C71: Name | D71: Nosiphiwo Lelani-Matyeshana
A72: Telephone number | B72: 043 705 5280 | C72: Telephone number | D72: 043 783 2424
A73: Cell number | B73: 086 229 5870 | C73: Cell number | D73: 061 443 8301
A74: Fax number | B74: 043 722 1991 | C74: Fax number | D74: 086 642 1736
A75: E-mail address | B75: luckymo@amathole.gov.za | C75: E-mail address | D75: nosiphiwol@amathole.gov.za
A77: Official responsible for submitting financial information | C77: Official responsible for submitting financial information
A78: ID Number | C78: ID Number
A79: Title | B79: Ms | C79: Title
A80: Name | B80: SHARON KALIS | C80: Name
A81: Telephone number | B81: 043-7015261 | C81: Telephone number
A82: Cell number | B82: 0834584805 | C82: Cell number
A83: Fax number | B83: 0865199741 | C83: Fax number
A84: E-mail address | B84: sharonk@amathole.gov.za | C84: E-mail address
A85: Official responsible for submitting financial information | C85: Official responsible for submitting financial information
A86: ID Number | C86: ID Number
A87: Title | C87: Title
A88: Name | C88: Name
A89: Telephone number | C89: Telephone number
A90: Cell number | C90: Cell number
A91: Fax number | C91: Fax number
A92: E-mail address | C92: E-mail address
A93: Official responsible for submitting financial information | C93: Official responsible for submitting financial information
A94: ID Number | C94: ID Number
A95: Title | C95: Title
A96: Name | C96: Name
A97: Telephone number | C97: Telephone number
A98: Cell number | C98: Cell number
A99: Fax number | C99: Fax number
A100: E-mail address | C100: E-mail address
A101: Official responsible for submitting financial information | C101: Official responsible for submitting financial information
A102: ID Number | C102: ID Number
A103: Title | C103: Title
A104: Name | C104: Name
A105: Telephone number | C105: Telephone number
A106: Cell number | C106: Cell number
A107: Fax number | C107: Fax number
A108: E-mail address | C108: E-mail address
A109: Official responsible for submitting financial information | C109: Official responsible for submitting financial information
A110: ID Number | C110: ID Number
A111: Title | C111: Title
A112: Name | C112: Name
A113: Telephone number | C113: Telephone number
A114: Cell number | C114: Cell number
A115: Fax number | C115: Fax number
A116: E-mail address | C116: E-mail address
A117: Official responsible for submitting financial information | C117: Official responsible for submitting financial information
A118: ID Number | C118: ID Number
A119: Title | C119: Title
A120: Name | C120: Name
A121: Telephone number | C121: Telephone number
A122: Cell number | C122: Cell number
A123: Fax number | C123: Fax number
A124: E-mail address | C124: E-mail address
A125: Official responsible for submitting financial information | C125: Official responsible for submitting financial information
A126: ID Number | C126: ID Number
A127: Title | C127: Title
A128: Name | C128: Name
A129: Telephone number | C129: Telephone number
A130: Cell number | C130: Cell number
A131: Fax number | C131: Fax number
A132: E-mail address | C132: E-mail address
A133: Official responsible for submitting financial information
A134: ID Number
A135: Title
A136: Name
A137: Telephone number
A138: Cell number
A139: Fax number
A140: E-mail address

Sheet A1-Sum
A1: =muni&" - "&Approve1 -> DC12 Amathole - Table A1 Budget Summary
A2: =desc -> Description | B2: =head1b -> 2016/17 | C2: =head1A -> 2017/18 | D2: =Head1 -> 2018/19 | E2: =Head2 -> Current Year 2019/20 | I2: =Head3 -> 2020/21 Medium Term Revenue & Expenditure Framework
A3: R thousands | B3: =Head5 -> Audited Outcome | C3: =Head5 -> Audited Outcome | D3: =Head5 -> Audited Outcome | E3: =Head6 -> Original Budget | F3: =Head7 -> Adjusted Budget | G3: =Head8 -> Full Year Forecast | H3: =Head5b -> Pre-audit outcome | I3: =Head9 -> Budget Year 2020/21 | J3: =Head10 -> Budget Year +1 2021/22 | K3: =Head11 -> Budget Year +2 2022/23
A4: Financial Performance
A5: Property rates | B5: ='A4-FinPerf RE'!C5 -> 0 | C5: ='A4-FinPerf RE'!D5 -> 0 | D5: ='A4-FinPerf RE'!E5 -> 0 | E5: ='A4-FinPerf RE'!F5 -> 0 | F5: ='A4-FinPerf RE'!G5 -> 0 | G5: ='A4-FinPerf RE'!H5 -> 0 | H5: ='A4-FinPerf RE'!I5 -> 0 | I5: ='A4-FinPerf RE'!J5 -> 0 | J5: ='A4-FinPerf RE'!K5 -> 0 | K5: ='A4-FinPerf RE'!L5 -> 0
A6: Service charges | B6: =SUM('A4-FinPerf RE'!C6:C9) -> 221794532 | C6: =SUM('A4-FinPerf RE'!D6:D9) -> 262030590.3 | D6: =SUM('A4-FinPerf RE'!E6:E9) -> 364264924.4 | E6: =SUM('A4-FinPerf RE'!F6:F9) -> 540903577 | F6: =SUM('A4-FinPerf RE'!G6:G9) -> 561426774 | G6: =SUM('A4-FinPerf RE'!H6:H9) -> 561426774 | H6: =SUM('A4-FinPerf RE'!I6:I9) -> 561426774 | I6: =SUM('A4-FinPerf RE'!J6:J9) -> 531462239 | J6: =SUM('A4-FinPerf RE'!K6:K9) -> 564849974 | K6: =SUM('A4-FinPerf RE'!L6:L9) -> 580056972
A7: Investment revenue | B7: ='A4-FinPerf RE'!C12 -> 15566237.99 | C7: ='A4-FinPerf RE'!D12 -> 6723310.67 | D7: ='A4-FinPerf RE'!E12 -> 19321252.91 | E7: ='A4-FinPerf RE'!F12 -> 5073193 | F7: ='A4-FinPerf RE'!G12 -> 20155507 | G7: ='A4-FinPerf RE'!H12 -> 20155507 | H7: ='A4-FinPerf RE'!I12 -> 20155507 | I7: ='A4-FinPerf RE'!J12 -> 17911009 | J7: ='A4-FinPerf RE'!K12 -> 18717004 | K7: ='A4-FinPerf RE'!L12 -> 19559270
A8: Transfers recognised - operational | B8: ='A4-FinPerf RE'!C18 -> 741023363.9 | C8: ='A4-FinPerf RE'!D18 -> 765904512 | D8: ='A4-FinPerf RE'!E18 -> 788895275 | E8: ='A4-FinPerf RE'!F18 -> 859258783 | F8: ='A4-FinPerf RE'!G18 -> 1125274830 | G8: ='A4-FinPerf RE'!H18 -> 1125274830 | H8: ='A4-FinPerf RE'!I18 -> 1125274830 | I8: ='A4-FinPerf RE'!J18 -> 959432133 | J8: ='A4-FinPerf RE'!K18 -> 991670163 | K8: ='A4-FinPerf RE'!L18 -> 1057558355
A9: Other own revenue | B9: ='A4-FinPerf RE'!C11+'A4-FinPerf RE'!C13+'A4-FinPerf RE'!C14+'A4-FinPerf RE'!C15+'A4-FinPerf RE'!C16+'A4-FinPerf RE'!C17+'A4-FinPerf RE'!C19+'A4-FinPerf RE'!C20 -> 112392245 | C9: ='A4-FinPerf RE'!D11+'A4-FinPerf RE'!D13+'A4-FinPerf RE'!D14+'A4-FinPerf RE'!D15+'A4-FinPerf RE'!D16+'A4-FinPerf RE'!D17+'A4-FinPerf RE'!D19+'A4-FinPerf RE'!D20 -> 89683651.41 | D9: ='A4-FinPerf RE'!E11+'A4-FinPerf RE'!E13+'A4-FinPerf RE'!E14+'A4-FinPerf RE'!E15+'A4-FinPerf RE'!E16+'A4-FinPerf RE'!E17+'A4-FinPerf RE'!E19+'A4-FinPerf RE'!E20 -> 187291284.1 | E9: ='A4-FinPerf RE'!F11+'A4-FinPerf RE'!F13+'A4-FinPerf RE'!F14+'A4-FinPerf RE'!F15+'A4-FinPerf RE'!F16+'A4-FinPerf RE'!F17+'A4-FinPerf RE'!F19+'A4-FinPerf RE'!F20 -> 147451532 | F9: ='A4-FinPerf RE'!G11+'A4-FinPerf RE'!G13+'A4-FinPerf RE'!G14+'A4-FinPerf RE'!G15+'A4-FinPerf RE'!G16+'A4-FinPerf RE'!G17+'A4-FinPerf RE'!G19+'A4-FinPerf RE'!G20 -> 153397279 | G9: ='A4-FinPerf RE'!H11+'A4-FinPerf RE'!H13+'A4-FinPerf RE'!H14+'A4-FinPerf RE'!H15+'A4-FinPerf RE'!H16+'A4-FinPerf RE'!H17+'A4-FinPerf RE'!H19+'A4-FinPerf RE'!H20 -> 153397279 | H9: ='A4-FinPerf RE'!I11+'A4-FinPerf RE'!I13+'A4-FinPerf RE'!I14+'A4-FinPerf RE'!I15+'A4-FinPerf RE'!I16+'A4-FinPerf RE'!I17+'A4-FinPerf RE'!I19+'A4-FinPerf RE'!I20 -> 153397279 | I9: ='A4-FinPerf RE'!J11+'A4-FinPerf RE'!J13+'A4-FinPerf RE'!J14+'A4-FinPerf RE'!J15+'A4-FinPerf RE'!J16+'A4-FinPerf RE'!J17+'A4-FinPerf RE'!J19+'A4-FinPerf RE'!J20 -> 165600935 | J9: ='A4-FinPerf RE'!K11+'A4-FinPerf RE'!K13+'A4-FinPerf RE'!K14+'A4-FinPerf RE'!K15+'A4-FinPerf RE'!K16+'A4-FinPerf RE'!K17+'A4-FinPerf RE'!K19+'A4-FinPerf RE'!K20 -> 181007545 | K9: ='A4-FinPerf RE'!L11+'A4-FinPerf RE'!L13+'A4-FinPerf RE'!L14+'A4-FinPerf RE'!L15+'A4-FinPerf RE'!L16+'A4-FinPerf RE'!L17+'A4-FinPerf RE'!L19+'A4-FinPerf RE'!L20 -> 187485656
A10: ='A4-FinPerf RE'!A21 -> Total Revenue (excluding capital transfers and contributions) | B10: =SUM(B5:B9) -> 1090776379 | C10: 1124342064 | D10: 1359772736 | E10: 1552687085 | F10: 1860254390 | G10: 1860254390 | H10: 1860254390 | I10: 1674406316 | J10: 1756244686 | K10: 1844660253
A11: Employee costs | B11: ='A4-FinPerf RE'!C24 -> 629007596.7 | C11: ='A4-FinPerf RE'!D24 -> 749884204.8 | D11: ='A4-FinPerf RE'!E24 -> 728885187.7 | E11: ='A4-FinPerf RE'!F24 -> 737349635 | F11: ='A4-FinPerf RE'!G24 -> 772479444 | G11: ='A4-FinPerf RE'!H24 -> 772479444 | H11: ='A4-FinPerf RE'!I24 -> 772479444 | I11: ='A4-FinPerf RE'!J24 -> 786870285.1 | J11: ='A4-FinPerf RE'!K24 -> 821578040.9 | K11: ='A4-FinPerf RE'!L24 -> 852073685.8
A12: Remuneration of councillors | B12: ='A4-FinPerf RE'!C25 -> 14428345.63 | C12: ='A4-FinPerf RE'!D25 -> 15611612.03 | D12: ='A4-FinPerf RE'!E25 -> 16496793.35 | E12: ='A4-FinPerf RE'!F25 -> 16088743 | F12: ='A4-FinPerf RE'!G25 -> 17058425.23 | G12: ='A4-FinPerf RE'!H25 -> 17058425.23 | H12: ='A4-FinPerf RE'!I25 -> 17058425.23 | I12: ='A4-FinPerf RE'!J25 -> 14941985.69 | J12: ='A4-FinPerf RE'!K25 -> 14941985.69 | K12: ='A4-FinPerf RE'!L25 -> 14941985.69
A13: Depreciation & asset impairment | B13: ='A4-FinPerf RE'!C27 -> 111288592.5 | C13: ='A4-FinPerf RE'!D27 -> 107269535.3 | D13: ='A4-FinPerf RE'!E27 -> 129688666.7 | E13: ='A4-FinPerf RE'!F27 -> 162566655 | F13: ='A4-FinPerf RE'!G27 -> 162566655 | G13: ='A4-FinPerf RE'!H27 -> 162566655 | H13: ='A4-FinPerf RE'!I27 -> 162566655 | I13: ='A4-FinPerf RE'!J27 -> 170317363 | J13: ='A4-FinPerf RE'!K27 -> 187349108 | K13: ='A4-FinPerf RE'!L27 -> 206084037
A14: Finance charges | B14: ='A4-FinPerf RE'!C28 -> 24634956.28 | C14: ='A4-FinPerf RE'!D28 -> 27598655.55 | D14: ='A4-FinPerf RE'!E28 -> 26002680.57 | E14: ='A4-FinPerf RE'!F28 -> 26354647 | F14: ='A4-FinPerf RE'!G28 -> 13686089 | G14: ='A4-FinPerf RE'!H28 -> 13686089 | H14: ='A4-FinPerf RE'!I28 -> 13686089 | I14: ='A4-FinPerf RE'!J28 -> 28139522.9 | J14: ='A4-FinPerf RE'!K28 -> 30338874.58 | K14: ='A4-FinPerf RE'!L28 -> 32441437.16
A15: Materials and bulk purchases | B15: ='A4-FinPerf RE'!C29+'A4-FinPerf RE'!C30 -> 91620498 | C15: ='A4-FinPerf RE'!D29+'A4-FinPerf RE'!D30 -> 92358696.04 | D15: ='A4-FinPerf RE'!E29+'A4-FinPerf RE'!E30 -> 103846606 | E15: ='A4-FinPerf RE'!F29+'A4-FinPerf RE'!F30 -> 97079429 | F15: ='A4-FinPerf RE'!G29+'A4-FinPerf RE'!G30 -> 339126525 | G15: ='A4-FinPerf RE'!H29+'A4-FinPerf RE'!H30 -> 339126525 | H15: ='A4-FinPerf RE'!I29+'A4-FinPerf RE'!I30 -> 339126525 | I15: ='A4-FinPerf RE'!J29+'A4-FinPerf RE'!J30 -> 164533441.8 | J15: ='A4-FinPerf RE'!K29+'A4-FinPerf RE'!K30 -> 142274832 | K15: ='A4-FinPerf RE'!L29+'A4-FinPerf RE'!L30 -> 155633095.8
A16: Transfers and grants | B16: ='A4-FinPerf RE'!C32 -> 169687378 | C16: ='A4-FinPerf RE'!D32 -> 57873697 | D16: ='A4-FinPerf RE'!E32 -> 7300000 | E16: ='A4-FinPerf RE'!F32 -> 20357689 | F16: ='A4-FinPerf RE'!G32 -> 19654217 | G16: ='A4-FinPerf RE'!H32 -> 19654217 | H16: ='A4-FinPerf RE'!I32 -> 19654217 | I16: ='A4-FinPerf RE'!J32 -> 15000000 | J16: ='A4-FinPerf RE'!K32 -> 10000000 | K16: ='A4-FinPerf RE'!L32 -> 10000000
A17: Other expenditure | B17: ='A4-FinPerf RE'!C26+'A4-FinPerf RE'!C31+'A4-FinPerf RE'!C33+'A4-FinPerf RE'!C34 -> 414662122.9 | C17: ='A4-FinPerf RE'!D26+'A4-FinPerf RE'!D31+'A4-FinPerf RE'!D33+'A4-FinPerf RE'!D34 -> 502179455 | D17: ='A4-FinPerf RE'!E26+'A4-FinPerf RE'!E31+'A4-FinPerf RE'!E33+'A4-FinPerf RE'!E34 -> 664308912 | E17: ='A4-FinPerf RE'!F26+'A4-FinPerf RE'!F31+'A4-FinPerf RE'!F33+'A4-FinPerf RE'!F34 -> 443927569 | F17: ='A4-FinPerf RE'!G26+'A4-FinPerf RE'!G31+'A4-FinPerf RE'!G33+'A4-FinPerf RE'!G34 -> 508468846 | G17: ='A4-FinPerf RE'!H26+'A4-FinPerf RE'!H31+'A4-FinPerf RE'!H33+'A4-FinPerf RE'!H34 -> 508468846 | H17: ='A4-FinPerf RE'!I26+'A4-FinPerf RE'!I31+'A4-FinPerf RE'!I33+'A4-FinPerf RE'!I34 -> 508468846 | I17: ='A4-FinPerf RE'!J26+'A4-FinPerf RE'!J31+'A4-FinPerf RE'!J33+'A4-FinPerf RE'!J34 -> 479463719.6 | J17: ='A4-FinPerf RE'!K26+'A4-FinPerf RE'!K31+'A4-FinPerf RE'!K33+'A4-FinPerf RE'!K34 -> 534690925.6 | K17: ='A4-FinPerf RE'!L26+'A4-FinPerf RE'!L31+'A4-FinPerf RE'!L33+'A4-FinPerf RE'!L34 -> 558414131.5
A18: ='A4-FinPerf RE'!A35 -> Total Expenditure | B18: =SUM(B11:B17) -> 1455329490 | C18: =SUM(C11:C17) -> 1552775856 | D18: 1676528846 | E18: 1503724367 | F18: 1833040201 | G18: 1833040201 | H18: 1833040201 | I18: 1659266318 | J18: 1741173767 | K18: 1829588373
A19: ='A4-FinPerf RE'!A37 -> Surplus/(Deficit) | B19: =B10-B18 -> -364553111 | C19: -428433791.3 | D19: -316756109.9 | E19: 48962718.04 | F19: 27214188.81 | G19: 27214188.81 | H19: 27214188.81 | I19: 15139997.94 | J19: 15070919.23 | K19: 15071880
A20: ='A4-FinPerf RE'!A38 -> Transfers and subsidies - capital (monetary allocations) (National / Provincial and District) | B20: ='A4-FinPerf RE'!C38 -> 423906258.3 | C20: ='A4-FinPerf RE'!D38 -> 586026627 | D20: ='A4-FinPerf RE'!E38 -> 620037561 | E20: ='A4-FinPerf RE'!F38 -> 543037365 | F20: ='A4-FinPerf RE'!G38 -> 395484403 | G20: ='A4-FinPerf RE'!H38 -> 395484403 | H20: ='A4-FinPerf RE'!I38 -> 395484403 | I20: ='A4-FinPerf RE'!J38 -> 491381466 | J20: ='A4-FinPerf RE'!K38 -> 600491315 | K20: ='A4-FinPerf RE'!L38 -> 603602546
A21: ='A4-FinPerf RE'!A39&" & "&'A4-FinPerf RE'!A40 -> Transfers and subsidies - capital (monetary allocations) (National / Provincial Departmental Agencies, Households, Non-profit Institutions, Private Enterprises, Public Corporatons, Higher Educational Institutions) & Transfers and subsidies - capital (in-kind - all) | B21: ='A4-FinPerf RE'!C39+'A4-FinPerf RE'!C40 -> 0 | C21: ='A4-FinPerf RE'!D39+'A4-FinPerf RE'!D40 -> 0 | D21: ='A4-FinPerf RE'!E39+'A4-FinPerf RE'!E40 -> 0 | E21: ='A4-FinPerf RE'!F39+'A4-FinPerf RE'!F40 -> 0 | F21: ='A4-FinPerf RE'!G39+'A4-FinPerf RE'!G40 -> 0 | G21: ='A4-FinPerf RE'!H39+'A4-FinPerf RE'!H40 -> 0 | H21: ='A4-FinPerf RE'!I39+'A4-FinPerf RE'!I40 -> 0 | I21: ='A4-FinPerf RE'!J39+'A4-FinPerf RE'!J40 -> 0 | J21: ='A4-FinPerf RE'!K39+'A4-FinPerf RE'!K40 -> 0 | K21: ='A4-FinPerf RE'!L39+'A4-FinPerf RE'!L40 -> 0
A22: ='A4-FinPerf RE'!A41 -> Surplus/(Deficit) after capital transfers & contributions | B22: =B19+SUM(B20:B21) -> 59353147.28 | C22: =C19+SUM(C20:C21) -> 157592835.7 | D22: 303281451.1 | E22: 592000083 | F22: 422698591.8 | G22: 422698591.8 | H22: 422698591.8 | I22: 506521463.9 | J22: 615562234.2 | K22: 618674426
A23: ='A4-FinPerf RE'!A46 -> Share of surplus/ (deficit) of associate | B23: ='A4-FinPerf RE'!C46 -> 0 | C23: ='A4-FinPerf RE'!D46 -> 0 | D23: ='A4-FinPerf RE'!E46 -> 0 | E23: ='A4-FinPerf RE'!F46 -> 0 | F23: ='A4-FinPerf RE'!G46 -> 0 | G23: ='A4-FinPerf RE'!H46 -> 0 | H23: ='A4-FinPerf RE'!I46 -> 0 | I23: ='A4-FinPerf RE'!J46 -> 0 | J23: ='A4-FinPerf RE'!K46 -> 0 | K23: ='A4-FinPerf RE'!L46 -> 0
A24: ='A4-FinPerf RE'!A47 -> Surplus/(Deficit) for the year | B24: =B22+B23 -> 59353147.28 | C24: =C22+C23 -> 157592835.7 | D24: 303281451.1 | E24: 592000083 | F24: 422698591.8 | G24: 422698591.8 | H24: 422698591.8 | I24: 506521463.9 | J24: 615562234.2 | K24: 618674426
A26: Capital expenditure & funds sources
A27: Capital expenditure | B27: ='A5-Capex'!C63 -> 99254444 | C27: ='A5-Capex'!D63 -> 373029354 | D27: ='A5-Capex'!E63 -> 335619957.3 | E27: ='A5-Capex'!F63 -> 659655720 | F27: ='A5-Capex'!G63 -> 587482695.3 | G27: ='A5-Capex'!H63 -> 587482695.3 | H27: ='A5-Capex'!I63 -> 587482695.3 | I27: ='A5-Capex'!J63 -> 566483857.6 | J27: ='A5-Capex'!K63 -> 688904670 | K27: ='A5-Capex'!L63 -> 692025830
A28: Transfers recognised - capital | B28: ='A5-Capex'!C70 -> 99254444 | C28: ='A5-Capex'!D70 -> 372229470 | D28: ='A5-Capex'!E70 -> 335159170.5 | E28: ='A5-Capex'!F70 -> 610693000 | F28: ='A5-Capex'!G70 -> 560470988 | G28: ='A5-Capex'!H70 -> 560470988 | H28: ='A5-Capex'!I70 -> 560470988 | I28: ='A5-Capex'!J70 -> 551483857.6 | J28: ='A5-Capex'!K70 -> 673904670 | K28: ='A5-Capex'!L70 -> 677025830
A30: ='A5-Capex'!A72 -> Borrowing | B30: ='A5-Capex'!C72 -> 0 | C30: ='A5-Capex'!D72 -> 0 | D30: ='A5-Capex'!E72 -> 0 | E30: ='A5-Capex'!F72 -> 0 | F30: ='A5-Capex'!G72 -> 0 | G30: ='A5-Capex'!H72 -> 0 | H30: ='A5-Capex'!I72 -> 0 | I30: ='A5-Capex'!J72 -> 0 | J30: ='A5-Capex'!K72 -> 0 | K30: ='A5-Capex'!L72 -> 0
A31: ='A5-Capex'!A73 -> Internally generated funds | B31: ='A5-Capex'!C73 -> 0 | C31: ='A5-Capex'!D73 -> 799884 | D31: ='A5-Capex'!E73 -> 460786.83 | E31: ='A5-Capex'!F73 -> 48962720 | F31: ='A5-Capex'!G73 -> 27011707 | G31: ='A5-Capex'!H73 -> 27011707 | H31: ='A5-Capex'!I73 -> 27011707 | I31: ='A5-Capex'!J73 -> 15000000 | J31: ='A5-Capex'!K73 -> 15000000 | K31: ='A5-Capex'!L73 -> 15000000
A32: Total sources of capital funds | B32: =+B28+B30+B31 -> 99254444 | C32: =+C28+C30+C31 -> 373029354 | D32: 335619957.3 | E32: 659655720 | F32: 587482695 | G32: 587482695 | H32: 587482695 | I32: 566483857.6 | J32: 688904670 | K32: 692025830
A34: Financial position
A35: ='A6-FinPos'!A12 -> Total current assets | B35: ='A6-FinPos'!C12 -> 302051989.6 | C35: ='A6-FinPos'!D12 -> 369550904.4 | D35: ='A6-FinPos'!E12 -> 544737041.9 | E35: ='A6-FinPos'!F12 -> 810459001.3 | F35: ='A6-FinPos'!G12 -> 699778917.4 | G35: ='A6-FinPos'!H12 -> 699778917.4 | H35: ='A6-FinPos'!I12 -> 699778917.4 | I35: ='A6-FinPos'!J12 -> 734882952.2 | J35: ='A6-FinPos'!K12 -> 829378057.5 | K35: ='A6-FinPos'!L12 -> 858754844.6
A36: ='A6-FinPos'!A24 -> Total non current assets | B36: ='A6-FinPos'!C24 -> 4882908669 | C36: ='A6-FinPos'!D24 -> 4622795943 | D36: ='A6-FinPos'!E24 -> 4822903739 | E36: ='A6-FinPos'!F24 -> 6640665765 | F36: ='A6-FinPos'!G24 -> 5247654373 | G36: ='A6-FinPos'!H24 -> 5247654373 | H36: ='A6-FinPos'!I24 -> 5247654373 | I36: ='A6-FinPos'!J24 -> 5643819867 | J36: ='A6-FinPos'!K24 -> 6145375429 | K36: ='A6-FinPos'!L24 -> 6631317222
A37: ='A6-FinPos'!A34 -> Total current liabilities | B37: ='A6-FinPos'!C34 -> 478901168.4 | C37: ='A6-FinPos'!D34 -> 666775171.2 | D37: ='A6-FinPos'!E34 -> 808563273.5 | E37: ='A6-FinPos'!F34 -> 712740835.7 | F37: ='A6-FinPos'!G34 -> 561867421.7 | G37: ='A6-FinPos'!H34 -> 561867421.7 | H37: ='A6-FinPos'!I34 -> 561867421.7 | I37: ='A6-FinPos'!J34 -> 574708740.9 | J37: ='A6-FinPos'!K34 -> 544863382.2 | K37: ='A6-FinPos'!L34 -> 530024982.5
A38: ='A6-FinPos'!A39 -> Total non current liabilities | B38: ='A6-FinPos'!C39 -> 265505876.1 | C38: ='A6-FinPos'!D39 -> 240444259 | D38: ='A6-FinPos'!E39 -> 172105545 | E38: ='A6-FinPos'!F39 -> 379241651.3 | F38: ='A6-FinPos'!G39 -> 174215262.6 | G38: ='A6-FinPos'!H39 -> 174215262.6 | H38: ='A6-FinPos'!I39 -> 174215262.6 | I38: ='A6-FinPos'!J39 -> 174329134.7 | J38: ='A6-FinPos'!K39 -> 174329134.7 | K38: ='A6-FinPos'!L39 -> 174329134.7
A39: Community wealth/Equity | B39: ='A6-FinPos'!C48 -> 4440553614 | C39: ='A6-FinPos'!D48 -> 4085127417 | D39: ='A6-FinPos'!E48 -> 4386971962 | E39: ='A6-FinPos'!F48 -> 6359142279 | F39: ='A6-FinPos'!G48 -> 5211350606 | G39: ='A6-FinPos'!H48 -> 5211350606 | H39: ='A6-FinPos'!I48 -> 5211350606 | I39: ='A6-FinPos'!J48 -> 5629664945 | J39: ='A6-FinPos'!K48 -> 6255560971 | K39: ='A6-FinPos'!L48 -> 6785717951
A41: Cash flows
A42: Net cash from (used) operating | B42: ='A7-CFlow'!C17 -> 323860312 | C42: ='A7-CFlow'!D17 -> 385288490.7 | D42: ='A7-CFlow'!E17 -> 341434935.1 | E42: ='A7-CFlow'!F17 -> 754566737 | F42: ='A7-CFlow'!G17 -> 327789220.1 | G42: ='A7-CFlow'!H17 -> 327789220.1 | H42: ='A7-CFlow'!I17 -> 327789220.1 | I42: ='A7-CFlow'!J17 -> 524500020.1 | J42: ='A7-CFlow'!K17 -> 695210098.6 | K42: ='A7-CFlow'!L17 -> 633392928.4
A43: Net cash from (used) investing | B43: ='A7-CFlow'!C27 -> -155215136 | C43: ='A7-CFlow'!D27 -> -371455043.7 | D43: ='A7-CFlow'!E27 -> -330951162 | E43: ='A7-CFlow'!F27 -> -592000085 | F43: ='A7-CFlow'!G27 -> -422699475 | G43: ='A7-CFlow'!H27 -> -422699475 | H43: ='A7-CFlow'!I27 -> -422699475 | I43: ='A7-CFlow'!J27 -> -506521465 | J43: ='A7-CFlow'!K27 -> -615562235 | K43: ='A7-CFlow'!L27 -> -618674426
A44: Net cash from (used) financing | B44: ='A7-CFlow'!C36 -> -132452558 | C44: ='A7-CFlow'!D36 -> -659962 | D44: ='A7-CFlow'!E36 -> -144261.26 | E44: ='A7-CFlow'!F36 -> 0 | F44: ='A7-CFlow'!G36 -> 0 | G44: ='A7-CFlow'!H36 -> 0 | H44: ='A7-CFlow'!I36 -> 0 | I44: ='A7-CFlow'!J36 -> 0 | J44: ='A7-CFlow'!K36 -> 0 | K44: ='A7-CFlow'!L36 -> 0
A45: =LEFT('A7-CFlow'!A40,37) -> Cash/cash equivalents at the year end | B45: ='A7-CFlow'!C40 -> 167557250 | C45: ='A7-CFlow'!D40 -> 189959346 | D45: ='A7-CFlow'!E40 -> 200298857.9 | E45: ='A7-CFlow'!F40 -> 214045083 | F45: ='A7-CFlow'!G40 -> 95242728.84 | G45: ='A7-CFlow'!H40 -> 95242728.84 | H45: ='A7-CFlow'!I40 -> 95242728.84 | I45: ='A7-CFlow'!J40 -> 113221284 | J45: ='A7-CFlow'!K40 -> 192869147.6 | K45: ='A7-CFlow'!L40 -> 207587650.1
A47: Cash backing/surplus reconciliation
A48: ='A8-ResRecon'!A4 -> Cash and investments available | B48: ='A8-ResRecon'!C8 -> 167557249.8 | C48: ='A8-ResRecon'!D8 -> 191959346.1 | D48: ='A8-ResRecon'!E8 -> 202435985.7 | E48: ='A8-ResRecon'!F8 -> 216045083 | F48: ='A8-ResRecon'!G8 -> 97379857.61 | G48: ='A8-ResRecon'!H8 -> 97379857.61 | H48: ='A8-ResRecon'!I8 -> 97379857.61 | I48: ='A8-ResRecon'!J8 -> 115358412.7 | J48: ='A8-ResRecon'!K8 -> 195006276.4 | K48: ='A8-ResRecon'!L8 -> 209724778.8
A49: ='A8-ResRecon'!A10 -> Application of cash and investments | B49: ='A8-ResRecon'!C18 -> 381194320.2 | C49: ='A8-ResRecon'!D18 -> 440913926.8 | D49: ='A8-ResRecon'!E18 -> 507517107.7 | E49: ='A8-ResRecon'!F18 -> 271447493.8 | F49: ='A8-ResRecon'!G18 -> 94714493.75 | G49: ='A8-ResRecon'!H18 -> 94714493.75 | H49: ='A8-ResRecon'!I18 -> 94714493.75 | I49: ='A8-ResRecon'!J18 -> 111278493.8 | J49: ='A8-ResRecon'!K18 -> 72359493.75 | K49: ='A8-ResRecon'!L18 -> 52897493.75
A50: Balance - surplus (shortfall) | B50: =B48-B49 -> -213637070.3 | C50: =C48-C49 -> -248954580.7 | D50: -305081122 | E50: -55402410.71 | F50: 2665363.858 | G50: 2665363.858 | H50: 2665363.858 | I50: 4079918.998 | J50: 122646782.6 | K50: 156827285.1
A52: Asset management
A53: Asset register summary (WDV) | B53: ='A9-Asset'!C165 -> 4881196764 | C53: ='A9-Asset'!D165 -> 4619085003 | D53: ='A9-Asset'!E165 -> 4819055666 | E53: ='A9-Asset'!F165 -> 6636954859 | F53: ='A9-Asset'!G165 -> 5243805338 | G53: ='A9-Asset'!H165 -> 5243805338 | H53: ='A9-Asset'!H165 -> 5243805338 | I53: ='A9-Asset'!I165 -> 5639971832 | J53: ='A9-Asset'!J165 -> 6141527394 | K53: ='A9-Asset'!K165 -> 6627469187
A54: ='A9-Asset'!A168 -> Depreciation | B54: ='A9-Asset'!C168 -> 111288592.5 | C54: ='A9-Asset'!D168 -> 107269535.3 | D54: ='A9-Asset'!E168 -> 129688666.7 | E54: ='A9-Asset'!F168 -> 162566655 | F54: ='A9-Asset'!G168 -> 162566655 | G54: ='A9-Asset'!H168 -> 162566655 | H54: ='A9-Asset'!H168 -> 162566655 | I54: ='A9-Asset'!I168 -> 170317363 | J54: ='A9-Asset'!J168 -> 187349108 | K54: ='A9-Asset'!K168 -> 206084037
A55: Renewal and Upgrading of Existing Assets | B55: ='A9-Asset'!C37+'A9-Asset'!C69 -> 0 | C55: ='A9-Asset'!D37+'A9-Asset'!D69 -> 2872742 | D55: ='A9-Asset'!E37+'A9-Asset'!E69 -> 972852.71 | E55: ='A9-Asset'!F37+'A9-Asset'!F69 -> 125487896.5 | F55: ='A9-Asset'!G37+'A9-Asset'!G69 -> 197203924.9 | G55: ='A9-Asset'!H37+'A9-Asset'!H69 -> 197203924.9 | H55: ='A9-Asset'!H37+'A9-Asset'!H69 -> 197203924.9 | I55: ='A9-Asset'!I37+'A9-Asset'!I69 -> 158400921.5 | J55: ='A9-Asset'!J37+'A9-Asset'!J69 -> 124992941.5 | K55: ='A9-Asset'!K37+'A9-Asset'!K69 -> 159617596.9
A56: Repairs and Maintenance | B56: ='A9-Asset'!C169 -> 20715203 | C56: ='A9-Asset'!D169 -> 16524490.93 | D56: ='A9-Asset'!E169 -> 16074491.19 | E56: ='A9-Asset'!F169 -> 20616561 | F56: ='A9-Asset'!G169 -> 18757815 | G56: ='A9-Asset'!H169 -> 18757815 | H56: ='A9-Asset'!H169 -> 18757815 | I56: ='A9-Asset'!I169 -> 16837144 | J56: ='A9-Asset'!J169 -> 26619135 | K56: ='A9-Asset'!K169 -> 28332095
A58: Free services
A59: Cost of Free Basic Services provided | B59: ='A10-SerDel'!C60 -> 16391630 | C59: ='A10-SerDel'!D60 -> 17422415 | D59: ='A10-SerDel'!E60 -> 11462600 | E59: ='A10-SerDel'!F60 -> 50000000 | F59: ='A10-SerDel'!G60 -> 29752000 | G59: ='A10-SerDel'!H60 -> 29752000 | H59: ='A10-SerDel'!I60 -> 35000000 | I59: ='A10-SerDel'!I60 -> 35000000 | J59: ='A10-SerDel'!J60 -> 35600000 | K59: ='A10-SerDel'!K60 -> 56420000
A60: Revenue cost of free services provided | B60: ='A10-SerDel'!C79 -> 0 | C60: ='A10-SerDel'!D79 -> 0 | D60: ='A10-SerDel'!E79 -> 0 | E60: ='A10-SerDel'!F79 -> 0 | F60: ='A10-SerDel'!G79 -> 0 | G60: ='A10-SerDel'!H79 -> 0 | H60: ='A10-SerDel'!I79 -> 0 | I60: ='A10-SerDel'!I79 -> 0 | J60: ='A10-SerDel'!J79 -> 0 | K60: ='A10-SerDel'!K79 -> 0
A61: Households below minimum service level
A62: ='A10-SerDel'!A5 -> Water: | B62: ='A10-SerDel'!C14 -> 13164 | C62: ='A10-SerDel'!D14 -> 11707 | D62: ='A10-SerDel'!E14 -> 0 | E62: ='A10-SerDel'!F14 -> 0 | F62: ='A10-SerDel'!G14 -> 0 | G62: ='A10-SerDel'!H14 -> 0 | H62: ='A10-SerDel'!I14 -> 0 | I62: ='A10-SerDel'!I14 -> 0 | J62: ='A10-SerDel'!J14 -> 0 | K62: ='A10-SerDel'!K14 -> 0
A63: ='A10-SerDel'!A16 -> Sanitation/sewerage: | B63: ='A10-SerDel'!C26 -> 84778 | C63: ='A10-SerDel'!D26 -> 57116 | D63: ='A10-SerDel'!E26 -> 0 | E63: ='A10-SerDel'!F26 -> 41492 | F63: ='A10-SerDel'!G26 -> 41492 | G63: ='A10-SerDel'!H26 -> 41492 | H63: ='A10-SerDel'!I26 -> 31492 | I63: ='A10-SerDel'!I26 -> 31492 | J63: ='A10-SerDel'!J26 -> 21492 | K63: ='A10-SerDel'!K26 -> 15000000
A64: ='A10-SerDel'!A28 -> Energy: | B64: ='A10-SerDel'!C35 -> 0 | C64: ='A10-SerDel'!D35 -> 0 | D64: ='A10-SerDel'!E35 -> 0 | E64: ='A10-SerDel'!F35 -> 0 | F64: ='A10-SerDel'!G35 -> 0 | G64: ='A10-SerDel'!H35 -> 0 | H64: ='A10-SerDel'!I35 -> 0 | I64: ='A10-SerDel'!I35 -> 0 | J64: ='A10-SerDel'!J35 -> 0 | K64: ='A10-SerDel'!K35 -> 0
A65: ='A10-SerDel'!A37 -> Refuse: | B65: ='A10-SerDel'!C45 -> 0 | C65: ='A10-SerDel'!D45 -> 0 | D65: ='A10-SerDel'!E45 -> 0 | E65: ='A10-SerDel'!F45 -> 0 | F65: ='A10-SerDel'!G45 -> 0 | G65: ='A10-SerDel'!H45 -> 0 | H65: ='A10-SerDel'!I45 -> 0 | I65: ='A10-SerDel'!I45 -> 0 | J65: ='A10-SerDel'!J45 -> 0 | K65: ='A10-SerDel'!K45 -> 0

Sheet A2-FinPerf SC
A1: =muni&" - "&Approve3 -> DC12 Amathole - Table A2 Budgeted Financial Performance (revenue and expenditure by functional classification)
A2: ="Functional Classification "&desc -> Functional Classification Description | B2: =head27 -> Ref | C2: =head1b -> 2016/17 | D2: =head1A -> 2017/18 | E2: =Head1 -> 2018/19 | F2: =Head2 -> Current Year 2019/20 | I2: =Head3 -> 2020/21 Medium Term Revenue & Expenditure Framework
A3: R thousand | B3: 1 | C3: =Head5 -> Audited Outcome | D3: =Head5 -> Audited Outcome | E3: =Head5 -> Audited Outcome | F3: =Head6 -> Original Budget | G3: =Head7 -> Adjusted Budget | H3: =Head8 -> Full Year Forecast | I3: =Head9 -> Budget Year 2020/21 | J3: =Head10 -> Budget Year +1 2021/22 | K3: =Head11 -> Budget Year +2 2022/23
A4: Revenue - Functional
A5: Governance and administration | C5: =SUM(C6:C8) -> 331477231.8 | D5: =SUM(D6:D8) -> 384777310.1 | E5: 445392905.3 | F5: 307917052 | G5: 298767948 | H5: 298767948 | I5: 330855364 | J5: 354251647 | K5: 376831641
A6: Executive and council | C6: =A2A!C6 -> 329138068.8 | D6: =A2A!D6 -> 382756494.1 | E6: =A2A!E6 -> 443053741.7 | F6: =A2A!F6 -> 41409067 | G6: =A2A!G6 -> 15774886 | H6: =A2A!H6 -> 15774886 | I6: =A2A!I6 -> 16976301 | J6: =A2A!J6 -> 18275336 | K6: =A2A!K6 -> 19501305
A7: Finance and administration | C7: =A2A!C9 -> 2339163 | D7: =A2A!D9 -> 2020815.99 | E7: =A2A!E9 -> 2339163.67 | F7: =A2A!F9 -> 266507985 | G7: =A2A!G9 -> 282993062 | H7: =A2A!H9 -> 282993062 | I7: =A2A!I9 -> 313879063 | J7: =A2A!J9 -> 335976311 | K7: =A2A!K9 -> 357330336
A8: Internal audit | C8: =A2A!C23 -> 0 | D8: =A2A!D23 -> 0 | E8: =A2A!E23 -> 0 | F8: =A2A!F23 -> 0 | G8: =A2A!G23 -> 0 | H8: =A2A!H23 -> 0 | I8: =A2A!I23 -> 0 | J8: =A2A!J23 -> 0 | K8: =A2A!K23 -> 0
A9: Community and public safety | C9: =SUM(C10:C14) -> 8615375.73 | D9: =SUM(D10:D14) -> 7442868.526 | E9: 8615375.05 | F9: 100878885 | G9: 127051268 | H9: 127051268 | I9: 109595767 | J9: 117854257 | K9: 125702197
A10: Community and social services | C10: =A2A!C26 -> 0 | D10: =A2A!D26 -> 0 | E10: =A2A!E26 -> 0 | F10: =A2A!F26 -> 0 | G10: =A2A!G26 -> 0 | H10: =A2A!H26 -> 0 | I10: =A2A!I26 -> 0 | J10: =A2A!J26 -> 0 | K10: =A2A!K26 -> 0
A11: Sport and recreation | C11: =A2A!C48 -> 0 | D11: =A2A!D48 -> 0 | E11: =A2A!E48 -> 0 | F11: =A2A!F48 -> 0 | G11: =A2A!G48 -> 0 | H11: =A2A!H48 -> 0 | I11: =A2A!I48 -> 0 | J11: =A2A!J48 -> 0 | K11: =A2A!K48 -> 0
A12: Public safety | C12: =A2A!C54 -> 4473843 | D12: =A2A!D54 -> 3864976.641 | E12: =A2A!E54 -> 4473842.74 | F12: =A2A!F54 -> 6229598 | G12: =A2A!G54 -> 6232499 | H12: =A2A!H54 -> 6232499 | I12: =A2A!I54 -> 7737991 | J12: =A2A!J54 -> 8202270 | K12: =A2A!K54 -> 8694406
A13: Housing | C13: =A2A!C63 -> 0 | D13: =A2A!D63 -> 0 | E13: =A2A!E63 -> 0 | F13: =A2A!F63 -> 19718601 | G13: =A2A!G63 -> 45888083 | H13: =A2A!H63 -> 45888083 | I13: =A2A!I63 -> 21220369 | J13: =A2A!J63 -> 22844164 | K13: =A2A!K63 -> 24376623
A14: Health | C14: =A2A!C66 -> 4141532.73 | D14: =A2A!D66 -> 3577891.885 | E14: =A2A!E66 -> 4141532.31 | F14: =A2A!F66 -> 74930686 | G14: =A2A!G66 -> 74930686 | H14: =A2A!H66 -> 74930686 | I14: =A2A!I66 -> 80637407 | J14: =A2A!J66 -> 86807823 | K14: =A2A!K66 -> 92631168
A15: Economic and environmental services | C15: =SUM(C16:C18) -> 10774 | D15: =SUM(D16:D18) -> 8789.718508 | E15: 10174.4 | F15: 25032001 | G15: 61484645 | H15: 61484645 | I15: 54906380 | J15: 56065662 | K15: 59680658
A16: Planning and development | C16: =A2A!C75 -> 10774 | D16: =A2A!D75 -> 8789.718508 | E16: =A2A!E75 -> 10174.4 | F16: =A2A!F75 -> 21919000 | G16: =A2A!G75 -> 58371644 | H16: =A2A!H75 -> 58371644 | I16: =A2A!I75 -> 51942380 | J16: =A2A!J75 -> 52938662 | K16: =A2A!K75 -> 56372658
A17: Road transport | C17: =A2A!C86 -> 0 | D17: =A2A!D86 -> 0 | E17: =A2A!E86 -> 0 | F17: =A2A!F86 -> 3113001 | G17: =A2A!G86 -> 3113001 | H17: =A2A!H86 -> 3113001 | I17: =A2A!I86 -> 2964000 | J17: =A2A!J86 -> 3127000 | K17: =A2A!K86 -> 3308000
A18: Environmental protection | C18: =A2A!C91 -> 0 | D18: =A2A!D91 -> 0 | E18: =A2A!E91 -> 0 | F18: =A2A!F91 -> 0 | G18: =A2A!G91 -> 0 | H18: =A2A!H91 -> 0 | I18: =A2A!I91 -> 0 | J18: =A2A!J91 -> 0 | K18: =A2A!K91 -> 0
A19: Trading services | C19: =SUM(C20:C23) -> 1174579256 | D19: =SUM(D20:D23) -> 1318139723 | E19: 1525791843 | F19: 1661896512 | G19: 1768435819 | H19: 1768435819 | I19: 1670430271 | J19: =SUM(J20:J23) -> 1828564435 | K19: 1886048303
A20: Energy sources | C20: =A2A!C99 -> 0 | D20: =A2A!D99 -> 0 | E20: =A2A!E99 -> 0 | F20: =A2A!F99 -> 0 | G20: =A2A!G99 -> 0 | H20: =A2A!H99 -> 0 | I20: =A2A!I99 -> 0 | J20: =A2A!J99 -> 0 | K20: =A2A!K99 -> 0
A21: Water management | C21: =A2A!C103 -> 869683283.7 | D21: =A2A!D103 -> 1085936514 | E21: =A2A!E103 -> 1257008681 | F21: =A2A!F103 -> 1498192617 | G21: =A2A!G103 -> 1604655683 | H21: =A2A!H103 -> 1604655683 | I21: =A2A!I103 -> 1522479974 | J21: =A2A!J103 -> 1671737117 | K21: =A2A!K103 -> 1719811343
A22: Waste water management | C22: =A2A!C107 -> 303986474 | D22: =A2A!D107 -> 231417488.6 | E22: =A2A!E107 -> 267873663.3 | F22: =A2A!F107 -> 157738861 | G22: =A2A!G107 -> 157812324 | H22: =A2A!H107 -> 157812324 | I22: =A2A!I107 -> 140540930 | J22: =A2A!J107 -> 148973389 | K22: =A2A!K107 -> 157911795
A23: Waste management | C23: =A2A!C112 -> 909498 | D23: =A2A!D112 -> 785720.0768 | E23: =A2A!E112 -> 909497.88 | F23: =A2A!F112 -> 5965034 | G23: =A2A!G112 -> 5967812 | H23: =A2A!H112 -> 5967812 | I23: =A2A!I112 -> 7409367 | J23: =A2A!J112 -> 7853929 | K23: =A2A!K112 -> 8325165
A24: Other | B24: 4 | C24: =A2A!C117 -> 0 | D24: =A2A!D117 -> 0 | E24: =A2A!E117 -> 0 | F24: =A2A!F117 -> 0 | G24: =A2A!G117 -> 0 | H24: =A2A!H117 -> 0 | I24: =A2A!I117 -> 0 | J24: =A2A!J117 -> 0 | K24: =A2A!K117 -> 0
A25: ="Total "&A4 -> Total Revenue - Functional | B25: 2 | C25: =C5+C9+C15+C19+C24 -> 1514682637 | D25: =D5+D9+D15+D19+D24 -> 1710368691 | E25: =E5+E9+E15+E19+E24 -> 1979810297 | F25: 2095724450 | G25: 2255739680 | H25: 2255739680 | I25: =I5+I9+I15+I19+I24 -> 2165787782 | J25: 2356736001 | K25: 2448262799
A27: Expenditure - Functional
A28: Governance and administration | C28: =SUM(C29:C31) -> 469591359.8 | D28: =SUM(D29:D31) -> 397244234.2 | E28: 429294882.4 | F28: 537598606.5 | G28: 516344349 | H28: 516344349 | I28: 457142119 | J28: 490710633.8 | K28: 510328036.8
A29: Executive and council | C29: =A2A!C128 -> 168232844.8 | D29: =A2A!D128 -> 134705493.6 | E29: =A2A!E128 -> 145921214.3 | F29: =A2A!F128 -> 139207119 | G29: =A2A!G128 -> 97097110 | H29: =A2A!H128 -> 97097110 | I29: =A2A!I128 -> 83125195.23 | J29: =A2A!J128 -> 89565927.31 | K29: =A2A!K128 -> 91752045.5
A30: Finance and administration | C30: =A2A!C131 -> 301358515 | D30: =A2A!D131 -> 262538740.7 | E30: =A2A!E131 -> 283373668.1 | F30: =A2A!F131 -> 389005507.5 | G30: =A2A!G131 -> 409971544 | H30: =A2A!H131 -> 409971544 | I30: =A2A!I131 -> 362285668.1 | J30: =A2A!J131 -> 389086601.9 | K30: =A2A!K131 -> 406203309
A31: Internal audit | C31: =A2A!C145 -> 0 | D31: =A2A!D145 -> 0 | E31: =A2A!E145 -> 0 | F31: =A2A!F145 -> 9385980 | G31: =A2A!G145 -> 9275695 | H31: =A2A!H145 -> 9275695 | I31: =A2A!I145 -> 11731255.7 | J31: =A2A!J145 -> 12058104.62 | K31: =A2A!K145 -> 12372682.31
A32: Community and public safety | C32: =SUM(C33:C37) -> 216315829 | D32: =SUM(D33:D37) -> 73919666.53 | E32: 79785889.88 | F32: 119429895.5 | G32: 136632324.4 | H32: 136632324.4 | I32: 130383428.7 | J32: 141412163.3 | K32: 146381066
A33: Community and social services | C33: =A2A!C148 -> 7751704 | D33: =A2A!D148 -> 9453455.134 | E33: =A2A!E148 -> 10203676.04 | F33: =A2A!F148 -> 8023577 | G33: =A2A!G148 -> 6878545 | H33: =A2A!H148 -> 6878545 | I33: =A2A!I148 -> 9423081.347 | J33: =A2A!J148 -> 10311258.56 | K33: =A2A!K148 -> 10768722.97
A34: Sport and recreation | C34: =A2A!C170 -> 0 | D34: =A2A!D170 -> 0 | E34: =A2A!E170 -> 0 | F34: =A2A!F170 -> 0 | G34: =A2A!G170 -> 0 | H34: =A2A!H170 -> 0 | I34: =A2A!I170 -> 0 | J34: =A2A!J170 -> 0 | K34: =A2A!K170 -> 0
A35: Public safety | C35: =A2A!C176 -> 46509729 | D35: =A2A!D176 -> 32232834.09 | E35: =A2A!E176 -> 34790813.76 | F35: =A2A!F176 -> 62482923 | G35: =A2A!G176 -> 61766719 | H35: =A2A!H176 -> 61766719 | I35: =A2A!I176 -> 67175569.28 | J35: =A2A!J176 -> 74313133.49 | K35: =A2A!K176 -> 76973979.84
A36: Housing | C36: =A2A!C185 -> 31341556 | D36: =A2A!D185 -> 2948401.544 | E36: =A2A!E185 -> 3182385.04 | F36: =A2A!F185 -> 1525576 | G36: =A2A!G185 -> 27824616.39 | H36: =A2A!H185 -> 27824616.39 | I36: =A2A!I185 -> 2083886.14 | J36: =A2A!J185 -> 2165422.865 | K36: =A2A!K185 -> 2239407.166
A37: Health | C37: =A2A!C188 -> 130712840 | D37: =A2A!D188 -> 29284975.76 | E37: =A2A!E188 -> 31609015.04 | F37: =A2A!F188 -> 47397819.5 | G37: =A2A!G188 -> 40162444 | H37: =A2A!H188 -> 40162444 | I37: =A2A!I188 -> 51700891.92 | J37: =A2A!J188 -> 54622348.42 | K37: =A2A!K188 -> 56398956.06
A38: Economic and environmental services | C38: =SUM(C39:C41) -> 54149738 | D38: =SUM(D39:D41) -> 43447898.71 | E38: 46895899.62 | F38: 59548940 | G38: 119976319 | H38: 119976319 | I38: 120731196.3 | J38: 118316041.3 | K38: 122049930.2
A39: Planning and development | C39: =A2A!C197 -> 54149738 | D39: =A2A!D197 -> 42735740.02 | E39: =A2A!E197 -> 46127224.42 | F39: =A2A!F197 -> 55136807 | G39: =A2A!G197 -> 115493260 | H39: =A2A!H197 -> 115493260 | I39: =A2A!I197 -> 117122934.9 | J39: =A2A!J197 -> 114118334.2 | K39: =A2A!K197 -> 117635359.8
A40: Road transport | C40: =A2A!C208 -> 0 | D40: =A2A!D208 -> 712158.6855 | E40: =A2A!E208 -> 768675.2 | F40: =A2A!F208 -> 4412133 | G40: =A2A!G208 -> 4483059 | H40: =A2A!H208 -> 4483059 | I40: =A2A!I208 -> 3608261.412 | J40: =A2A!J208 -> 4197707.074 | K40: =A2A!K208 -> 4414570.417
A41: Environmental protection | C41: =A2A!C213 -> 0 | D41: =A2A!D213 -> 0 | E41: =A2A!E213 -> 0 | F41: =A2A!F213 -> 0 | G41: =A2A!G213 -> 0 | H41: =A2A!H213 -> 0 | I41: =A2A!I213 -> 0 | J41: =A2A!J213 -> 0 | K41: =A2A!K213 -> 0
A42: Trading services | C42: =SUM(C43:C46) -> 715272563.2 | D42: =SUM(D43:D46) -> 1038164056 | E42: 1120552174 | F42: =SUM(F43:F46) -> 787146924 | G42: 1060087209 | H42: 1060087209 | I42: 951009574 | J42: 990734928.3 | K42: =SUM(K43:K46) -> 1050829340
A43: Energy sources | C43: =A2A!C221 -> 0 | D43: =A2A!D221 -> 0 | E43: =A2A!E221 -> 0 | F43: =A2A!F221 -> 0 | G43: =A2A!G221 -> 0 | H43: =A2A!H221 -> 0 | I43: =A2A!I221 -> 0 | J43: =A2A!J221 -> 0 | K43: =A2A!K221 -> 0
A44: Water management | C44: =A2A!C225 -> 682178763.2 | D44: =A2A!D225 -> 640034425.1 | E44: =A2A!E225 -> 690827198.6 | F44: =A2A!F225 -> 616607385 | G44: =A2A!G225 -> 869643433 | H44: =A2A!H225 -> 869643433 | I44: =A2A!I225 -> 756092082.2 | J44: =A2A!J225 -> 778925225.6 | K44: =A2A!K225 -> 829200670.5
A45: Waste water management | C45: =A2A!C229 -> 33093800 | D45: =A2A!D229 -> 396554050.9 | E45: =A2A!E229 -> 428024358.3 | F45: =A2A!F229 -> 162287121 | G45: =A2A!G229 -> 184040744 | H45: =A2A!H229 -> 184040744 | I45: =A2A!I229 -> 187964717.1 | J45: =A2A!J229 -> 204245154.2 | K45: =A2A!K229 -> 213389622.7
A46: Waste management | C46: =A2A!C234 -> 0 | D46: =A2A!D234 -> 1575580.281 | E46: =A2A!E234 -> 1700617.45 | F46: =A2A!F234 -> 8252418 | G46: =A2A!G234 -> 6403032.466 | H46: =A2A!H234 -> 6403032.466 | I46: =A2A!I234 -> 6952774.715 | J46: =A2A!J234 -> 7564548.514 | K46: =A2A!K234 -> 8239046.699
A47: Other | B47: 4 | C47: =A2A!C239 -> 0 | D47: =A2A!D239 -> 0 | E47: =A2A!E239 -> 0 | F47: =A2A!F239 -> 0 | G47: =A2A!G239 -> 0 | H47: =A2A!H239 -> 0 | I47: =A2A!I239 -> 0 | J47: =A2A!J239 -> 0 | K47: =A2A!K239 -> 0
A48: ="Total "&A27 -> Total Expenditure - Functional | B48: 3 | C48: =C28+C32+C38+C42+C47 -> 1455329490 | D48: =D28+D32+D38+D42+D47 -> 1552775856 | E48: =E28+E32+E38+E42+E47 -> 1676528846 | F48: =F28+F32+F38+F42+F47 -> 1503724366 | G48: 1833040202 | H48: 1833040202 | I48: 1659266318 | J48: 1741173767 | K48: 1829588373
A49: =result -> Surplus/(Deficit) for the year | C49: =C25-C48 -> 59353147.28 | D49: =D25-D48 -> 157592835.7 | E49: 303281451.1 | F49: 592000084 | G49: 422699478.1 | H49: 422699478.1 | I49: 506521463.9 | J49: 615562234.2 | K49: 618674426
A50: =head27a -> References
A51: 1. Government Finance Statistics Functions and Sub-functions are standardised to assist the compilation of national and international accounts for comparison purposes
A52: 2. Total Revenue by functional classification must reconcile to Total Operating Revenue shown in Budgeted Financial Performance (revenue and expenditure)
A53: 3. Total Expenditure by Functional Classification must reconcile to Total Operating Expenditure shown in Budgeted Financial Performance (revenue and expenditure)
A54: 4. All amounts must be classified under a functional classification . The GFS function 'Other' is only for Abbatoirs, Air Transport, Forestry, Licensing and Regulation, Markets and Tourism - and if used must be supported by footnotes. Nothing else may be placed under 'Other'. Assign associate share to relevant classification.
A57: check oprev balance | C57: =C25-'A4-FinPerf RE'!C59 -> 0 | D57: =D25-'A4-FinPerf RE'!D59 -> 0 | E57: =E25-'A4-FinPerf RE'!E59 -> 0 | F57: =F25-'A4-FinPerf RE'!F59 -> -0.0434782505 | G57: =G25-'A4-FinPerf RE'!G59 -> 886.956522 | H57: =H25-'A4-FinPerf RE'!H59 -> 886.956522 | I57: =I25-'A4-FinPerf RE'!J59 -> 0 | J57: =J25-'A4-FinPerf RE'!K59 -> 0 | K57: =K25-'A4-FinPerf RE'!L59 -> 0
A58: check opexp balance | C58: =C48-'A4-FinPerf RE'!C35 -> 0 | D58: =D48-'A4-FinPerf RE'!D35 -> 0 | E58: =E48-'A4-FinPerf RE'!E35 -> 0 | F58: =F48-'A4-FinPerf RE'!F35 -> -1 | G58: =G48-'A4-FinPerf RE'!G35 -> 0.622682333 | H58: =H48-'A4-FinPerf RE'!H35 -> 0.622682333 | I58: =I48-'A4-FinPerf RE'!J35 -> 0 | J58: =J48-'A4-FinPerf RE'!K35 -> 0 | K58: =K48-'A4-FinPerf RE'!L35 -> 0

Sheet A2A
A1: =muni&" - "&Approve3 -> DC12 Amathole - Table A2 Budgeted Financial Performance (revenue and expenditure by functional classification)
A2: ="Functional Classification "&desc -> Functional Classification Description | B2: =head27 -> Ref | C2: =head1b -> 2016/17 | D2: =head1A -> 2017/18 | E2: =Head1 -> 2018/19 | F2: =Head2 -> Current Year 2019/20 | I2: =Head3 -> 2020/21 Medium Term Revenue & Expenditure Framework
A3: R thousand | B3: 1 | C3: =Head5 -> Audited Outcome | D3: =Head5 -> Audited Outcome | E3: =Head5 -> Audited Outcome | F3: =Head6 -> Original Budget | G3: =Head7 -> Adjusted Budget | H3: =Head8 -> Full Year Forecast | I3: =Head9 -> Budget Year 2020/21 | J3: =Head10 -> Budget Year +1 2021/22 | K3: =Head11 -> Budget Year +2 2022/23
A4: Revenue - Functional
A5: Municipal governance and administration | C5: =C6+C9+C23 -> 331477231.8 | D5: 384777310.1 | E5: 445392905.3 | F5: 307917052 | G5: 298767948 | H5: 298767948 | I5: 330855364 | J5: 354251647 | K5: 376831641
A6: Executive and council | C6: =SUM(C7:C8) -> 329138068.8 | D6: =SUM(D7:D8) -> 382756494.1 | E6: 443053741.7 | F6: 41409067 | G6: 15774886 | H6: 15774886 | I6: 16976301 | J6: 18275336 | K6: 19501305
A7: Mayor and Council | D7: 1924.539208 | E7: 2227.72
A8: Municipal Manager, Town Secretary and Chief Executive | C8: =333844194-4706125.18000007 -> 329138068.8 | D8: 382754569.5 | E8: =600+329026934.01+117848731-3824751.05999994 -> 443051514 | F8: 41409067 | G8: 15774886 | H8: 15774886 | I8: 16976301 | J8: 18275336 | K8: 19501305
A9: Finance and administration | C9: =SUM(C10:C22) -> 2339163 | D9: 2020815.99 | E9: 2339163.67 | F9: 266507985 | G9: 282993062 | H9: 282993062 | I9: 313879063 | J9: 335976311 | K9: 357330336
A10: Administrative and Corporate Support | D10: 215690.3396 | E10: 249668.95 | F10: 84012571 | G10: 82472971 | H10: 82472971 | I10: 88382985 | J10: 95153575 | K10: 101548310
A11: Asset Management | G11: 0 | H11: 0
A12: Finance | C12: 2339163 | D12: 1805125.65 | E12: =437.16+1971030.38+118027.18 -> 2089494.72 | F12: 182495414 | G12: 197577728 | H12: 197577728 | I12: 225496078 | J12: 240822736 | K12: 255782026
A13: Fleet Management | G13: 0 | H13: 0
A14: Human Resources | G14: 0 | H14: 0
A15: Information Technology | G15: 2942363 | H15: 2942363
A16: Legal Services | G16: 0
A17: Marketing, Customer Relations, Publicity and Media Co-ordination | G17: 0
A18: Property Services
A19: Risk Management
A20: Security Services
A21: Supply Chain Management
A22: Valuation Service
A23: Internal audit | C23: =SUM(C24:C24) -> 0 | D23: 0 | E23: 0 | G23: 0 | H23: 0 | I23: 0 | J23: 0 | K23: 0
A24: Governance Function
A25: Community and public safety | C25: =C26+C48+C54+C63+C66 -> 8615375.73 | D25: 7442868.526 | E25: 8615375.05 | F25: 100878885 | G25: 127051268 | H25: 127051268 | I25: 109595767 | J25: 117854257 | K25: 125702197
A26: Community and social services | C26: =SUM(C27:C47) -> 0 | D26: =SUM(D27:D47) -> 0 | E26: 0 | F26: 0 | G26: 0 | H26: 0 | I26: 0 | J26: 0 | K26: 0
A27: Aged Care
A28: Agricultural
A29: Animal Care and Diseases
A30: Cemeteries, Funeral Parlours and Crematoriums
A31: Child Care Facilities
A32: Community Halls and Facilities
A33: Consumer Protection
A34: Cultural Matters
A35: Disaster Management
A36: Education
A37: Indigenous and Customary Law
A38: Industrial Promotion
A39: Language Policy
A40: Libraries and Archives
A41: Literacy Programmes
A42: Media Services
A43: Museums and Art Galleries
A44: Population Development
A45: Provincial Cultural Matters
A46: Theatres
A47: Zoo's
A48: Sport and recreation | C48: =SUM(C49:C53) -> 0 | D48: =SUM(D49:D53) -> 0 | E48: 0 | F48: 0 | G48: 0 | H48: 0 | I48: 0 | J48: 0 | K48: 0
A49: Beaches and Jetties
A50: Casinos, Racing, Gambling, Wagering
A51: Community Parks (including Nurseries)
A52: Recreational Facilities
A53: Sports Grounds and Stadiums
A54: Public safety | C54: =SUM(C55:C62) -> 4473843 | D54: 3864976.641 | E54: 4473842.74 | F54: 6229598 | G54: 6232499 | H54: 6232499 | I54: 7737991 | J54: 8202270 | K54: 8694406
A55: Civil Defence
A56: Cleansing
A57: Control of Public Nuisances
A58: Fencing and Fences
A59: Fire Fighting and Protection | C59: 4473843 | D59: 3864976.641 | E59: 4473842.74 | F59: 6229598 | G59: 6232499 | H59: 6232499 | I59: 7737991 | J59: 8202270 | K59: 8694406
A60: Licensing and Control of Animals
A61: Police Forces, Traffic and Street Parking Control
A62: Pounds
A63: Housing | C63: =SUM(C64:C65) -> 0 | D63: =SUM(D64:D65) -> 0 | E63: 0 | F63: 19718601 | G63: 45888083 | H63: 45888083 | I63: 21220369 | J63: 22844164 | K63: 24376623
A64: Housing | F64: 19718601 | G64: 45888083 | H64: 45888083 | I64: 21220369 | J64: 22844164 | K64: 24376623
A65: Informal Settlements
A66: Health | C66: =SUM(C67:C73) -> 4141532.73 | D66: =SUM(D67:D73) -> 3577891.885 | E66: 4141532.31 | F66: 74930686 | G66: 74930686 | H66: 74930686 | I66: 80637407 | J66: 86807823 | K66: 92631168
A67: Ambulance
A68: Health Services | C68: 4141532.73 | D68: 3577891.885 | E68: =4139537.73+1994.58 -> 4141532.31 | F68: 74930686 | G68: 74930686 | H68: 74930686 | I68: 80637407 | J68: 86807823 | K68: 92631168
A69: Laboratory Services
A70: Food Control
A71: Health Surveillance and Prevention of Communicable Diseases including immunizations
A72: Vector Control
A73: Chemical Safety
A74: Economic and environmental services | C74: =C75+C86+C91 -> 10774 | D74: 8789.718508 | E74: 10174.4 | F74: 25032001 | G74: 61484645 | H74: 61484645 | I74: 54906380 | J74: 56065662 | K74: 59680658
A75: Planning and development | C75: =SUM(C76:C85) -> 10774 | D75: =SUM(D76:D85) -> 8789.718508 | E75: 10174.4 | F75: 21919000 | G75: 58371644 | H75: 58371644 | I75: 51942380 | J75: 52938662 | K75: 56372658
A76: Billboards
A77: Corporate Wide Strategic Planning (IDPs, LEDs)
A78: Central City Improvement District
A79: Development Facilitation
A80: Economic Development/Planning | C80: 10774 | F80: 2446000 | G80: 13254809 | H80: 13254809 | I80: 3085000 | J80: 0 | K80: 0
A81: Regional Planning and Development | G81: 0 | H81: 0
A82: Town Planning, Building Regulations and Enforcement, and City Engineer | G82: 0 | H82: 0
A83: Project Management Unit | F83: 19473000 | G83: 19473000 | H83: 19473000 | I83: 21270900 | J83: 23241250 | K83: 24683050
A84: Provincial Planning
A85: Support to Local Municipalities | D85: 8789.718508 | E85: 10174.4 | G85: 25643835 | H85: 25643835 | I85: 27586480 | J85: 29697412 | K85: 31689608
A86: Road transport | C86: =SUM(C87:C90) -> 0 | D86: 0 | E86: 0 | F86: 3113001 | G86: 3113001 | H86: 3113001 | I86: 2964000 | J86: 3127000 | K86: 3308000
A87: Public Transport | F87: 3113001 | G87: 3113001 | H87: 3113001 | I87: 2964000 | J87: 3127000 | K87: 3308000
A88: Road and Traffic Regulation
A89: Roads
A90: Taxi Ranks
A91: Environmental protection | C91: =SUM(C92:C97) -> 0 | D91: =SUM(D92:D97) -> 0 | E91: 0 | F91: 0 | G91: 0 | H91: 0 | I91: 0 | J91: 0 | K91: 0
A92: Biodiversity and Landscape
A93: Coastal Protection
A94: Indigenous Forests
A95: Nature Conservation
A96: Pollution Control
A97: Soil Conservation
A98: Trading services | C98: =C99+C103+C107+C112 -> 1174579256 | D98: =D99+D103+D107+D112 -> 1318139723 | E98: 1525791843 | F98: 1661896512 | G98: 1768435819 | H98: 1768435819 | I98: 1670430271 | J98: 1828564435 | K98: =K99+K103+K107+K112 -> 1886048303
A99: Energy sources | C99: =SUM(C100:C102) -> 0 | D99: =SUM(D100:D102) -> 0 | E99: 0 | F99: 0 | G99: 0 | H99: 0 | I99: 0 | J99: 0 | K99: 0
A100: Electricity
A101: Street Lighting and Signal Systems
A102: Nonelectric Energy
A103: Water management | C103: =SUM(C104:C106) -> 869683283.7 | D103: =SUM(D104:D106) -> 1085936514 | E103: 1257008681 | F103: 1498192617 | G103: 1604655683 | H103: 1604655683 | I103: 1522479974 | J103: 1671737117 | K103: 1719811343
A104: Water Treatment
A105: Water Distribution | C105: =870714069-1030785.26999998 -> 869683283.7 | D105: 1085936514 | E105: =4815032.13+415773096.26+836420553 -> 1257008681 | F105: 1498192617 | G105: 1604655683 | H105: 1604655683 | I105: 1522479974 | J105: 1671737117 | K105: 1719811343
A106: Water Storage
A107: Waste water management | C107: =SUM(C108:C111) -> 303986474 | D107: =SUM(D108:D111) -> 231417488.6 | E107: 267873663.3 | F107: 157738861 | G107: 157812324 | H107: 157812324 | I107: 140540930 | J107: 148973389 | K107: 157911795
A108: Public Toilets
A109: Sewerage | C109: 303986474 | D109: 231417488.6 | E109: 267873663.3 | F109: 157738861 | G109: 157812324 | H109: 157812324 | I109: 140540930 | J109: 148973389 | K109: 157911795
A110: Storm Water Management
A111: Waste Water Treatment
A112: Waste management | C112: =SUM(C113:C116) -> 909498 | D112: =SUM(D113:D116) -> 785720.0768 | E112: 909497.88 | F112: 5965034 | G112: 5967812 | H112: 5967812 | I112: 7409367 | J112: 7853929 | K112: 8325165
A113: Recycling
A114: Solid Waste Disposal (Landfill Sites) | C114: 909498 | D114: 785720.0768 | E114: 909497.88 | F114: 5965034 | G114: 5967812 | H114: 5967812 | I114: 7409367 | J114: 7853929 | K114: 8325165
A115: Solid Waste Removal
A116: Street Cleaning
A117: Other | C117: =SUM(C118:C123) -> 0 | D117: =SUM(D118:D123) -> 0 | E117: 0 | F117: 0 | G117: 0 | H117: 0 | I117: 0 | J117: 0 | K117: 0
A118: Abattoirs
A119: Air Transport
A120: Forestry
A121: Licensing and Regulation
A122: Markets
A123: Tourism
A124: ="Total "&A4 -> Total Revenue - Functional | B124: 2 | C124: =C5+C25+C74+C98+C117 -> 1514682637 | D124: 1710368691 | E124: 1979810297 | F124: 2095724450 | G124: 2255739680 | H124: 2255739680 | I124: 2165787782 | J124: 2356736001 | K124: 2448262799
A126: Expenditure - Functional
A127: =A5 -> Municipal governance and administration | C127: =C128+C131+C145 -> 469591359.8 | D127: 397244234.2 | E127: 429294882.4 | F127: 537598606.5 | G127: 516344349 | H127: 516344349 | I127: 457142119 | J127: 490710633.8 | K127: 510328036.8
A128: Executive and council | C128: =SUM(C129:C130) -> 168232844.8 | D128: 134705493.6 | E128: 145921214.3 | F128: 139207119 | G128: 97097110 | H128: 97097110 | I128: 83125195.23 | J128: 89565927.31 | K128: 91752045.5
A129: Mayor and Council | D129: 19560538.54 | E129: 21112851.93 | F129: 23951754 | G129: 28236145 | H129: 28236145 | I129: 31161333.12 | J129: 31618783.34 | K129: 32095562.33
A130: Municipal Manager, Town Secretary and Chief Executive | C130: =613022675-444789830.2 -> 168232844.8 | D130: =115631881.029359-486926.000000238 -> 115144955 | E130: =129597611.73+1200625-728497.310000122-5261377.06000018 -> 124808362.4 | F130: 115255365 | G130: 68860965 | H130: 68860965 | I130: 51963862.1 | J130: 57947143.97 | K130: 59656483.17
A131: Finance and administration | C131: =SUM(C132:C144) -> 301358515 | D131: 262538740.7 | E131: 283373668.1 | F131: 389005507.5 | G131: 409971544 | H131: 409971544 | I131: 362285668.1 | J131: 389086601.9 | K131: 406203309
A132: Administrative and Corporate Support | D132: 113441611.9 | E132: 122444274.7 | F132: 83028151 | G132: 118425591 | H132: 118425591 | I132: 98381453 | J132: 109630701 | K132: 113414646.6
A133: Asset Management | F133: 8698134 | G133: 8764831 | H133: 8764831 | I133: 9410367.937 | J133: 9706412.869 | K133: 10022329.99
A134: Finance | C134: 301358515 | D134: 104132107.1 | E134: 112395972.8 | F134: 118199020 | G134: 119736617 | H134: 119736617 | I134: 117568497.7 | J134: 125674849.4 | K134: 131444342.6
A135: Fleet Management
A136: Human Resources | D136: 20986433.83 | E136: 22651905.47 | F136: 96361713.5 | G136: 86127890 | H136: 86127890 | I136: 51675395.33 | J136: 54447744.79 | K136: 57230686.82
A137: Information Technology | D137: 23978587.85 | E137: 25881515.15 | F137: 52387688 | G137: 49785701 | H137: 49785701 | I137: 52701358.84 | J137: 55308685.31 | K137: 58786278.89
A138: Legal Services | F138: 4317561 | G138: 3086496 | H138: 3086496 | I138: 4084660.352 | J138: 5751389.669 | K138: 5922077.833
A139: Marketing, Customer Relations, Publicity and Media Co-ordination | F139: 9846293 | G139: 8244101 | H139: 8244101 | I139: 10993279.56 | J139: 10585319 | K139: 10891656.02
A140: Property Services | G140: 0 | H140: 0
A141: Risk Management | F141: 1141290 | G141: 802979 | H141: 802979 | I141: 1064558.417 | J141: 1088602.866 | K141: 1113710.015
A142: Security Services | G142: 0 | H142: 0
A143: Supply Chain Management | F143: 15025657 | G143: 14997338 | H143: 14997338 | I143: 16406097.01 | J143: 16892896.95 | K143: 17377580.34
A144: Valuation Service
A145: Internal audit | C145: =SUM(C146:C146) -> 0 | D145: 0 | E145: 0 | F145: 9385980 | G145: 9275695 | H145: 9275695 | I145: 11731255.7 | J145: 12058104.62 | K145: 12372682.31
A146: Governance Function | F146: 9385980 | G146: 9275695 | H146: 9275695 | I146: 11731255.7 | J146: 12058104.62 | K146: 12372682.31
A147: Community and public safety | C147: =C148+C170+C176+C185+C188 -> 216315829 | D147: 73919666.53 | E147: 79785889.88 | F147: 119429895.5 | G147: 136632324.4 | H147: 136632324.4 | I147: 130383428.7 | J147: 141412163.3 | K147: 146381066
A148: Community and social services | C148: =SUM(C149:C169) -> 7751704 | D148: =SUM(D149:D169) -> 9453455.134 | E148: 10203676.04 | F148: 8023577 | G148: 6878545 | H148: 6878545 | I148: 9423081.347 | J148: 10311258.56 | K148: 10768722.97
A149: Aged Care
A150: Agricultural
A151: Animal Care and Diseases
A152: Cemeteries, Funeral Parlours and Crematoriums
A153: Child Care Facilities
A154: Community Halls and Facilities
A155: Consumer Protection
A156: Cultural Matters
A157: Disaster Management | C157: 7751704 | D157: 9453455.134 | E157: 10203676.04 | F157: 8023577 | G157: 6878545 | H157: 6878545 | I157: 9423081.347 | J157: 10311258.56 | K157: 10768722.97
A158: Education
A159: =A37 -> Indigenous and Customary Law
A160: Industrial Promotion
A161: Language Policy
A162: Libraries and Archives
A163: Literacy Programmes
A164: Media Services
A165: Museums and Art Galleries
A166: Population Development
A167: Provincial Cultural Matters
A168: Theatres
A169: Zoo's
A170: Sport and recreation | C170: =SUM(C171:C175) -> 0 | D170: 0 | E170: 0 | F170: 0 | G170: 0 | H170: 0 | I170: 0 | J170: 0 | K170: 0
A171: Beaches and Jetties
A172: Casinos, Racing, Gambling, Wagering
A173: Community Parks (including Nurseries)
A174: Recreational Facilities
A175: Sports Grounds and Stadiums
A176: Public safety | C176: =SUM(C177:C184) -> 46509729 | D176: 32232834.09 | E176: 34790813.76 | F176: 62482923 | G176: 61766719 | H176: 61766719 | I176: 67175569.28 | J176: 74313133.49 | K176: 76973979.84
A177: Civil Defence
A178: Cleansing
A179: =A57 -> Control of Public Nuisances
A180: Fencing and Fences
A181: Fire Fighting and Protection | C181: 46509729 | D181: 32232834.09 | E181: 34790813.76 | F181: 62482923 | G181: 61766719 | H181: 61766719 | I181: 67175569.28 | J181: 74313133.49 | K181: 76973979.84
A182: Licensing and Control of Animals
A183: Police Forces, Traffic and Street Parking Control
A184: Pounds
A185: =A63 -> Housing | C185: =SUM(C186:C187) -> 31341556 | D185: 2948401.544 | E185: 3182385.04 | F185: 1525576 | G185: 27824616.39 | H185: 27824616.39 | I185: 2083886.14 | J185: 2165422.865 | K185: 2239407.166
A186: Housing | C186: 31341556 | D186: 2948401.544 | E186: 3182385.04 | F186: 1525576 | G186: 27824616.39 | H186: 27824616.39 | I186: 2083886.14 | J186: 2165422.865 | K186: 2239407.166
A187: Informal Settlements
A188: Health | C188: =SUM(C189:C195) -> 130712840 | D188: =SUM(D189:D195) -> 29284975.76 | E188: 31609015.04 | F188: 47397819.5 | G188: 40162444 | H188: 40162444 | I188: 51700891.92 | J188: 54622348.42 | K188: 56398956.06
A189: Ambulance
A190: Health Services | C190: 130712840 | D190: 29284975.76 | E190: 31609015.04 | F190: 47397819.5 | G190: 40162444 | H190: 40162444 | I190: 51700891.92 | J190: 54622348.42 | K190: 56398956.06
A191: Laboratory Services
A192: Food Control
A193: Health Surveillance and Prevention of Communicable Diseases including immunizations
A194: Vector Control
A195: Chemical Safety
A196: Economic and environmental services | C196: =C197+C208+C213 -> 54149738 | D196: 43447898.71 | E196: 46895899.62 | F196: 59548940 | G196: 119976319 | H196: 119976319 | I196: 120731196.3 | J196: 118316041.3 | K196: 122049930.2
A197: Planning and development | C197: =SUM(C198:C207) -> 54149738 | D197: =SUM(D198:D207) -> 42735740.02 | E197: 46127224.42 | F197: 55136807 | G197: 115493260 | H197: 115493260 | I197: 117122934.9 | J197: 114118334.2 | K197: 117635359.8
A198: Billboards
A199: Corporate Wide Strategic Planning (IDPs, LEDs)
A200: Central City Improvement District
A201: Development Facilitation
... 53 more rows

Sheet A3-FinPerf V
A1: =muni&" - "&Approve2 -> DC12 Amathole - Table A3 Budgeted Financial Performance (revenue and expenditure by municipal vote)
A2: =Vdesc -> Vote Description | B2: =head27 -> Ref | C2: =head1b -> 2016/17 | D2: =head1A -> 2017/18 | E2: =Head1 -> 2018/19 | F2: =Head2 -> Current Year 2019/20 | I2: =Head3 -> 2020/21 Medium Term Revenue & Expenditure Framework | L2: =Head4 -> LTFS
A3: R thousand | C3: =Head5 -> Audited Outcome | D3: =Head5 -> Audited Outcome | E3: =Head5 -> Audited Outcome | F3: =Head6 -> Original Budget | G3: =Head7 -> Adjusted Budget | H3: =Head8 -> Full Year Forecast | I3: =Head9 -> Budget Year 2020/21 | J3: =Head10 -> Budget Year +1 2021/22 | K3: =Head11 -> Budget Year +2 2022/23 | L3: =Head12 -> Forecast 2023/24 | M3: =Head13 -> Forecast 2024/25 | N3: =Head14 -> Forecast 2025/26 | O3: =Head15 -> Forecast 2026/27 | P3: =Head16 -> Forecast 2027/28 | Q3: =Head17 -> Forecast 2028/29 | R3: =Head18 -> Forecast 2029/30 | S3: =Head19 -> Forecast 2030/31 | T3: =Head20 -> Forecast 2031/32 | U3: =Head21 -> Forecast 2032/33 | V3: =Head22 -> Forecast 2033/34 | W3: =Head23 -> Forecast 2034/35
A4: Revenue by Vote | B4: 1
A5: =A3A!A5 -> Vote 1 - Legislative & Executive Support Services | C5: =A3A!C5 -> 2227.72 | D5: =A3A!D5 -> 0 | E5: =A3A!E5 -> 0 | F5: =A3A!F5 -> 0 | G5: =A3A!G5 -> 0 | H5: =A3A!H5 -> 0 | I5: =A3A!I5 -> 0 | J5: =A3A!J5 -> 0 | K5: =A3A!K5 -> 0
A6: =A3A!A12 -> Vote 2 - Strategic Management | C6: =A3A!C12 -> 10174.4 | D6: =A3A!D12 -> 8385.392633 | E6: =A3A!E12 -> 10174.4 | F6: =A3A!F12 -> 25634181 | G6: =A3A!G12 -> 25643835 | H6: =A3A!H12 -> 25643835 | I6: =A3A!I12 -> 27586480 | J6: =A3A!J12 -> 29697412 | K6: =A3A!K12 -> 31689608
A7: =A3A!A21 -> Vote 3 - Corporate Services | C7: =A3A!C21 -> 249668.95 | D7: =A3A!D21 -> 207604.6234 | E7: =A3A!E21 -> 251896.67 | F7: =A3A!F21 -> 84012571 | G7: =A3A!G21 -> 85415334 | H7: =A3A!H21 -> 85415334 | I7: =A3A!I21 -> 88382985 | J7: =A3A!J21 -> 95153575 | K7: =A3A!K21 -> 101548310
A8: =A3A!A30 -> Vote 4 - Budget & Treasury | C8: =A3A!C30 -> 19666594 | D8: =A3A!D30 -> 1722090.112 | E8: =A3A!E30 -> 2089494.72 | F8: =A3A!F30 -> 182495414 | G8: =A3A!G30 -> 197577728 | H8: =A3A!H30 -> 197577728 | I8: =A3A!I30 -> 225496078 | J8: =A3A!J30 -> 240822736 | K8: =A3A!K30 -> 255782026
A9: =A3A!A41 -> Vote 5 - Engineering Department | C9: =A3A!C41 -> 473464903.6 | D9: =A3A!D41 -> 4718456.421 | E9: =A3A!E41 -> 5725130.01 | F9: =A3A!F41 -> 1075384093 | G9: =A3A!G41 -> 1161402180 | H9: =A3A!H41 -> 1161402180 | I9: =A3A!I41 -> 1091565836 | J9: =A3A!J41 -> 1213423525 | K9: =A3A!K41 -> 1252569794
A10: =A3A!A49 -> Vote 6 - Health & Protection Department | C10: =A3A!C49 -> 8615375.05 | D10: =A3A!D49 -> 7100497.569 | E10: =A3A!E49 -> 8615375.05 | F10: =A3A!F49 -> 81160284 | G10: =A3A!G49 -> 81163185 | H10: =A3A!H49 -> 81163185 | I10: =A3A!I49 -> 88375398 | J10: =A3A!J49 -> 95010093 | K10: =A3A!K49 -> 101325574
A11: =A3A!A63 -> Vote 7 - Water & Sanitation Management | C11: =A3A!C63 -> 415773096.3 | D11: =A3A!D63 -> 0 | E11: =A3A!E63 -> 0 | F11: =A3A!F63 -> 0 | G11: =A3A!G63 -> 0 | H11: =A3A!H63 -> 0 | I11: =A3A!I63 -> 0 | J11: =A3A!J63 -> 0 | K11: =A3A!K63 -> 0
A12: =A3A!A68 -> Vote 8 - Water Services | C12: =A3A!C68 -> 267873663.3 | D12: =A3A!D68 -> 1032015195 | E12: =A3A!E68 -> 1252193649 | F12: =A3A!F68 -> 451359559 | G12: =A3A!G68 -> 471806515 | H12: =A3A!H68 -> 471806515 | I12: =A3A!I68 -> 462558405 | J12: =A3A!J68 -> 492535771 | K12: =A3A!K68 -> 503557764
A13: =A3A!A117 -> Vote 9 - Sanitation Services | C13: =A3A!C117 -> 0 | D13: =A3A!D117 -> 220772315.1 | E13: =A3A!E117 -> 267873663.3 | F13: =A3A!F117 -> 157738861 | G13: =A3A!G117 -> 157812324 | H13: =A3A!H117 -> 157812324 | I13: =A3A!I117 -> 140540930 | J13: =A3A!J117 -> 148973389 | K13: =A3A!K117 -> 157911795
A14: =A3A!A140 -> Vote 10 - Land Human Settlement & Economic Development | C14: =A3A!C140 -> 0 | D14: =A3A!D140 -> 0 | E14: =A3A!E140 -> 0 | F14: =A3A!F140 -> 22164601 | G14: =A3A!G140 -> 59142892 | H14: =A3A!H140 -> 59142892 | I14: =A3A!I140 -> 24305369 | J14: =A3A!J140 -> 22844164 | K14: =A3A!K140 -> 24376623
A15: =A3A!A145 -> Vote 11 - Municipal Management | C15: =A3A!C145 -> 329026934 | D15: =A3A!D145 -> 443824147.1 | E15: =A3A!E145 -> 443050914 | F15: =A3A!F145 -> 15774886 | G15: =A3A!G145 -> 15774886 | H15: =A3A!H145 -> 15774886 | I15: =A3A!I145 -> 16976301 | J15: =A3A!J145 -> 18275336 | K15: =A3A!K145 -> 19501305 | L15: =A5A!#REF! -> 
A16: =A3A!A158 -> Vote 12 - [NAME OF VOTE 12] | C16: =A3A!C158 -> 0 | D16: =A3A!D158 -> 0 | E16: =A3A!E158 -> 0 | F16: =A3A!F158 -> 0 | G16: =A3A!G158 -> 0 | H16: =A3A!H158 -> 0 | I16: =A3A!I158 -> 0 | J16: =A3A!J158 -> 0 | K16: =A3A!K158 -> 0 | L16: =A5A!L106 -> 0
A17: =A3A!A161 -> Vote 13 - [NAME OF VOTE 13] | C17: =A3A!C161 -> 0 | D17: =A3A!D161 -> 0 | E17: =A3A!E161 -> 0 | F17: =A3A!F161 -> 0 | G17: =A3A!G161 -> 0 | H17: =A3A!H161 -> 0 | I17: =A3A!I161 -> 0 | J17: =A3A!J161 -> 0 | K17: =A3A!K161 -> 0 | L17: =A5A!L117 -> 0
A18: =A3A!A163 -> Vote 14 - [NAME OF VOTE 14] | C18: =A3A!C163 -> 0 | D18: =A3A!D163 -> 0 | E18: =A3A!E163 -> 0 | F18: =A3A!F163 -> 0 | G18: =A3A!G163 -> 0 | H18: =A3A!H163 -> 0 | I18: =A3A!I163 -> 0 | J18: =A3A!J163 -> 0 | K18: =A3A!K163 -> 0 | L18: =A5A!#REF! -> 
A19: =A3A!A165 -> Vote 15 - [NAME OF VOTE 15] | C19: =A3A!C165 -> 0 | D19: =A3A!D165 -> 0 | E19: =A3A!E165 -> 0 | F19: =A3A!F165 -> 0 | G19: =A3A!G165 -> 0 | H19: =A3A!H165 -> 0 | I19: =A3A!I165 -> 0 | J19: =A3A!J165 -> 0 | K19: =A3A!K165 -> 0 | L19: =A5A!#REF! -> 
A20: Total Revenue by Vote | B20: 2 | C20: =SUM(C5:C19) -> 1514682637 | D20: =SUM(D5:D19) -> 1710368691 | E20: 1979810297 | F20: 2095724450 | G20: 2255738879 | H20: 2255738879 | I20: 2165787782 | J20: 2356736001 | K20: 2448262799
A22: Expenditure by Vote to be appropriated | B22: 1
A23: =A3A!A170 -> Vote 1 - Legislative & Executive Support Services | C23: =A3A!C170 -> 56562791.01 | D23: =A3A!D170 -> 0 | E23: =A3A!E170 -> 0 | F23: =A3A!F170 -> 0 | G23: =A3A!G170 -> 0 | H23: =A3A!H170 -> 0 | I23: =A3A!I170 -> 0 | J23: =A3A!J170 -> 0 | K23: =A3A!K170 -> 0
A24: =A3A!A177 -> Vote 2 - Strategic Management | C24: =A3A!C177 -> 54233284.61 | D24: =A3A!D177 -> 50043679.92 | E24: =A3A!E177 -> 54233284.61 | F24: =A3A!F177 -> 87081290 | G24: =A3A!G177 -> 83549547 | H24: =A3A!H177 -> 83549547 | I24: =A3A!I177 -> 91467317.76 | J24: =A3A!J177 -> 94050544.48 | K24: =A3A!K177 -> 98254624.43
A25: =A3A!A186 -> Vote 3 - Corporate Services | C25: =A3A!C186 -> 145096180.2 | D25: =A3A!D186 -> 186080505.3 | E25: =A3A!E186 -> 201658971.2 | F25: =A3A!F186 -> 237817785.5 | G25: =A3A!G186 -> 272698262 | H25: =A3A!H186 -> 272698262 | I25: =A3A!I186 -> 209376252.6 | J25: =A3A!J186 -> 224518946.9 | K25: =A3A!K186 -> 232242159.9
A26: =A3A!A195 -> Vote 4 - Budget & Treasury | C26: =A3A!C195 -> 117722113.8 | D26: =A3A!D195 -> 103713210.9 | E26: =A3A!E195 -> 112395972.8 | F26: =A3A!F195 -> 141922811 | G26: =A3A!G195 -> 143498786 | H26: =A3A!H195 -> 143498786 | I26: =A3A!I195 -> 143384962.6 | J26: =A3A!J195 -> 152274159.2 | K26: =A3A!K195 -> 158844252.9
A27: =A3A!A206 -> Vote 5 - Engineering Department | C27: =A3A!C206 -> 465851158.8 | D27: =A3A!D206 -> 310698534.5 | E27: =A3A!E206 -> 336709891.8 | F27: =A3A!F206 -> 117655185 | G27: =A3A!G206 -> 336707010 | H27: =A3A!H206 -> 336707010 | I27: =A3A!I206 -> 161645849.8 | J27: =A3A!J206 -> 136703859.1 | K27: =A3A!K206 -> 145095107.2
A28: =A3A!A214 -> Vote 6 - Health & Protection Department | C28: =A3A!C214 -> 76603504.84 | D28: =A3A!D214 -> 70685766.21 | E28: =A3A!E214 -> 76603504.84 | F28: =A3A!F214 -> 117904319.5 | G28: =A3A!G214 -> 108807708 | H28: =A3A!H214 -> 108807708 | I28: =A3A!I214 -> 128299542.6 | J28: =A3A!J214 -> 139246740.5 | K28: =A3A!K214 -> 144141658.9
A29: =A3A!A228 -> Vote 7 - Water & Sanitation Management | C29: =A3A!C228 -> 23390719.55 | D29: =A3A!D228 -> 0 | E29: =A3A!E228 -> 0 | F29: =A3A!F228 -> 56778114 | G29: =A3A!G228 -> 51196551 | H29: =A3A!H228 -> 51196551 | I29: =A3A!I228 -> 62755596.53 | J29: =A3A!J228 -> 66590473.15 | K29: =A3A!K228 -> 69674649.04
A30: =A3A!A233 -> Vote 8 - Water Services | C30: =A3A!C233 -> 428024358.3 | D30: =A3A!D233 -> 337588706.8 | E30: =A3A!E233 -> 365851281.2 | F30: =A3A!F233 -> 481904885 | G30: =A3A!G233 -> 518311315 | H30: =A3A!H233 -> 518311315 | I30: =A3A!I233 -> 571704183.2 | J30: =A3A!J233 -> 619140197.8 | K30: =A3A!K233 -> 660524869.4
A31: =A3A!A282 -> Vote 9 - Sanitation Services | C31: =A3A!C282 -> 87845378.87 | D31: =A3A!D282 -> 394958818 | E31: =A3A!E282 -> 428024358.3 | F31: =A3A!F282 -> 162287121 | G31: =A3A!G282 -> 184040744 | H31: =A3A!H282 -> 184040744 | I31: =A3A!I282 -> 187964717.1 | J31: =A3A!J282 -> 204245154.2 | K31: =A3A!K282 -> 213389622.7
A32: =A3A!A305 -> Vote 10 - Land Human Settlement & Economic Development | C32: =A3A!C305 -> 0 | D32: =A3A!D305 -> 45910721.4 | E32: =A3A!E305 -> 49754319.12 | F32: =A3A!F305 -> 57905240 | G32: =A3A!G305 -> 89712967 | H32: =A3A!H305 -> 89712967 | I32: =A3A!I305 -> 59382827.15 | J32: =A3A!J305 -> 53716590.16 | K32: =A3A!K305 -> 55125659.38
A33: =A3A!A310 -> Vote 11 - Municipal Management | C33: =A3A!C310 -> 0 | D33: =A3A!D310 -> 53095912.64 | E33: =A3A!E310 -> 51297262.38 | F33: =A3A!F310 -> 42467615 | G33: =A3A!G310 -> 44517311 | H33: =A3A!H310 -> 44517311 | I33: =A3A!I310 -> 43285068.74 | J33: =A3A!J310 -> 50687101.28 | K33: =A3A!K310 -> 52295769.17 | L33: =A3A!L311 -> 0
A34: =A3A!A323 -> Vote 12 - [NAME OF VOTE 12] | C34: =A3A!C323 -> 0 | D34: =A3A!D323 -> 0 | E34: =A3A!E323 -> 0 | F34: =A3A!F323 -> 0 | G34: =A3A!G323 -> 0 | H34: =A3A!H323 -> 0 | I34: =A3A!I323 -> 0 | J34: =A3A!J323 -> 0 | K34: =A3A!K323 -> 0 | L34: =A3A!L324 -> 0
A35: =A3A!A326 -> Vote 13 - [NAME OF VOTE 13] | C35: =A3A!C326 -> 0 | D35: =A3A!D326 -> 0 | E35: =A3A!E326 -> 0 | F35: =A3A!F326 -> 0 | G35: =A3A!G326 -> 0 | H35: =A3A!H326 -> 0 | I35: =A3A!I326 -> 0 | J35: =A3A!J326 -> 0 | K35: =A3A!K326 -> 0 | L35: =A3A!L327 -> 0
A36: =A3A!A328 -> Vote 14 - [NAME OF VOTE 14] | C36: =A3A!C328 -> 0 | D36: =A3A!D328 -> 0 | E36: =A3A!E328 -> 0 | F36: =A3A!F328 -> 0 | G36: =A3A!G328 -> 0 | H36: =A3A!H328 -> 0 | I36: =A3A!I328 -> 0 | J36: =A3A!J328 -> 0 | K36: =A3A!K328 -> 0 | L36: =A3A!L329 -> 0
A37: =A3A!A330 -> Vote 15 - [NAME OF VOTE 15] | C37: =A3A!C330 -> 0 | D37: =A3A!D330 -> 0 | E37: =A3A!E330 -> 0 | F37: =A3A!F330 -> 0 | G37: =A3A!G330 -> 0 | H37: =A3A!H330 -> 0 | I37: =A3A!I330 -> 0 | J37: =A3A!J330 -> 0 | K37: =A3A!K330 -> 0 | L37: =A3A!L331 -> 0
A38: Total Expenditure by Vote | B38: 2 | C38: =SUM(C23:C37) -> 1455329490 | D38: =SUM(D23:D37) -> 1552775856 | E38: 1676528846 | F38: 1503724366 | G38: 1833040201 | H38: 1833040201 | I38: 1659266318 | J38: 1741173767 | K38: 1829588373 | L38: =SUM(L23:L29) -> 0 | M38: 0 | N38: 0 | O38: 0 | P38: 0 | Q38: 0 | R38: 0 | S38: 0 | T38: 0 | U38: 0 | V38: 0 | W38: 0
A39: =result -> Surplus/(Deficit) for the year | B39: 2 | C39: =C20-C38 -> 59353147.28 | D39: 157592835.7 | E39: 303281451.1 | F39: 592000084 | G39: 422698678 | H39: 422698678 | I39: 506521463.9 | J39: 615562234.2 | K39: 618674426 | L39: 0 | M39: 0 | N39: 0 | O39: 0 | P39: 0 | Q39: 0 | R39: 0 | S39: 0 | T39: 0 | U39: 0 | V39: 0 | W39: 0
A40: =head27a -> References
A41: 1. Insert 'Vote'; e.g. department, if different to functional classification structure
A42: 2. Must reconcile to Budgeted Financial Performance (revenue and expenditure)
A43: 3. Assign share in 'associate' to relevant Vote
A45: ="check "&A39 -> check Surplus/(Deficit) for the year | C45: =C39-A3A!C334 -> 0 | D45: =D39-A3A!D334 -> 0 | E45: =E39-A3A!E334 -> 0 | F45: =F39-A3A!F334 -> 0 | G45: =G39-A3A!G334 -> 0 | H45: =H39-A3A!H334 -> 0 | I45: =I39-A3A!I334 -> 0 | J45: =J39-A3A!J334 -> 0 | K45: =K39-A3A!K334 -> 0

Sheet A3A
A1: =muni&" - "&Approve2&"A" -> DC12 Amathole - Table A3 Budgeted Financial Performance (revenue and expenditure by municipal vote)A
A2: =Vdesc -> Vote Description | B2: =head27 -> Ref | C2: =head1b -> 2016/17 | D2: =head1A -> 2017/18 | E2: =Head1 -> 2018/19 | F2: =Head2 -> Current Year 2019/20 | I2: =Head3 -> 2020/21 Medium Term Revenue & Expenditure Framework | L2: =Head4 -> LTFS
A3: R thousand | C3: =Head5 -> Audited Outcome | D3: =Head5 -> Audited Outcome | E3: =Head5 -> Audited Outcome | F3: =Head6 -> Original Budget | G3: =Head7 -> Adjusted Budget | H3: =Head8 -> Full Year Forecast | I3: =Head9 -> Budget Year 2020/21 | J3: =Head10 -> Budget Year +1 2021/22 | K3: =Head11 -> Budget Year +2 2022/23 | L3: =Head12 -> Forecast 2023/24 | M3: =Head13 -> Forecast 2024/25 | N3: =Head14 -> Forecast 2025/26 | O3: =Head15 -> Forecast 2026/27 | P3: =Head16 -> Forecast 2027/28 | Q3: =Head17 -> Forecast 2028/29 | R3: =Head18 -> Forecast 2029/30 | S3: =Head19 -> Forecast 2030/31 | T3: =Head20 -> Forecast 2031/32 | U3: =Head21 -> Forecast 2032/33 | V3: =Head22 -> Forecast 2033/34 | W3: =Head23 -> Forecast 2034/35
A4: Revenue by Vote | B4: 1
A5: ='Org structure'!A2 -> Vote 1 - Legislative & Executive Support Services | C5: =SUM(C6:C11) -> 2227.72 | D5: 0 | E5: 0 | F5: 0 | G5: 0 | H5: 0 | I5: 0 | J5: 0 | K5: 0
A6: ='Org structure'!E3 -> 1,1 - Council General | C6: 2227.72
A7: ='Org structure'!E4 -> 1,2 - Mayoral Committee
A8: ='Org structure'!E5 -> 1,3 - Executive Support Services
A9: ='Org structure'!E6 -> 1,4 - Legislative Support Services
A10: ='Org structure'!E7 -> 1,5 - Director: Leg&executive Support Services
A11: ='Org structure'!E8 -> 1,6 - Council Support
A12: ='Org structure'!A3 -> Vote 2 - Strategic Management | C12: =SUM(C13:C20) -> 10174.4 | D12: 8385.392633 | E12: 10174.4 | F12: 25634181 | G12: 25643835 | H12: 25643835 | I12: 27586480 | J12: 29697412 | K12: 31689608
A13: ='Org structure'!E10 -> 2,1 - Risk Services
A14: ='Org structure'!E11 -> 2,2 - Municipal Support Unit | C14: 10174.4 | D14: 8385.392633 | E14: 10174.4
A15: ='Org structure'!E12 -> 2,3 - Strategic Planning | F15: 25634181 | G15: 25643835 | H15: 25643835 | I15: 27586480 | J15: 29697412 | K15: 31689608
A16: ='Org structure'!E13 -> 2,4 - Information Management Unit
A17: ='Org structure'!E14 -> 2,5 - Communications & Customer Care
A18: ='Org structure'!E15 -> 2,6 - Planning Monitoring & Evaluation
A19: ='Org structure'!E16 -> 2,7 - Speaker Support Services_(old)
A20: ='Org structure'!E17 -> 2,8 - Travel Desk & Igr
A21: ='Org structure'!A4 -> Vote 3 - Corporate Services | C21: =SUM(C22:C29) -> 249668.95 | D21: 207604.6234 | E21: 251896.67 | F21: 84012571 | G21: 85415334 | H21: 85415334 | I21: 88382985 | J21: 95153575 | K21: 101548310
A22: ='Org structure'!E19 -> 3,1 - Administration | C22: 249668.95 | D22: 205768.6128 | E22: 249668.95 | F22: 84012571 | G22: 82472971 | H22: 82472971 | I22: 88382985 | J22: 95153575 | K22: 101548310
A23: ='Org structure'!E20 -> 3,2 - Human Resources | G23: 2942363 | H23: 2942363
A24: ='Org structure'!E21 -> 3,3 - Council General | D24: 1836.010662 | E24: 2227.72
A25: ='Org structure'!E22 -> 3,4 - Mayoral Committee
A26: ='Org structure'!E23 -> 3,5 - Executive Support Services
A27: ='Org structure'!E24 -> 3,6 - Legislative Support Services
A28: ='Org structure'!E25 -> 3,7 - Director: Leg&executive Support Services
A29: ='Org structure'!E26 -> 3,8 - Council Support
A30: ='Org structure'!A5 -> Vote 4 - Budget & Treasury | C30: =SUM(C31:C40) -> 19666594 | D30: 1722090.112 | E30: 2089494.72 | F30: 182495414 | G30: 197577728 | H30: 197577728 | I30: 225496078 | J30: 240822736 | K30: 255782026
A31: ='Org structure'!E28 -> 4,1 - Chief Financial Officer | C31: 19666594 | D31: 360.2923262 | E31: 437.16 | F31: 106494517 | G31: 106494517 | H31: 106494517 | I31: 114528978 | J31: 123466276 | K31: 131664932
A32: ='Org structure'!E29 -> 4,2 - Accounting And Reporting | D32: 1624455.853 | E32: 1971030.38
A33: ='Org structure'!E30 -> 4,3 - Asset Management
A34: ='Org structure'!E31 -> 4,4 - Supply Chain Management
A35: ='Org structure'!E32 -> 4,5 - Budgeting
A36: ='Org structure'!E33 -> 4,6 - Credit Control
A37: ='Org structure'!E34 -> 4,7 - Billing
A38: ='Org structure'!E35 -> 4,8 - Revenue Data Management
A39: ='Org structure'!E36 -> 4,9 - Receipting & Reconciliaton | D39: 97273.96658 | E39: 118027.18 | F39: 76000897 | G39: 91083211 | H39: 91083211 | I39: 110967100 | J39: 117356460 | K39: 124117094
A40: ='Org structure'!E37 -> 4.10 - Expenditure
A41: ='Org structure'!A6 -> Vote 5 - Engineering Department | C41: =SUM(C42:C48) -> 473464903.6 | D41: 4718456.421 | E41: 5725130.01 | F41: 1075384093 | G41: 1161402180 | H41: 1161402180 | I41: 1091565836 | J41: 1213423525 | K41: 1252569794
A42: ='Org structure'!E39 -> 5,1 - Engineering Services | C42: =479201813.3-5736909.72000003 -> 473464903.6 | D42: 3968384.863 | E42: 4815032.13 | F42: 1046833058 | G42: 1132848367 | H42: 1132848367 | I42: 1059921569 | J42: 1179201346 | K42: 1216253579
A43: ='Org structure'!E40 -> 5,2 - Building And Services Planning | D43: 494.4994869 | E43: 600
A44: ='Org structure'!E41 -> 5,3 - Solid Waste Site | D44: 749577.0583 | E44: 909497.88 | F44: 5965034 | G44: 5967812 | H44: 5967812 | I44: 7409367 | J44: 7853929 | K44: 8325165
A45: ='Org structure'!E42 -> 5,4 - Managment Of Building & Services Plannin | G45: 0 | H45: 0
A46: ='Org structure'!E43 -> 5,5 - Transport Unit | F46: 3113001 | G46: 3113001 | H46: 3113001 | I46: 2964000 | J46: 3127000 | K46: 3308000
A47: ='Org structure'!E44 -> 5,6 - Water Service Authority | G47: 0 | H47: 0
A48: ='Org structure'!E45 -> 5,7 - Project Management Unit | F48: 19473000 | G48: 19473000 | H48: 19473000 | I48: 21270900 | J48: 23241250 | K48: 24683050
A49: ='Org structure'!A7 -> Vote 6 - Health & Protection Department | C49: =SUM(C50:C62) -> 8615375.05 | D49: =SUM(D50:D62) -> 7100497.569 | E49: 8615375.05 | F49: 81160284 | G49: 81163185 | H49: 81163185 | I49: 88375398 | J49: 95010093 | K49: 101325574
A50: ='Org structure'!E47 -> 6,1 - Community Services | F50: 74930686 | G50: 74930686 | H50: 74930686 | I50: 80637407 | J50: 86807823 | K50: 92631168
A51: ='Org structure'!E48 -> 6,2 - Disaster Management | G51: 0 | H51: 0
A52: ='Org structure'!E49 -> 6,3 - Community Safety Services | G52: 0 | H52: 0
A53: ='Org structure'!E50 -> 6,4 - Municipal Health (adm) | C53: 4139537.73 | D53: 3411665.472 | E53: 4139537.73 | G53: 0 | H53: 0
A54: ='Org structure'!E51 -> 6,5 - Fire Services | C54: 4473842.74 | D54: 3687188.232 | E54: 4473842.74 | F54: 6229598 | G54: 6232499 | H54: 6232499 | I54: 7737991 | J54: 8202270 | K54: 8694406
A55: ='Org structure'!E52 -> 6,6 - Mhs In Mbhashe 1516 | C55: 1994.58 | D55: 1643.864644 | E55: 1994.58
A56: ='Org structure'!E53 -> 6,7 - Mhs In Mnquma 1516
A57: ='Org structure'!E54 -> 6,8 - Mhs In Great Kei 1516
A58: ='Org structure'!E55 -> 6,9 - Mhs In Amahlathi
A59: ='Org structure'!E56 -> 6,10 - Mhs Devolution
A60: ='Org structure'!E57 -> 6,11 - Mhs In Nkonkobe
A61: ='Org structure'!E58 -> 6,12 - Mhs In Nxuba
A62: ='Org structure'!E59 -> 6,13 - Mhs In Ngqushwa 1516
A63: ='Org structure'!A8 -> Vote 7 - Water & Sanitation Management | C63: =SUM(C64:C67) -> 415773096.3 | D63: 0 | E63: 0 | F63: 0 | G63: 0 | H63: 0 | I63: 0 | J63: 0 | K63: 0
A64: ='Org structure'!E61 -> 7,1 - Management Of O&m Water & Sanitation | C64: 415773096.3
A65: ='Org structure'!E62 -> 7,2 - Mechanical & Electrical
A66: ='Org structure'!E63 -> 7,3 - Water Conservation & Demand Mngt
A67: ='Org structure'!E64 -> 7,4 - Water Care Unit
A68: ='Org structure'!A9 -> Vote 8 - Water Services | C68: =SUM(C69:C116) -> 267873663.3 | D68: =SUM(D69:D116) -> 1032015195 | E68: 1252193649 | F68: 451359559 | G68: 471806515 | H68: 471806515 | I68: 462558405 | J68: 492535771 | K68: 503557764
A69: ='Org structure'!E66 -> 8,1 - Dutywa Water Scheme | C69: 267873663.3 | D69: 1032015195 | E69: 1252193649 | F69: 4234404 | G69: 4236377 | H69: 4236377 | I69: 3917358 | J69: 4152399 | K69: 4401543
A70: ='Org structure'!E67 -> 8,2 - Willowvale Water Scheme | G70: 0 | H70: 0
A71: ='Org structure'!E68 -> 8,3 - Elliotdale Water Scheme | G71: 0 | H71: 0
A72: ='Org structure'!E69 -> 8,4 - Qwaninga Water Scheme | G72: 0 | H72: 0
A73: ='Org structure'!E70 -> 8,5 - Mendu Water Scheme | G73: 0 | H73: 0
A74: ='Org structure'!E71 -> 8,6 - Dwesa Water Scheme | G74: 0 | H74: 0
A75: ='Org structure'!E72 -> 8,7 - Cwebe Water Scheme | G75: 0 | H75: 0
A76: ='Org structure'!E73 -> 8,8 - Qolora Water Scheme | G76: 0 | H76: 0
A77: ='Org structure'!E74 -> 8,9 - Butterworth Water Scheme | F77: 66455446 | G77: 69028912.18 | H77: 69028912.18 | I77: 64320879 | J77: 68509925 | K77: 72697849
A78: ='Org structure'!E75 -> 8,10 - Tynira Water Scheme Old | G78: 0 | H78: 0
A79: ='Org structure'!E76 -> 8,11 - Kotana & Ehlobo Water Scheme | G79: 0 | H79: 0
A80: ='Org structure'!E77 -> 8,12 - Ngqamakwe Water Scheme | F80: 1187981 | G80: 1188534 | H80: 1188534 | I80: 1099032 | J80: 1164974 | K80: 1234872
A81: ='Org structure'!E78 -> 8,13 - Haga Haga Water Scheme | F81: 73799754 | G81: 74376296.29 | H81: 74376296.29 | I81: 68753455 | J81: 72900005 | K81: 77244127
A82: ='Org structure'!E79 -> 8,14 - Kei Mouth Water Scheme | F82: 260031 | G82: 260152 | H82: 260152 | I82: 240561 | J82: 254995 | K82: 270295
A83: ='Org structure'!E80 -> 8,15 - Morgan Bay Water Scheme | F83: 4719865 | G83: 4722063 | H83: 4722063 | I83: 4366470 | J83: 4628458 | K83: 4906166
A84: ='Org structure'!E81 -> 8,16 - Chintsa Water Scheme | F84: 769891 | G84: 770249 | H84: 770249 | I84: 712247 | J84: 754982 | K84: 800281
A85: ='Org structure'!E82 -> 8,17 - Kei Bridge/komga Water Scheme | F85: 38733141 | G85: 38751180 | H85: 38751180 | I85: 35833036 | J85: 37983018 | K85: 40261999
A86: ='Org structure'!E83 -> 8,18 - Kei Road & Amabele Water Scheme | F86: 4600326 | G86: 8075691.306 | H86: 8075691.306 | I86: 14292427 | J86: 15560572 | K86: 16776611
A87: ='Org structure'!E84 -> 8,19 - Stutterheim Water Scheme | F87: 83188414 | G87: 83227157 | H87: 83227157 | I87: 76959765 | J87: 81577351 | K87: 86471992
A88: ='Org structure'!E85 -> 8,20 - Cathcart Water Scheme | F88: 3953375 | G88: 7089827.646 | H88: 7089827.646 | I88: 7194487 | J88: 7997819 | K88: 8719519
A89: ='Org structure'!E86 -> 8,21 - Seymour Water Scheme | F89: 7784938 | G89: 9253370.918 | H89: 9253370.918 | I89: 8686695 | J89: 9336621 | K89: -9980045
A90: ='Org structure'!E87 -> 8,22 - Fort Beaufort Water Scheme | F90: 35456064 | G90: 35784090.18 | H90: 35784090.18 | I90: 33004395 | J90: 35005655 | K90: 37130364
A91: ='Org structure'!E88 -> 8,23 - Alice Water Scheme | F91: 25374962 | G91: 29202391.27 | H91: 29202391.27 | I91: 27337471 | J91: 29351282 | K91: 31461367
A92: ='Org structure'!E89 -> 8,24 - Hogsback Water Scheme | F92: 560170 | G92: 560431 | H92: 560431 | I92: 518228 | J92: 549321 | K92: 582280
A93: ='Org structure'!E90 -> 8,25 - Adelaide Water Scheme | F93: 41128390 | G93: 42302512.65 | H93: 42302512.65 | I93: 38931076 | J93: 41403111 | K93: 43990079
A94: ='Org structure'!E91 -> 8,26 - Bedford Water Scheme | F94: 3364944 | G94: 5695908.61 | H94: 5695908.61 | I94: 5883702 | J94: 6500733 | K94: 7086487
A95: ='Org structure'!E92 -> 8,27 - Laing Water Scheme | G95: 0 | H95: 0
A96: ='Org structure'!E93 -> 8,28 - Dabi Water Scheme Old | G96: 0 | H96: 0
A97: ='Org structure'!E94 -> 8,29 - Glenmore Water Scheme | G97: 0 | H97: 0
A98: ='Org structure'!E95 -> 8,30 - Peddie Regional Water Scheme | F98: 37586777 | G98: 39072208.94 | H98: 39072208.94 | I98: 53669193 | J98: 57056346 | K98: 60582882
A99: ='Org structure'!E96 -> 8,31 - Mncwasa Water Treatment Works | G99: 0 | H99: 0
A100: ='Org structure'!E97 -> 8,32 - Sandile Water Scheme | G100: 0 | H100: 0
A101: ='Org structure'!E98 -> 8,33 - Debe Neck Water Scheme | G101: 0 | H101: 0
A102: ='Org structure'!E99 -> 8,34 - Gagatyume (incl Middeldrift) Water Schem | G102: 0 | H102: 0
A103: ='Org structure'!E100 -> 8,35 - Masincedane Water Scheme | G103: 0 | H103: 0
A104: ='Org structure'!E101 -> 8,36 - Upper Myameni Water Scheme | F104: 18200686 | G104: 18209162 | H104: 18209162 | I104: 16837928 | J104: 17848204 | K104: 18919096
A105: ='Org structure'!E102 -> 8,37 - Rooikrantz Water Scheme
A106: ='Org structure'!E103 -> 8,38 - Ekuphumleni Phase 2 Water Scheme
A107: ='Org structure'!E104 -> 8,39 - Ehlobo Water Supply Scheme Old
A108: ='Org structure'!E105 -> 8,40 - Nqadu Water Supply Scheme
A109: ='Org structure'!E106 -> 8,41 - Mbhashe North Regional Water Supply Sche
A110: ='Org structure'!E107 -> 8,42 - Communal Package Plants
A111: ='Org structure'!E108 -> 8,43 - Centane Water
A112: ='Org structure'!E109 -> 8,44 - Borehole Schemes
A113: ='Org structure'!E110 -> 8,45 - Toleni Water Scheme Ex Dws
A114: ='Org structure'!E111 -> 8,46 - Borehole Schemes Ex Dws
A115: ='Org structure'!E112 -> 8,47 - Ibeka Water Supply
A116: ='Org structure'!E113 -> 8,48 - Xhora Water Supply
A117: ='Org structure'!A10 -> Vote 9 - Sanitation Services | C117: =SUM(C118:C139) -> 0 | D117: =SUM(D118:D139) -> 220772315.1 | E117: 267873663.3 | F117: 157738861 | G117: 157812324 | H117: 157812324 | I117: 140540930 | J117: 148973389 | K117: 157911795
A118: ='Org structure'!E115 -> 9,1 - Dutywa Sewerage | D118: 220772315.1 | E118: 267873663.3 | F118: 14488904 | G118: 14495653 | H118: 14495653 | I118: 13404062 | J118: 14208306 | K118: 15060805
A119: ='Org structure'!E116 -> 9,2 - Butterworth Sewerage | F119: 5288773 | G119: 5291236 | H119: 5291236 | I119: 4892781 | J119: 5186348 | K119: 5497529
A120: ='Org structure'!E117 -> 9,3 - Kei Mouth Sewerage | F120: 11182286 | G120: 11187493 | H120: 11187493 | I120: 4957629 | J120: 5255087 | K120: 5570392
A121: ='Org structure'!E118 -> 9,4 - Chintsa East Sewerage | G121: 0 | H121: 0
A122: ='Org structure'!E119 -> 9,5 - Komga Sewerage | F122: 29202907 | G122: 29216507 | H122: 29216507 | I122: 27016369 | J122: 28637352 | K122: 30355594
A123: ='Org structure'!E120 -> 9,6 - Keiskammahoek Sewerage | F123: 18833713 | G123: 18842485 | H123: 18842485 | I123: 17423559 | J123: 18468973 | K123: 19577112
A124: ='Org structure'!E121 -> 9,7 - Kei Road Sewerage | G124: 0 | H124: 0
A125: ='Org structure'!E122 -> 9,8 - Cathcart Sewerage | F125: 4274244 | G125: 4276235 | H125: 4276235 | I125: 3954215 | J125: 4191468 | K125: 4442956
A126: ='Org structure'!E123 -> 9,9 - Stutterheim Sewerage | F126: 29840351 | G126: 29854248 | H126: 29854248 | I126: 27606085 | J126: 29262451 | K126: 31018198
A127: ='Org structure'!E124 -> 9,10 - Seymour Sewerage | F127: 3604384 | G127: 3606062 | H127: 3606062 | I127: 3334509 | J127: 3534580 | K127: 3746655
A128: ='Org structure'!E125 -> 9,11 - Alice Sewerage | F128: 10096232 | G128: 10100934 | H128: 10100934 | I128: 9340287 | J128: 9900704 | K128: 10494746
A129: ='Org structure'!E126 -> 9,12 - Middledrift Sewerage | G129: 0 | H129: 0
A130: ='Org structure'!E127 -> 9,13 - Fort Beaufort Sewerage | F130: 3291292 | G130: 3292825 | H130: 3292825 | I130: 3044860 | J130: 3227551 | K130: 3421204
A131: ='Org structure'!E128 -> 9,14 - Adelaide Sewerage | F131: 11465013 | G131: 11470353 | H131: 11470353 | I131: 10606581 | J131: 11242976 | K131: 11917555
A132: ='Org structure'!E129 -> 9,15 - Bedford Sewerage | F132: 7539297 | G132: 7542808 | H132: 7542808 | I132: 6974800 | J132: 7393288 | K132: 7836885
A133: ='Org structure'!E130 -> 9,16 - Peddie Sewerage | F133: 8631465 | G133: 8635485 | H133: 8635485 | I133: 7985193 | J133: 8464305 | K133: 8972164
A134: ='Org structure'!E131 -> 9,17 - Tanker Services
A135: ='Org structure'!E132 -> 9,18 - Ngqamakwe Sanitation
A136: ='Org structure'!E133 -> 9,19 - Rural Sanitation Schemes
A137: ='Org structure'!E134 -> 9,20 - Centane Sanitation
A138: ='Org structure'!E135 -> 9,21 - Amabele Sanitation
A139: ='Org structure'!E136 -> 9,22 - Morgan Bay Sewerage
A140: ='Org structure'!A11 -> Vote 10 - Land Human Settlement & Economic Development | C140: =SUM(C141:C144) -> 0 | D140: 0 | E140: 0 | F140: 22164601 | G140: 59142892 | H140: 59142892 | I140: 24305369 | J140: 22844164 | K140: 24376623
A141: ='Org structure'!E138 -> 10,1 - Land Administration & Housing | F141: 19718601 | G141: 45888083 | H141: 45888083 | I141: 21220369 | J141: 22844164 | K141: 24376623
A142: ='Org structure'!E139 -> 10,2 - Economic Development | F142: 2446000 | G142: 13254809 | H142: 13254809
A143: ='Org structure'!E140 -> 10,3 - Director Land Admin Housing & Eco Dev
A144: ='Org structure'!E141 -> 10,4 - EPWP | I144: 3085000 | J144: 0 | K144: 0
A145: ='Org structure'!A12 -> Vote 11 - Municipal Management | C145: =SUM(C146:C157) -> 329026934 | D145: =SUM(D146:D157) -> 443824147.1 | E145: 443050914 | F145: 15774886 | G145: 15774886 | H145: 15774886 | I145: 16976301 | J145: 18275336 | K145: 19501305
A146: ='Org structure'!E143 -> 11,1 - Municipal Manager | C146: 329026934 | D146: =368299645.09276+75524502 -> 443824147.1 | E146: =329026934.01+117848731-3824751.05999994 -> 443050914 | F146: 15774886 | G146: 15774886 | H146: 15774886 | I146: 16976301 | J146: 18275336 | K146: 19501305
A147: ='Org structure'!E144 -> 11,2 - Legal Services
A148: ='Org structure'!E145 -> 11,3 - Projects Investment & Stakeholder Mngt
A149: ='Org structure'!E146 -> 11,4 - Internal Audit
A150: ='Org structure'!E147 -> 11,5 - Policy Development And Research Unit
A151: ='Org structure'!E148 -> 11,6 - Amahlathi Satellite Office
A152: ='Org structure'!E149 -> 11,7 - Great Kei Satellite Office
A153: ='Org structure'!E150 -> 11,8 - Mbhashe Satellite Office
A154: ='Org structure'!E151 -> 11,9 - Mnquma Satellite Office
A155: ='Org structure'!E152 -> 11,10 - Ngqushwa Satelite Office
A156: ='Org structure'!E153 -> 11,11 - Nkonkobe Satellite Office
A157: ='Org structure'!E154 -> 11,12 - Nxuba Satellite Office
A158: ='Org structure'!A13 -> Vote 12 - [NAME OF VOTE 12] | C158: =SUM(C159:C160) -> 0 | D158: 0 | E158: 0 | F158: 0 | G158: 0 | H158: 0 | I158: 0 | J158: 0 | K158: 0
A159: ='Org structure'!E156 -> 12,1 - Municipal Manager
A160: ='Org structure'!E157 -> 12,2 - Legal Services
A161: ='Org structure'!A14 -> Vote 13 - [NAME OF VOTE 13] | C161: =SUM(C162:C162) -> 0 | D161: 0 | E161: 0 | F161: 0 | G161: 0 | H161: 0 | I161: 0 | J161: 0 | K161: 0
A162: ='Org structure'!E169 -> 13.1 - [Name of sub-vote]
A163: ='Org structure'!A15 -> Vote 14 - [NAME OF VOTE 14] | C163: =SUM(C164:C164) -> 0 | D163: 0 | E163: 0 | F163: 0 | G163: 0 | H163: 0 | I163: 0 | J163: 0 | K163: 0
A164: ='Org structure'!E180 -> 14.1 - [Name of sub-vote]
A165: ='Org structure'!A16 -> Vote 15 - [NAME OF VOTE 15] | C165: =SUM(C166:C166) -> 0 | D165: 0 | E165: 0 | F165: 0 | G165: 0 | H165: 0 | I165: 0 | J165: 0 | K165: 0
A166: ='Org structure'!E191 -> 15.1 - [Name of sub-vote]
A167: Total Revenue by Vote | B167: 2 | C167: =C5+C12+C21+C30+C41+C49+C63+C68+C117+C140+C145+C158+C161+C163+C165 -> 1514682637 | D167: 1710368691 | E167: 1979810297 | F167: 2095724450 | G167: 2255738879 | H167: 2255738879 | I167: 2165787782 | J167: 2356736001 | K167: 2448262799 | L167: =SUM(#REF!) ->  | M167: =SUM(#REF!) ->  | N167: =SUM(#REF!) ->  | O167: =SUM(#REF!) ->  | P167: =SUM(#REF!) ->  | Q167: =SUM(#REF!) ->  | R167: =SUM(#REF!) ->  | S167: =SUM(#REF!) ->  | T167: =SUM(#REF!) ->  | U167: =SUM(#REF!) ->  | V167: =SUM(#REF!) ->  | W167: =SUM(#REF!) -> 
A169: Expenditure by Vote | B169: 1
A170: =A5 -> Vote 1 - Legislative & Executive Support Services | C170: =SUM(C171:C176) -> 56562791.01 | D170: 0 | E170: 0 | F170: 0 | G170: 0 | H170: 0 | I170: 0 | J170: 0 | K170: 0
A171: 1,1 - Council General | C171: 14837208.98
A172: 1,2 - Mayoral Committee | C172: 6275642.95
A173: 1,3 - Executive Support Services
A174: 1,4 - Legislative Support Services | C174: 35449939.08
A175: 1,5 - Director: Leg&executive Support Services
A176: 1,6 - Council Support
A177: Vote 2 - Strategic Management | C177: =SUM(C178:C185) -> 54233284.61 | D177: 50043679.92 | E177: 54233284.61 | F177: 87081290 | G177: 83549547 | H177: 83549547 | I177: 91467317.76 | J177: 94050544.48 | K177: 98254624.43
A178: 2,1 - Risk Services | F178: 1141290 | G178: 802979 | H178: 802979 | I178: 1064558.417 | J178: 1088602.866 | K178: 1113710.015
A179: 2,2 - Municipal Support Unit | C179: 6809142.42 | D179: 6283125.69 | E179: 6809142.42 | F179: 6299517 | G179: 5752108 | H179: 5752108 | I179: 8139309.738 | J179: 8340940.431 | K179: 8553278.324
A180: 2,3 - Strategic Planning | C180: 21542627.04 | D180: 19878425.95 | E180: 21542627.04 | F180: 9844245 | G180: 10870704 | H180: 10870704 | I180: 9121035.583 | J180: 9042526.876 | K180: 8976436.716
A181: 2,4 - Information Management Unit | C181: 25881515.15 | D181: 23882128.28 | E181: 25881515.15 | F181: 52387688 | G181: 49785701 | H181: 49785701 | I181: 52701358.84 | J181: 55308685.31 | K181: 58786278.89
A182: 2,5 - Communications & Customer Care | F182: 9846293 | G182: 8244101 | H182: 8244101 | I182: 10993279.56 | J182: 10585319 | K182: 10891656.02
A183: 2,6 - Planning Monitoring & Evaluation | F183: 3382002 | G183: 4233056 | H183: 4233056 | I183: 5444695.17 | J183: 5575318.724 | K183: 5712443.465
A184: 2,7 - Speaker Support Services_(old) | G184: 0 | H184: 0
A185: 2,8 - Travel Desk & Igr | F185: 4180255 | G185: 3860898 | H185: 3860898 | I185: 4003080.451 | J185: 4109151.266 | K185: 4220821.005
A186: Vote 3 - Corporate Services | C186: =SUM(C187:C194) -> 145096180.2 | D186: 186080505.3 | E186: 201658971.2 | F186: 237817785.5 | G186: 272698262 | H186: 272698262 | I186: 209376252.6 | J186: 224518946.9 | K186: 232242159.9
A187: 3,1 - Administration | C187: 122444274.7 | D187: 112985266.1 | E187: 122444274.7 | F187: 83028151 | G187: 116685555 | H187: 116685555 | I187: 96008719.04 | J187: 107199084.6 | K187: 110921394.5
A188: 3,2 - Human Resources | C188: 22651905.47 | D188: 20902010.91 | E188: 22651905.47 | F188: 96361713.5 | G188: 86127890 | H188: 86127890 | I188: 51675395.33 | J188: 54447744.79 | K188: 57230686.82
A189: 3,3 - Council General | D189: 13691011.75 | E189: 14837208.98 | F189: 14974883 | G189: 14285903 | H189: 14285903 | I189: 15143204.06 | J189: 15363901.86 | K189: 15591497.35
A190: 3,4 - Mayoral Committee | D190: 5790839.875 | E190: 6275642.95 | F190: 8976871 | G190: 8805577 | H190: 8805577 | I190: 7872938.089 | J190: 7880378.53 | K190: 7888316.03
A191: 3,5 - Executive Support Services | F191: 13525830 | G191: 14151366 | H191: 14151366 | I191: 15889994.2 | J191: 16370602.39 | K191: 16872437.48
A192: 3,6 - Legislative Support Services | D192: 32711376.73 | E192: 35449939.08 | F192: 7933299 | G192: 9649307 | H192: 9649307 | I192: 8697610.57 | J192: 8930170.311 | K192: 9175484.913
A193: 3,7 - Director: Leg&executive Support Services | F193: 5664032 | G193: 5279202 | H193: 5279202 | I193: 5943200.357 | J193: 5952561.446 | K193: 5946593.808
A194: 3,8 - Council Support | F194: 7353006 | G194: 17713462 | H194: 17713462 | I194: 8145190.977 | J194: 8374502.95 | K194: 8615748.949
A195: Vote 4 - Budget & Treasury | C195: =SUM(C196:C205) -> 117722113.8 | D195: 103713210.9 | E195: 112395972.8 | F195: 141922811 | G195: 143498786 | H195: 143498786 | I195: 143384962.6 | J195: 152274159.2 | K195: 158844252.9
A196: 4,1 - Chief Financial Officer | C196: 15527392.09 | D196: 9413188.745 | E196: 10201251.09 | F196: 33174224 | G196: 33753549 | H196: 33753549 | I196: 21811318.12 | J196: 26213800.39 | K196: 28483853.57
A197: 4,2 - Accounting And Reporting | C197: 13370328.88 | D197: 12337450.4 | E197: 13370328.88 | F197: 11483088 | G197: 15130212 | H197: 15130212 | I197: 11835192.23 | J197: 11921228.84 | K197: 12169784.93
A198: 4,3 - Asset Management | C198: 7183462.61 | D198: 6628529.069 | E198: 7183462.61 | F198: 8698134 | G198: 8764831 | H198: 8764831 | I198: 9410367.937 | J198: 9706412.869 | K198: 10022329.99
A199: 4,4 - Supply Chain Management | C199: 12290853 | D199: 11341365.69 | E199: 12290853 | F199: 15025657 | G199: 14997338 | H199: 14997338 | I199: 16406097.01 | J199: 16892896.95 | K199: 17377580.34
A200: 4,5 - Budgeting | C200: 3916294.06 | D200: 3613754.317 | E200: 3916294.06 | F200: 3989142 | G200: 4179095 | H200: 4179095 | I200: 5998751.434 | J200: 6161375.134 | K200: 6333037.61
A201: 4,6 - Credit Control | F201: 20161261 | G201: 17660067 | H201: 17660067 | I201: 21827447.6 | J201: 22875643.69 | K201: 23648702.27
... 138 more rows

Sheet A4-FinPerf RE
A1: =muni&" - "&Approve4 -> DC12 Amathole - Table A4 Budgeted Financial Performance (revenue and expenditure)
A2: =desc -> Description | B2: =head27 -> Ref | C2: =head1b -> 2016/17 | D2: =head1A -> 2017/18 | E2: =Head1 -> 2018/19 | F2: =Head2 -> Current Year 2019/20 | J2: =Head3 -> 2020/21 Medium Term Revenue & Expenditure Framework | M2: =Head4 -> LTFS
A3: R thousand | B3: 1 | C3: =Head5 -> Audited Outcome | D3: =Head5 -> Audited Outcome | E3: =Head5 -> Audited Outcome | F3: =Head6 -> Original Budget | G3: =Head7 -> Adjusted Budget | H3: =Head8 -> Full Year Forecast | I3: =Head5b -> Pre-audit outcome | J3: =Head9 -> Budget Year 2020/21 | K3: =Head10 -> Budget Year +1 2021/22 | L3: =Head11 -> Budget Year +2 2022/23 | M3: =Head12 -> Forecast 2023/24 | N3: =Head13 -> Forecast 2024/25 | O3: =Head14 -> Forecast 2025/26 | P3: =Head15 -> Forecast 2026/27 | Q3: =Head16 -> Forecast 2027/28 | R3: =Head17 -> Forecast 2028/29 | S3: =Head18 -> Forecast 2029/30 | T3: =Head19 -> Forecast 2030/31 | U3: =Head20 -> Forecast 2031/32 | V3: =Head21 -> Forecast 2032/33 | W3: =Head22 -> Forecast 2033/34 | X3: =Head23 -> Forecast 2034/35
A4: Revenue By Source
A5: Property rates | B5: 2 | C5: ='SA1'!C9 -> 0 | D5: ='SA1'!D9 -> 0 | E5: ='SA1'!E9 -> 0 | F5: ='SA1'!F9 -> 0 | G5: ='SA1'!G9 -> 0 | H5: ='SA1'!H9 -> 0 | I5: ='SA1'!I9 -> 0 | J5: ='SA1'!J9 -> 0 | K5: ='SA1'!K9 -> 0 | L5: ='SA1'!L9 -> 0
A6: Service charges - electricity revenue | B6: 2 | C6: ='SA1'!C15 -> 0 | D6: ='SA1'!D15 -> 0 | E6: ='SA1'!E15 -> 0 | F6: ='SA1'!F15 -> 0 | G6: ='SA1'!G15 -> 0 | H6: ='SA1'!H15 -> 0 | I6: ='SA1'!I15 -> 0 | J6: ='SA1'!J15 -> 0 | K6: ='SA1'!K15 -> 0 | L6: ='SA1'!L15 -> 0
A7: Service charges - water revenue | B7: 2 | C7: ='SA1'!C21 -> 150890951.3 | D7: ='SA1'!D21 -> 171527916.5 | E7: ='SA1'!E21 -> 254598657.8 | F7: ='SA1'!F21 -> 377199682 | G7: ='SA1'!G21 -> 397646638 | H7: ='SA1'!H21 -> 397646638 | I7: ='SA1'!I21 -> 397646638 | J7: ='SA1'!J21 -> 383511942 | K7: ='SA1'!K21 -> 408022656 | L7: ='SA1'!L21 -> 413820012 | Y7: =C7+C8+C9 -> 221794532
A8: Service charges - sanitation revenue | B8: 2 | C8: ='SA1'!C27 -> 66458689.78 | D8: ='SA1'!D27 -> 85873314.05 | E8: ='SA1'!E27 -> 104081785.7 | F8: ='SA1'!F27 -> 157738861 | G8: ='SA1'!G27 -> 157812324 | H8: ='SA1'!H27 -> 157812324 | I8: ='SA1'!I27 -> 157812324 | J8: ='SA1'!J27 -> 140540930 | K8: ='SA1'!K27 -> 148973389 | L8: ='SA1'!L27 -> 157911795 | Y8: 221794532
A9: Service charges - refuse revenue | B9: 2 | C9: ='SA1'!C34 -> 4444890.96 | D9: ='SA1'!D34 -> 4629359.74 | E9: ='SA1'!E34 -> 5584480.87 | F9: ='SA1'!F34 -> 5965034 | G9: ='SA1'!G34 -> 5967812 | H9: ='SA1'!H34 -> 5967812 | I9: ='SA1'!I34 -> 5967812 | J9: ='SA1'!J34 -> 7409367 | K9: ='SA1'!K34 -> 7853929 | L9: ='SA1'!L34 -> 8325165 | Y9: =Y7-Y8 -> 0
A11: Rental of facilities and equipment | C11: 335592.82 | D11: 308025.87 | E11: 267582.4 | F11: 2180377 | G11: 640777 | H11: 640777 | I11: 640777 | J11: 318452 | K11: 350297 | L11: 385327 | Y11: 1030785.27
A12: Interest earned - external investments | C12: 15566237.99 | D12: 6723310.67 | E12: 19321252.91 | F12: 5073193 | G12: 20155507 | H12: 20155507 | I12: 20155507 | J12: 17911009 | K12: 18717004 | L12: 19559270
A13: Interest earned - outstanding debtors | C13: 32914766 | D13: 11555028.6 | E13: 65599065.47 | F13: 70927704 | G13: 70927704 | H13: 70927704 | I13: 70927704 | J13: 93056091 | K13: 98639456 | L13: 104557824
A14: Dividends received | G14: 0 | H14: 0 | I14: 0
A15: Fines, penalties and forfeits | G15: 0 | H15: 0 | I15: 0
A16: Licences and permits | G16: 0 | H16: 0 | I16: 0
A17: Agency services | G17: 0 | H17: 0 | I17: 0
A18: Transfers and subsidies | C18: 741023363.9 | D18: 765904512 | E18: 788895275 | F18: 859258783 | G18: 1125274830 | H18: 1125274830 | I18: 1125274830 | J18: 959432133 | K18: 991670163 | L18: 1057558355
A19: Other revenue | B19: 2 | C19: ='SA1'!C49 -> 61564787.22 | D19: ='SA1'!D49 -> 2296094.94 | E19: ='SA1'!E49 -> 3575905.19 | F19: ='SA1'!F49 -> 74343451.04 | G19: ='SA1'!G49 -> 81828798.04 | H19: ='SA1'!H49 -> 81828798.04 | I19: ='SA1'!I49 -> 81828798.04 | J19: ='SA1'!J49 -> 72226392 | K19: ='SA1'!K49 -> 82017792 | L19: ='SA1'!L49 -> 82542505
A20: Gains | C20: 17577099 | D20: 75524502 | E20: 117848731
A21: Total Revenue (excluding capital transfers and contributions) | C21: =SUM(C5:C9)+SUM(C11:C20) -> 1090776379 | D21: =SUM(D5:D9)+SUM(D11:D20) -> 1124342064 | E21: 1359772736 | F21: 1552687085 | G21: 1860254390 | H21: 1860254390 | I21: 1860254390 | J21: 1674406316 | K21: 1756244686 | L21: 1844660253 | M21: =SUM(M5:M20) -> 0 | N21: 0 | O21: 0 | P21: 0 | Q21: 0 | R21: 0 | S21: 0 | T21: 0 | U21: 0 | V21: 0 | W21: 0 | X21: 0
A23: Expenditure By Type
A24: Employee related costs | B24: 2 | C24: ='SA1'!C67 -> 629007596.7 | D24: ='SA1'!D67 -> 749884204.8 | E24: ='SA1'!E67 -> 728885187.7 | F24: ='SA1'!F67 -> 737349635 | G24: ='SA1'!G67 -> 772479444 | H24: ='SA1'!H67 -> 772479444 | I24: ='SA1'!I67 -> 772479444 | J24: ='SA1'!J67 -> 786870285.1 | K24: ='SA1'!K67 -> 821578040.9 | L24: ='SA1'!L67 -> 852073685.8
A25: Remuneration of councillors | C25: 14428345.63 | D25: 15611612.03 | E25: 16496793.35 | F25: 16088743 | G25: 17058425.23 | H25: 17058425.23 | I25: 17058425.23 | J25: 14941985.69 | K25: 14941985.69 | L25: 14941985.69
A26: Debt impairment | B26: 3 | C26: 128945383 | D26: 162267044.7 | E26: 246777489 | F26: 159782210 | G26: 208910236 | H26: 208910236 | I26: 208910236 | J26: 221309141 | K26: 234587689 | L26: 248662951
A27: Depreciation & asset impairment | B27: 2 | C27: ='SA1'!C83 -> 111288592.5 | D27: ='SA1'!D83 -> 107269535.3 | E27: ='SA1'!E83 -> 129688666.7 | F27: ='SA1'!F83 -> 162566655 | G27: ='SA1'!G83 -> 162566655 | H27: ='SA1'!H83 -> 162566655 | I27: ='SA1'!I83 -> 162566655 | J27: ='SA1'!J83 -> 170317363 | K27: ='SA1'!K83 -> 187349108 | L27: ='SA1'!L83 -> 206084037
A28: Finance charges | C28: 24634956.28 | D28: 27598655.55 | E28: 26002680.57 | F28: 26354647 | G28: 13686089 | H28: 13686089 | I28: 13686089 | J28: 28139522.9 | K28: 30338874.58 | L28: 32441437.16
A29: Bulk purchases | B29: 2 | C29: ='SA1'!C88 -> 91620498 | D29: ='SA1'!D88 -> 92358696.04 | E29: ='SA1'!E88 -> 103846606 | F29: ='SA1'!F88 -> 97079429 | G29: ='SA1'!G88 -> 104000000 | H29: ='SA1'!H88 -> 104000000 | I29: ='SA1'!I88 -> 104000000 | J29: ='SA1'!J88 -> 120000000 | K29: ='SA1'!K88 -> 129936000 | L29: ='SA1'!L88 -> 140694700.8
A30: Other materials | B30: 8 | F30: 0 | G30: 235126525 | H30: 235126525 | I30: 235126525 | J30: 44533441.78 | K30: 12338832 | L30: 14938395
A31: Contracted services | C31: ='SA1'!C127 -> 37101241.9 | D31: ='SA1'!D127 -> 41939300.2 | E31: ='SA1'!E127 -> 37052367.19 | F31: ='SA1'!F127 -> 69422304 | G31: ='SA1'!G127 -> 71118199 | H31: ='SA1'!H127 -> 71118199 | I31: ='SA1'!I127 -> 71118199 | J31: ='SA1'!J127 -> 64826394.43 | K31: ='SA1'!K127 -> 89945034.34 | L31: ='SA1'!L127 -> 96503104.61
A32: Transfers and subsidies | C32: ='SA1'!C93 -> 169687378 | D32: ='SA1'!D93 -> 57873697 | E32: ='SA1'!E93 -> 7300000 | F32: ='SA1'!F93 -> 20357689 | G32: ='SA1'!G93 -> 19654217 | H32: ='SA1'!H93 -> 19654217 | I32: ='SA1'!I93 -> 19654217 | J32: ='SA1'!J93 -> 15000000 | K32: ='SA1'!K93 -> 10000000 | L32: ='SA1'!L93 -> 10000000
A33: Other expenditure | B33: 4, 5 | C33: ='SA1'!C157 -> 243289357 | D33: ='SA1'!D157 -> 297066595.1 | E33: ='SA1'!E157 -> 379298567.8 | F33: ='SA1'!F157 -> 214723055 | G33: ='SA1'!G157 -> 228440411 | H33: ='SA1'!H157 -> 228440411 | I33: ='SA1'!I157 -> 228440411 | J33: ='SA1'!J157 -> 193328184.2 | K33: ='SA1'!K157 -> 210158202.2 | L33: ='SA1'!L157 -> 213248075.9
A34: Losses | C34: 5326141 | D34: 906515.13 | E34: 1180488
A35: Total Expenditure | C35: =SUM(C24:C34) -> 1455329490 | D35: =SUM(D24:D34) -> 1552775856 | E35: 1676528846 | F35: 1503724367 | G35: 1833040201 | H35: 1833040201 | I35: 1833040201 | J35: 1659266318 | K35: 1741173767 | L35: 1829588373 | M35: =SUM(M24:M34) -> 0 | N35: 0 | O35: 0 | P35: 0 | Q35: 0 | R35: 0 | S35: 0 | T35: 0 | U35: 0 | V35: 0 | W35: 0 | X35: 0
A37: Surplus/(Deficit) | C37: =C21-C35 -> -364553111 | D37: -428433791.3 | E37: -316756109.9 | F37: 48962718.04 | G37: 27214188.81 | H37: 27214188.81 | I37: 27214188.81 | J37: 15139997.94 | K37: 15070919.23 | L37: 15071880 | M37: =M21+M35 -> 0 | N37: 0 | O37: 0 | P37: 0 | Q37: 0 | R37: 0 | S37: 0 | T37: 0 | U37: 0 | V37: 0 | W37: 0 | X37: 0
A38: Transfers and subsidies - capital (monetary allocations) (National / Provincial and District) | C38: 423906258.3 | D38: 586026627 | E38: 620037561 | F38: 543037365 | G38: 395484403 | H38: 395484403 | I38: 395484403 | J38: 491381466 | K38: 600491315 | L38: 603602546
A39: Transfers and subsidies - capital (monetary allocations) (National / Provincial Departmental Agencies, Households, Non-profit Institutions, Private Enterprises, Public Corporatons, Higher Educational Institutions) | B39: 6 | C39: ='SA1'!C76 -> 0
A40: Transfers and subsidies - capital (in-kind - all)
A41: Surplus/(Deficit) after capital transfers & contributions | C41: =SUM(C37:C40) -> 59353147.28 | D41: 157592835.7 | E41: 303281451.1 | F41: 592000083 | G41: 422698591.8 | H41: 422698591.8 | I41: 422698591.8 | J41: 506521463.9 | K41: 615562234.2 | L41: 618674426
A42: Taxation | D42: 486926 | E42: 1436626
A43: Surplus/(Deficit) after taxation | C43: =C41-C42 -> 59353147.28 | D43: 157105909.7 | E43: 301844825.1 | F43: 592000083 | G43: 422698591.8 | H43: 422698591.8 | I43: 422698591.8 | J43: 506521463.9 | K43: 615562234.2 | L43: 618674426
A44: Attributable to minorities
A45: Surplus/(Deficit) attributable to municipality | C45: =SUM(C43:C44) -> 59353147.28 | D45: 157105909.7 | E45: 301844825.1 | F45: 592000083 | G45: 422698591.8 | H45: 422698591.8 | I45: 422698591.8 | J45: 506521463.9 | K45: 615562234.2 | L45: 618674426
A46: Share of surplus/ (deficit) of associate | B46: 7
A47: =result -> Surplus/(Deficit) for the year | C47: =SUM(C45:C46) -> 59353147.28 | D47: 157105909.7 | E47: 301844825.1 | F47: 592000083 | G47: 422698591.8 | H47: 422698591.8 | I47: 422698591.8 | J47: 506521463.9 | K47: 615562234.2 | L47: 618674426 | M47: =M25+M46 -> 0 | N47: 0 | O47: 0 | P47: 0 | Q47: 0 | R47: 0 | S47: 0 | T47: 0 | U47: 0 | V47: 0 | W47: 0 | X47: 0
A48: =head27a -> References
A49: 1. Classifications are revenue sources and expenditure type
A50: 2. Detail to be provided in Table SA1
A51: 3. Previously described as 'bad or doubtful debts' - amounts shown should reflect the change in the provision for debt impairment
A52: 4. Expenditure type components previously shown under repairs and maintenance should be allocated back to the originating expenditure group/item; e.g. employee costs
A53: 5. Repairs & maintenance detailed in Table A9 and Table SA34c
A54: 6. Contributions are funds provided by external organisations to assist with infrastructure development; e.g. developer contributions (detail to be provided in Table SA1)
A55: 7. Equity method ( Includes Joint Ventures)
A56: 8. All materials not part of 'bulk' e.g road making materials, pipe, cable etc.
A57: check balance | C57: =C45-'A3-FinPerf V'!C39 -> 5.960464478e-08 | D57: =D45-'A3-FinPerf V'!D39 -> -486926 | E57: =E45-'A3-FinPerf V'!E39 -> -1436626 | F57: =F45-'A3-FinPerf V'!F39 -> -0.9565217495 | G57: =G45-'A3-FinPerf V'!G39 -> -86.19132161 | H57: =H45-'A3-FinPerf V'!H39 -> -86.19132161 | J57: =J45-'A3-FinPerf V'!I39 -> 4.768371582e-07 | K57: =K45-'A3-FinPerf V'!J39 -> 0 | L57: =L45-'A3-FinPerf V'!K39 -> 0
A59: Total revenue | C59: =C21+SUM(C38:C40) -> 1514682637 | D59: 1710368691 | E59: 1979810297 | F59: 2095724450 | G59: 2255738793 | H59: 2255738793 | I59: 2255738793 | J59: 2165787782 | K59: 2356736001 | L59: 2448262799

Sheet A5-Capex
A2: =Vdesc -> Vote Description | B2: =head27 -> Ref | C2: =head1b -> 2016/17 | D2: =head1A -> 2017/18 | E2: =Head1 -> 2018/19 | F2: =Head2 -> Current Year 2019/20 | J2: =Head3 -> 2020/21 Medium Term Revenue & Expenditure Framework
A3: R thousand | B3: 1 | C3: =Head5 -> Audited Outcome | D3: =Head5 -> Audited Outcome | E3: =Head5 -> Audited Outcome | F3: =Head6 -> Original Budget | G3: =Head7 -> Adjusted Budget | H3: =Head8 -> Full Year Forecast | I3: =Head5b -> Pre-audit outcome | J3: =Head9 -> Budget Year 2020/21 | K3: =Head10 -> Budget Year +1 2021/22 | L3: =Head11 -> Budget Year +2 2022/23
A4: Capital expenditure - Vote
A5: Multi-year expenditure to be appropriated | B5: 2
A6: =A5A!A6 -> Vote 1 - Legislative & Executive Support Services | C6: =A5A!C6 -> 0 | D6: =A5A!D6 -> 0 | E6: =A5A!E6 -> 0 | F6: =A5A!F6 -> 0 | G6: =A5A!G6 -> 0 | H6: =A5A!H6 -> 0 | I6: =A5A!I6 -> 0 | J6: =A5A!J6 -> 0 | K6: =A5A!K6 -> 0 | L6: =A5A!L6 -> 0
A7: =A5A!A13 -> Vote 2 - Strategic Management | C7: =A5A!C13 -> 0 | D7: =A5A!D13 -> 0 | E7: =A5A!E13 -> 0 | F7: =A5A!F13 -> 0 | G7: =A5A!G13 -> 0 | H7: =A5A!H13 -> 0 | I7: =A5A!I13 -> 0 | J7: =A5A!J13 -> 0 | K7: =A5A!K13 -> 0 | L7: =A5A!L13 -> 0
A8: =A5A!A22 -> Vote 3 - Corporate Services | C8: =A5A!C22 -> 0 | D8: =A5A!D22 -> 0 | E8: =A5A!E22 -> 0 | F8: =A5A!F22 -> 0 | G8: =A5A!G22 -> 0 | H8: =A5A!H22 -> 0 | I8: =A5A!I22 -> 0 | J8: =A5A!J22 -> 0 | K8: =A5A!K22 -> 0 | L8: =A5A!L22 -> 0
A9: =A5A!A31 -> Vote 4 - Budget & Treasury | C9: =A5A!C31 -> 0 | D9: =A5A!D31 -> 0 | E9: =A5A!E31 -> 0 | F9: =A5A!F31 -> 0 | G9: =A5A!G31 -> 0 | H9: =A5A!H31 -> 0 | I9: =A5A!I31 -> 0 | J9: =A5A!J31 -> 0 | K9: =A5A!K31 -> 0 | L9: =A5A!L31 -> 0
A10: =A5A!A42 -> Vote 5 - Engineering Department | C10: =A5A!C42 -> 99254444 | D10: =A5A!D42 -> 372229470 | E10: =A5A!E42 -> 321541192.5 | F10: =A5A!F42 -> 610693000 | G10: =A5A!G42 -> 560267619 | H10: =A5A!H42 -> 560267619 | I10: =A5A!I42 -> 560267619 | J10: =A5A!J42 -> 551343857.6 | K10: =A5A!K42 -> 673833750 | L10: =A5A!L42 -> 676953950
A11: =A5A!A50 -> Vote 6 - Health & Protection Department | C11: =A5A!C50 -> 0 | D11: =A5A!D50 -> 0 | E11: =A5A!E50 -> 0 | F11: =A5A!F50 -> 0 | G11: =A5A!G50 -> 0 | H11: =A5A!H50 -> 0 | I11: =A5A!I50 -> 0 | J11: =A5A!J50 -> 0 | K11: =A5A!K50 -> 0 | L11: =A5A!L50 -> 0
A12: =A5A!A64 -> Vote 7 - Water & Sanitation Management | C12: =A5A!C64 -> 0 | D12: =A5A!D64 -> 0 | E12: =A5A!E64 -> 0 | F12: =A5A!F64 -> 0 | G12: =A5A!G64 -> 0 | H12: =A5A!H64 -> 0 | I12: =A5A!I64 -> 0 | J12: =A5A!J64 -> 0 | K12: =A5A!K64 -> 0 | L12: =A5A!L64 -> 0
A13: =A5A!A69 -> Vote 8 - Water Services | C13: =A5A!C69 -> 0 | D13: =A5A!D69 -> 0 | E13: =A5A!E69 -> 0 | F13: =A5A!F69 -> 0 | G13: =A5A!G69 -> 0 | H13: =A5A!H69 -> 0 | I13: =A5A!I69 -> 0 | J13: =A5A!J69 -> 0 | K13: =A5A!K69 -> 0 | L13: =A5A!L69 -> 0
A14: =A5A!A80 -> Vote 9 - Sanitation Services | C14: =A5A!C80 -> 0 | D14: =A5A!D80 -> 0 | E14: =A5A!E80 -> 0 | F14: =A5A!F80 -> 0 | G14: =A5A!G80 -> 0 | H14: =A5A!H80 -> 0 | I14: =A5A!I80 -> 0 | J14: =A5A!J80 -> 0 | K14: =A5A!K80 -> 0 | L14: =A5A!L80 -> 0
A15: =A5A!A91 -> Vote 10 - Land Human Settlement & Economic Development | C15: =A5A!C91 -> 0 | D15: =A5A!D91 -> 0 | E15: =A5A!E91 -> 0 | F15: =A5A!F91 -> 0 | G15: =A5A!G91 -> 0 | H15: =A5A!H91 -> 0 | I15: =A5A!I91 -> 0 | J15: =A5A!J91 -> 0 | K15: =A5A!K91 -> 0 | L15: =A5A!L91 -> 0
A16: =A5A!A96 -> Vote 11 - Municipal Management | C16: =A5A!C96 -> 0 | D16: =A5A!D96 -> 0 | E16: =A5A!E96 -> 0 | F16: =A5A!F96 -> 0 | G16: =A5A!G96 -> 0 | H16: =A5A!H96 -> 0 | I16: =A5A!I96 -> 0 | J16: =A5A!J96 -> 0 | K16: =A5A!K96 -> 0 | L16: =A5A!L96 -> 0
A17: =A5A!A107 -> Vote 12 - [NAME OF VOTE 12] | C17: =A5A!C107 -> 0 | D17: =A5A!D107 -> 0 | E17: =A5A!E107 -> 0 | F17: =A5A!F107 -> 0 | G17: =A5A!G107 -> 0 | H17: =A5A!H107 -> 0 | I17: =A5A!I107 -> 0 | J17: =A5A!J107 -> 0 | K17: =A5A!K107 -> 0 | L17: =A5A!L107 -> 0
A18: =A5A!A118 -> Vote 13 - [NAME OF VOTE 13] | C18: =A5A!C118 -> 0 | D18: =A5A!D118 -> 0 | E18: =A5A!E118 -> 0 | F18: =A5A!F118 -> 0 | G18: =A5A!G118 -> 0 | H18: =A5A!H118 -> 0 | I18: =A5A!I118 -> 0 | J18: =A5A!J118 -> 0 | K18: =A5A!K118 -> 0 | L18: =A5A!L118 -> 0
A19: =A5A!A120 -> Vote 14 - [NAME OF VOTE 14] | C19: =A5A!C120 -> 0 | D19: =A5A!D120 -> 0 | E19: =A5A!E120 -> 0 | F19: =A5A!F120 -> 0 | G19: =A5A!G120 -> 0 | H19: =A5A!H120 -> 0 | I19: =A5A!I120 -> 0 | J19: =A5A!J120 -> 0 | K19: =A5A!K120 -> 0 | L19: =A5A!L120 -> 0
A20: =A5A!A122 -> Vote 15 - [NAME OF VOTE 15] | C20: =A5A!C122 -> 0 | D20: =A5A!D122 -> 0 | E20: =A5A!E122 -> 0 | F20: =A5A!F122 -> 0 | G20: =A5A!G122 -> 0 | H20: =A5A!H122 -> 0 | I20: =A5A!I122 -> 0 | J20: =A5A!J122 -> 0 | K20: =A5A!K122 -> 0 | L20: =A5A!L122 -> 0
A21: Capital multi-year expenditure sub-total | B21: 7 | C21: =SUM(C6:C20) -> 99254444 | D21: =SUM(D6:D20) -> 372229470 | E21: 321541192.5 | F21: 610693000 | G21: 560267619 | H21: =SUM(H6:H20) -> 560267619 | I21: 560267619 | J21: 551343857.6 | K21: 673833750 | L21: 676953950
A23: Single-year expenditure to be appropriated | B23: 2
A24: =A6 -> Vote 1 - Legislative & Executive Support Services | C24: =A5A!C128 -> 0 | D24: =A5A!D128 -> 0 | E24: =A5A!E128 -> 0 | F24: =A5A!F128 -> 0 | G24: =A5A!G128 -> 0 | H24: =A5A!H128 -> 0 | I24: =A5A!I128 -> 0 | J24: =A5A!J128 -> 0 | K24: =A5A!K128 -> 0 | L24: =A5A!L128 -> 0
A25: =A7 -> Vote 2 - Strategic Management | C25: =A5A!C135 -> 0 | D25: =A5A!D135 -> 585960 | E25: =A5A!E135 -> 200229.41 | F25: =A5A!F135 -> 47462720 | G25: =A5A!G135 -> 27011707.25 | H25: =A5A!H135 -> 27011707.25 | I25: =A5A!I135 -> 27011707.25 | J25: =A5A!J135 -> 15000000 | K25: =A5A!K135 -> 15000000 | L25: =A5A!L135 -> 15000000
A26: Vote 3 - Corporate Services | C26: =A5A!C144 -> 0 | D26: =A5A!D144 -> 0 | E26: =A5A!E144 -> 0 | F26: =A5A!F144 -> 0 | G26: =A5A!G144 -> 0 | H26: =A5A!H144 -> 0 | I26: =A5A!I144 -> 0 | J26: =A5A!J144 -> 0 | K26: =A5A!K144 -> 0 | L26: =A5A!L144 -> 0
A27: Vote 4 - Budget & Treasury | C27: =A5A!C153 -> 0 | D27: =A5A!D153 -> 0 | E27: =A5A!E153 -> 0 | F27: =A5A!F153 -> 0 | G27: =A5A!G153 -> 103369 | H27: =A5A!H153 -> 103369 | I27: =A5A!I153 -> 103369 | J27: =A5A!J153 -> 50000 | K27: =A5A!K153 -> 50000 | L27: =A5A!L153 -> 50000
A28: Vote 5 - Engineering Department | C28: =A5A!C164 -> 0 | D28: =A5A!D164 -> 0 | E28: =A5A!E164 -> 13617978 | F28: =A5A!F164 -> 0 | G28: =A5A!G164 -> 100000 | H28: =A5A!H164 -> 100000 | I28: =A5A!I164 -> 100000 | J28: =A5A!J164 -> 90000 | K28: =A5A!K164 -> 20920 | L28: =A5A!L164 -> 21880
A29: Vote 6 - Health & Protection Department | C29: =A5A!C172 -> 0 | D29: =A5A!D172 -> 0 | E29: =A5A!E172 -> 0 | F29: =A5A!F172 -> 1500000 | G29: =A5A!G172 -> 0 | H29: =A5A!H172 -> 0 | I29: =A5A!I172 -> 0 | J29: =A5A!J172 -> 0 | K29: =A5A!K172 -> 0 | L29: =A5A!L172 -> 0
A30: Vote 7 - Water & Sanitation Management | C30: =A5A!C186 -> 0 | D30: =A5A!D186 -> 213924 | E30: =A5A!E186 -> 115286.42 | F30: =A5A!F186 -> 0 | G30: =A5A!G186 -> 0 | H30: =A5A!H186 -> 0 | I30: =A5A!I186 -> 0 | J30: =A5A!J186 -> 0 | K30: =A5A!K186 -> 0 | L30: =A5A!L186 -> 0
A31: Vote 8 - Water Services | C31: =A5A!C191 -> 0 | D31: =A5A!D191 -> 0 | E31: =A5A!E191 -> 0 | F31: =A5A!F191 -> 0 | G31: =A5A!G191 -> 0 | H31: =A5A!H191 -> 0 | I31: =A5A!I191 -> 0 | J31: =A5A!J191 -> 0 | K31: =A5A!K191 -> 0 | L31: =A5A!L191 -> 0
A32: Vote 9 - Sanitation Services | C32: =A5A!C202 -> 0 | D32: =A5A!D202 -> 0 | E32: =A5A!E202 -> 0 | F32: =A5A!F202 -> 0 | G32: =A5A!G202 -> 0 | H32: =A5A!H202 -> 0 | I32: =A5A!I202 -> 0 | J32: =A5A!J202 -> 0 | K32: =A5A!K202 -> 0 | L32: =A5A!L202 -> 0
A33: Vote 10 - Land Human Settlement & Economic Development | C33: =A5A!C213 -> 0 | D33: =A5A!D213 -> 0 | E33: =A5A!E213 -> 145271 | F33: =A5A!F213 -> 0 | G33: =A5A!G213 -> 0 | H33: =A5A!H213 -> 0 | I33: =A5A!I213 -> 0 | J33: =A5A!J213 -> 0 | K33: =A5A!K213 -> 0 | L33: =A5A!L213 -> 0
A34: Vote 11 - Municipal Management | C34: =A5A!C218 -> 0 | D34: =A5A!D218 -> 0 | E34: =A5A!E218 -> 0 | F34: =A5A!F218 -> 0 | G34: =A5A!G218 -> 0 | H34: =A5A!H218 -> 0 | I34: =A5A!I218 -> 0 | J34: =A5A!J218 -> 0 | K34: =A5A!K218 -> 0 | L34: =A5A!L218 -> 0
A35: Vote 12 - [NAME OF VOTE 12] | C35: =A5A!C229 -> 0 | D35: =A5A!D229 -> 0 | E35: =A5A!E229 -> 0 | F35: =A5A!F229 -> 0 | G35: =A5A!G229 -> 0 | H35: =A5A!H229 -> 0 | I35: =A5A!I229 -> 0 | J35: =A5A!J229 -> 0 | K35: =A5A!K229 -> 0 | L35: =A5A!L229 -> 0
A36: Vote 13 - [NAME OF VOTE 13] | C36: =A5A!C240 -> 0 | D36: =A5A!D240 -> 0 | E36: =A5A!E240 -> 0 | F36: =A5A!F240 -> 0 | G36: =A5A!G240 -> 0 | H36: =A5A!H240 -> 0 | I36: =A5A!I240 -> 0 | J36: =A5A!J240 -> 0 | K36: =A5A!K240 -> 0 | L36: =A5A!L240 -> 0
A37: Vote 14 - [NAME OF VOTE 14] | C37: =A5A!C242 -> 0 | D37: =A5A!D242 -> 0 | E37: =A5A!E242 -> 0 | F37: =A5A!F242 -> 0 | G37: =A5A!G242 -> 0 | H37: =A5A!H242 -> 0 | I37: =A5A!I242 -> 0 | J37: =A5A!J242 -> 0 | K37: =A5A!K242 -> 0 | L37: =A5A!L242 -> 0
A38: =A20 -> Vote 15 - [NAME OF VOTE 15] | C38: =A5A!C244 -> 0 | D38: =A5A!D244 -> 0 | E38: =A5A!E244 -> 0 | F38: =A5A!F244 -> 0 | G38: =A5A!G244 -> 0 | H38: =A5A!H244 -> 0 | I38: =A5A!I244 -> 0 | J38: =A5A!J244 -> 0 | K38: =A5A!K244 -> 0 | L38: =A5A!L244 -> 0
A39: Capital single-year expenditure sub-total | C39: =SUM(C24:C38) -> 0 | D39: =SUM(D24:D38) -> 799884 | E39: 14078764.83 | F39: 48962720 | G39: 27215076.25 | H39: 27215076.25 | I39: 27215076.25 | J39: 15140000 | K39: 15070920 | L39: 15071880
A40: Total Capital Expenditure - Vote | C40: =C39+C21 -> 99254444 | D40: =D39+D21 -> 373029354 | E40: 335619957.3 | F40: 659655720 | G40: 587482695.3 | H40: 587482695.3 | I40: 587482695.3 | J40: 566483857.6 | K40: 688904670 | L40: 692025830
A42: Capital Expenditure - Functional
A43: Governance and administration | C43: =SUM(C44:C46) -> 99254444 | D43: =SUM(D44:D46) -> 585960 | E43: 200229.41 | F43: 47462720 | G43: 27115076.25 | H43: 27115076.25 | I43: 27115076.25 | J43: 50000 | K43: 50000 | L43: 50000
A44: Executive and council | C44: 99254444 | D44: 585960 | E44: 200229.41 | F44: 46462720 | G44: 26611707.25 | H44: 26611707.25 | I44: 26611707.25
A45: Finance and administration | F45: 1000000 | G45: 503369 | H45: 503369 | I45: 503369 | J45: 50000 | K45: 50000 | L45: 50000
A46: Internal audit
A47: Community and public safety | C47: =SUM(C48:C52) -> 0 | D47: =SUM(D48:D52) -> 2152338 | E47: 657336.88 | F47: 1500000 | G47: 0 | H47: 0 | I47: 0 | J47: 0 | K47: 0 | L47: 0
A48: Community and social services | D48: 2152338 | E48: 657336.88 | K48: 0 | L48: 0
A49: Sport and recreation
A50: Public safety | K50: 0 | L50: 0
A51: Housing
A52: Health | F52: 1500000 | G52: 0 | H52: 0 | K52: 0 | L52: 0
A53: Economic and environmental services | C53: =SUM(C54:C56) -> 0 | D53: =SUM(D54:D56) -> 0 | E53: 145271 | F53: 0 | G53: 100000 | H53: 100000 | I53: 100000 | J53: 15090000 | K53: 15020920 | L53: 15021880
A54: Planning and development | E54: 145271 | F54: 0 | G54: 100000 | H54: 100000 | I54: 100000 | J54: 15090000 | K54: 15020920 | L54: 15021880
A55: Road transport
A56: Environmental protection
A57: Trading services | C57: =SUM(C58:C61) -> 0 | D57: =SUM(D58:D61) -> 370291056 | E57: 334617120 | F57: 610693000 | G57: 560267619 | H57: 560267619 | I57: 560267619 | J57: 551343857.6 | K57: 673833750 | L57: 676953950
A58: Energy sources
A59: Water management | D59: =213924+360591659 -> 360805583 | E59: =115286.42+13617978+320157085 -> 333890349.4 | F59: 610693000 | G59: 468808474 | H59: 468808474 | I59: 468808474 | J59: 551343857.6 | K59: 673833750 | L59: 676953950
A60: Waste water management | D60: 9485473 | E60: 726770.58 | G60: 91459145 | H60: 91459145 | I60: 91459145
A61: Waste management
A62: Other
A63: Total Capital Expenditure - Functional | B63: 3 | C63: =C43+C47+C53+C57+C62 -> 99254444 | D63: =D43+D47+D53+D57+D62 -> 373029354 | E63: 335619957.3 | F63: 659655720 | G63: 587482695.3 | H63: 587482695.3 | I63: 587482695.3 | J63: 566483857.6 | K63: 688904670 | L63: =L43+L47+L53+L57+L62 -> 692025830
A65: Funded by:
A66: National Government | C66: 99254444 | D66: =9485473+360591659+2152338 -> 372229470 | E66: =657336.88+13617978+320157085+726770.58 -> 335159170.5 | F66: 610693000 | G66: 560470988 | H66: 560470988 | I66: 560470988 | J66: 551483857.6 | K66: 673904670 | L66: 677025830
A67: Provincial Government
A68: District Municipality
A69: ='A4-FinPerf RE'!A39 -> Transfers and subsidies - capital (monetary allocations) (National / Provincial Departmental Agencies, Households, Non-profit Institutions, Private Enterprises, Public Corporatons, Higher Educational Institutions)
A70: Transfers recognised - capital | B70: 4 | C70: =SUM(C66:C69) -> 99254444 | D70: 372229470 | E70: 335159170.5 | F70: 610693000 | G70: 560470988 | H70: 560470988 | I70: 560470988 | J70: 551483857.6 | K70: 673904670 | L70: 677025830
A72: Borrowing | B72: 6
A73: Internally generated funds | D73: =213924+585960 -> 799884 | E73: =145271+200229.41+115286.42 -> 460786.83 | F73: 48962720 | G73: 27011707 | H73: 27011707 | I73: 27011707 | J73: 15000000 | K73: 15000000 | L73: 15000000
A74: Total Capital Funding | B74: 7 | C74: =+C70+C72+C73 -> 99254444 | D74: =+D70+D72+D73 -> 373029354 | E74: 335619957.3 | F74: 659655720 | G74: 587482695 | H74: 587482695 | I74: 587482695 | J74: 566483857.6 | K74: 688904670 | L74: 692025830
A75: =head27a -> References
A76: 1. Municipalities may choose to appropriate for capital expenditure for three years or for one year (if one year appropriation projected expenditure required for yr2 and yr3).
A77: 2. Include capital component of PPP unitary payment. Note that capital transfers are only appropriated to municipalities for the budget year
A78: 3. Capital expenditure by functional classification must reconcile to the appropriations by vote
A79: 4. Must reconcile to supporting table SA20 and to Budgeted Financial Performance (revenue and expenditure)
A81: 6. Include finance leases and PPP capital funding component of unitary payment - total borrowing/repayments to reconcile to changes in Table SA17
A82: 7. Total Capital Funding must balance with Total Capital Expenditure
A83: 8. Include any capitalised interest (MFMA section 46) as part of relevant capital budget
A85: check balance | C85: =IF((C63-C74)=0,0,"Unbalanced") -> 0 | D85: =IF((D63-D74)=0,0,"Unbalanced") -> 0 | E85: Unbalanced | F85: 0 | G85: Unbalanced | H85: Unbalanced | I85: Unbalanced | J85: 0 | K85: 0 | L85: 0

Sheet A5A
A1: =muni&" - "&Approve5 -> DC12 Amathole - Table A5 Budgeted Capital Expenditure by vote, functional classification and funding
A2: =Vdesc -> Vote Description | B2: =head27 -> Ref | C2: =head1b -> 2016/17 | D2: =head1A -> 2017/18 | E2: =Head1 -> 2018/19 | F2: =Head2 -> Current Year 2019/20 | J2: =Head3 -> 2020/21 Medium Term Revenue & Expenditure Framework | N2: ="Multi-year appropriation for "&Head9& " in the "&Head2A&" Annual Budget" -> Multi-year appropriation for Budget Year 2020/21 in the 2019/20 Annual Budget | R2: ="Multi-year appropriation for "&RIGHT(Head10,7)& " in the "&Head2A&" Annual Budget" -> Multi-year appropriation for 2021/22 in the 2019/20 Annual Budget | V2: New multi-year appropriations (funds for new and existing projects)
A3: R thousand | B3: 1 | C3: =Head5 -> Audited Outcome | D3: =Head5 -> Audited Outcome | E3: =Head5 -> Audited Outcome | F3: =Head6 -> Original Budget | G3: =Head7 -> Adjusted Budget | H3: =Head8 -> Full Year Forecast | I3: =Head5b -> Pre-audit outcome | J3: =Head9 -> Budget Year 2020/21 | K3: =Head10 -> Budget Year +1 2021/22 | L3: =Head11 -> Budget Year +2 2022/23 | N3: ="Appropriation for "&RIGHT(Head9,7) -> Appropriation for 2020/21 | O3: ="Adjustments in "&Head2A -> Adjustments in 2019/20 | P3: ="Downward adjustments for "&RIGHT(Head9,7) -> Downward adjustments for 2020/21 | Q3: Appropriation carried forward | R3: ="Appropriation for "&RIGHT(Head9,7) -> Appropriation for 2020/21 | S3: ="Adjustments in "&Head2A -> Adjustments in 2019/20 | T3: ="Downward adjustments for "&RIGHT(Head9,7) -> Downward adjustments for 2020/21 | U3: Appropriation carried forward | V3: =Head9 -> Budget Year 2020/21 | W3: =Head10 -> Budget Year +1 2021/22 | X3: =Head11 -> Budget Year +2 2022/23
A4: Capital expenditure - Municipal Vote
A5: Multi-year expenditure appropriation | B5: 2
A6: ='Org structure'!A2 -> Vote 1 - Legislative & Executive Support Services | C6: =SUM(C7:C12) -> 0 | D6: 0 | E6: 0 | F6: 0 | G6: 0 | H6: 0 | I6: 0 | J6: 0 | K6: 0 | L6: 0 | N6: =SUM(N7:N12) -> 0 | O6: 0 | P6: 0 | Q6: 0 | R6: 0 | S6: 0 | T6: 0 | U6: 0 | V6: 0 | W6: 0 | X6: 0
A7: ='Org structure'!E3 -> 1,1 - Council General | J7: =Q7+V7 -> 0 | K7: =U7+W7 -> 0 | L7: =X7 -> 0 | Q7: =SUM(N7:P7) -> 0 | U7: =SUM(R7:T7) -> 0
A8: ='Org structure'!E4 -> 1,2 - Mayoral Committee | J8: =Q8+V8 -> 0 | K8: =U8+W8 -> 0 | L8: =X8 -> 0 | Q8: =SUM(N8:P8) -> 0 | U8: =SUM(R8:T8) -> 0
A9: ='Org structure'!E5 -> 1,3 - Executive Support Services | J9: =Q9+V9 -> 0 | K9: =U9+W9 -> 0 | L9: 0 | Q9: 0 | U9: 0
A10: ='Org structure'!E6 -> 1,4 - Legislative Support Services | J10: 0 | K10: 0 | L10: 0 | Q10: 0 | U10: 0
A11: ='Org structure'!E7 -> 1,5 - Director: Leg&executive Support Services | J11: 0 | K11: 0 | L11: =X11 -> 0 | Q11: 0 | U11: 0
A12: ='Org structure'!E8 -> 1,6 - Council Support | J12: 0 | K12: 0 | L12: 0 | Q12: 0 | U12: 0
A13: ='Org structure'!A3 -> Vote 2 - Strategic Management | C13: =SUM(C14:C21) -> 0 | D13: 0 | E13: 0 | F13: 0 | G13: 0 | H13: 0 | I13: 0 | J13: 0 | K13: 0 | L13: 0 | N13: =SUM(N14:N21) -> 0 | O13: 0 | P13: 0 | Q13: 0 | R13: 0 | S13: 0 | T13: 0 | U13: 0 | V13: 0 | W13: 0 | X13: 0
A14: ='Org structure'!E10 -> 2,1 - Risk Services | J14: =Q14+V14 -> 0 | K14: =U14+W14 -> 0 | L14: =X14 -> 0 | Q14: =SUM(N14:P14) -> 0 | U14: 0
A15: ='Org structure'!E11 -> 2,2 - Municipal Support Unit | J15: =Q15+V15 -> 0 | K15: =U15+W15 -> 0 | L15: 0 | Q15: 0 | U15: 0
A16: ='Org structure'!E12 -> 2,3 - Strategic Planning | J16: 0 | K16: 0 | L16: 0 | Q16: 0 | U16: 0
A17: ='Org structure'!E13 -> 2,4 - Information Management Unit | J17: 0 | K17: =U17+W17 -> 0 | L17: 0 | Q17: 0 | U17: 0
A18: ='Org structure'!E14 -> 2,5 - Communications & Customer Care | J18: 0 | K18: 0 | L18: 0 | Q18: 0 | U18: 0
A19: ='Org structure'!E15 -> 2,6 - Planning Monitoring & Evaluation | J19: 0 | K19: 0 | L19: 0 | Q19: 0 | U19: 0
A20: ='Org structure'!E16 -> 2,7 - Speaker Support Services_(old) | J20: 0 | K20: 0 | L20: 0 | Q20: 0 | U20: 0
A21: ='Org structure'!E17 -> 2,8 - Travel Desk & Igr | J21: 0 | K21: 0 | L21: 0 | Q21: 0 | U21: 0
A22: ='Org structure'!A4 -> Vote 3 - Corporate Services | C22: =SUM(C23:C30) -> 0 | D22: 0 | E22: 0 | F22: 0 | G22: 0 | H22: 0 | I22: 0 | J22: 0 | K22: 0 | L22: 0 | N22: =SUM(N23:N30) -> 0 | O22: 0 | P22: 0 | Q22: 0 | R22: 0 | S22: 0 | T22: 0 | U22: 0 | V22: 0 | W22: 0 | X22: 0
A23: ='Org structure'!E19 -> 3,1 - Administration | J23: =Q23+V23 -> 0 | K23: =U23+W23 -> 0 | L23: =X23 -> 0 | Q23: =SUM(N23:P23) -> 0 | U23: 0
A24: ='Org structure'!E20 -> 3,2 - Human Resources | J24: 0 | K24: 0 | L24: 0 | Q24: 0 | U24: 0
A25: ='Org structure'!E21 -> 3,3 - Council General | J25: 0 | K25: 0 | L25: 0 | Q25: 0 | U25: =SUM(R25:T25) -> 0
A26: ='Org structure'!E22 -> 3,4 - Mayoral Committee | J26: 0 | K26: =U26+W26 -> 0 | L26: 0 | Q26: 0 | U26: 0
A27: ='Org structure'!E23 -> 3,5 - Executive Support Services | J27: =Q27+V27 -> 0 | K27: 0 | L27: 0 | Q27: 0 | U27: 0
A28: ='Org structure'!E24 -> 3,6 - Legislative Support Services | J28: 0 | K28: 0 | L28: 0 | Q28: 0 | U28: 0
A29: ='Org structure'!E25 -> 3,7 - Director: Leg&executive Support Services | J29: 0 | K29: 0 | L29: 0 | Q29: 0 | U29: 0
A30: ='Org structure'!E26 -> 3,8 - Council Support | J30: 0 | K30: 0 | L30: 0 | Q30: 0 | U30: 0
A31: ='Org structure'!A5 -> Vote 4 - Budget & Treasury | C31: =SUM(C32:C41) -> 0 | D31: =SUM(D32:D41) -> 0 | E31: 0 | F31: 0 | G31: 0 | H31: 0 | I31: =SUM(I32:I41) -> 0 | J31: 0 | K31: 0 | L31: 0 | N31: =SUM(N32:N41) -> 0 | O31: 0 | P31: 0 | Q31: 0 | R31: 0 | S31: 0 | T31: 0 | U31: 0 | V31: 0 | W31: 0 | X31: 0
A32: ='Org structure'!E28 -> 4,1 - Chief Financial Officer | J32: =Q32+V32 -> 0 | K32: =U32+W32 -> 0 | L32: =X32 -> 0 | Q32: =SUM(N32:P32) -> 0 | U32: 0
A33: ='Org structure'!E29 -> 4,2 - Accounting And Reporting | J33: 0 | K33: 0 | L33: 0 | Q33: 0 | U33: 0
A34: ='Org structure'!E30 -> 4,3 - Asset Management | J34: 0 | K34: 0 | L34: 0 | Q34: 0 | U34: 0
A35: ='Org structure'!E31 -> 4,4 - Supply Chain Management | J35: 0 | K35: 0 | L35: 0 | Q35: 0 | U35: 0
A36: ='Org structure'!E32 -> 4,5 - Budgeting | J36: 0 | K36: 0 | L36: 0 | Q36: 0 | U36: 0
A37: ='Org structure'!E33 -> 4,6 - Credit Control | J37: 0 | K37: 0 | L37: 0 | Q37: 0 | U37: 0
A38: ='Org structure'!E34 -> 4,7 - Billing | J38: 0 | K38: 0 | L38: 0 | Q38: 0 | U38: 0
A39: ='Org structure'!E35 -> 4,8 - Revenue Data Management | J39: 0 | K39: 0 | L39: 0 | Q39: 0 | U39: 0
A40: ='Org structure'!E36 -> 4,9 - Receipting & Reconciliaton | J40: 0 | K40: 0 | L40: 0 | Q40: 0 | U40: 0
A41: ='Org structure'!E37 -> 4.10 - Expenditure | J41: 0 | K41: 0 | L41: 0 | Q41: 0 | U41: 0
A42: ='Org structure'!A6 -> Vote 5 - Engineering Department | C42: =SUM(C43:C49) -> 99254444 | D42: 372229470 | E42: 321541192.5 | F42: 610693000 | G42: 560267619 | H42: 560267619 | I42: 560267619 | J42: 551343857.6 | K42: 673833750 | L42: 676953950 | N42: =SUM(N43:N49) -> 0 | O42: 0 | P42: 0 | Q42: 0 | R42: 0 | S42: 0 | T42: 0 | U42: 0 | V42: 551343857.6 | W42: 673833750 | X42: 676953950
A43: ='Org structure'!E39 -> 5,1 - Engineering Services | C43: 99254444 | D43: 372229470 | E43: =320883855.52+657337 -> 321541192.5 | F43: 610693000 | G43: 560267619 | H43: 560267619 | I43: 560267619 | J43: =Q43+V43 -> 551343857.6 | K43: =U43+W43 -> 673833750 | L43: =X43 -> 676953950 | Q43: =SUM(N43:P43) -> 0 | U43: 0 | V43: 551343857.6 | W43: 673833750 | X43: 676953950
A44: ='Org structure'!E40 -> 5,2 - Building And Services Planning | J44: 0 | K44: 0 | L44: 0 | Q44: 0 | U44: 0
A45: ='Org structure'!E41 -> 5,3 - Solid Waste Site | J45: 0 | K45: 0 | L45: 0 | Q45: 0 | U45: 0
A46: ='Org structure'!E42 -> 5,4 - Managment Of Building & Services Plannin | J46: 0 | K46: 0 | L46: 0 | Q46: 0 | U46: 0
A47: ='Org structure'!E43 -> 5,5 - Transport Unit | J47: 0 | K47: 0 | L47: 0 | Q47: 0 | U47: 0
A48: ='Org structure'!E44 -> 5,6 - Water Service Authority | J48: 0 | K48: 0 | L48: 0 | Q48: 0 | U48: 0
A49: ='Org structure'!E45 -> 5,7 - Project Management Unit | J49: 0 | K49: 0 | L49: 0 | Q49: 0 | U49: 0
A50: ='Org structure'!A7 -> Vote 6 - Health & Protection Department | C50: =SUM(C51:C63) -> 0 | D50: =SUM(D51:D63) -> 0 | E50: 0 | F50: 0 | G50: 0 | H50: 0 | I50: =SUM(I51:I63) -> 0 | J50: 0 | K50: 0 | L50: 0 | N50: =SUM(N51:N63) -> 0 | O50: 0 | P50: 0 | Q50: 0 | R50: 0 | S50: 0 | T50: 0 | U50: 0 | V50: 0 | W50: 0 | X50: 0
A51: ='Org structure'!E47 -> 6,1 - Community Services | J51: =Q51+V51 -> 0 | K51: =U51+W51 -> 0 | L51: =X51 -> 0 | Q51: =SUM(N51:P51) -> 0 | U51: 0
A52: ='Org structure'!E48 -> 6,2 - Disaster Management | J52: 0 | K52: 0 | L52: 0 | Q52: 0 | U52: 0
A53: ='Org structure'!E49 -> 6,3 - Community Safety Services | J53: 0 | K53: 0 | L53: 0 | Q53: 0 | U53: 0
A54: ='Org structure'!E50 -> 6,4 - Municipal Health (adm) | J54: 0 | K54: 0 | L54: 0 | Q54: 0 | U54: 0
A55: ='Org structure'!E51 -> 6,5 - Fire Services | J55: 0 | K55: 0 | L55: 0 | Q55: 0 | U55: 0
A56: ='Org structure'!E52 -> 6,6 - Mhs In Mbhashe 1516 | J56: 0 | K56: 0 | L56: 0 | Q56: 0 | U56: 0
A57: ='Org structure'!E53 -> 6,7 - Mhs In Mnquma 1516 | J57: 0 | K57: 0 | L57: 0 | Q57: 0 | U57: 0
A58: ='Org structure'!E54 -> 6,8 - Mhs In Great Kei 1516 | J58: 0 | K58: 0 | L58: 0 | Q58: 0 | U58: 0
A59: ='Org structure'!E55 -> 6,9 - Mhs In Amahlathi | J59: 0 | K59: 0 | L59: 0 | Q59: 0 | U59: 0
A60: ='Org structure'!E56 -> 6,10 - Mhs Devolution | J60: =Q60+V60 -> 0 | K60: =U60+W60 -> 0 | L60: =X60 -> 0 | Q60: 0 | U60: 0
A61: ='Org structure'!E57 -> 6,11 - Mhs In Nkonkobe | J61: 0 | K61: 0 | L61: 0 | Q61: 0 | U61: 0
A62: ='Org structure'!E58 -> 6,12 - Mhs In Nxuba | J62: 0 | K62: 0 | L62: 0 | Q62: 0 | U62: 0
A63: ='Org structure'!E59 -> 6,13 - Mhs In Ngqushwa 1516 | J63: 0 | K63: 0 | L63: 0 | Q63: 0 | U63: 0
A64: ='Org structure'!A8 -> Vote 7 - Water & Sanitation Management | C64: =SUM(C65:C68) -> 0 | D64: 0 | E64: 0 | F64: 0 | G64: 0 | H64: 0 | I64: 0 | J64: 0 | K64: 0 | L64: 0 | N64: =SUM(N65:N68) -> 0 | O64: 0 | P64: 0 | Q64: 0 | R64: 0 | S64: 0 | T64: 0 | U64: 0 | V64: 0 | W64: 0 | X64: 0
A65: ='Org structure'!E61 -> 7,1 - Management Of O&m Water & Sanitation | J65: =Q65+V65 -> 0 | K65: =U65+W65 -> 0 | L65: =X65 -> 0 | Q65: =SUM(N65:P65) -> 0 | U65: =SUM(R65:T65) -> 0
A66: ='Org structure'!E62 -> 7,2 - Mechanical & Electrical | J66: 0 | K66: 0 | L66: 0 | Q66: 0 | U66: 0
A67: ='Org structure'!E63 -> 7,3 - Water Conservation & Demand Mngt | J67: 0 | K67: 0 | L67: 0 | Q67: 0 | U67: 0
A68: ='Org structure'!E64 -> 7,4 - Water Care Unit | J68: 0 | K68: 0 | L68: 0 | Q68: 0 | U68: 0
A69: ='Org structure'!A9 -> Vote 8 - Water Services | C69: =SUM(C70:C79) -> 0 | D69: 0 | E69: 0 | F69: 0 | G69: 0 | H69: 0 | I69: 0 | J69: 0 | K69: 0 | L69: 0 | N69: =SUM(N70:N79) -> 0 | O69: 0 | P69: 0 | Q69: 0 | R69: 0 | S69: 0 | T69: 0 | U69: 0 | V69: 0 | W69: 0 | X69: 0
A70: ='Org structure'!E66 -> 8,1 - Dutywa Water Scheme | J70: =Q70+V70 -> 0 | K70: =U70+W70 -> 0 | L70: =X70 -> 0 | Q70: =SUM(N70:P70) -> 0 | U70: 0
A71: ='Org structure'!E67 -> 8,2 - Willowvale Water Scheme | J71: 0 | K71: 0 | L71: 0 | Q71: 0 | U71: 0
A72: ='Org structure'!E68 -> 8,3 - Elliotdale Water Scheme | J72: 0 | K72: 0 | L72: 0 | Q72: 0 | U72: 0
A73: ='Org structure'!E69 -> 8,4 - Qwaninga Water Scheme | J73: 0 | K73: 0 | L73: 0 | Q73: 0 | U73: 0
A74: ='Org structure'!E70 -> 8,5 - Mendu Water Scheme | J74: 0 | K74: 0 | L74: 0 | Q74: 0 | U74: 0
A75: ='Org structure'!E71 -> 8,6 - Dwesa Water Scheme | J75: 0 | K75: 0 | L75: 0 | Q75: 0 | U75: 0
A76: ='Org structure'!E72 -> 8,7 - Cwebe Water Scheme | J76: 0 | K76: 0 | L76: 0 | Q76: 0 | U76: 0
A77: ='Org structure'!E73 -> 8,8 - Qolora Water Scheme | J77: 0 | K77: 0 | L77: 0 | Q77: 0 | U77: 0
A78: ='Org structure'!E74 -> 8,9 - Butterworth Water Scheme | J78: 0 | K78: 0 | L78: 0 | Q78: 0 | U78: 0
A79: ='Org structure'!E113 -> 8,48 - Xhora Water Supply | J79: 0 | K79: 0 | L79: 0 | Q79: 0 | U79: 0
A80: ='Org structure'!A10 -> Vote 9 - Sanitation Services | C80: =SUM(C81:C90) -> 0 | D80: =SUM(D81:D90) -> 0 | E80: 0 | F80: 0 | G80: 0 | H80: 0 | I80: 0 | J80: 0 | K80: 0 | L80: 0 | N80: =SUM(N81:N90) -> 0 | O80: 0 | P80: 0 | Q80: 0 | R80: 0 | S80: 0 | T80: 0 | U80: 0 | V80: 0 | W80: 0 | X80: 0
A81: ='Org structure'!E115 -> 9,1 - Dutywa Sewerage | J81: =Q81+V81 -> 0 | K81: =U81+W81 -> 0 | L81: =X81 -> 0 | Q81: =SUM(N81:P81) -> 0 | U81: 0
A82: ='Org structure'!E116 -> 9,2 - Butterworth Sewerage | J82: 0 | K82: 0 | L82: 0 | Q82: 0 | U82: 0
A83: ='Org structure'!E117 -> 9,3 - Kei Mouth Sewerage | J83: 0 | K83: 0 | L83: 0 | Q83: 0 | U83: 0
A84: ='Org structure'!E118 -> 9,4 - Chintsa East Sewerage | J84: 0 | K84: 0 | L84: 0 | Q84: 0 | U84: 0
A85: ='Org structure'!E119 -> 9,5 - Komga Sewerage | J85: 0 | K85: 0 | L85: 0 | Q85: 0 | U85: 0
A86: ='Org structure'!E120 -> 9,6 - Keiskammahoek Sewerage | J86: 0 | K86: 0 | L86: 0 | Q86: 0 | U86: 0
A87: ='Org structure'!E121 -> 9,7 - Kei Road Sewerage | J87: 0 | K87: 0 | L87: 0 | Q87: 0 | U87: 0
A88: ='Org structure'!E122 -> 9,8 - Cathcart Sewerage | J88: 0 | K88: 0 | L88: 0 | Q88: 0 | U88: 0
A89: ='Org structure'!E123 -> 9,9 - Stutterheim Sewerage | J89: 0 | K89: 0 | L89: 0 | Q89: 0 | U89: 0
A90: ='Org structure'!E136 -> 9,22 - Morgan Bay Sewerage | J90: 0 | K90: 0 | L90: 0 | Q90: 0 | U90: 0
A91: ='Org structure'!A11 -> Vote 10 - Land Human Settlement & Economic Development | C91: =SUM(C92:C95) -> 0 | D91: 0 | E91: 0 | F91: 0 | G91: 0 | H91: 0 | I91: 0 | J91: 0 | K91: 0 | L91: 0 | N91: =SUM(N92:N95) -> 0 | O91: 0 | P91: 0 | Q91: 0 | R91: 0 | S91: 0 | T91: 0 | U91: 0 | V91: 0 | W91: 0 | X91: 0
A92: ='Org structure'!E138 -> 10,1 - Land Administration & Housing | J92: =Q92+V92 -> 0 | K92: =U92+W92 -> 0 | L92: =X92 -> 0 | Q92: =SUM(N92:P92) -> 0 | U92: 0
A93: ='Org structure'!E139 -> 10,2 - Economic Development | J93: 0 | K93: 0 | L93: 0 | Q93: 0 | U93: 0
A94: ='Org structure'!E140 -> 10,3 - Director Land Admin Housing & Eco Dev | J94: 0 | K94: 0 | L94: 0 | Q94: 0 | U94: 0
A95: ='Org structure'!E141 -> 10,4 - EPWP | J95: 0 | K95: 0 | L95: 0 | Q95: 0 | U95: 0
A96: ='Org structure'!A12 -> Vote 11 - Municipal Management | C96: =SUM(C97:C106) -> 0 | D96: 0 | E96: 0 | F96: 0 | G96: 0 | H96: 0 | I96: 0 | J96: 0 | K96: 0 | L96: 0 | N96: =SUM(N97:N106) -> 0 | O96: 0 | P96: 0 | Q96: 0 | R96: 0 | S96: 0 | T96: 0 | U96: 0 | V96: 0 | W96: 0 | X96: 0
A97: ='Org structure'!E143 -> 11,1 - Municipal Manager | J97: =Q97+V97 -> 0 | K97: =U97+W97 -> 0 | L97: =X97 -> 0 | Q97: =SUM(N97:P97) -> 0 | U97: 0
A98: ='Org structure'!E144 -> 11,2 - Legal Services | J98: 0 | K98: 0 | L98: 0 | Q98: 0 | U98: 0
A99: ='Org structure'!E145 -> 11,3 - Projects Investment & Stakeholder Mngt | J99: 0 | K99: 0 | L99: 0 | Q99: 0 | U99: 0
A100: ='Org structure'!E146 -> 11,4 - Internal Audit | J100: 0 | K100: 0 | L100: 0 | Q100: 0 | U100: 0
A101: ='Org structure'!E147 -> 11,5 - Policy Development And Research Unit | J101: 0 | K101: 0 | L101: 0 | Q101: 0 | U101: 0
A102: ='Org structure'!E148 -> 11,6 - Amahlathi Satellite Office | J102: 0 | K102: 0 | L102: 0 | Q102: 0 | U102: 0
A103: ='Org structure'!E149 -> 11,7 - Great Kei Satellite Office | J103: 0 | K103: 0 | L103: 0 | Q103: 0 | U103: 0
A104: ='Org structure'!E150 -> 11,8 - Mbhashe Satellite Office | J104: 0 | K104: 0 | L104: 0 | Q104: 0 | U104: 0
A105: ='Org structure'!E151 -> 11,9 - Mnquma Satellite Office | J105: 0 | K105: 0 | L105: 0 | Q105: 0 | U105: 0
A106: ='Org structure'!E154 -> 11,12 - Nxuba Satellite Office | J106: 0 | K106: 0 | L106: 0 | Q106: 0 | U106: 0
A107: ='Org structure'!A13 -> Vote 12 - [NAME OF VOTE 12] | C107: =SUM(C108:C117) -> 0 | D107: 0 | E107: 0 | F107: 0 | G107: 0 | H107: 0 | I107: 0 | J107: 0 | K107: 0 | L107: 0 | N107: =SUM(N108:N117) -> 0 | O107: 0 | P107: 0 | Q107: 0 | R107: 0 | S107: 0 | T107: 0 | U107: 0 | V107: 0 | W107: 0 | X107: 0
A108: ='Org structure'!E156 -> 12,1 - Municipal Manager | J108: =Q108+V108 -> 0 | K108: =U108+W108 -> 0 | L108: =X108 -> 0 | Q108: =SUM(N108:P108) -> 0 | U108: 0
A109: ='Org structure'!E157 -> 12,2 - Legal Services | J109: 0 | K109: 0 | L109: 0 | Q109: 0 | U109: 0
A110: ='Org structure'!E158 -> 12,3 - Projects Investment & Stakeholder Mngt | J110: 0 | K110: 0 | L110: 0 | Q110: 0 | U110: 0
A111: ='Org structure'!E159 -> 12,4 - Internal Audit | J111: 0 | K111: 0 | L111: 0 | Q111: 0 | U111: 0
A112: ='Org structure'!E160 -> 12,5 - Policy Development And Research Unit | J112: 0 | K112: 0 | L112: 0 | Q112: 0 | U112: 0
A113: ='Org structure'!E161 -> 12,6 - Amahlathi Satellite Office | J113: =Q113+V113 -> 0 | K113: 0 | L113: 0 | Q113: 0 | U113: 0
A114: ='Org structure'!E162 -> 12,7 - Great Kei Satellite Office | J114: 0 | K114: 0 | L114: 0 | Q114: 0 | U114: 0
A115: ='Org structure'!E163 -> 12,8 - Mbhashe Satellite Office | J115: 0 | K115: 0 | L115: 0 | Q115: 0 | U115: 0
A116: ='Org structure'!E164 -> 12,9 - Mnquma Satellite Office | J116: 0 | K116: 0 | L116: 0 | Q116: 0 | U116: =SUM(R116:T116) -> 0
A117: ='Org structure'!E167 -> 12,12 - Nxuba Satellite Office | J117: 0 | K117: 0 | L117: 0 | Q117: 0 | U117: 0
A118: ='Org structure'!A14 -> Vote 13 - [NAME OF VOTE 13] | C118: =SUM(C119:C119) -> 0 | D118: 0 | E118: 0 | F118: 0 | G118: 0 | H118: 0 | I118: 0 | J118: 0 | K118: 0 | L118: 0 | N118: =SUM(N119:N119) -> 0 | O118: 0 | P118: 0 | Q118: 0 | R118: 0 | S118: 0 | T118: 0 | U118: 0 | V118: 0 | W118: 0 | X118: 0
A119: ='Org structure'!E169 -> 13.1 - [Name of sub-vote] | J119: =Q119+V119 -> 0 | K119: =U119+W119 -> 0 | L119: =X119 -> 0 | Q119: =SUM(N119:P119) -> 0 | U119: 0
A120: ='Org structure'!A15 -> Vote 14 - [NAME OF VOTE 14] | C120: =SUM(C121:C121) -> 0 | D120: 0 | E120: 0 | F120: 0 | G120: 0 | H120: 0 | I120: 0 | J120: 0 | K120: 0 | L120: 0 | N120: =SUM(N121:N121) -> 0 | O120: 0 | P120: 0 | Q120: 0 | R120: 0 | S120: 0 | T120: 0 | U120: 0 | V120: 0 | W120: 0 | X120: 0
A121: ='Org structure'!E180 -> 14.1 - [Name of sub-vote] | J121: =Q121+V121 -> 0 | K121: =U121+W121 -> 0 | L121: =X121 -> 0 | Q121: =SUM(N121:P121) -> 0 | U121: 0
A122: ='Org structure'!A16 -> Vote 15 - [NAME OF VOTE 15] | C122: =SUM(C123:C123) -> 0 | D122: 0 | E122: 0 | F122: 0 | G122: 0 | H122: 0 | I122: 0 | J122: 0 | K122: 0 | L122: 0 | N122: =SUM(N123:N123) -> 0 | O122: 0 | P122: 0 | Q122: 0 | R122: 0 | S122: 0 | T122: 0 | U122: 0 | V122: 0 | W122: 0 | X122: 0
A123: ='Org structure'!E191 -> 15.1 - [Name of sub-vote] | J123: =Q123+V123 -> 0 | K123: =U123+W123 -> 0 | L123: =X123 -> 0 | Q123: =SUM(N123:P123) -> 0 | U123: 0
A124: Capital multi-year expenditure sub-total | C124: =C6+C13+C22+C31+C42+C50+C64+C69+C80+C91+C96+C107+C118+C120+C122 -> 99254444 | D124: 372229470 | E124: 321541192.5 | F124: 610693000 | G124: 560267619 | H124: 560267619 | I124: 560267619 | J124: 551343857.6 | K124: 673833750 | L124: 676953950 | N124: =N6+N13+N22+N31+N42+N50+N64+N69+N80+N91+N96+N107+N118+N120+N122 -> 0 | O124: 0 | P124: 0 | Q124: 0 | R124: 0 | S124: 0 | U124: =U6+U13+U22+U31+U42+U50+U64+U69+U80+U91+U96+U107+U118+U120+U122 -> 0 | V124: =V6+V13+V22+V31+V42+V50+V64+V69+V80+V91+V96+V107+V118+V120+V122 -> 551343857.6 | W124: =W6+W13+W22+W31+W42+W50+W64+W69+W80+W91+W96+W107+W118+W120+W122 -> 673833750
A126: Capital expenditure - Municipal Vote
A127: Single-year expenditure appropriation | B127: 2
A128: =A6 -> Vote 1 - Legislative & Executive Support Services | C128: =SUM(C129:C134) -> 0 | D128: 0 | E128: 0 | F128: 0 | G128: 0 | H128: 0 | I128: 0 | J128: 0 | K128: 0 | L128: 0
A129: 1,1 - Council General
A130: 1,2 - Mayoral Committee
A131: 1,3 - Executive Support Services
A132: 1,4 - Legislative Support Services
A133: 1,5 - Director: Leg&executive Support Services
A134: 1,6 - Council Support
A135: Vote 2 - Strategic Management | C135: =SUM(C136:C143) -> 0 | D135: 585960 | E135: 200229.41 | F135: 47462720 | G135: 27011707.25 | H135: 27011707.25 | I135: 27011707.25 | J135: 15000000 | K135: 15000000 | L135: 15000000
A136: 2,1 - Risk Services
A137: 2,2 - Municipal Support Unit
A138: 2,3 - Strategic Planning | D138: 585960 | E138: 200229.41 | F138: 46462720 | G138: 26611707.25 | H138: 26611707.25 | I138: 26611707.25 | J138: 15000000 | K138: 15000000 | L138: 15000000
A139: 2,4 - Information Management Unit | F139: 1000000 | G139: 400000 | H139: 400000 | I139: 400000
A140: 2,5 - Communications & Customer Care
A141: 2,6 - Planning Monitoring & Evaluation
A142: 2,7 - Speaker Support Services_(old)
A143: 2,8 - Travel Desk & Igr
A144: Vote 3 - Corporate Services | C144: =SUM(C145:C152) -> 0 | D144: 0 | E144: 0 | F144: 0 | G144: 0 | H144: 0 | I144: 0 | J144: 0 | K144: 0 | L144: 0
A145: 3,1 - Administration
A146: 3,2 - Human Resources
A147: 3,3 - Council General
A148: 3,4 - Mayoral Committee
A149: 3,5 - Executive Support Services
A150: 3,6 - Legislative Support Services
A151: 3,7 - Director: Leg&executive Support Services
A152: 3,8 - Council Support
A153: Vote 4 - Budget & Treasury | C153: =SUM(C154:C163) -> 0 | D153: 0 | E153: 0 | F153: 0 | G153: 103369 | H153: 103369 | I153: 103369 | J153: 50000 | K153: 50000 | L153: 50000
A154: 4,1 - Chief Financial Officer | G154: 103369 | H154: 103369 | I154: 103369 | J154: 50000 | K154: 50000 | L154: 50000
A155: 4,2 - Accounting And Reporting
A156: 4,3 - Asset Management
A157: 4,4 - Supply Chain Management
A158: 4,5 - Budgeting
A159: 4,6 - Credit Control
A160: =A38 -> 4,7 - Billing
A161: 4,8 - Revenue Data Management
A162: 4,9 - Receipting & Reconciliaton
A163: 4.10 - Expenditure
A164: Vote 5 - Engineering Department | C164: =SUM(C165:C171) -> 0 | D164: 0 | E164: 13617978 | F164: 0 | G164: 100000 | H164: 100000 | I164: 100000 | J164: 90000 | K164: 20920 | L164: 21880
A165: 5,1 - Engineering Services | E165: 13617978
A166: 5,2 - Building And Services Planning
A167: 5,3 - Solid Waste Site
A168: 5,4 - Managment Of Building & Services Plannin
A169: 5,5 - Transport Unit
A170: 5,6 - Water Service Authority
A171: 5,7 - Project Management Unit | G171: 100000 | H171: 100000 | I171: 100000 | J171: 90000 | K171: 20920 | L171: 21880
A172: Vote 6 - Health & Protection Department | C172: =SUM(C173:C185) -> 0 | D172: 0 | E172: 0 | F172: 1500000 | G172: 0 | H172: 0 | I172: 0 | J172: 0 | K172: 0 | L172: 0
A173: 6,1 - Community Services
A174: 6,2 - Disaster Management | K174: 0 | L174: 0
A175: 6,3 - Community Safety Services
A176: 6,4 - Municipal Health (adm) | K176: 0 | L176: 0
A177: 6,5 - Fire Services | F177: 1500000 | K177: 0 | L177: 0
A178: 6,6 - Mhs In Mbhashe 1516 | K178: 0 | L178: 0
A179: 6,7 - Mhs In Mnquma 1516 | K179: 0 | L179: 0
A180: 6,8 - Mhs In Great Kei 1516 | K180: 0 | L180: 0
A181: 6,9 - Mhs In Amahlathi | K181: 0 | L181: 0
A182: =A60 -> 6,10 - Mhs Devolution
A183: 6,11 - Mhs In Nkonkobe | K183: 0 | L183: 0
A184: 6,12 - Mhs In Nxuba
A185: =A63 -> 6,13 - Mhs In Ngqushwa 1516 | K185: 0 | L185: 0
A186: Vote 7 - Water & Sanitation Management | C186: =SUM(C187:C190) -> 0 | D186: 213924 | E186: 115286.42 | F186: 0 | G186: 0 | H186: 0 | I186: 0 | J186: 0 | K186: 0 | L186: 0
A187: 7,1 - Management Of O&m Water & Sanitation | D187: =79480+134444 -> 213924 | E187: 115286.42
A188: 7,2 - Mechanical & Electrical
A189: 7,3 - Water Conservation & Demand Mngt
A190: 7,4 - Water Care Unit
A191: Vote 8 - Water Services | C191: =SUM(C192:C201) -> 0 | D191: 0 | E191: 0 | F191: 0 | G191: 0 | H191: 0 | I191: 0 | J191: 0 | K191: 0 | L191: 0
A192: 8,1 - Dutywa Water Scheme
A193: 8,2 - Willowvale Water Scheme
A194: 8,3 - Elliotdale Water Scheme
A195: 8,4 - Qwaninga Water Scheme
A196: 8,5 - Mendu Water Scheme
A197: 8,6 - Dwesa Water Scheme
A198: 8,7 - Cwebe Water Scheme
A199: 8,8 - Qolora Water Scheme
A200: 8,9 - Butterworth Water Scheme
A201: 8,48 - Xhora Water Supply
... 46 more rows

Sheet A6-FinPos
A1: =muni&" - "&Approve6 -> DC12 Amathole - Table A6 Budgeted Financial Position
A2: =desc -> Description | B2: =head27 -> Ref | C2: =head1b -> 2016/17 | D2: =head1A -> 2017/18 | E2: =Head1 -> 2018/19 | F2: =Head2 -> Current Year 2019/20 | J2: =Head3 -> 2020/21 Medium Term Revenue & Expenditure Framework
A3: R thousand | C3: =Head5 -> Audited Outcome | D3: =Head5 -> Audited Outcome | E3: =Head5 -> Audited Outcome | F3: =Head6 -> Original Budget | G3: =Head7 -> Adjusted Budget | H3: =Head8 -> Full Year Forecast | I3: =Head5b -> Pre-audit outcome | J3: =Head9 -> Budget Year 2020/21 | K3: =Head10 -> Budget Year +1 2021/22 | L3: =Head11 -> Budget Year +2 2022/23
A4: ASSETS
A5: Current assets
A6: Cash | C6: 167557249.8 | D6: 156027526.1 | E6: 165332572.2 | F6: 214045083 | G6: 95242728.84 | H6: 95242728.84 | I6: 95242728.84 | J6: ='A7-CFlow'!J40 -> 113221284 | K6: ='A7-CFlow'!K40 -> 192869147.6 | L6: ='A7-CFlow'!L40 -> 207587650.1
A7: Call investment deposits | B7: 1 | D7: 33931819.99 | E7: 34966284.49
A8: Consumer debtors | B8: 1 | C8: ='SA3'!C14 -> 120518010.9 | D8: ='SA3'!D14 -> 170852945 | E8: ='SA3'!E14 -> 314366656.2 | F8: ='SA3'!F14 -> 579019917.7 | G8: ='SA3'!G14 -> 571252011 | H8: ='SA3'!H14 -> 571252011 | I8: ='SA3'!I14 -> 571252011 | J8: ='SA3'!J14 -> 583924146.5 | K8: ='SA3'!K14 -> 597156610.5 | L8: ='SA3'!L14 -> 609923021.1
A9: Other debtors | C9: 4754423.21 | D9: 4028527 | E9: 5131344.51 | F9: 8464321 | G9: 8464321 | H9: 8464321 | I9: 8464321 | J9: =I9 -> 8464321 | K9: =J9*1.045 -> 8845215.445 | L9: =K9*1.045 -> 9243250.14
A10: Current portion of long-term receivables | D10: 656460 | E10: 120328
A11: Inventory | B11: 2 | C11: 9222305.65 | D11: 4053626.27 | E11: 24819856.51 | F11: 8929679.56 | G11: 24819856.51 | H11: 24819856.51 | I11: 24819856.51 | J11: =I11+'A4-FinPerf RE'!J30*10% -> 29273200.69 | K11: =J11+'A4-FinPerf RE'!K30*10% -> 30507083.89 | L11: =K11+'A4-FinPerf RE'!L30*10% -> 32000923.39
A12: Total current assets | C12: =SUM(C6:C11) -> 302051989.6 | D12: 369550904.4 | E12: 544737041.9 | F12: 810459001.3 | G12: 699778917.4 | H12: 699778917.4 | I12: 699778917.4 | J12: 734882952.2 | K12: 829378057.5 | L12: 858754844.6
A14: Non current assets
A15: Long-term receivables | C15: 1710906 | D15: 1710802.56 | E15: 1710802.56 | F15: 1710906 | G15: 1710906 | H15: 1710906 | I15: 1710906 | J15: =I15 -> 1710906 | K15: 1710906 | L15: 1710906
A16: Investments | D16: 2000000 | E16: 2137129 | F16: 2000000 | G16: 2137128.77 | H16: 2137128.77 | I16: 2137128.77 | J16: 2137128.77 | K16: 2137128.77 | L16: 2137128.77
A17: Investment property | C17: 152121773 | D17: 151081758 | E17: 150724402 | F17: 172734625 | G17: 150276647.4 | H17: 150276647.4 | I17: 150276647.4 | J17: ='A9-Asset'!I151 -> 149784116.4 | K17: ='A9-Asset'!J151 -> 149242332.4 | L17: ='A9-Asset'!K151 -> 148646370.4
A18: Investment in Associate | C18: 1000 | D18: 0 | E18: 0 | G18: 1000 | H18: 1000 | I18: 1000 | J18: 0
A19: Property, plant and equipment | B19: 3 | C19: ='SA3'!C26 -> 4679047463 | D19: ='SA3'!D26 -> 4428203511 | E19: ='SA3'!E26 -> 4641381547 | F19: ='SA3'!F26 -> 6329907151 | G19: ='SA3'!G26 -> 5053996238 | H19: ='SA3'!H26 -> 5053996238 | I19: ='SA3'!I26 -> 5053996238 | J19: ='SA3'!J26 -> 5451055942 | K19: ='SA3'!K26 -> 5955094034 | L19: ='SA3'!L26 -> 6445266610
A21: Biological | D21: 0 | E21: 0
A22: Intangible | C22: 49627527.24 | D22: 39399871 | E22: 26549858 | F22: 133963783 | G22: 39132451.85 | H22: 39132451.85 | I22: 39132451.85 | J22: ='A9-Asset'!I158 -> 38731773.85 | K22: ='A9-Asset'!J158 -> 36791027.85 | L22: ='A9-Asset'!K158 -> 33156206.85
A23: Other non-current assets | C23: 400000 | D23: 400000 | E23: 400000 | F23: 349300 | G23: 400000 | H23: 400000 | I23: 400000 | J23: ='A9-Asset'!I148 -> 400000 | K23: ='A9-Asset'!J148 -> 400000 | L23: ='A9-Asset'!K148 -> 400000
A24: Total non current assets | C24: =SUM(C15:C19)+SUM(C21:C23) -> 4882908669 | D24: =SUM(D15:D19)+SUM(D21:D23) -> 4622795943 | E24: 4822903739 | F24: 6640665765 | G24: 5247654373 | H24: 5247654373 | I24: 5247654373 | J24: 5643819867 | K24: 6145375429 | L24: 6631317222
A25: TOTAL ASSETS | C25: =C12+C24 -> 5184960659 | D25: =D12+D24 -> 4992346847 | E25: =E12+E24 -> 5367640780 | F25: =F12+F24 -> 7451124766 | G25: 5947433290 | H25: 5947433290 | I25: 5947433290 | J25: 6378702819 | K25: 6974753487 | L25: 7490072067
A27: LIABILITIES
A28: Current liabilities
A29: Bank overdraft | B29: 1 | J29: 0
A30: Borrowing | B30: 4 | C30: ='SA3'!C32 -> 148421 | D30: ='SA3'!D32 -> 144261 | E30: ='SA3'!E32 -> 4159.74 | F30: ='SA3'!F32 -> 0 | G30: ='SA3'!G32 -> 0 | H30: ='SA3'!H32 -> 0 | I30: ='SA3'!I32 -> 0 | J30: ='SA3'!J32 -> 0 | K30: ='SA3'!K32 -> 0 | L30: ='SA3'!L32 -> 0
A31: Consumer deposits | C31: 2989539 | D31: 3017984.35 | E31: 3056332 | F31: 3288492.9 | G31: 3288492.9 | H31: 3288492.9 | I31: 3288492.9 | J31: =I31*1.045 -> 3436475.081 | K31: =J31*1.045 -> 3591116.459 | L31: =K31*1.045 -> 3752716.7
A32: Trade and other payables | B32: 4 | C32: ='SA3'!C39 -> 461967333.2 | D32: ='SA3'!D39 -> 548234599.8 | E32: ='SA3'!E39 -> 676989754.7 | F32: ='SA3'!F39 -> 634167493.8 | G32: ='SA3'!G39 -> 387587493.8 | H32: ='SA3'!H39 -> 387587493.8 | I32: ='SA3'!I39 -> 387587493.8 | J32: ='SA3'!J39 -> 399587493.8 | K32: ='SA3'!K39 -> 369587493.8 | L32: ='SA3'!L39 -> 354587493.8
A33: Provisions | C33: 13795875.26 | D33: 115378326 | E33: 128513027.1 | F33: 75284849.02 | G33: 170991435.1 | H33: 170991435.1 | I33: 170991435.1 | J33: ='SA3'!J51 -> 171684772 | K33: ='SA3'!K51 -> 171684772 | L33: ='SA3'!L51 -> 171684772
A34: Total current liabilities | C34: =SUM(C29:C33) -> 478901168.4 | D34: 666775171.2 | E34: 808563273.5 | F34: 712740835.7 | G34: 561867421.7 | H34: 561867421.7 | I34: 561867421.7 | J34: 574708740.9 | K34: 544863382.2 | L34: 530024982.5
A36: Non current liabilities
A37: Borrowing | C37: ='SA3'!C44 -> 1961483.973 | D37: ='SA3'!D44 -> 973462 | E37: ='SA3'!E44 -> 2542682 | F37: ='SA3'!F44 -> 327921.1564 | G37: ='SA3'!G44 -> 2530490.57 | H37: ='SA3'!H44 -> 2530490.57 | I37: ='SA3'!I44 -> 2530490.57 | J37: ='SA3'!J44 -> 2644362.646 | K37: ='SA3'!K44 -> 2644362.646 | L37: ='SA3'!L44 -> 2644362.646
A38: Provisions | C38: ='SA3'!C51 -> 263544392.2 | D38: ='SA3'!D51 -> 239470797 | E38: ='SA3'!E51 -> 169562863 | F38: ='SA3'!F51 -> 378913730.2 | G38: ='SA3'!G51 -> 171684772 | H38: ='SA3'!H51 -> 171684772 | I38: ='SA3'!I51 -> 171684772 | J38: ='SA3'!J51 -> 171684772 | K38: ='SA3'!K51 -> 171684772 | L38: ='SA3'!L51 -> 171684772
A39: Total non current liabilities | C39: =SUM(C37:C38) -> 265505876.1 | D39: =SUM(D37:D38) -> 240444259 | E39: =SUM(E37:E38) -> 172105545 | F39: =SUM(F37:F38) -> 379241651.3 | G39: 174215262.6 | H39: 174215262.6 | I39: 174215262.6 | J39: 174329134.7 | K39: =SUM(K37:K38) -> 174329134.7 | L39: 174329134.7
A40: TOTAL LIABILITIES | C40: =C34+C39 -> 744407044.6 | D40: =D34+D39 -> 907219430.2 | E40: =E34+E39 -> 980668818.5 | F40: =F34+F39 -> 1091982487 | G40: 736082684.3 | H40: 736082684.3 | I40: 736082684.3 | J40: 749037875.5 | K40: =K34+K39 -> 719192516.9 | L40: 704354117.1
A42: NET ASSETS | B42: 5 | C42: =C25-C40 -> 4440553614 | D42: 4085127417 | E42: 4386971962 | F42: 6359142279 | G42: 5211350606 | H42: 5211350606 | I42: 5211350606 | J42: 5629664944 | K42: 6255560970 | L42: 6785717950
A44: COMMUNITY WEALTH/EQUITY
A45: Accumulated Surplus/(Deficit) | C45: 4440553614 | D45: 4085127417 | E45: 4386971962 | F45: 6359142279 | G45: 5211350606 | H45: 5211350606 | I45: 5211350606 | J45: ='SA3'!J63 -> 5629664945 | K45: ='SA3'!K63 -> 6255560971 | L45: ='SA3'!L63 -> 6785717951
A46: Reserves | B46: 4 | C46: ='SA3'!C70 -> 0 | D46: ='SA3'!D70 -> 0 | E46: ='SA3'!E70 -> 0 | F46: ='SA3'!F70 -> 0 | G46: ='SA3'!G70 -> 0 | H46: ='SA3'!H70 -> 0 | I46: ='SA3'!I70 -> 0 | J46: ='SA3'!J70 -> 0 | K46: ='SA3'!K70 -> 0 | L46: ='SA3'!L70 -> 0
A48: TOTAL COMMUNITY WEALTH/EQUITY | B48: 5 | C48: =SUM(C45:C46) -> 4440553614 | D48: =SUM(D45:D46) -> 4085127417 | E48: 4386971962 | F48: 6359142279 | G48: 5211350606 | H48: 5211350606 | I48: 5211350606 | J48: 5629664945 | K48: 6255560971 | L48: 6785717951
A49: =head27a -> References
A50: 1. Detail to be provided in Table SA3
A51: 2. Include completed low cost housing to be transferred to beneficiaries within 12 months
A52: 3. Include 'Construction-work-in-progress' (disclosed separately in annual financial statements)
A53: 4. Detail to be provided in Table SA3. Includes reserves to be funded by statute. | J53: =J42-J48 -> -1 | K53: =K42-K48 -> -1 | L53: =L42-L48 -> -1
A54: 5. Net assets must balance with Total Community Wealth/Equity
A55: check balance | C55: =IF((C42-C48)=0,0,"Unbalanced") -> Unbalanced | D55: =IF((D42-D48)=0,0,"Unbalanced") -> 0 | E55: 0 | F55: 0 | G55: 0 | H55: 0 | I55: 0 | J55: Unbalanced | K55: Unbalanced | L55: Unbalanced

Sheet A7-CFlow
A1: =muni&" - "&Approve7 -> DC12 Amathole - Table A7 Budgeted Cash Flows
A2: =desc -> Description | B2: =head27 -> Ref | C2: =head1b -> 2016/17 | D2: =head1A -> 2017/18 | E2: =Head1 -> 2018/19 | F2: =Head2 -> Current Year 2019/20 | J2: =Head3 -> 2020/21 Medium Term Revenue & Expenditure Framework
A3: R thousand | C3: =Head5 -> Audited Outcome | D3: =Head5 -> Audited Outcome | E3: =Head5 -> Audited Outcome | F3: =Head6 -> Original Budget | G3: =Head7 -> Adjusted Budget | H3: =Head8 -> Full Year Forecast | I3: =Head5b -> Pre-audit outcome | J3: =Head9 -> Budget Year 2020/21 | K3: =Head10 -> Budget Year +1 2021/22 | L3: =Head11 -> Budget Year +2 2022/23
A4: CASH FLOW FROM OPERATING ACTIVITIES
A5: Receipts
A6: Property rates | J6: ='SA30'!N5 -> 0 | K6: ='SA30'!O5 -> 0 | L6: ='SA30'!P5 -> 0
A7: Service charges | C7: 76984152 | D7: 49457056.6 | E7: 118285806.9 | F7: 381121367 | G7: 283829636.5 | H7: 283829636.5 | I7: 283829636.5 | J7: ='SA30'!N6+'SA30'!N7+'SA30'!N8+'SA30'!N9 -> 265731119.5 | K7: ='SA30'!O6+'SA30'!O7+'SA30'!O8+'SA30'!O9 -> 282424987 | L7: ='SA30'!P6+'SA30'!P7+'SA30'!P8+'SA30'!P9 -> 290028486.4
A8: Other revenue | C8: 61533308 | D8: 3450086.75 | E8: 4075517 | F8: 76523828.04 | G8: 76237076.04 | H8: 76237076.04 | I8: 76237076.04 | J8: ='SA30'!N11+'SA30'!N15+'SA30'!N16+'SA30'!N17+'SA30'!N19 -> 72544844 | K8: ='SA30'!O11+'SA30'!O15+'SA30'!O16+'SA30'!O17+'SA30'!O19 -> 82368089 | L8: ='SA30'!P11+'SA30'!P15+'SA30'!P16+'SA30'!P17+'SA30'!P19 -> 82927832
A9: Transfers and Subsidies - Operational | B9: 1 | D9: =1363057169.34-577943626 -> 785113543.3 | E9: =1384061510.34-613129611 -> 770931899.3 | F9: 859258783 | G9: 1125274830 | H9: 1125274830 | I9: 1125274830 | J9: ='SA30'!N18 -> 959432133 | K9: ='SA30'!O18 -> 991670163 | L9: ='SA30'!P18 -> 1057558355
A10: Transfers and Subsidies - Capital | B10: 1 | C10: 1173816883 | D10: 577943626 | E10: 613129611 | F10: 543037365 | G10: 395484403 | H10: 395484403 | I10: 395484403 | J10: ='SA30'!N23 -> 491381465 | K10: ='SA30'!O23 -> 600491315 | L10: ='SA30'!P23 -> 603602546
A11: Interest | C11: 48481005 | D11: 18278339.2 | E11: 19337350.38 | F11: 76000897 | G11: 48526588.6 | H11: 48526588.6 | I11: 48526588.6 | J11: ='SA30'!N12+'SA30'!N13 -> 83050272.7 | K11: ='SA30'!O12+'SA30'!O13 -> 107492514.4 | L11: ='SA30'!P12+'SA30'!P13 -> 124117094
A12: Dividends | J12: ='SA30'!N14 -> 0 | K12: ='SA30'!O14 -> 0 | L12: ='SA30'!P14 -> 0
A13: Payments
A14: Suppliers and employees | C14: -1028776895 | D14: -1019453125 | E14: -1155541157 | F14: -1134663167 | G14: -1568223008 | H14: -1568223008 | I14: -1568223008 | J14: =-('SA30'!N35+'SA30'!N36+'SA30'!N38+'SA30'!N39+'SA30'!N40+'SA30'!N41+'SA30'!N44+'SA30'!N50) -> -1304500291 | K14: =-('SA30'!O35+'SA30'!O36+'SA30'!O38+'SA30'!O39+'SA30'!O40+'SA30'!O41+'SA30'!O44+'SA30'!O50) -> -1328898095 | L14: =-('SA30'!P35+'SA30'!P36+'SA30'!P38+'SA30'!P39+'SA30'!P40+'SA30'!P41+'SA30'!P44+'SA30'!P50) -> -1482399948
A15: Finance charges | C15: -8178141 | D15: -27598655.18 | E15: -26002680.57 | F15: -26354647 | G15: -13686089 | H15: -13686089 | I15: -13686089 | J15: =-('SA30'!N37) -> -28139522.9 | K15: =-('SA30'!O37) -> -30338874.58 | L15: =-('SA30'!P37) -> -32441437.16
A16: Transfers and Grants | B16: 1 | D16: -1902381 | E16: -2781412 | F16: -20357689 | G16: -19654217 | H16: -19654217 | I16: -19654217 | J16: =-('SA30'!N42+'SA30'!N43) -> -15000000 | K16: =-('SA30'!O42+'SA30'!O43) -> -10000000 | L16: =-('SA30'!P42+'SA30'!P43) -> -10000000
A17: NET CASH FROM/(USED) OPERATING ACTIVITIES | C17: =SUM(C6:C12)+SUM(C14:C16) -> 323860312 | D17: 385288490.7 | E17: 341434935.1 | F17: 754566737 | G17: 327789220.1 | H17: 327789220.1 | I17: 327789220.1 | J17: 524500020.1 | K17: 695210098.6 | L17: 633392928.4
A19: CASH FLOWS FROM INVESTING ACTIVITIES
A20: Receipts
A21: Proceeds on disposal of PPE | C21: 264549 | D21: 13212 | E21: 167098 | J21: ='SA30'!N24+'SA30'!N25 -> 0 | K21: ='SA30'!O24+'SA30'!O25 -> 0 | L21: ='SA30'!P24+'SA30'!P25 -> 0
A23: Decrease (increase) in non-current receivables | D23: 103.26 | J23: ='SA30'!N30 -> 0 | K23: ='SA30'!O30 -> 0 | L23: ='SA30'!P30 -> 0
A24: Decrease (increase) in non-current investments | C24: 125599349 | D24: -2000000 | J24: ='SA30'!N31 -> 0 | K24: ='SA30'!O31 -> 0 | L24: ='SA30'!P31 -> 0
A25: Payments
A26: Capital assets | C26: -281079034 | D26: -369468359 | E26: =-331080993-37267 -> -331118260 | F26: -592000085 | G26: -422699475 | H26: -422699475 | I26: -422699475 | J26: =-('SA30'!N48) -> -506521465 | K26: =-('SA30'!O48) -> -615562235 | L26: =-('SA30'!P48) -> -618674426
A27: NET CASH FROM/(USED) INVESTING ACTIVITIES | C27: =+C21+C23+C24+C26 -> -155215136 | D27: =+D21+D23+D24+D26 -> -371455043.7 | E27: -330951162 | F27: -592000085 | G27: -422699475 | H27: -422699475 | I27: -422699475 | J27: -506521465 | K27: -615562235 | L27: -618674426
A29: CASH FLOWS FROM FINANCING ACTIVITIES
A30: Receipts
A31: Short term loans | J31: ='SA30'!N26 -> 0 | K31: ='SA30'!O26 -> 0 | L31: ='SA30'!P26 -> 0
A32: Borrowing long term/refinancing | J32: ='SA30'!N27 -> 0 | K32: ='SA30'!O27 -> 0 | L32: ='SA30'!P27 -> 0
A33: Increase (decrease) in consumer deposits | C33: 231710 | J33: ='SA30'!N28 -> 0 | K33: ='SA30'!O28 -> 0 | L33: ='SA30'!P28 -> 0
A34: Payments
A35: Repayment of borrowing | C35: -132684268 | D35: -659962 | E35: -144261.26 | J35: =-('SA30'!N49) -> 0 | K35: =-('SA30'!O49) -> 0 | L35: =-('SA30'!P49) -> 0
A36: NET CASH FROM/(USED) FINANCING ACTIVITIES | C36: =SUM(C31:C33)+C35 -> -132452558 | D36: -659962 | E36: -144261.26 | F36: 0 | G36: 0 | H36: 0 | I36: 0 | J36: 0 | K36: 0 | L36: 0
A38: NET INCREASE/ (DECREASE) IN CASH HELD | C38: =C17+C27+C36 -> 36192618 | D38: =D17+D27+D36 -> 13173484.97 | E38: 10339511.83 | F38: 162566652 | G38: -94910254.86 | H38: -94910254.86 | I38: -94910254.86 | J38: 17978555.14 | K38: 79647863.63 | L38: 14718502.44
A39: Cash/cash equivalents at the year begin: | B39: 2 | C39: 131364632 | D39: 176785861 | E39: 189959346.1 | F39: 51478431 | G39: 190152983.7 | H39: 190152983.7 | I39: 190152983.7 | J39: ='SA30'!N54 -> 95242728.84 | K39: =J40 -> 113221284 | L39: =K40 -> 192869147.6
A40: Cash/cash equivalents at the year end: | B40: 2 | C40: =C38+C39 -> 167557250 | D40: =D38+D39 -> 189959346 | E40: =E38+E39 -> 200298857.9 | F40: =F38+F39 -> 214045083 | G40: 95242728.84 | H40: 95242728.84 | I40: 95242728.84 | J40: 113221284 | K40: 192869147.6 | L40: 207587650.1
A41: =head27a -> References
A42: 1. Local/District municipalities to include transfers from/to District/Local Municipalities
A43: 2. Cash equivalents includes investments with maturities of 3 months or less
A44: 3. The MTREF is populated directly from SA30.
A45: Total receipts | C45: =SUM(C6:C12)+SUM(C21:C23) -> 1361079897 | D45: 1434255967 | E45: 1525927283 | F45: 1935942240 | G45: 1929352534 | H45: 1929352534 | I45: 1929352534 | J45: 1872139834 | K45: 2064447068 | L45: 2158234313
A46: Total payments | C46: =SUM(C14:C16)+C26 -> -1318034070 | D46: =SUM(D14:D16)+D26 -> -1418422520 | E46: -1515443510 | F46: -1773375588 | G46: -2024262789 | H46: -2024262789 | I46: -2024262789 | J46: -1854161279 | K46: -1984799205 | L46: -2143515811
C47: =C45+C46 -> 43045827 | D47: =D45+D46 -> 15833446.97 | E47: 10483773.09 | F47: 162566652 | G47: -94910254.86 | H47: -94910254.86 | I47: -94910254.86 | J47: 17978555.14 | K47: 79647863.63 | L47: 14718502.44
A48: Borrowings & investments & c.deposits | C48: =C24+C32+C33 -> 125831059 | D48: =D24+D32+D33 -> -2000000 | E48: 0 | F48: 0 | G48: 0 | H48: 0 | I48: 0 | J48: 0 | K48: 0 | L48: 0
A49: =A35 -> Repayment of borrowing | C49: =C35 -> -132684268 | D49: =D35 -> -659962 | E49: -144261.26 | F49: 0 | G49: 0 | H49: 0 | I49: =I35 -> 0 | J49: 0 | K49: 0 | L49: 0
C50: =C47+C48+C49 -> 36192618 | D50: =D47+D48+D49 -> 13173484.97 | E50: 10339511.83 | F50: 162566652 | G50: -94910254.86 | H50: -94910254.86 | I50: -94910254.86 | J50: 17978555.14 | K50: 79647863.63 | L50: 14718502.44
C51: =C38-C50 -> 0 | D51: 0 | E51: 0 | F51: 0 | G51: 0 | H51: 0 | I51: 0 | J51: 0 | K51: 0 | L51: 0

Sheet A8-ResRecon
A1: =muni&" - "&Approve8 -> DC12 Amathole - Table A8 Cash backed reserves/accumulated surplus reconciliation
A2: =desc -> Description | B2: =head27 -> Ref | C2: =head1b -> 2016/17 | D2: =head1A -> 2017/18 | E2: =Head1 -> 2018/19 | F2: =Head2 -> Current Year 2019/20 | J2: =Head3 -> 2020/21 Medium Term Revenue & Expenditure Framework
A3: R thousand | C3: =Head5 -> Audited Outcome | D3: =Head5 -> Audited Outcome | E3: =Head5 -> Audited Outcome | F3: =Head6 -> Original Budget | G3: =Head7 -> Adjusted Budget | H3: =Head8 -> Full Year Forecast | I3: =Head5b -> Pre-audit outcome | J3: =Head9 -> Budget Year 2020/21 | K3: =Head10 -> Budget Year +1 2021/22 | L3: =Head11 -> Budget Year +2 2022/23
A4: Cash and investments available
A5: =LEFT('A7-CFlow'!A40,37) -> Cash/cash equivalents at the year end | B5: 1 | C5: ='A7-CFlow'!C40 -> 167557250 | D5: ='A7-CFlow'!D40 -> 189959346 | E5: ='A7-CFlow'!E40 -> 200298857.9 | F5: ='A7-CFlow'!F40 -> 214045083 | G5: ='A7-CFlow'!G40 -> 95242728.84 | H5: ='A7-CFlow'!H40 -> 95242728.84 | I5: ='A7-CFlow'!I40 -> 95242728.84 | J5: ='A7-CFlow'!J40 -> 113221284 | K5: ='A7-CFlow'!K40 -> 192869147.6 | L5: ='A7-CFlow'!L40 -> 207587650.1
A6: Other current investments > 90 days | C6: ='A6-FinPos'!C6+'A6-FinPos'!C7-'A6-FinPos'!C29-'A8-ResRecon'!C5 -> -0.1599999964 | D6: ='A6-FinPos'!D6+'A6-FinPos'!D7-'A6-FinPos'!D29-'A8-ResRecon'!D5 -> 0.1299999356 | E6: ='A6-FinPos'!E6+'A6-FinPos'!E7-'A6-FinPos'!E29-'A8-ResRecon'!E5 -> -1.219999939 | F6: ='A6-FinPos'!F6+'A6-FinPos'!F7-'A6-FinPos'!F29-'A8-ResRecon'!F5 -> 0 | G6: ='A6-FinPos'!G6+'A6-FinPos'!G7-'A6-FinPos'!G29-'A8-ResRecon'!G5 -> 1.192092896e-07 | H6: ='A6-FinPos'!H6+'A6-FinPos'!H7-'A6-FinPos'!H29-'A8-ResRecon'!H5 -> 1.192092896e-07 | I6: ='A6-FinPos'!I6+'A6-FinPos'!I7-'A6-FinPos'!I29-'A8-ResRecon'!I5 -> 1.192092896e-07 | J6: ='A6-FinPos'!J6+'A6-FinPos'!J7-'A6-FinPos'!J29-'A8-ResRecon'!J5 -> 0 | K6: ='A6-FinPos'!K6+'A6-FinPos'!K7-'A6-FinPos'!K29-'A8-ResRecon'!K5 -> 0 | L6: ='A6-FinPos'!L6+'A6-FinPos'!L7-'A6-FinPos'!L29-'A8-ResRecon'!L5 -> 0
A7: ='A6-FinPos'!A14&" - "&'A6-FinPos'!A16 -> Non current assets - Investments | B7: 1 | C7: ='A6-FinPos'!C16 -> 0 | D7: ='A6-FinPos'!D16 -> 2000000 | E7: ='A6-FinPos'!E16 -> 2137129 | F7: ='A6-FinPos'!F16 -> 2000000 | G7: ='A6-FinPos'!G16 -> 2137128.77 | H7: ='A6-FinPos'!H16 -> 2137128.77 | I7: ='A6-FinPos'!I16 -> 2137128.77 | J7: ='A6-FinPos'!J16 -> 2137128.77 | K7: ='A6-FinPos'!K16 -> 2137128.77 | L7: ='A6-FinPos'!L16 -> 2137128.77
A8: Cash and investments available: | C8: =SUM(C5:C7) -> 167557249.8 | D8: =SUM(D5:D7) -> 191959346.1 | E8: 202435985.7 | F8: 216045083 | G8: 97379857.61 | H8: 97379857.61 | I8: 97379857.61 | J8: 115358412.7 | K8: 195006276.4 | L8: 209724778.8
A10: Application of cash and investments
A11: ='SA3'!A37 -> Unspent conditional transfers | C11: ='SA3'!C37 -> 50801686.77 | D11: ='SA3'!D37 -> 67213572 | E11: ='SA3'!E37 -> 111276824.5 | F11: ='SA3'!F37 -> 0 | G11: ='SA3'!G37 -> 0 | H11: ='SA3'!H37 -> 0 | I11: ='SA3'!I37 -> 0 | J11: ='SA3'!J37 -> 0 | K11: ='SA3'!K37 -> 0 | L11: ='SA3'!L37 -> 0
A12: Unspent borrowing | C12: ='SA17'!C67 -> 0 | D12: ='SA17'!D67 -> 0 | E12: ='SA17'!E67 -> 0 | F12: ='SA17'!F67 -> 0 | G12: ='SA17'!G67 -> 0 | H12: ='SA17'!H67 -> 0 | J12: ='SA17'!I67 -> 0 | K12: ='SA17'!J67 -> 0 | L12: ='SA17'!K67 -> 0
A13: Statutory requirements | B13: 2
A14: Other working capital requirements | B14: 3 | C14: =-C32 -> 330392633.4 | D14: =-D32 -> 373700354.8 | E14: 396240283.2 | F14: =-F32 -> 242447493.8 | G14: 94714493.75 | H14: 94714493.75 | I14: 94714493.75 | J14: 111278493.8 | K14: 72359493.75 | L14: 52897493.75
A15: Other provisions
A16: Long term investments committed | B16: 4 | C16: =C52 -> 0 | D16: =D52 -> 0 | E16: 0 | F16: 0 | G16: 0 | H16: 0 | I16: 0 | J16: 0 | K16: 0 | L16: 0
A17: Reserves to be backed by cash/investments | B17: 5 | F17: 29000000
A18: ="Total "&A10&":" -> Total Application of cash and investments: | C18: =SUM(C11:C17) -> 381194320.2 | D18: =SUM(D11:D17) -> 440913926.8 | E18: 507517107.7 | F18: 271447493.8 | G18: 94714493.75 | H18: 94714493.75 | I18: 94714493.75 | J18: 111278493.8 | K18: 72359493.75 | L18: 52897493.75
A19: Surplus(shortfall) | C19: =C8-C18 -> -213637070.3 | D19: =D8-D18 -> -248954580.7 | E19: -305081122 | F19: -55402410.71 | G19: 2665363.858 | H19: 2665363.858 | I19: 2665363.858 | J19: 4079918.998 | K19: 122646782.6 | L19: 156827285.1
A20: =head27a -> References
A21: 1. Must reconcile with Budgeted Cash Flows
A22: 2. For example: VAT, taxation
A23: 3. Council approval for policy required - include sufficient working capital (e.g. allowing for a % of current debtors > 90 days as uncollectable)
A24: 4. For example: sinking fund requirements for borrowing
A25: 5. Council approval required for each reserve created and basis of cash backing of reserves
A28: Other working capital requirements
A29: Debtors | C29: =IF(ISERROR(ROUND(C35*C36,-3)),0,(ROUND(C35*C36,-3))) -> 55556000 | D29: =IF(ISERROR(ROUND(D35*D36,-3)),0,(ROUND(D35*D36,-3))) -> 33828000 | E29: 90622000 | F29: 391720000 | G29: 292873000 | H29: 292873000 | I29: 292873000 | J29: 288309000 | K29: 297228000 | L29: 301690000
A31: Creditors due | C31: ='SA3'!C35+'SA3'!C36 -> 385948633.4 | D31: ='SA3'!D35+'SA3'!D36 -> 407528354.8 | E31: ='SA3'!E35+'SA3'!E36 -> 486862283.2 | F31: ='SA3'!F35+'SA3'!F36 -> 634167493.8 | G31: ='SA3'!G35+'SA3'!G36 -> 387587493.8 | H31: ='SA3'!H35+'SA3'!H36 -> 387587493.8 | I31: ='SA3'!I35+'SA3'!I36 -> 387587493.8 | J31: ='SA3'!J35+'SA3'!J36 -> 399587493.8 | K31: ='SA3'!K35+'SA3'!K36 -> 369587493.8 | L31: ='SA3'!L35+'SA3'!L36 -> 354587493.8
A32: Total | C32: =C29-C31 -> -330392633.4 | D32: =D29-D31 -> -373700354.8 | E32: -396240283.2 | F32: -242447493.8 | G32: -94714493.75 | H32: -94714493.75 | I32: -94714493.75 | J32: -111278493.8 | K32: -72359493.75 | L32: -52897493.75
A34: Debtors collection assumptions
A35: Balance outstanding - debtors | C35: ='A6-FinPos'!C8+'A6-FinPos'!C9+'A6-FinPos'!C15 -> 126983340.1 | D35: ='A6-FinPos'!D8+'A6-FinPos'!D9+'A6-FinPos'!D15 -> 176592274.6 | E35: ='A6-FinPos'!E8+'A6-FinPos'!E9+'A6-FinPos'!E15 -> 321208803.2 | F35: ='A6-FinPos'!F8+'A6-FinPos'!F9+'A6-FinPos'!F15 -> 589195144.7 | G35: ='A6-FinPos'!G8+'A6-FinPos'!G9+'A6-FinPos'!G15 -> 581427238 | H35: ='A6-FinPos'!H8+'A6-FinPos'!H9+'A6-FinPos'!H15 -> 581427238 | I35: ='A6-FinPos'!I8+'A6-FinPos'!I9+'A6-FinPos'!I15 -> 581427238 | J35: ='A6-FinPos'!J8+'A6-FinPos'!J9+'A6-FinPos'!J15 -> 594099373.5 | K35: ='A6-FinPos'!K8+'A6-FinPos'!K9+'A6-FinPos'!K15 -> 607712732 | L35: ='A6-FinPos'!L8+'A6-FinPos'!L9+'A6-FinPos'!L15 -> 620877177.2
A36: Estimate of debtors collection rate | C36: =IF(ISERROR('SA10'!D10),0,('SA10'!D10)) -> 0.4375022926 | D36: =IF(ISERROR('SA10'!E10),0,('SA10'!E10)) -> 0.1915608574 | E36: =IF(ISERROR('SA10'!F10),0,('SA10'!F10)) -> 0.2821286934 | F36: =IF(ISERROR('SA10'!G10),0,('SA10'!G10)) -> 0.6648388151 | G36: =IF(ISERROR('SA10'!H10),0,('SA10'!H10)) -> 0.5037137615 | H36: =IF(ISERROR('SA10'!I10),0,('SA10'!I10)) -> 0.5037137615 | I36: =IF(ISERROR('SA10'!J10),0,('SA10'!J10)) -> 0.5037137615 | J36: =IF(ISERROR('SA10'!K10),0,('SA10'!K10)) -> 0.485287383 | K36: =IF(ISERROR('SA10'!L10),0,('SA10'!L10)) -> 0.4890921747 | L36: =IF(ISERROR('SA10'!M10),0,('SA10'!M10)) -> 0.4859095832
K39: `
A40: =A16 -> Long term investments committed
A41: Balance (Insert description; eg sinking fund)
C52: =SUM(C41:C51) -> 0 | D52: =SUM(D41:D51) -> 0 | E52: 0 | F52: 0 | G52: 0 | H52: 0 | I52: 0 | J52: 0 | K52: 0 | L52: 0
A53: =A17 -> Reserves to be backed by cash/investments
A54: ='SA3'!A65 -> Housing Development Fund | C54: ='SA3'!C65 -> 0 | D54: ='SA3'!D65 -> 0 | E54: ='SA3'!E65 -> 0 | F54: ='SA3'!F65 -> 0 | G54: ='SA3'!G65 -> 0 | H54: ='SA3'!H65 -> 0 | I54: ='SA3'!I65 -> 0 | J54: ='SA3'!J65 -> 0 | K54: ='SA3'!K65 -> 0 | L54: ='SA3'!L65 -> 0
A55: ='SA3'!A66 -> Capital replacement
A56: ='SA3'!A67 -> Self-insurance
A57: Other (list)
C67: =SUM(C54:C65) -> 0 | D67: 0 | E67: 0 | F67: 0 | G67: 0 | H67: 0 | I67: 0 | J67: 0 | K67: 0 | L67: 0

Sheet A9-Asset
A1: =muni&" - "&Approve9 -> DC12 Amathole - Table A9 Asset Management
A2: =desc -> Description | B2: =head27 -> Ref | C2: =head1b -> 2016/17 | D2: =head1A -> 2017/18 | E2: =Head1 -> 2018/19 | F2: =Head2 -> Current Year 2019/20 | I2: =Head3 -> 2020/21 Medium Term Revenue & Expenditure Framework
A3: R thousand | C3: =Head5 -> Audited Outcome | D3: =Head5 -> Audited Outcome | E3: =Head5 -> Audited Outcome | F3: =Head6 -> Original Budget | G3: =Head7 -> Adjusted Budget | H3: =Head8 -> Full Year Forecast | I3: =Head9 -> Budget Year 2020/21 | J3: =Head10 -> Budget Year +1 2021/22 | K3: =Head11 -> Budget Year +2 2022/23
A4: CAPITAL EXPENDITURE
A5: Total New Assets | B5: 1 | C5: =C15+C18+C19+C22+C25+C26+SUM(C29:C35) -> 32180119 | D5: =D15+D18+D19+D22+D25+D26+SUM(D29:D35) -> 370156612 | E5: 334647104.5 | F5: 534167823.5 | G5: 390278770.4 | H5: 390278770.4 | I5: 408082936.2 | J5: 563911728.5 | K5: 532408233.1
A6: Roads Infrastructure | C6: =SA34a!C7 -> 0 | D6: =SA34a!D7 -> 0 | E6: =SA34a!E7 -> 0 | F6: =SA34a!F7 -> 0 | G6: =SA34a!G7 -> 0 | H6: =SA34a!H7 -> 0 | I6: =SA34a!I7 -> 0 | J6: =SA34a!J7 -> 0 | K6: =SA34a!K7 -> 0
A7: Storm water Infrastructure | C7: =SA34a!C12 -> 0 | D7: =SA34a!D12 -> 0 | E7: =SA34a!E12 -> 0 | F7: =SA34a!F12 -> 0 | G7: =SA34a!G12 -> 0 | H7: =SA34a!H12 -> 0 | I7: =SA34a!I12 -> 0 | J7: =SA34a!J12 -> 0 | K7: =SA34a!K12 -> 0
A8: Electrical Infrastructure | C8: =SA34a!C16 -> 0 | D8: =SA34a!D16 -> 0 | E8: =SA34a!E16 -> 0 | F8: =SA34a!F16 -> 0 | G8: =SA34a!G16 -> 0 | H8: =SA34a!H16 -> 0 | I8: =SA34a!I16 -> 0 | J8: =SA34a!J16 -> 0 | K8: =SA34a!K16 -> 0
A9: Water Supply Infrastructure | C9: =SA34a!C26 -> 58651184 | D9: =SA34a!D26 -> 360591659 | E9: =SA34a!E26 -> 320157084.9 | F9: =SA34a!F26 -> 309289021 | G9: =SA34a!G26 -> 322184707.4 | H9: =SA34a!H26 -> 322184707.4 | I9: =SA34a!I26 -> 360811346.1 | J9: =SA34a!J26 -> 499389435.2 | K9: =SA34a!K26 -> 465994873.7
A10: Sanitation Infrastructure | C10: =SA34a!C37 -> 84701 | D10: =SA34a!D37 -> 9485473 | E10: =SA34a!E37 -> 726770.58 | F10: =SA34a!F37 -> 176916082.5 | G10: =SA34a!G37 -> 41482355.99 | H10: =SA34a!H37 -> 41482355.99 | I10: =SA34a!I37 -> 32271590.07 | J10: =SA34a!J37 -> 49522293.3 | K10: =SA34a!K37 -> 51413359.39
A11: Solid Waste Infrastructure | C11: =SA34a!C44 -> 0 | D11: =SA34a!D44 -> 0 | E11: =SA34a!E44 -> 0 | F11: =SA34a!F44 -> 0 | G11: =SA34a!G44 -> 0 | H11: =SA34a!H44 -> 0 | I11: =SA34a!I44 -> 0 | J11: =SA34a!J44 -> 0 | K11: =SA34a!K44 -> 0
A12: Rail Infrastructure | C12: =SA34a!C52 -> 0 | D12: =SA34a!D52 -> 0 | E12: =SA34a!E52 -> 0 | F12: =SA34a!F52 -> 0 | G12: =SA34a!G52 -> 0 | H12: =SA34a!H52 -> 0 | I12: =SA34a!I52 -> 0 | J12: =SA34a!J52 -> 0 | K12: =SA34a!K52 -> 0
A13: Coastal Infrastructure | C13: =SA34a!C62 -> 0 | D13: =SA34a!D62 -> 0 | E13: =SA34a!E62 -> 0 | F13: =SA34a!F62 -> 0 | G13: =SA34a!G62 -> 0 | H13: =SA34a!H62 -> 0 | I13: =SA34a!I62 -> 0 | J13: =SA34a!J62 -> 0 | K13: =SA34a!K62 -> 0
A14: Information and Communication Infrastructure | C14: =SA34a!C68 -> 0 | D14: =SA34a!D68 -> 0 | E14: =SA34a!E68 -> 0 | F14: =SA34a!F68 -> 0 | G14: =SA34a!G68 -> 0 | H14: =SA34a!H68 -> 0 | I14: =SA34a!I68 -> 0 | J14: =SA34a!J68 -> 0 | K14: =SA34a!K68 -> 0
A15: Infrastructure | C15: =SUM(C6:C14) -> 58735885 | D15: =SUM(D6:D14) -> 370077132 | E15: 320883855.5 | F15: 486205103.5 | G15: 363667063.4 | H15: 363667063.4 | I15: 393082936.2 | J15: 548911728.5 | K15: 517408233.1
A16: Community Facilities | C16: =SA34a!C75 -> 0 | D16: =SA34a!D75 -> 0 | E16: =SA34a!E75 -> 0 | F16: =SA34a!F75 -> 0 | G16: =SA34a!G75 -> 0 | H16: =SA34a!H75 -> 0 | I16: =SA34a!I75 -> 0 | J16: =SA34a!J75 -> 0 | K16: =SA34a!K75 -> 0
A17: Sport and Recreation Facilities | C17: =SA34a!C98 -> 0 | D17: =SA34a!D98 -> 0 | E17: =SA34a!E98 -> 0 | F17: =SA34a!F98 -> 0 | G17: =SA34a!G98 -> 0 | H17: =SA34a!H98 -> 0 | I17: =SA34a!I98 -> 0 | J17: =SA34a!J98 -> 0 | K17: =SA34a!K98 -> 0
A18: Community Assets | C18: =SUM(C16:C17) -> 0 | D18: =SUM(D16:D17) -> 0 | E18: 0 | F18: 0 | G18: 0 | H18: 0 | I18: 0 | J18: 0 | K18: 0
A19: Heritage Assets | C19: =SA34a!C103 -> 0 | D19: =SA34a!D103 -> 0 | E19: =SA34a!E103 -> 0 | F19: =SA34a!F103 -> 0 | G19: =SA34a!G103 -> 0 | H19: =SA34a!H103 -> 0 | I19: =SA34a!I103 -> 0 | J19: =SA34a!J103 -> 0 | K19: =SA34a!K103 -> 0
A20: Revenue Generating | C20: =SA34a!C111 -> 0 | D20: =SA34a!D111 -> 0 | E20: =SA34a!E111 -> 0 | F20: =SA34a!F111 -> 0 | G20: =SA34a!G111 -> 0 | H20: =SA34a!H111 -> 0 | I20: =SA34a!I111 -> 0 | J20: =SA34a!J111 -> 0 | K20: =SA34a!K111 -> 0
A21: Non-revenue Generating | C21: =SA34a!C114 -> 0 | D21: =SA34a!D114 -> 0 | E21: =SA34a!E114 -> 0 | F21: =SA34a!F114 -> 0 | G21: =SA34a!G114 -> 0 | H21: =SA34a!H114 -> 0 | I21: =SA34a!I114 -> 0 | J21: =SA34a!J114 -> 0 | K21: =SA34a!K114 -> 0
A22: Investment properties | C22: =SUM(C20:C21) -> 0 | D22: =SUM(D20:D21) -> 0 | E22: 0 | F22: 0 | G22: 0 | H22: 0 | I22: 0 | J22: 0 | K22: 0
A23: Operational Buildings | C23: =SA34a!C119 -> 0 | D23: =SA34a!D119 -> 0 | E23: =SA34a!E119 -> 0 | F23: =SA34a!F119 -> 0 | G23: =SA34a!G119 -> 0 | H23: =SA34a!H119 -> 0 | I23: =SA34a!I119 -> 0 | J23: =SA34a!J119 -> 0 | K23: =SA34a!K119 -> 0
A24: Housing | C24: =SA34a!C131 -> 0 | D24: =SA34a!D131 -> 0 | E24: =SA34a!E131 -> 0 | F24: =SA34a!F131 -> 0 | G24: =SA34a!G131 -> 0 | H24: =SA34a!H131 -> 0 | I24: =SA34a!I131 -> 0 | J24: =SA34a!J131 -> 0 | K24: =SA34a!K131 -> 0
A25: Other Assets | C25: =SUM(C23:C24) -> 0 | D25: =SUM(D23:D24) -> 0 | E25: 0 | F25: 0 | G25: 0 | H25: 0 | I25: 0 | J25: 0 | K25: 0
A26: Biological or Cultivated Assets | C26: =SA34a!C136 -> 0 | D26: =SA34a!D136 -> 0 | E26: =SA34a!E136 -> 0 | F26: =SA34a!F136 -> 0 | G26: =SA34a!G136 -> 0 | H26: =SA34a!H136 -> 0 | I26: =SA34a!I136 -> 0 | J26: =SA34a!J136 -> 0 | K26: =SA34a!K136 -> 0
A27: Servitudes | C27: =SA34a!C140 -> 0 | D27: =SA34a!D140 -> 0 | E27: =SA34a!E140 -> 0 | F27: =SA34a!F140 -> 0 | G27: =SA34a!G140 -> 0 | H27: =SA34a!H140 -> 0 | I27: =SA34a!I140 -> 0 | J27: =SA34a!J140 -> 0 | K27: =SA34a!K140 -> 0
A28: Licences and Rights | C28: =SA34a!C141 -> -29759074 | D28: =SA34a!D141 -> 0 | E28: =SA34a!E141 -> 0 | F28: =SA34a!F141 -> 46462720 | G28: =SA34a!G141 -> 26611707 | H28: =SA34a!H141 -> 26611707 | I28: =SA34a!I141 -> 15000000 | J28: =SA34a!J141 -> 15000000 | K28: =SA34a!K141 -> 15000000
A29: Intangible Assets | C29: =SUM(C27:C28) -> -29759074 | D29: =SUM(D27:D28) -> 0 | E29: 0 | F29: 46462720 | G29: 26611707 | H29: 26611707 | I29: 15000000 | J29: 15000000 | K29: 15000000
A30: Computer Equipment | C30: =SA34a!C149 -> 0 | D30: =SA34a!D149 -> 0 | E30: =SA34a!E149 -> 139771 | F30: =SA34a!F149 -> 0 | G30: =SA34a!G149 -> 0 | H30: =SA34a!H149 -> 0 | I30: =SA34a!I149 -> 0 | J30: =SA34a!J149 -> 0 | K30: =SA34a!K149 -> 0
A31: Furniture and Office Equipment | C31: =SA34a!C152 -> 766510 | D31: =SA34a!D152 -> 0 | E31: =SA34a!E152 -> 5500 | F31: =SA34a!F152 -> 0 | G31: =SA34a!G152 -> 0 | H31: =SA34a!H152 -> 0 | I31: =SA34a!I152 -> 0 | J31: =SA34a!J152 -> 0 | K31: =SA34a!K152 -> 0
A32: Machinery and Equipment | C32: =SA34a!C155 -> 26197 | D32: =SA34a!D155 -> 79480 | E32: =SA34a!E155 -> 0 | F32: =SA34a!F155 -> 1500000 | G32: =SA34a!G155 -> 0 | H32: =SA34a!H155 -> 0 | I32: =SA34a!I155 -> 0 | J32: =SA34a!J155 -> 0 | K32: =SA34a!K155 -> 0
A33: Transport Assets | C33: =SA34a!C158 -> 2394548 | D33: =SA34a!D158 -> 0 | E33: =SA34a!E158 -> 13617978 | F33: =SA34a!F158 -> 0 | G33: =SA34a!G158 -> 0 | H33: =SA34a!H158 -> 0 | I33: =SA34a!I158 -> 0 | J33: =SA34a!J158 -> 0 | K33: =SA34a!K158 -> 0
A34: Land | C34: =SA34a!C161 -> 16053 | D34: =SA34a!D161 -> 0 | E34: =SA34a!E161 -> 0 | F34: =SA34a!F161 -> 0 | G34: =SA34a!G161 -> 0 | H34: =SA34a!H161 -> 0 | I34: =SA34a!I161 -> 0 | J34: =SA34a!J161 -> 0 | K34: =SA34a!K161 -> 0
A35: Zoo's, Marine and Non-biological Animals | C35: =SA34a!C164 -> 0 | D35: =SA34a!D164 -> 0 | E35: =SA34a!E164 -> 0 | F35: =SA34a!F164 -> 0 | G35: =SA34a!G164 -> 0 | H35: =SA34a!H164 -> 0 | I35: =SA34a!I164 -> 0 | J35: =SA34a!J164 -> 0 | K35: =SA34a!K164 -> 0
A37: Total Renewal of Existing Assets | B37: 2 | C37: =C47+C50+C51+C54+C57+C58+SUM(C61:C67) -> 0 | D37: =D47+D50+D51+D54+D57+D58+SUM(D61:D67) -> 720404 | E37: 315515.83 | F37: 3200000 | G37: 3913658 | H37: 3913658 | I37: 22930000 | J37: 9894327.254 | K37: 9571880
A38: Roads Infrastructure | C38: =SA34b!C7 -> 0 | D38: =SA34b!D7 -> 0 | E38: =SA34b!E7 -> 0 | F38: =SA34b!F7 -> 0 | G38: =SA34b!G7 -> 0 | H38: =SA34b!H7 -> 0 | I38: =SA34b!I7 -> 0 | J38: =SA34b!J7 -> 0 | K38: =SA34b!K7 -> 0
A39: Storm water Infrastructure | C39: =SA34b!C12 -> 0 | D39: =SA34b!D12 -> 0 | E39: =SA34b!E12 -> 0 | F39: =SA34b!F12 -> 0 | G39: =SA34b!G12 -> 0 | H39: =SA34b!H12 -> 0 | I39: =SA34b!I12 -> 0 | J39: =SA34b!J12 -> 0 | K39: =SA34b!K12 -> 0
A40: Electrical Infrastructure | C40: =SA34b!C16 -> 0 | D40: =SA34b!D16 -> 0 | E40: =SA34b!E16 -> 0 | F40: =SA34b!F16 -> 0 | G40: =SA34b!G16 -> 0 | H40: =SA34b!H16 -> 0 | I40: =SA34b!I16 -> 0 | J40: =SA34b!J16 -> 0 | K40: =SA34b!K16 -> 0
A41: Water Supply Infrastructure | C41: =SA34b!C26 -> 0 | D41: =SA34b!D26 -> 0 | E41: =SA34b!E26 -> 0 | F41: =SA34b!F26 -> 2200000 | G41: =SA34b!G26 -> 860000 | H41: =SA34b!H26 -> 860000 | I41: =SA34b!I26 -> 15500000 | J41: =SA34b!J26 -> 8094022.867 | K41: =SA34b!K26 -> 9500000
A42: Sanitation Infrastructure | C42: =SA34b!C37 -> 0 | D42: =SA34b!D37 -> 0 | E42: =SA34b!E37 -> 0 | F42: =SA34b!F37 -> 0 | G42: =SA34b!G37 -> 2450289 | H42: =SA34b!H37 -> 2450289 | I42: =SA34b!I37 -> 7290000 | J42: =SA34b!J37 -> 1729384.387 | K42: =SA34b!K37 -> 0
A43: Solid Waste Infrastructure | C43: =SA34b!C44 -> 0 | D43: =SA34b!D44 -> 0 | E43: =SA34b!E44 -> 0 | F43: =SA34b!F44 -> 0 | G43: =SA34b!G44 -> 0 | H43: =SA34b!H44 -> 0 | I43: =SA34b!I44 -> 0 | J43: =SA34b!J44 -> 0 | K43: =SA34b!K44 -> 0
A44: Rail Infrastructure | C44: =SA34b!C52 -> 0 | D44: =SA34b!D52 -> 0 | E44: =SA34b!E52 -> 0 | F44: =SA34b!F52 -> 0 | G44: =SA34b!G52 -> 0 | H44: =SA34b!H52 -> 0 | I44: =SA34b!I52 -> 0 | J44: =SA34b!J52 -> 0 | K44: =SA34b!K52 -> 0
A45: Coastal Infrastructure | C45: =SA34b!C62 -> 0 | D45: =SA34b!D62 -> 0 | E45: =SA34b!E62 -> 0 | F45: =SA34b!F62 -> 0 | G45: =SA34b!G62 -> 0 | H45: =SA34b!H62 -> 0 | I45: =SA34b!I62 -> 0 | J45: =SA34b!J62 -> 0 | K45: =SA34b!K62 -> 0
A46: Information and Communication Infrastructure | C46: =SA34b!C68 -> 0 | D46: =SA34b!D68 -> 0 | E46: =SA34b!E68 -> 0 | F46: =SA34b!F68 -> 0 | G46: =SA34b!G68 -> 0 | H46: =SA34b!H68 -> 0 | I46: =SA34b!I68 -> 0 | J46: =SA34b!J68 -> 0 | K46: =SA34b!K68 -> 0
A47: Infrastructure | C47: =SUM(C38:C46) -> 0 | D47: =SUM(D38:D46) -> 0 | E47: 0 | F47: 2200000 | G47: 3310289 | H47: 3310289 | I47: 22790000 | J47: 9823407.254 | K47: 9500000
A48: Community Facilities | C48: =SA34b!C75 -> 0 | D48: =SA34b!D75 -> 0 | E48: =SA34b!E75 -> 0 | F48: =SA34b!F75 -> 0 | G48: =SA34b!G75 -> 0 | H48: =SA34b!H75 -> 0 | I48: =SA34b!I75 -> 0 | J48: =SA34b!J75 -> 0 | K48: =SA34b!K75 -> 0
A49: Sport and Recreation Facilities | C49: =SA34b!C98 -> 0 | D49: =SA34b!D98 -> 0 | E49: =SA34b!E98 -> 0 | F49: =SA34b!F98 -> 0 | G49: =SA34b!G98 -> 0 | H49: =SA34b!H98 -> 0 | I49: =SA34b!I98 -> 0 | J49: =SA34b!J98 -> 0 | K49: =SA34b!K98 -> 0
A50: Community Assets | C50: =SUM(C48:C49) -> 0 | D50: =SUM(D48:D49) -> 0 | E50: 0 | F50: 0 | G50: 0 | H50: 0 | I50: 0 | J50: 0 | K50: 0
A51: Heritage Assets | C51: =SA34b!C103 -> 0 | D51: =SA34b!D103 -> 0 | E51: =SA34b!E103 -> 0 | F51: =SA34b!F103 -> 0 | G51: =SA34b!G103 -> 0 | H51: =SA34b!H103 -> 0 | I51: =SA34b!I103 -> 0 | J51: =SA34b!J103 -> 0 | K51: =SA34b!K103 -> 0
A52: Revenue Generating | C52: =SA34b!C111 -> 0 | D52: =SA34b!D111 -> 0 | E52: =SA34b!E111 -> 0 | F52: =SA34b!F111 -> 0 | G52: =SA34b!G111 -> 0 | H52: =SA34b!H111 -> 0 | I52: =SA34b!I111 -> 0 | J52: =SA34b!J111 -> 0 | K52: =SA34b!K111 -> 0
A53: Non-revenue Generating | C53: =SA34b!C114 -> 0 | D53: =SA34b!D114 -> 0 | E53: =SA34b!E114 -> 0 | F53: =SA34b!F114 -> 0 | G53: =SA34b!G114 -> 0 | H53: =SA34b!H114 -> 0 | I53: =SA34b!I114 -> 0 | J53: =SA34b!J114 -> 0 | K53: =SA34b!K114 -> 0
A54: Investment properties | C54: =SUM(C52:C53) -> 0 | D54: =SUM(D52:D53) -> 0 | E54: 0 | F54: 0 | G54: 0 | H54: 0 | I54: 0 | J54: 0 | K54: 0
A55: Operational Buildings | C55: =SA34b!C119 -> 0 | D55: =SA34b!D119 -> 0 | E55: =SA34b!E119 -> 0 | F55: =SA34b!F119 -> 0 | G55: =SA34b!G119 -> 0 | H55: =SA34b!H119 -> 0 | I55: =SA34b!I119 -> 0 | J55: =SA34b!J119 -> 0 | K55: =SA34b!K119 -> 0
A56: Housing | C56: =SA34b!C131 -> 0 | D56: =SA34b!D131 -> 0 | E56: =SA34b!E131 -> 0 | F56: =SA34b!F131 -> 0 | G56: =SA34b!G131 -> 0 | H56: =SA34b!H131 -> 0 | I56: =SA34b!I131 -> 0 | J56: =SA34b!J131 -> 0 | K56: =SA34b!K131 -> 0
A57: Other Assets | C57: =SUM(C55:C56) -> 0 | D57: =SUM(D55:D56) -> 0 | E57: 0 | F57: 0 | G57: 0 | H57: 0 | I57: 0 | J57: 0 | K57: 0
A58: Biological or Cultivated Assets | C58: =SA34b!C136 -> 0 | D58: =SA34b!D136 -> 0 | E58: =SA34b!E136 -> 0 | F58: =SA34b!F136 -> 0 | G58: =SA34b!G136 -> 0 | H58: =SA34b!H136 -> 0 | I58: =SA34b!I136 -> 0 | J58: =SA34b!J136 -> 0 | K58: =SA34b!K136 -> 0
A59: Servitudes | C59: =SA34b!C140 -> 0 | D59: =SA34b!D140 -> 0 | E59: =SA34b!E140 -> 0 | F59: =SA34b!F140 -> 0 | G59: =SA34b!G140 -> 0 | H59: =SA34b!H140 -> 0 | I59: =SA34b!I140 -> 0 | J59: =SA34b!J140 -> 0 | K59: =SA34b!K140 -> 0
A60: Licences and Rights | C60: =SA34b!C141 -> 0 | D60: =SA34b!D141 -> 0 | E60: =SA34b!E141 -> 0 | F60: =SA34b!F141 -> 0 | G60: =SA34b!G141 -> 0 | H60: =SA34b!H141 -> 0 | I60: =SA34b!I141 -> 0 | J60: =SA34b!J141 -> 0 | K60: =SA34b!K141 -> 0
A61: Intangible Assets | C61: =SUM(C59:C60) -> 0 | D61: =SUM(D59:D60) -> 0 | E61: 0 | F61: 0 | G61: 0 | H61: 0 | I61: 0 | J61: 0 | K61: 0
A62: Computer Equipment | C62: =SA34b!C149 -> 0 | D62: =SA34b!D149 -> 585960 | E62: =SA34b!E149 -> 200229.41 | F62: =SA34b!F149 -> 1000000 | G62: =SA34b!G149 -> 603369 | H62: =SA34b!H149 -> 603369 | I62: =SA34b!I149 -> 120000 | J62: =SA34b!J149 -> 50000 | K62: =SA34b!K149 -> 50000
A63: Furniture and Office Equipment | C63: =SA34b!C152 -> 0 | D63: =SA34b!D152 -> 0 | E63: =SA34b!E152 -> 0 | F63: =SA34b!F152 -> 0 | G63: =SA34b!G152 -> 0 | H63: =SA34b!H152 -> 0 | I63: =SA34b!I152 -> 20000 | J63: =SA34b!J152 -> 20920 | K63: =SA34b!K152 -> 21880
A64: Machinery and Equipment | C64: =SA34b!C155 -> 0 | D64: =SA34b!D155 -> 0 | E64: =SA34b!E155 -> 115286.42 | F64: =SA34b!F155 -> 0 | G64: =SA34b!G155 -> 0 | H64: =SA34b!H155 -> 0 | I64: =SA34b!I155 -> 0 | J64: =SA34b!J155 -> 0 | K64: =SA34b!K155 -> 0
A65: Transport Assets | C65: =SA34b!C158 -> 0 | D65: =SA34b!D158 -> 134444 | E65: =SA34b!E158 -> 0 | F65: =SA34b!F158 -> 0 | G65: =SA34b!G158 -> 0 | H65: =SA34b!H158 -> 0 | I65: =SA34b!I158 -> 0 | J65: =SA34b!J158 -> 0 | K65: =SA34b!K158 -> 0
A66: Land | C66: =SA34b!C161 -> 0 | D66: =SA34b!D161 -> 0 | E66: =SA34b!E161 -> 0 | F66: =SA34b!F161 -> 0 | G66: =SA34b!G161 -> 0 | H66: =SA34b!H161 -> 0 | I66: =SA34b!I161 -> 0 | J66: =SA34b!J161 -> 0 | K66: =SA34b!K161 -> 0
A67: Zoo's, Marine and Non-biological Animals | C67: =SA34b!C164 -> 0 | D67: =SA34b!D164 -> 0 | E67: =SA34b!E164 -> 0 | F67: =SA34b!F164 -> 0 | G67: =SA34b!G164 -> 0 | H67: =SA34b!H164 -> 0 | I67: =SA34b!I164 -> 0 | J67: =SA34b!J164 -> 0 | K67: =SA34b!K164 -> 0
A69: Total Upgrading of Existing Assets | B69: 6 | C69: =C79+C82+C83+C86+C89+C90+SUM(C93:C99) -> 0 | D69: =D79+D82+D83+D86+D89+D90+SUM(D93:D99) -> 2152338 | E69: 657336.88 | F69: 122287896.5 | G69: 193290266.9 | H69: 193290266.9 | I69: 135470921.5 | J69: 115098614.3 | K69: 150045716.9
A70: Roads Infrastructure | C70: =SA34e!C7 -> 0 | D70: =SA34e!D7 -> 0 | E70: =SA34e!E7 -> 0 | F70: =SA34e!F7 -> 0 | G70: =SA34e!G7 -> 0 | H70: =SA34e!H7 -> 0 | I70: =SA34e!I7 -> 0 | J70: =SA34e!J7 -> 0 | K70: =SA34e!K7 -> 0
A71: Storm water Infrastructure | C71: =SA34e!C12 -> 0 | D71: =SA34e!D12 -> 0 | E71: =SA34e!E12 -> 0 | F71: =SA34e!F12 -> 0 | G71: =SA34e!G12 -> 0 | H71: =SA34e!H12 -> 0 | I71: =SA34e!I12 -> 0 | J71: =SA34e!J12 -> 0 | K71: =SA34e!K12 -> 0
A72: Electrical Infrastructure | C72: =SA34e!C16 -> 0 | D72: =SA34e!D16 -> 0 | E72: =SA34e!E16 -> 0 | F72: =SA34e!F16 -> 0 | G72: =SA34e!G16 -> 0 | H72: =SA34e!H16 -> 0 | I72: =SA34e!I16 -> 0 | J72: =SA34e!J16 -> 0 | K72: =SA34e!K16 -> 0
A73: Water Supply Infrastructure | C73: =SA34e!C26 -> 0 | D73: =SA34e!D26 -> 0 | E73: =SA34e!E26 -> 0 | F73: =SA34e!F26 -> 86711396.58 | G73: =SA34e!G26 -> 145763767 | H73: =SA34e!H26 -> 145763767 | I73: =SA34e!I26 -> 107010921.5 | J73: =SA34e!J26 -> 91305877.84 | K73: =SA34e!K26 -> 114545716.9
A74: Sanitation Infrastructure | C74: =SA34e!C37 -> 0 | D74: =SA34e!D37 -> 0 | E74: =SA34e!E37 -> 0 | F74: =SA34e!F37 -> 35576499.93 | G74: =SA34e!G37 -> 47526499.93 | H74: =SA34e!H37 -> 47526499.93 | I74: =SA34e!I37 -> 28460000 | J74: =SA34e!J37 -> 23792736.45 | K74: =SA34e!K37 -> 35500000
A75: Solid Waste Infrastructure | C75: =SA34e!C44 -> 0 | D75: =SA34e!D44 -> 0 | E75: =SA34e!E44 -> 0 | F75: =SA34e!F44 -> 0 | G75: =SA34e!G44 -> 0 | H75: =SA34e!H44 -> 0 | I75: =SA34e!I44 -> 0 | J75: =SA34e!J44 -> 0 | K75: =SA34e!K44 -> 0
A76: Rail Infrastructure | C76: =SA34e!C52 -> 0 | D76: =SA34e!D52 -> 0 | E76: =SA34e!E52 -> 0 | F76: =SA34e!F52 -> 0 | G76: =SA34e!G52 -> 0 | H76: =SA34e!H52 -> 0 | I76: =SA34e!I52 -> 0 | J76: =SA34e!J52 -> 0 | K76: =SA34e!K52 -> 0
A77: Coastal Infrastructure | C77: =SA34e!C62 -> 0 | D77: =SA34e!D62 -> 0 | E77: =SA34e!E62 -> 0 | F77: =SA34e!F62 -> 0 | G77: =SA34e!G62 -> 0 | H77: =SA34e!H62 -> 0 | I77: =SA34e!I62 -> 0 | J77: =SA34e!J62 -> 0 | K77: =SA34e!K62 -> 0
A78: Information and Communication Infrastructure | C78: =SA34e!C68 -> 0 | D78: =SA34e!D68 -> 0 | E78: =SA34e!E68 -> 0 | F78: =SA34e!F68 -> 0 | G78: =SA34e!G68 -> 0 | H78: =SA34e!H68 -> 0 | I78: =SA34e!I68 -> 0 | J78: =SA34e!J68 -> 0 | K78: =SA34e!K68 -> 0
A79: Infrastructure | C79: =SUM(C70:C78) -> 0 | D79: 0 | E79: 0 | F79: 122287896.5 | G79: 193290266.9 | H79: 193290266.9 | I79: 135470921.5 | J79: 115098614.3 | K79: 150045716.9
A80: Community Facilities | C80: =SA34e!C75 -> 0 | D80: =SA34e!D75 -> 2152338 | E80: =SA34e!E75 -> 657336.88 | F80: =SA34e!F75 -> 0 | G80: =SA34e!G75 -> 0 | H80: =SA34e!H75 -> 0 | I80: =SA34e!I75 -> 0 | J80: =SA34e!J75 -> 0 | K80: =SA34e!K75 -> 0
A81: Sport and Recreation Facilities | C81: =SA34e!C98 -> 0 | D81: =SA34e!D98 -> 0 | E81: =SA34e!E98 -> 0 | F81: =SA34e!F98 -> 0 | G81: =SA34e!G98 -> 0 | H81: =SA34e!H98 -> 0 | I81: =SA34e!I98 -> 0 | J81: =SA34e!J98 -> 0 | K81: =SA34e!K98 -> 0
A82: Community Assets | C82: =SUM(C80:C81) -> 0 | D82: 2152338 | E82: 657336.88 | F82: 0 | G82: 0 | H82: 0 | I82: 0 | J82: 0 | K82: 0
A83: Heritage Assets | C83: =SA34e!C103 -> 0 | D83: =SA34e!D103 -> 0 | E83: =SA34e!E103 -> 0 | F83: =SA34e!F103 -> 0 | G83: =SA34e!G103 -> 0 | H83: =SA34e!H103 -> 0 | I83: =SA34e!I103 -> 0 | J83: =SA34e!J103 -> 0 | K83: =SA34e!K103 -> 0
A84: Revenue Generating | C84: =SA34e!C111 -> 0 | D84: =SA34e!D111 -> 0 | E84: =SA34e!E111 -> 0 | F84: =SA34e!F111 -> 0 | G84: =SA34e!G111 -> 0 | H84: =SA34e!H111 -> 0 | I84: =SA34e!I111 -> 0 | J84: =SA34e!J111 -> 0 | K84: =SA34e!K111 -> 0
A85: Non-revenue Generating | C85: =SA34e!C114 -> 0 | D85: =SA34e!D114 -> 0 | E85: =SA34e!E114 -> 0 | F85: =SA34e!F114 -> 0 | G85: =SA34e!G114 -> 0 | H85: =SA34e!H114 -> 0 | I85: =SA34e!I114 -> 0 | J85: =SA34e!J114 -> 0 | K85: =SA34e!K114 -> 0
A86: Investment properties | C86: =SUM(C84:C85) -> 0 | D86: 0 | E86: 0 | F86: 0 | G86: 0 | H86: 0 | I86: 0 | J86: 0 | K86: 0
A87: Operational Buildings | C87: =SA34e!C119 -> 0 | D87: =SA34e!D119 -> 0 | E87: =SA34e!E119 -> 0 | F87: =SA34e!F119 -> 0 | G87: =SA34e!G119 -> 0 | H87: =SA34e!H119 -> 0 | I87: =SA34e!I119 -> 0 | J87: =SA34e!J119 -> 0 | K87: =SA34e!K119 -> 0
A88: Housing | C88: =SA34e!C131 -> 0 | D88: =SA34e!D131 -> 0 | E88: =SA34e!E131 -> 0 | F88: =SA34e!F131 -> 0 | G88: =SA34e!G131 -> 0 | H88: =SA34e!H131 -> 0 | I88: =SA34e!I131 -> 0 | J88: =SA34e!J131 -> 0 | K88: =SA34e!K131 -> 0
A89: Other Assets | C89: =SUM(C87:C88) -> 0 | D89: 0 | E89: 0 | F89: 0 | G89: 0 | H89: 0 | I89: 0 | J89: 0 | K89: 0
A90: Biological or Cultivated Assets | C90: =SA34e!C136 -> 0 | D90: =SA34e!D136 -> 0 | E90: =SA34e!E136 -> 0 | F90: =SA34e!F136 -> 0 | G90: =SA34e!G136 -> 0 | H90: =SA34e!H136 -> 0 | I90: =SA34e!I136 -> 0 | J90: =SA34e!J136 -> 0 | K90: =SA34e!K136 -> 0
A91: Servitudes | C91: =SA34e!C140 -> 0 | D91: =SA34e!D140 -> 0 | E91: =SA34e!E140 -> 0 | F91: =SA34e!F140 -> 0 | G91: =SA34e!G140 -> 0 | H91: =SA34e!H140 -> 0 | I91: =SA34e!I140 -> 0 | J91: =SA34e!J140 -> 0 | K91: =SA34e!K140 -> 0
A92: Licences and Rights | C92: =SA34e!C141 -> 0 | D92: =SA34e!D141 -> 0 | E92: =SA34e!E141 -> 0 | F92: =SA34e!F141 -> 0 | G92: =SA34e!G141 -> 0 | H92: =SA34e!H141 -> 0 | I92: =SA34e!I141 -> 0 | J92: =SA34e!J141 -> 0 | K92: =SA34e!K141 -> 0
A93: Intangible Assets | C93: =SUM(C91:C92) -> 0 | D93: 0 | E93: 0 | F93: 0 | G93: 0 | H93: 0 | I93: 0 | J93: 0 | K93: 0
A94: Computer Equipment | C94: =SA34e!C149 -> 0 | D94: =SA34e!D149 -> 0 | E94: =SA34e!E149 -> 0 | F94: =SA34e!F149 -> 0 | G94: =SA34e!G149 -> 0 | H94: =SA34e!H149 -> 0 | I94: =SA34e!I149 -> 0 | J94: =SA34e!J149 -> 0 | K94: =SA34e!K149 -> 0
A95: Furniture and Office Equipment | C95: =SA34e!C152 -> 0 | D95: =SA34e!D152 -> 0 | E95: =SA34e!E152 -> 0 | F95: =SA34e!F152 -> 0 | G95: =SA34e!G152 -> 0 | H95: =SA34e!H152 -> 0 | I95: =SA34e!I152 -> 0 | J95: =SA34e!J152 -> 0 | K95: =SA34e!K152 -> 0
A96: Machinery and Equipment | C96: =SA34e!C155 -> 0 | D96: =SA34e!D155 -> 0 | E96: =SA34e!E155 -> 0 | F96: =SA34e!F155 -> 0 | G96: =SA34e!G155 -> 0 | H96: =SA34e!H155 -> 0 | I96: =SA34e!I155 -> 0 | J96: =SA34e!J155 -> 0 | K96: =SA34e!K155 -> 0
A97: Transport Assets | C97: =SA34e!C158 -> 0 | D97: =SA34e!D158 -> 0 | E97: =SA34e!E158 -> 0 | F97: =SA34e!F158 -> 0 | G97: =SA34e!G158 -> 0 | H97: =SA34e!H158 -> 0 | I97: =SA34e!I158 -> 0 | J97: =SA34e!J158 -> 0 | K97: =SA34e!K158 -> 0
A98: Land | C98: =SA34e!C161 -> 0 | D98: =SA34e!D161 -> 0 | E98: =SA34e!E161 -> 0 | F98: =SA34e!F161 -> 0 | G98: =SA34e!G161 -> 0 | H98: =SA34e!H161 -> 0 | I98: =SA34e!I161 -> 0 | J98: =SA34e!J161 -> 0 | K98: =SA34e!K161 -> 0
A99: Zoo's, Marine and Non-biological Animals | C99: =SA34e!C164 -> 0 | D99: =SA34e!D164 -> 0 | E99: =SA34e!E164 -> 0 | F99: =SA34e!F164 -> 0 | G99: =SA34e!G164 -> 0 | H99: =SA34e!H164 -> 0 | I99: =SA34e!I164 -> 0 | J99: =SA34e!J164 -> 0 | K99: =SA34e!K164 -> 0
A101: Total Capital Expenditure | B101: 4 | C101: =+C5+C37+C69 -> 32180119 | D101: =+D5+D37+D69 -> 373029354 | E101: 335619957.2 | F101: 659655720 | G101: 587482695.3 | H101: 587482695.3 | I101: 566483857.6 | J101: 688904670 | K101: 692025830
A102: Roads Infrastructure | C102: =+C6+C38+C70 -> 0 | D102: =+D6+D38+D70 -> 0 | E102: 0 | F102: 0 | G102: 0 | H102: 0 | I102: 0 | J102: 0 | K102: 0
A103: Storm water Infrastructure | C103: =+C7+C39+C71 -> 0 | D103: 0 | E103: 0 | F103: 0 | G103: 0 | H103: 0 | I103: 0 | J103: 0 | K103: 0
A104: Electrical Infrastructure | C104: 0 | D104: 0 | E104: 0 | F104: 0 | G104: 0 | H104: 0 | I104: 0 | J104: 0 | K104: 0
A105: Water Supply Infrastructure | C105: 58651184 | D105: 360591659 | E105: 320157084.9 | F105: 398200417.6 | G105: 468808474.4 | H105: 468808474.4 | I105: 483322267.6 | J105: 598789335.9 | K105: 590040590.6
A106: Sanitation Infrastructure | C106: 84701 | D106: 9485473 | E106: 726770.58 | F106: 212492582.4 | G106: 91459144.91 | H106: 91459144.91 | I106: 68021590.07 | J106: 75044414.13 | K106: 86913359.39
A107: Solid Waste Infrastructure | C107: 0 | D107: 0 | E107: 0 | F107: 0 | G107: 0 | H107: 0 | I107: 0 | J107: 0 | K107: 0
A108: Rail Infrastructure | C108: 0 | D108: 0 | E108: 0 | F108: 0 | G108: 0 | H108: 0 | I108: 0 | J108: 0 | K108: 0
A109: Coastal Infrastructure | C109: 0 | D109: 0 | E109: 0 | F109: 0 | G109: 0 | H109: 0 | I109: 0 | J109: 0 | K109: 0
A110: Information and Communication Infrastructure | C110: 0 | D110: 0 | E110: 0 | F110: 0 | G110: 0 | H110: 0 | I110: 0 | J110: 0 | K110: 0
A111: Infrastructure | C111: =SUM(C102:C110) -> 58735885 | D111: =SUM(D102:D110) -> 370077132 | E111: 320883855.5 | F111: 610693000 | G111: 560267619.3 | H111: 560267619.3 | I111: 551343857.6 | J111: 673833750 | K111: 676953950
A112: Community Facilities | C112: =+C16+C48+C80 -> 0 | D112: =+D16+D48+D80 -> 2152338 | E112: 657336.88 | F112: 0 | G112: 0 | H112: 0 | I112: 0 | J112: 0 | K112: 0
A113: Sport and Recreation Facilities | C113: =+C17+C49+C81 -> 0 | D113: =+D17+D49+D81 -> 0 | E113: 0 | F113: 0 | G113: 0 | H113: 0 | I113: 0 | J113: 0 | K113: 0
A114: Community Assets | C114: =SUM(C112:C113) -> 0 | D114: =SUM(D112:D113) -> 2152338 | E114: 657336.88 | F114: 0 | G114: 0 | H114: 0 | I114: 0 | J114: 0 | K114: 0
A115: Heritage Assets | C115: =+C19+C51+C83 -> 0 | D115: =+D19+D51+D83 -> 0 | E115: 0 | F115: 0 | G115: 0 | H115: 0 | I115: 0 | J115: 0 | K115: 0
A116: Revenue Generating | C116: =+C20+C52+C84 -> 0 | D116: =+D20+D52+D84 -> 0 | E116: 0 | F116: 0 | G116: 0 | H116: 0 | I116: 0 | J116: 0 | K116: 0
A117: Non-revenue Generating | C117: =+C21+C53+C85 -> 0 | D117: =+D21+D53+D85 -> 0 | E117: 0 | F117: 0 | G117: 0 | H117: 0 | I117: 0 | J117: 0 | K117: 0
A118: Investment properties | C118: =SUM(C116:C117) -> 0 | D118: =SUM(D116:D117) -> 0 | E118: 0 | F118: 0 | G118: 0 | H118: 0 | I118: 0 | J118: 0 | K118: 0
A119: Operational Buildings | C119: =+C23+C55+C87 -> 0 | D119: =+D23+D55+D87 -> 0 | E119: 0 | F119: 0 | G119: 0 | H119: 0 | I119: 0 | J119: =+J23+J55+J87 -> 0 | K119: 0
A120: Housing | C120: =+C24+C56+C88 -> 0 | D120: =+D24+D56+D88 -> 0 | E120: 0 | F120: 0 | G120: 0 | H120: 0 | I120: 0 | J120: 0 | K120: 0
A121: Other Assets | C121: =SUM(C119:C120) -> 0 | D121: 0 | E121: 0 | F121: 0 | G121: 0 | H121: 0 | I121: 0 | J121: 0 | K121: 0
A122: Biological or Cultivated Assets | C122: =+C26+C58+C90 -> 0 | D122: =+D26+D58+D90 -> 0 | E122: 0 | F122: 0 | G122: 0 | H122: 0 | I122: 0 | J122: 0 | K122: 0
A123: Servitudes | C123: =+C27+C59+C91 -> 0 | D123: =+D27+D59+D91 -> 0 | E123: 0 | F123: 0 | G123: 0 | H123: 0 | I123: 0 | J123: 0 | K123: 0
A124: Licences and Rights | C124: =+C28+C60+C92 -> -29759074 | D124: =+D28+D60+D92 -> 0 | E124: 0 | F124: 46462720 | G124: 26611707 | H124: 26611707 | I124: 15000000 | J124: 15000000 | K124: 15000000
A125: Intangible Assets | C125: =SUM(C123:C124) -> -29759074 | D125: =SUM(D123:D124) -> 0 | E125: 0 | F125: 46462720 | G125: 26611707 | H125: 26611707 | I125: 15000000 | J125: 15000000 | K125: 15000000
A126: Computer Equipment | C126: =+C30+C62+C94 -> 0 | D126: =+D30+D62+D94 -> 585960 | E126: 340000.41 | F126: 1000000 | G126: 603369 | H126: 603369 | I126: 120000 | J126: 50000 | K126: 50000
A127: Furniture and Office Equipment | C127: =+C31+C63+C95 -> 766510 | D127: 0 | E127: 5500 | F127: 0 | G127: 0 | H127: 0 | I127: 20000 | J127: 20920 | K127: 21880
A128: Machinery and Equipment | C128: 26197 | D128: 79480 | E128: 115286.42 | F128: 1500000 | G128: 0 | H128: 0 | I128: 0 | J128: 0 | K128: 0
A129: Transport Assets | C129: 2394548 | D129: 134444 | E129: 13617978 | F129: 0 | G129: 0 | H129: 0 | I129: 0 | J129: 0 | K129: 0
A130: Land | C130: 16053 | D130: 0 | E130: 0 | F130: 0 | G130: 0 | H130: 0 | I130: 0 | J130: 0 | K130: 0
A131: Zoo's, Marine and Non-biological Animals | C131: 0 | D131: 0 | E131: 0 | F131: 0 | G131: 0 | H131: 0 | I131: 0 | J131: 0 | K131: 0
A132: TOTAL CAPITAL EXPENDITURE - Asset class | C132: =+C5+C37+C69 -> 32180119 | D132: =+D5+D37+D69 -> 373029354 | E132: 335619957.2 | F132: 659655720 | G132: 587482695.3 | H132: 587482695.3 | I132: 566483857.6 | J132: 688904670 | K132: 692025830
A134: ASSET REGISTER SUMMARY - PPE (WDV) | B134: 5 | C134: =C144+C147+C148+C151+C154+C155+C158+C159+C160+C161+C162+C163+C164 -> 4881196764 | D134: =D144+D147+D148+D151+D154+D155+D158+D159+D160+D161+D162+D163+D164 -> 4619085003 | E134: 4819055666 | F134: 6636954859 | G134: 5243805338 | H134: 5243805338 | I134: 5639971832 | J134: 6141527394 | K134: 6627469187
A135: Roads Infrastructure
A136: Storm water Infrastructure
A137: Electrical Infrastructure
A138: Water Supply Infrastructure | C138: =4522012195.28*60% -> 2713207317 | D138: 4065040239 | E138: 4301692804 | F138: 5542582036 | G138: 4655315820 | H138: 4655315820 | I138: =H138+I105-SA34d!I26 -> 5011934140 | J138: =I138+J105-SA34d!J26 -> 5471349131 | K138: =J138+K105-SA34d!K26 -> 5908077939
A139: Sanitation Infrastructure | C139: =4522012195.28*40% -> 1808804878 | D139: 205976564 | E139: 194684692 | F139: 628290909.4 | G139: 275764084 | H139: 275764084 | I139: =H139+I106-SA34d!I37 -> 332367944 | J139: =I139+J106-SA34d!J37 -> 394852852.2 | K139: =J139+K106-SA34d!K37 -> 467950752.6
A140: Solid Waste Infrastructure | D140: 2770721 | E140: 2572957
A141: Rail Infrastructure
A142: Coastal Infrastructure
A143: Information and Communication Infrastructure
A144: Infrastructure | C144: =SUM(C135:C143) -> 4522012195 | D144: =SUM(D135:D143) -> 4273787524 | E144: 4498950453 | F144: 6170872945 | G144: 4931079904 | H144: 4931079904 | I144: 5344302084 | J144: 5866201983 | K144: 6376028692
A147: Community Assets | C147: 48113420.04 | D147: 39804687 | E147: 38979966 | F147: 51568236.57 | G147: 35982275.07 | H147: 35982275.07 | I147: =H147+I114-SA34d!I74 -> 35982275.07 | J147: =I147+J114-SA34d!J74 -> 35982275.07 | K147: =J147+K114-SA34d!K74 -> 35982275.07
A148: Heritage Assets | C148: 400000 | D148: 400000 | E148: 400000 | F148: 349300 | G148: 400000 | H148: 400000 | I148: =H148+I115-SA34d!I103 -> 400000 | J148: =I148+J115-SA34d!J103 -> 400000 | K148: =J148+K115-SA34d!K103 -> 400000
A151: Investment properties | C151: 152121774 | D151: 151081758 | E151: 150724402 | F151: 172734625 | G151: 150276647.4 | H151: 150276647.4 | I151: =H151+I118-SA34d!I110 -> 149784116.4 | J151: =I151+J118-SA34d!J110 -> 149242332.4 | K151: =J151+K118-SA34d!K110 -> 148646370.4
A154: Other Assets | C154: 20290770.14 | D154: =26833339+119236 -> 26952575 | E154: 22483443 | F154: 18435338.14 | G154: 21955862.18 | H154: 21955862.18 | I154: =H154+I121-SA34d!I118 -> 21375523.18 | J154: =I154+J121-SA34d!J118 -> 20737150.18 | K154: =J154+K121-SA34d!K118 -> 20034939.18
A155: Biological or Cultivated Assets
A158: Intangible Assets | C158: 49627527.24 | D158: 39399871 | E158: 26549858 | F158: 133963783 | G158: 39132451.85 | H158: 39132451.85 | I158: =H158+I124-SA34d!I139 -> 38731773.85 | J158: =I158+J124-SA34d!J139 -> 36791027.85 | K158: =J158+K124-SA34d!K139 -> 33156206.85
A159: Computer Equipment | C159: =1138529+20805276+284150 -> 22227955 | D159: 27461029 | E159: 21530536 | F159: 24057433.75 | G159: 15881710.97 | H159: 15881710.97 | I159: =H159+I126-SA34d!I149 -> 12165817.97 | J159: =I159+J126-SA34d!J149 -> 7996335.97 | K159: =J159+K126-SA34d!K149 -> 3404904.97
A160: Furniture and Office Equipment | C160: =11614165+1492632+192159 -> 13298956 | D160: 10622144 | E160: 8062674 | F160: 11674115.98 | G160: 5746989.32 | H160: 5746989.32 | I160: =H160+I127-SA34d!I152 -> 4179720.32 | J160: =I160+J127-SA34d!J152 -> 2454640.32 | K160: =J160+K127-SA34d!K152 -> 555916.32
A161: Machinery and Equipment | C161: 5968737 | D161: 3543554 | E161: 1798389 | F161: 13245090.23 | G161: 1244325.76 | H161: 1244325.76 | I161: =H161+I128-SA34d!I155 -> 899546.76 | J161: =I161+J128-SA34d!J155 -> 520288.76 | K161: =J161+K128-SA34d!K155 -> 103101.76
A162: Transport Assets | C162: =47135429 -> 47135429 | D162: 40706769 | E162: 44250853 | F162: 40053991.21 | G162: 34206985.4 | H162: 34206985.4 | I162: =H162+I129-SA34d!I158 -> 24252789.4 | J162: =I162+J129-SA34d!J158 -> 13303175.4 | K162: =J162+K129-SA34d!K158 -> 1258595.4
A163: Land | D163: 5325092 | E163: 5325092 | G163: 7898185.36 | H163: 7898185.36 | I163: =H163+I130-SA34d!I161 -> 7898185.36 | J163: =I163+J130-SA34d!J161 -> 7898185.36 | K163: =J163+K130-SA34d!K161 -> 7898185.36
A164: Zoo's, Marine and Non-biological Animals
A165: TOTAL ASSET REGISTER SUMMARY - PPE (WDV) | B165: 5 | C165: =C144+C147+C148+C151+C154+C155+C158+C159+C160+C161+C162+C163+C164 -> 4881196764 | D165: =D144+D147+D148+D151+D154+D155+D158+D159+D160+D161+D162+D163+D164 -> 4619085003 | E165: 4819055666 | F165: 6636954859 | G165: 5243805338 | H165: 5243805338 | I165: 5639971832 | J165: 6141527394 | K165: 6627469187
A167: EXPENDITURE OTHER ITEMS | C167: =SUM(C168:C169) -> 132003795.5 | D167: =SUM(D168:D169) -> 123794026.2 | E167: 145763157.9 | F167: 183183216 | G167: 181324470 | H167: 181324470 | I167: 187154507 | J167: 213968243 | K167: 234416132
A168: Depreciation | B168: 7 | C168: =SA34d!C167 -> 111288592.5 | D168: =SA34d!D167 -> 107269535.3 | E168: =SA34d!E167 -> 129688666.7 | F168: =SA34d!F167 -> 162566655 | G168: =SA34d!G167 -> 162566655 | H168: =SA34d!H167 -> 162566655 | I168: =SA34d!I167 -> 170317363 | J168: =SA34d!J167 -> 187349108 | K168: =SA34d!K167 -> 206084037
A169: Repairs and Maintenance by Asset Class | B169: 3 | C169: =C179+C182+C183+C186+C189+C190+SUM(C193:C199) -> 20715203 | D169: =D179+D182+D183+D186+D189+D190+SUM(D193:D199) -> 16524490.93 | E169: 16074491.19 | F169: 20616561 | G169: 18757815 | H169: 18757815 | I169: 16837144 | J169: 26619135 | K169: 28332095
A170: Roads Infrastructure | C170: =SA34c!C7 -> 0 | D170: =SA34c!D7 -> 0 | E170: =SA34c!E7 -> 0 | F170: =SA34c!F7 -> 0 | G170: =SA34c!G7 -> 981599 | H170: =SA34c!H7 -> 981599 | I170: =SA34c!I7 -> 0 | J170: =SA34c!J7 -> 0 | K170: =SA34c!K7 -> 0
A171: Storm water Infrastructure | C171: =SA34c!C12 -> 0 | D171: =SA34c!D12 -> 0 | E171: =SA34c!E12 -> 0 | F171: =SA34c!F12 -> 0 | G171: =SA34c!G12 -> 0 | H171: =SA34c!H12 -> 0 | I171: =SA34c!I12 -> 0 | J171: =SA34c!J12 -> 0 | K171: =SA34c!K12 -> 0
A172: Electrical Infrastructure | C172: =SA34c!C16 -> 0 | D172: =SA34c!D16 -> 0 | E172: =SA34c!E16 -> 0 | F172: =SA34c!F16 -> 0 | G172: =SA34c!G16 -> 0 | H172: =SA34c!H16 -> 0 | I172: =SA34c!I16 -> 0 | J172: =SA34c!J16 -> 0 | K172: =SA34c!K16 -> 0
A173: Water Supply Infrastructure | C173: =SA34c!C26 -> 20715203 | D173: =SA34c!D26 -> 16524490.93 | E173: =SA34c!E26 -> 16074491.19 | F173: =SA34c!F26 -> 8696008 | G173: =SA34c!G26 -> 12359218 | H173: =SA34c!H26 -> 12359218 | I173: =SA34c!I26 -> 14022019 | J173: =SA34c!J26 -> 22971054 | K173: =SA34c!K26 -> 24455023
A174: Sanitation Infrastructure | C174: =SA34c!C37 -> 0 | D174: =SA34c!D37 -> 0 | E174: =SA34c!E37 -> 0 | F174: =SA34c!F37 -> 3172150 | G174: =SA34c!G37 -> 3926133 | H174: =SA34c!H37 -> 3926133 | I174: =SA34c!I37 -> 2815125 | J174: =SA34c!J37 -> 3648081 | K174: =SA34c!K37 -> 3877072
A175: Solid Waste Infrastructure | C175: =SA34c!C44 -> 0 | D175: =SA34c!D44 -> 0 | E175: =SA34c!E44 -> 0 | F175: =SA34c!F44 -> 0 | G175: =SA34c!G44 -> 0 | H175: =SA34c!H44 -> 0 | I175: =SA34c!I44 -> 0 | J175: =SA34c!J44 -> 0 | K175: =SA34c!K44 -> 0
A176: Rail Infrastructure | C176: =SA34c!C52 -> 0 | D176: =SA34c!D52 -> 0 | E176: =SA34c!E52 -> 0 | F176: =SA34c!F52 -> 0 | G176: =SA34c!G52 -> 0 | H176: =SA34c!H52 -> 0 | I176: =SA34c!I52 -> 0 | J176: =SA34c!J52 -> 0 | K176: =SA34c!K52 -> 0
A177: Coastal Infrastructure | C177: =SA34c!C62 -> 0 | D177: =SA34c!D62 -> 0 | E177: =SA34c!E62 -> 0 | F177: =SA34c!F62 -> 0 | G177: =SA34c!G62 -> 0 | H177: =SA34c!H62 -> 0 | I177: =SA34c!I62 -> 0 | J177: =SA34c!J62 -> 0 | K177: =SA34c!K62 -> 0
A178: Information and Communication Infrastructure | C178: =SA34c!C68 -> 0 | D178: =SA34c!D68 -> 0 | E178: =SA34c!E68 -> 0 | F178: =SA34c!F68 -> 0 | G178: =SA34c!G68 -> 0 | H178: =SA34c!H68 -> 0 | I178: =SA34c!I68 -> 0 | J178: =SA34c!J68 -> 0 | K178: =SA34c!K68 -> 0
A179: Infrastructure | C179: =SUM(C170:C178) -> 20715203 | D179: =SUM(D170:D178) -> 16524490.93 | E179: 16074491.19 | F179: 11868158 | G179: 17266950 | H179: 17266950 | I179: 16837144 | J179: 26619135 | K179: 28332095
A180: Community Facilities | C180: =SA34c!C75 -> 0 | D180: =SA34c!D75 -> 0 | E180: =SA34c!E75 -> 0 | F180: =SA34c!F75 -> 792000 | G180: =SA34c!G75 -> 0 | H180: =SA34c!H75 -> 0 | I180: =SA34c!I75 -> 0 | J180: =SA34c!J75 -> 0 | K180: =SA34c!K75 -> 0
A181: Sport and Recreation Facilities | C181: =SA34c!C98 -> 0 | D181: =SA34c!D98 -> 0 | E181: =SA34c!E98 -> 0 | F181: =SA34c!F98 -> 0 | G181: =SA34c!G98 -> 0 | H181: =SA34c!H98 -> 0 | I181: =SA34c!I98 -> 0 | J181: =SA34c!J98 -> 0 | K181: =SA34c!K98 -> 0
A182: Community Assets | C182: =SUM(C180:C181) -> 0 | D182: 0 | E182: 0 | F182: 792000 | G182: 0 | H182: 0 | I182: 0 | J182: 0 | K182: 0
A183: Heritage Assets | C183: =SA34c!C103 -> 0 | D183: =SA34c!D103 -> 0 | E183: =SA34c!E103 -> 0 | F183: =SA34c!F103 -> 0 | G183: =SA34c!G103 -> 0 | H183: =SA34c!H103 -> 0 | I183: =SA34c!I103 -> 0 | J183: =SA34c!J103 -> 0 | K183: =SA34c!K103 -> 0
A184: Revenue Generating | C184: =SA34c!C111 -> 0 | D184: =SA34c!D111 -> 0 | E184: =SA34c!E111 -> 0 | F184: =SA34c!F111 -> 0 | G184: =SA34c!G111 -> 0 | H184: =SA34c!H111 -> 0 | I184: =SA34c!I111 -> 0 | J184: =SA34c!J111 -> 0 | K184: =SA34c!K111 -> 0
A185: Non-revenue Generating | C185: =SA34c!C114 -> 0 | D185: =SA34c!D114 -> 0 | E185: =SA34c!E114 -> 0 | F185: =SA34c!F114 -> 0 | G185: =SA34c!G114 -> 0 | H185: =SA34c!H114 -> 0 | I185: =SA34c!I114 -> 0 | J185: =SA34c!J114 -> 0 | K185: =SA34c!K114 -> 0
A186: Investment properties | C186: =SUM(C184:C185) -> 0 | D186: 0 | E186: 0 | F186: 0 | G186: 0 | H186: 0 | I186: 0 | J186: 0 | K186: 0
A187: Operational Buildings | C187: =SA34c!C119 -> 0 | D187: =SA34c!D119 -> 0 | E187: =SA34c!E119 -> 0 | F187: =SA34c!F119 -> 3229139 | G187: =SA34c!G119 -> 1487527 | H187: =SA34c!H119 -> 1487527 | I187: =SA34c!I119 -> 0 | J187: =SA34c!J119 -> 0 | K187: =SA34c!K119 -> 0
A188: Housing | C188: =SA34c!C131 -> 0 | D188: =SA34c!D131 -> 0 | E188: =SA34c!E131 -> 0 | F188: =SA34c!F131 -> 0 | G188: =SA34c!G131 -> 0 | H188: =SA34c!H131 -> 0 | I188: =SA34c!I131 -> 0 | J188: =SA34c!J131 -> 0 | K188: =SA34c!K131 -> 0
A189: Other Assets | C189: =SUM(C187:C188) -> 0 | D189: 0 | E189: 0 | F189: 3229139 | G189: 1487527 | H189: 1487527 | I189: 0 | J189: 0 | K189: 0
A190: Biological or Cultivated Assets | C190: =SA34c!C136 -> 0 | D190: =SA34c!D136 -> 0 | E190: =SA34c!E136 -> 0 | F190: =SA34c!F136 -> 0 | G190: =SA34c!G136 -> 0 | H190: =SA34c!H136 -> 0 | I190: =SA34c!I136 -> 0 | J190: =SA34c!J136 -> 0 | K190: =SA34c!K136 -> 0
A191: Servitudes | C191: =SA34c!C140 -> 0 | D191: =SA34c!D140 -> 0 | E191: =SA34c!E140 -> 0 | F191: =SA34c!F140 -> 0 | G191: =SA34c!G140 -> 0 | H191: =SA34c!H140 -> 0 | I191: =SA34c!I140 -> 0 | J191: =SA34c!J140 -> 0 | K191: =SA34c!K140 -> 0
A192: Licences and Rights | C192: =SA34c!C141 -> 0 | D192: =SA34c!D141 -> 0 | E192: =SA34c!E141 -> 0 | F192: =SA34c!F141 -> 0 | G192: =SA34c!G141 -> 0 | H192: =SA34c!H141 -> 0 | I192: =SA34c!I141 -> 0 | J192: =SA34c!J141 -> 0 | K192: =SA34c!K141 -> 0
A193: Intangible Assets | C193: =SUM(C191:C192) -> 0 | D193: 0 | E193: 0 | F193: 0 | G193: 0 | H193: 0 | I193: 0 | J193: 0 | K193: 0
A194: Computer Equipment | C194: =SA34c!C149 -> 0 | D194: =SA34c!D149 -> 0 | E194: =SA34c!E149 -> 0 | F194: =SA34c!F149 -> 0 | G194: =SA34c!G149 -> 0 | H194: =SA34c!H149 -> 0 | I194: =SA34c!I149 -> 0 | J194: =SA34c!J149 -> 0 | K194: =SA34c!K149 -> 0
A195: Furniture and Office Equipment | C195: =SA34c!C152 -> 0 | D195: =SA34c!D152 -> 0 | E195: =SA34c!E152 -> 0 | F195: =SA34c!F152 -> 0 | G195: =SA34c!G152 -> 0 | H195: =SA34c!H152 -> 0 | I195: =SA34c!I152 -> 0 | J195: =SA34c!J152 -> 0 | K195: =SA34c!K152 -> 0
A196: Machinery and Equipment | C196: =SA34c!C155 -> 0 | D196: =SA34c!D155 -> 0 | E196: =SA34c!E155 -> 0 | F196: =SA34c!F155 -> 319765 | G196: =SA34c!G155 -> 3338 | H196: =SA34c!H155 -> 3338 | I196: =SA34c!I155 -> 0 | J196: =SA34c!J155 -> 0 | K196: =SA34c!K155 -> 0
A197: Transport Assets | C197: =SA34c!C158 -> 0 | D197: =SA34c!D158 -> 0 | E197: =SA34c!E158 -> 0 | F197: =SA34c!F158 -> 4407499 | G197: =SA34c!G158 -> 0 | H197: =SA34c!H158 -> 0 | I197: =SA34c!I158 -> 0 | J197: =SA34c!J158 -> 0 | K197: =SA34c!K158 -> 0
A198: Land | C198: =SA34c!C161 -> 0 | D198: =SA34c!D161 -> 0 | E198: =SA34c!E161 -> 0 | F198: =SA34c!F161 -> 0 | G198: =SA34c!G161 -> 0 | H198: =SA34c!H161 -> 0 | I198: =SA34c!I161 -> 0 | J198: =SA34c!J161 -> 0 | K198: =SA34c!K161 -> 0
A199: Zoo's, Marine and Non-biological Animals | C199: =SA34c!C164 -> 0 | D199: =SA34c!D164 -> 0 | E199: =SA34c!E164 -> 0 | F199: =SA34c!F164 -> 0 | G199: =SA34c!G164 -> 0 | H199: =SA34c!H164 -> 0 | I199: =SA34c!I164 -> 0 | J199: =SA34c!J164 -> 0 | K199: =SA34c!K164 -> 0
A201: TOTAL EXPENDITURE OTHER ITEMS | C201: =SUM(C168:C169) -> 132003795.5 | D201: 123794026.2 | E201: 145763157.9 | F201: 183183216 | G201: 181324470 | H201: 181324470 | I201: 187154507 | J201: 213968243 | K201: 234416132
A203: Renewal and upgrading of Existing Assets as % of total capex | C203: =IF(ISERROR((C37+C69)/C132),0,((C37+C69)/C132)) -> 0 | D203: =IF(ISERROR((D37+D69)/D132),0,((D37+D69)/D132)) -> 0.007701115125 | E203: 0.002898673601 | F203: 0.1902324087 | G203: 0.3356761424 | H203: 0.3356761424 | I203: 0.2796212449 | J203: 0.1814372104 | K203: 0.2306526578
A204: Renewal and upgrading of Existing Assets as % of deprecn | C204: =IF(ISERROR((C37+C69)/C168),0,((C37+C69)/C168)) -> 0 | D204: =IF(ISERROR((D37+D69)/D168),0,((D37+D69)/D168)) -> 0.02678059519 | E204: 0.007501447389 | F204: 0.771916581 | G204: 1.213065034 | H204: 1.213065034 | I204: 0.9300339007 | J204: 0.6671659282 | K204: 0.774526738
A205: R&M as a % of PPE | C205: =IF(ISERROR(ROUND(C169/'A6-FinPos'!C19,3)),0,(ROUND(C169/'A6-FinPos'!C19,3))) -> 0.004 | D205: =IF(ISERROR(ROUND(D169/'A6-FinPos'!D19,3)),0,(ROUND(D169/'A6-FinPos'!D19,3))) -> 0.004 | E205: =IF(ISERROR(ROUND(E169/'A6-FinPos'!E19,3)),0,(ROUND(E169/'A6-FinPos'!E19,3))) -> 0.003 | F205: =IF(ISERROR(ROUND(F169/'A6-FinPos'!F19,3)),0,(ROUND(F169/'A6-FinPos'!F19,3))) -> 0.003 | G205: =IF(ISERROR(ROUND(G169/'A6-FinPos'!G19,3)),0,(ROUND(G169/'A6-FinPos'!G19,3))) -> 0.004 | H205: =IF(ISERROR(ROUND(H169/'A6-FinPos'!H19,3)),0,(ROUND(H169/'A6-FinPos'!H19,3))) -> 0.004 | I205: =IF(ISERROR(ROUND(I169/'A6-FinPos'!J19,3)),0,(ROUND(I169/'A6-FinPos'!J19,3))) -> 0.003 | J205: =IF(ISERROR(ROUND(J169/'A6-FinPos'!K19,3)),0,(ROUND(J169/'A6-FinPos'!K19,3))) -> 0.004 | K205: =IF(ISERROR(ROUND(K169/'A6-FinPos'!L19,3)),0,(ROUND(K169/'A6-FinPos'!L19,3))) -> 0.004
A206: Renewal and upgrading and R&M as a % of PPE | C206: =IF(ISERROR(ROUND((C37+C69+C169)/C165,2)),0,(ROUND((C37+C69+C169)/C165,2))) -> 0 | D206: =IF(ISERROR(ROUND((D37+D69+D169)/D165,2)),0,(ROUND((D37+D69+D169)/D165,2))) -> 0 | E206: 0 | F206: 0.02 | G206: 0.04 | H206: 0.04 | I206: 0.03 | J206: 0.02 | K206: 0.03
A208: =head27a -> References
A209: 1. Detail of new assets provided in Table SA34a
A210: 2. Detail of renewal of existing assets provided in Table SA34b
A211: 3. Detail of Repairs and Maintenance by Asset Class provided in Table SA34c
A212: 4. Must reconcile to total capital expenditure on Budgeted Capital Expenditure
A213: 5. Must reconcile to 'Budgeted Financial Position' (written down value)
A214: 6. Detail of upgrading of existing assets provided in Table SA34e
A215: 7. Detail of depreciation provided in Table SA34d
A217: Check balance to A6 | C217: =C165-'A6-FinPos'!D17-'A6-FinPos'!D19-'A6-FinPos'!D20-'A6-FinPos'!D21-'A6-FinPos'!D22-C148 -> 262111623.7 | D217: =D165-'A6-FinPos'!E17-'A6-FinPos'!E19-'A6-FinPos'!E20-'A6-FinPos'!E21-'A6-FinPos'!E22-D148 -> -199970804 | E217: =E165-'A6-FinPos'!F17-'A6-FinPos'!F19-'A6-FinPos'!F20-'A6-FinPos'!F21-'A6-FinPos'!F22-E148 -> -1817949893 | F217: =F165-'A6-FinPos'!G17-'A6-FinPos'!G19-'A6-FinPos'!G20-'A6-FinPos'!G21-'A6-FinPos'!G22-F148 -> 1393200221 | G217: =G165-'A6-FinPos'!H17-'A6-FinPos'!H19-'A6-FinPos'!H20-'A6-FinPos'!H21-'A6-FinPos'!H22-G148 -> -0.1499992311 | H217: =H165-'A6-FinPos'!I17-'A6-FinPos'!I19-'A6-FinPos'!I20-'A6-FinPos'!I21-'A6-FinPos'!I22-H148 -> -0.1499992311 | I217: =I165-'A6-FinPos'!J17-'A6-FinPos'!J19-'A6-FinPos'!J20-'A6-FinPos'!J21-'A6-FinPos'!J22-I148 -> -0.1499992311 | J217: =J165-'A6-FinPos'!K17-'A6-FinPos'!K19-'A6-FinPos'!K20-'A6-FinPos'!K21-'A6-FinPos'!K22-J148 -> -0.1499992311 | K217: =K165-'A6-FinPos'!L17-'A6-FinPos'!L19-'A6-FinPos'!L20-'A6-FinPos'!L21-'A6-FinPos'!L22-K148 -> -0.1499992311

Sheet A10-SerDel
A1: =muni&" - "&Approve10 -> DC12 Amathole - Table A10 Basic service delivery measurement
A2: =desc -> Description | B2: =head27 -> Ref | C2: =head1b -> 2016/17 | D2: =head1A -> 2017/18 | E2: =Head1 -> 2018/19 | F2: =Head2 -> Current Year 2019/20 | I2: =Head3 -> 2020/21 Medium Term Revenue & Expenditure Framework
C3: =Head5A -> Outcome | D3: =Head5A -> Outcome | E3: =Head5A -> Outcome | F3: =Head6 -> Original Budget | G3: =Head7 -> Adjusted Budget | H3: =Head8 -> Full Year Forecast | I3: =Head9 -> Budget Year 2020/21 | J3: =Head10 -> Budget Year +1 2021/22 | K3: =Head11 -> Budget Year +2 2022/23
A4: Household service targets | B4: 1
A5: Water:
A6: Piped water inside dwelling | C6: ='SA9'!E67 -> 31902 | D6: ='SA9'!F67 -> 31902 | E6: ='SA9'!G67 -> 0 | F6: ='SA9'!H67 -> 0 | G6: ='SA9'!I67 -> 0 | H6: ='SA9'!J67 -> 0 | I6: ='SA9'!K67 -> 0 | J6: ='SA9'!L67 -> 0 | K6: ='SA9'!M67 -> 0
A7: Piped water inside yard (but not in dwelling) | C7: ='SA9'!E68 -> 0 | D7: ='SA9'!F68 -> 0 | E7: ='SA9'!G68 -> 0 | F7: ='SA9'!H68 -> 0 | G7: ='SA9'!I68 -> 0 | H7: ='SA9'!J68 -> 0 | I7: ='SA9'!K68 -> 0 | J7: ='SA9'!L68 -> 0 | K7: ='SA9'!M68 -> 0
A8: Using public tap (at least min.service level) | B8: 2 | C8: ='SA9'!E69 -> 194934 | D8: ='SA9'!F69 -> 196391 | E8: ='SA9'!G69 -> 0 | F8: ='SA9'!H69 -> 204694 | G8: ='SA9'!I69 -> 204694 | H8: ='SA9'!J69 -> 204694 | I8: ='SA9'!K69 -> 211113 | J8: ='SA9'!L69 -> 217532 | K8: ='SA9'!M69 -> 230583.92
A9: Other water supply (at least min.service level) | B9: 4 | C9: ='SA9'!E70 -> 0 | D9: ='SA9'!F70 -> 0 | E9: ='SA9'!G70 -> 0 | F9: ='SA9'!H70 -> 0 | G9: ='SA9'!I70 -> 0 | H9: ='SA9'!J70 -> 0 | I9: ='SA9'!K70 -> 0 | J9: ='SA9'!L70 -> 0 | K9: ='SA9'!M70 -> 0
A10: Minimum Service Level and Above sub-total | C10: =SUM(C6:C9) -> 226836 | D10: =SUM(D6:D9) -> 228293 | E10: 0 | F10: 204694 | G10: 204694 | H10: 204694 | I10: 211113 | J10: 217532 | K10: 230583.92
A11: Using public tap (< min.service level) | B11: 3 | C11: ='SA9'!E72 -> 0 | D11: ='SA9'!F72 -> 0 | E11: ='SA9'!G72 -> 0 | F11: ='SA9'!H72 -> 0 | G11: ='SA9'!I72 -> 0 | H11: ='SA9'!J72 -> 0 | I11: ='SA9'!K72 -> 0 | J11: ='SA9'!L72 -> 0 | K11: ='SA9'!M72 -> 0
A12: Other water supply (< min.service level) | B12: =B9 -> 4 | C12: ='SA9'!E73 -> 13164 | D12: ='SA9'!F73 -> 11707 | E12: ='SA9'!G73 -> 0 | F12: ='SA9'!H73 -> 0 | G12: ='SA9'!I73 -> 0 | H12: ='SA9'!J73 -> 0 | I12: ='SA9'!K73 -> 0 | J12: ='SA9'!L73 -> 0 | K12: ='SA9'!M73 -> 0
A13: No water supply | C13: ='SA9'!E74 -> 0 | D13: ='SA9'!F74 -> 0 | E13: ='SA9'!G74 -> 0 | F13: ='SA9'!H74 -> 0 | G13: ='SA9'!I74 -> 0 | H13: ='SA9'!J74 -> 0 | I13: ='SA9'!K74 -> 0 | J13: ='SA9'!L74 -> 0 | K13: ='SA9'!M74 -> 0
A14: Below Minimum Service Level sub-total | C14: =SUM(C11:C13) -> 13164 | D14: =SUM(D11:D13) -> 11707 | E14: 0 | F14: 0 | G14: 0 | H14: 0 | I14: 0 | J14: 0 | K14: 0
A15: Total number of households | B15: 5 | C15: =C10+C14 -> 240000 | D15: =D10+D14 -> 240000 | E15: 0 | F15: 204694 | G15: 204694 | H15: 204694 | I15: 211113 | J15: 217532 | K15: 230583.92
A16: Sanitation/sewerage:
A17: Flush toilet (connected to sewerage) | C17: ='SA9'!E78 -> 23882 | D17: ='SA9'!F78 -> 23882 | E17: ='SA9'!G78 -> 0 | F17: ='SA9'!H78 -> 24682 | G17: ='SA9'!I78 -> 24682 | H17: ='SA9'!J78 -> 24682 | I17: ='SA9'!K78 -> 24682 | J17: ='SA9'!L78 -> 24682 | K17: ='SA9'!M78 -> 25792.69
A18: Flush toilet (with septic tank) | C18: ='SA9'!E79 -> 0 | D18: ='SA9'!F79 -> 0 | E18: ='SA9'!G79 -> 0 | F18: ='SA9'!H79 -> 0 | G18: ='SA9'!I79 -> 0 | H18: ='SA9'!J79 -> 0 | I18: ='SA9'!K79 -> 0 | J18: ='SA9'!L79 -> 0 | K18: ='SA9'!M79 -> 0
A19: Chemical toilet | C19: ='SA9'!E80 -> 0 | D19: ='SA9'!F80 -> 0 | E19: ='SA9'!G80 -> 0 | F19: ='SA9'!H80 -> 0 | G19: ='SA9'!I80 -> 0 | H19: ='SA9'!J80 -> 0 | I19: ='SA9'!K80 -> 0 | J19: ='SA9'!L80 -> 0 | K19: ='SA9'!M80 -> 0
A20: Pit toilet (ventilated) | C20: ='SA9'!E81 -> 131964 | D20: ='SA9'!F81 -> 153880 | E20: ='SA9'!G81 -> 0 | F20: ='SA9'!H81 -> 0 | G20: ='SA9'!I81 -> 0 | H20: ='SA9'!J81 -> 0 | I20: ='SA9'!K81 -> 0 | J20: ='SA9'!L81 -> 0 | K20: ='SA9'!M81 -> 0
A21: Other toilet provisions (> min.service level) | C21: ='SA9'!E82 -> 155846 | D21: ='SA9'!F82 -> 177762 | E21: ='SA9'!G82 -> 0 | F21: ='SA9'!H82 -> 192762 | G21: ='SA9'!I82 -> 192762 | H21: ='SA9'!J82 -> 192762 | I21: ='SA9'!K82 -> 202762 | J21: ='SA9'!L82 -> 212762 | K21: ='SA9'!M82 -> 222336.29
A22: =$A$10 -> Minimum Service Level and Above sub-total | C22: =SUM(C17:C21) -> 311692 | D22: =SUM(D17:D21) -> 355524 | E22: 0 | F22: 217444 | G22: 217444 | H22: 217444 | I22: 227444 | J22: 237444 | K22: 248128.98
A23: Bucket toilet | C23: ='SA9'!E84 -> 624 | D23: ='SA9'!F84 -> 624 | E23: ='SA9'!G84 -> 0 | F23: ='SA9'!H84 -> 0 | G23: ='SA9'!I84 -> 0 | H23: ='SA9'!J84 -> 0 | I23: ='SA9'!K84 -> 0 | J23: ='SA9'!L84 -> 0 | K23: ='SA9'!M84 -> 0
A24: Other toilet provisions (< min.service level) | C24: ='SA9'!E85 -> 0 | D24: ='SA9'!F85 -> 0 | E24: ='SA9'!G85 -> 0 | F24: ='SA9'!H85 -> 0 | G24: ='SA9'!I85 -> 0 | H24: ='SA9'!J85 -> 0 | I24: ='SA9'!K85 -> 0 | J24: ='SA9'!L85 -> 0 | K24: ='SA9'!M85 -> 0
A25: No toilet provisions | C25: ='SA9'!E86 -> 84154 | D25: ='SA9'!F86 -> 56492 | E25: ='SA9'!G86 -> 0 | F25: ='SA9'!H86 -> 41492 | G25: ='SA9'!I86 -> 41492 | H25: ='SA9'!J86 -> 41492 | I25: ='SA9'!K86 -> 31492 | J25: ='SA9'!L86 -> 21492 | K25: ='SA9'!M86 -> 15000000
A26: =$A$14 -> Below Minimum Service Level sub-total | C26: =SUM(C23:C25) -> 84778 | D26: =SUM(D23:D25) -> 57116 | E26: 0 | F26: 41492 | G26: 41492 | H26: 41492 | I26: 31492 | J26: 21492 | K26: 15000000
A27: =$A$15 -> Total number of households | B27: =$B$15 -> 5 | C27: =C22+C26 -> 396470 | D27: =D22+D26 -> 412640 | E27: 0 | F27: 258936 | G27: 258936 | H27: 258936 | I27: 258936 | J27: 258936 | K27: 15248128.98
A28: Energy:
A29: Electricity (at least min.service level) | C29: ='SA9'!E90 -> 0 | D29: ='SA9'!F90 -> 0 | E29: ='SA9'!G90 -> 0 | F29: ='SA9'!H90 -> 0 | G29: ='SA9'!I90 -> 0 | H29: ='SA9'!J90 -> 0 | I29: ='SA9'!K90 -> 0 | J29: ='SA9'!L90 -> 0 | K29: ='SA9'!M90 -> 0
A30: Electricity - prepaid (min.service level) | C30: ='SA9'!E91 -> 0 | D30: ='SA9'!F91 -> 0 | E30: ='SA9'!G91 -> 0 | F30: ='SA9'!H91 -> 0 | G30: ='SA9'!I91 -> 0 | H30: ='SA9'!J91 -> 0 | I30: ='SA9'!K91 -> 0 | J30: ='SA9'!L91 -> 0 | K30: ='SA9'!M91 -> 0
A31: =$A$10 -> Minimum Service Level and Above sub-total | C31: =SUM(C29:C30) -> 0 | D31: =SUM(D29:D30) -> 0 | E31: 0 | F31: 0 | G31: 0 | H31: 0 | I31: 0 | J31: 0 | K31: 0
A32: Electricity (< min.service level) | C32: ='SA9'!E93 -> 0 | D32: ='SA9'!F93 -> 0 | E32: ='SA9'!G93 -> 0 | F32: ='SA9'!H93 -> 0 | G32: ='SA9'!I93 -> 0 | H32: ='SA9'!J93 -> 0 | I32: ='SA9'!K93 -> 0 | J32: ='SA9'!L93 -> 0 | K32: ='SA9'!M93 -> 0
A33: Electricity - prepaid (< min. service level) | C33: ='SA9'!E94 -> 0 | D33: ='SA9'!F94 -> 0 | E33: ='SA9'!G94 -> 0 | F33: ='SA9'!H94 -> 0 | G33: ='SA9'!I94 -> 0 | H33: ='SA9'!J94 -> 0 | I33: ='SA9'!K94 -> 0 | J33: ='SA9'!L94 -> 0 | K33: ='SA9'!M94 -> 0
A34: Other energy sources | C34: ='SA9'!E95 -> 0 | D34: ='SA9'!F95 -> 0 | E34: ='SA9'!G95 -> 0 | F34: ='SA9'!H95 -> 0 | G34: ='SA9'!I95 -> 0 | H34: ='SA9'!J95 -> 0 | I34: ='SA9'!K95 -> 0 | J34: ='SA9'!L95 -> 0 | K34: ='SA9'!M95 -> 0
A35: =$A$14 -> Below Minimum Service Level sub-total | C35: =SUM(C32:C34) -> 0 | D35: =SUM(D32:D34) -> 0 | E35: 0 | F35: 0 | G35: 0 | H35: 0 | I35: 0 | J35: 0 | K35: 0
A36: =$A$15 -> Total number of households | B36: =$B$15 -> 5 | C36: =C31+C35 -> 0 | D36: =D31+D35 -> 0 | E36: 0 | F36: 0 | G36: 0 | H36: 0 | I36: 0 | J36: 0 | K36: 0
A37: Refuse:
A38: Removed at least once a week | C38: ='SA9'!E99 -> 0 | D38: ='SA9'!F99 -> 0 | E38: ='SA9'!G99 -> 0 | F38: ='SA9'!H99 -> 0 | G38: ='SA9'!I99 -> 0 | H38: ='SA9'!J99 -> 0 | I38: ='SA9'!K99 -> 0 | J38: ='SA9'!L99 -> 0 | K38: ='SA9'!M99 -> 0
A39: =$A$10 -> Minimum Service Level and Above sub-total | C39: =SUM(C38) -> 0 | D39: =SUM(D38) -> 0 | E39: 0 | F39: 0 | G39: 0 | H39: 0 | I39: 0 | J39: 0 | K39: 0
A40: Removed less frequently than once a week | C40: ='SA9'!E101 -> 0 | D40: ='SA9'!F101 -> 0 | E40: ='SA9'!G101 -> 0 | F40: ='SA9'!H101 -> 0 | G40: ='SA9'!I101 -> 0 | H40: ='SA9'!J101 -> 0 | I40: ='SA9'!K101 -> 0 | J40: ='SA9'!L101 -> 0 | K40: ='SA9'!M101 -> 0
A41: Using communal refuse dump | C41: ='SA9'!E102 -> 0 | D41: ='SA9'!F102 -> 0 | E41: ='SA9'!G102 -> 0 | F41: ='SA9'!H102 -> 0 | G41: ='SA9'!I102 -> 0 | H41: ='SA9'!J102 -> 0 | I41: ='SA9'!K102 -> 0 | J41: ='SA9'!L102 -> 0 | K41: ='SA9'!M102 -> 0
A42: Using own refuse dump | C42: ='SA9'!E103 -> 0 | D42: ='SA9'!F103 -> 0 | E42: ='SA9'!G103 -> 0 | F42: ='SA9'!H103 -> 0 | G42: ='SA9'!I103 -> 0 | H42: ='SA9'!J103 -> 0 | I42: ='SA9'!K103 -> 0 | J42: ='SA9'!L103 -> 0 | K42: ='SA9'!M103 -> 0
A43: Other rubbish disposal | C43: ='SA9'!E104 -> 0 | D43: ='SA9'!F104 -> 0 | E43: ='SA9'!G104 -> 0 | F43: ='SA9'!H104 -> 0 | G43: ='SA9'!I104 -> 0 | H43: ='SA9'!J104 -> 0 | I43: ='SA9'!K104 -> 0 | J43: ='SA9'!L104 -> 0 | K43: ='SA9'!M104 -> 0
A44: No rubbish disposal | C44: ='SA9'!E105 -> 0 | D44: ='SA9'!F105 -> 0 | E44: ='SA9'!G105 -> 0 | F44: ='SA9'!H105 -> 0 | G44: ='SA9'!I105 -> 0 | H44: ='SA9'!J105 -> 0 | I44: ='SA9'!K105 -> 0 | J44: ='SA9'!L105 -> 0 | K44: ='SA9'!M105 -> 0
A45: =$A$14 -> Below Minimum Service Level sub-total | C45: =SUM(C40:C44) -> 0 | D45: 0 | E45: 0 | F45: 0 | G45: 0 | H45: 0 | I45: 0 | J45: 0 | K45: 0
A46: =$A$15 -> Total number of households | B46: =$B$15 -> 5 | C46: =C39+C45 -> 0 | D46: =D39+D45 -> 0 | E46: 0 | F46: 0 | G46: 0 | H46: 0 | I46: 0 | J46: 0 | K46: 0
A48: Households receiving Free Basic Service | B48: 7
A49: Water (6 kilolitres per household per month) | C49: ='SA9'!E263 -> 206836 | D49: ='SA9'!F263 -> 209067 | E49: ='SA9'!G263 -> 0 | F49: ='SA9'!H263 -> 0 | G49: ='SA9'!I263 -> 0 | H49: ='SA9'!J263 -> 0 | I49: ='SA9'!K263 -> 29142 | J49: ='SA9'!L263 -> 30890.52 | K49: ='SA9'!M263 -> 32743.9512
A50: Sanitation (free minimum level service) | C50: ='SA9'!E275 -> 0 | D50: ='SA9'!F275 -> 0 | E50: ='SA9'!G275 -> 0 | F50: ='SA9'!H275 -> 0 | G50: ='SA9'!I275 -> 0 | H50: ='SA9'!J275 -> 0 | I50: ='SA9'!K275 -> 0 | J50: ='SA9'!L275 -> 0 | K50: ='SA9'!M275 -> 0
A51: Electricity/other energy (50kwh per household per month) | C51: ='SA9'!E251 -> 0 | D51: ='SA9'!F251 -> 0 | E51: ='SA9'!G251 -> 0 | F51: ='SA9'!H251 -> 0 | G51: ='SA9'!I251 -> 0 | H51: ='SA9'!J251 -> 0 | I51: ='SA9'!K251 -> 0 | J51: ='SA9'!L251 -> 0 | K51: ='SA9'!M251 -> 0
A52: Refuse (removed at least once a week) | C52: ='SA9'!E287 -> 0 | D52: ='SA9'!F287 -> 0 | E52: ='SA9'!G287 -> 0 | F52: ='SA9'!H287 -> 0 | G52: ='SA9'!I287 -> 0 | H52: ='SA9'!J287 -> 0 | I52: ='SA9'!K287 -> 0 | J52: ='SA9'!L287 -> 0 | K52: ='SA9'!M287 -> 0
A54: Cost of Free Basic Services provided - Formal Settlements (R'000) | B54: 8
A55: Water (6 kilolitres per indigent household per month) | C55: ='SA1'!C20 -> 16391630 | D55: ='SA1'!D20 -> 17422415 | E55: ='SA1'!E20 -> 11462600 | F55: ='SA1'!F20 -> 50000000 | G55: ='SA1'!G20 -> 29752000 | H55: ='SA1'!H20 -> 29752000 | I55: ='SA1'!J20 -> 35000000 | J55: ='SA1'!K20 -> 35600000 | K55: ='SA1'!L20 -> 56420000
A56: Sanitation (free sanitation service to indigent households) | C56: ='SA1'!C26 -> 0 | D56: ='SA1'!D26 -> 0 | E56: ='SA1'!E26 -> 0 | F56: ='SA1'!F26 -> 0 | G56: ='SA1'!G26 -> 0 | H56: ='SA1'!H26 -> 0 | I56: ='SA1'!J26 -> 0 | J56: ='SA1'!K26 -> 0 | K56: ='SA1'!L26 -> 0
A57: Electricity/other energy (50kwh per indigent household per month) | C57: ='SA1'!C14 -> 0 | D57: ='SA1'!D14 -> 0 | E57: ='SA1'!E14 -> 0 | F57: ='SA1'!F14 -> 0 | G57: ='SA1'!G14 -> 0 | H57: ='SA1'!H14 -> 0 | I57: ='SA1'!J14 -> 0 | J57: ='SA1'!K14 -> 0 | K57: ='SA1'!L14 -> 0
A58: Refuse (removed once a week for indigent households) | C58: ='SA1'!C33 -> 0 | D58: ='SA1'!D33 -> 0 | E58: ='SA1'!E33 -> 0 | F58: ='SA1'!F33 -> 0 | G58: ='SA1'!G33 -> 0 | H58: ='SA1'!H33 -> 0 | I58: ='SA1'!J33 -> 0 | J58: ='SA1'!K33 -> 0 | K58: ='SA1'!L33 -> 0
A59: Cost of Free Basic Services provided - Informal Formal Settlements (R'000) | C59: ='SA9'!E260+'SA9'!E272+'SA9'!E284+'SA9'!E296 -> 0 | D59: ='SA9'!F260+'SA9'!F272+'SA9'!F284+'SA9'!F296 -> 0 | E59: ='SA9'!G260+'SA9'!G272+'SA9'!G284+'SA9'!G296 -> 0 | F59: ='SA9'!H260+'SA9'!H272+'SA9'!H284+'SA9'!H296 -> 0 | G59: ='SA9'!I260+'SA9'!I272+'SA9'!I284+'SA9'!I296 -> 0 | H59: ='SA9'!J260+'SA9'!J272+'SA9'!J284+'SA9'!J296 -> 0 | I59: ='SA9'!K260+'SA9'!K272+'SA9'!K284+'SA9'!K296 -> 0 | J59: ='SA9'!L260+'SA9'!L272+'SA9'!L284+'SA9'!L296 -> 0 | K59: ='SA9'!M260+'SA9'!M272+'SA9'!M284+'SA9'!M296 -> 0
A60: Total cost of FBS provided | C60: =SUM(C55:C59) -> 16391630 | D60: 17422415 | E60: 11462600 | F60: 50000000 | G60: 29752000 | H60: 29752000 | I60: 35000000 | J60: 35600000 | K60: 56420000
A62: Highest level of free service provided per household
A63: Property rates (R value threshold)
A64: Water (kilolitres per household per month) | C64: 6 | D64: 6 | E64: 55.056 | F64: 58.35936 | G64: 58.35936 | H64: 58.35936 | I64: 62.34190331 | J64: 66.08241751 | K64: 70.04736256
A65: Sanitation (kilolitres per household per month)
A66: Sanitation (Rand per household per month) | C66: 173.26 | D66: 173.26 | E66: 198.431 | F66: 210.33686 | G66: 210.33686 | H66: 210.33686 | I66: 223.5058205 | J66: 236.9161698 | K66: 236.9161698
A67: Electricity (kwh per household per month)
A68: Refuse (average litres per week)
A69: Revenue cost of subsidised services provided (R'000) | B69: 9
A70: Property rates (tariff adjustment) ( impermissable values per section 17 of MPRA)
A71: Property rates exemptions, reductions and rebates and impermissable values in excess of section 17 of MPRA) | C71: ='SA1'!C8 -> 0 | D71: ='SA1'!D8 -> 0 | E71: ='SA1'!E8 -> 0 | F71: ='SA1'!F8 -> 0 | G71: ='SA1'!G8 -> 0 | H71: ='SA1'!H8 -> 0 | I71: ='SA1'!J8 -> 0 | J71: ='SA1'!K8 -> 0 | K71: ='SA1'!L8 -> 0
A72: Water (in excess of 6 kilolitres per indigent household per month) | C72: ='SA1'!C19 -> 0 | D72: ='SA1'!D19 -> 0 | E72: ='SA1'!E19 -> 0 | F72: ='SA1'!F19 -> 0 | G72: ='SA1'!G19 -> 0 | H72: ='SA1'!H19 -> 0 | I72: ='SA1'!J19 -> 0 | J72: ='SA1'!K19 -> 0 | K72: ='SA1'!L19 -> 0
A73: Sanitation (in excess of free sanitation service to indigent households) | C73: ='SA1'!C25 -> 0 | D73: ='SA1'!D25 -> 0 | E73: ='SA1'!E25 -> 0 | F73: ='SA1'!F25 -> 0 | G73: ='SA1'!G25 -> 0 | H73: ='SA1'!H25 -> 0 | I73: ='SA1'!J25 -> 0 | J73: ='SA1'!K25 -> 0 | K73: ='SA1'!L25 -> 0
A74: Electricity/other energy (in excess of 50 kwh per indigent household per month) | C74: ='SA1'!C13 -> 0 | D74: ='SA1'!D13 -> 0 | E74: ='SA1'!E13 -> 0 | F74: ='SA1'!F13 -> 0 | G74: ='SA1'!G13 -> 0 | H74: ='SA1'!H13 -> 0 | I74: ='SA1'!J13 -> 0 | J74: ='SA1'!K13 -> 0 | K74: ='SA1'!L13 -> 0
A75: Refuse (in excess of one removal a week for indigent households) | C75: ='SA1'!C32 -> 0 | D75: ='SA1'!D32 -> 0 | E75: ='SA1'!E32 -> 0 | F75: ='SA1'!F32 -> 0 | G75: ='SA1'!G32 -> 0 | H75: ='SA1'!H32 -> 0 | I75: ='SA1'!J32 -> 0 | J75: ='SA1'!K32 -> 0 | K75: ='SA1'!L32 -> 0
A76: Municipal Housing - rental rebates
A77: Housing - top structure subsidies | B77: 6
A78: Other
A79: Total revenue cost of subsidised services provided | C79: =SUM(C70:C78) -> 0 | D79: =SUM(D70:D78) -> 0 | E79: 0 | F79: 0 | G79: 0 | H79: 0 | I79: 0 | J79: =SUM(J70:J78) -> 0 | K79: =SUM(K70:K78) -> 0
A80: =head27a -> References
A81: 1. Include services provided by another entity; e.g. Eskom
A82: 2. Stand distance <= 200m from dwelling
A83: 3. Stand distance > 200m from dwelling
A84: 4. Borehole, spring, rain-water tank etc.
A85: 5. Must agree to total number of households in municipal area (informal settlements receiving services must be included)
A86: 6. Include value of subsidy provided by municipality above provincial subsidy level
A87: 7. Show number of households receiving at least these levels of services completely free (informal settlements must be included)
A88: 8. Must reflect the cost to the municipality of providing the Free Basic Service
